Workbook

Sheet Intro
G2: Electricity Distribution Network Service Provider
H3: Post-Tax Revenue Model
K4: Version: | L4: 3 (Networks NSW submission)
K5: Date: | L5: October 2014
B8: Introduction | J8: Electricity Distribution Module
C13: This model illustrates the basic elements of the AER's building block calculation and associated price and revenue constraints for distribution businesses.
C15: The model is intended to produce X factors that are applicable to revenue caps, price caps and revenue yield forms of control.
C17: Building block revenues and cash flows are modelled in nominal terms unless specified otherwise.
C19: INSTRUCTIONS FOR USE
C21: 1. Fill out cells in 'Input' sheet. These cells are highlighted blue.
C22: Input data required include:
D23: by asset class -
E24: opening asset value (regulatory and tax purposes)
E25: remaining asset life (regulatory and tax purposes)
E26: standard asset life (regulatory and tax purposes)
E27: forecast capex
E28: forecast disposals
E29: forecast customer contributions
D30: regulatory control period information
D31: forecast total opex
D32: other revenue adjustments
D33: expected tax rates
D34: WACC parameters
D35: transactions costs of financing parameters
D36: current actual prices for each tariff component
D37: forecast quantities for each tariff component
D38: forecast energy
C40: Input expenditure data should be valued in real dollar terms of the year indicated, as at the end of that year.
C42: 2. Select X factors and P_0 in the 'X factors' sheet
C43: Clause 6.2.6 requires that the form of control applicable to standard control services be of a CPI–X form.
C44: This sheet provides for the calculation of X factors under three basic forms of control, namely a weighted average price cap, revenue cap and revenue yield.
C46: The X factor values may differ for each year of the regulatory control period but must be set such that the NPV of expected revenues (smoothed) is equal to the NPV of the total annual revenue requirement (unsmoothed) for that period.
C47: The X factors sheet provides input values for each X factor and contains macro buttons which can be used to goal seek a value of P_0 (or an X factor value for a specific year) for each form of control to equate the NPVs of smoothed and unsmoothed revenues.
C50: Amendment record:
C52: version no. | D52: Date of issue | F52: Details of amendments
C53: version 01 | D53: 2008-06-26 | F53: -
C55: version 02 | D55: 2009-06-19 | F55: 1. totals in row 37 of the "Input" sheet changed to sum rows 7 to 36
F56: 2. depreciation on capex calculated in rows 169 to 178 and 182 to 191 of the "Assets" sheet changed to refer to correct capex inputs for each year
F57: 3. tax depreciation totals in row 479 of the "Assets" sheet changed to include tax depreciation calculated for all asset classes
C59: The sheet Change Log lists alterations made to implement the Rate of return guideline (particularly annual return on debt update)

Sheet Change Log
B1: Detailed log of changes made to Distribution PTRM template to produce the new version of the PTRM
B3: Category of change | C3: Category Description
B4: General spreadsheet layout and management | C4: These changes relate to either: the process of updating the PTRM itself; changes (including standardisation) to layout or format; accommodation of current use scenarios; or other miscellaneous causes
B5: Align with new legislation (rate of return) | C5: These changes result from the substantial legislative changes to the determination of the rate of return - in brief: the adoption of the overarching allowed rate of retrun objective, the removal of prescriptive material relating to the CAPM, allowing return on debt to vary year by year. As a result, many calculations related to the determination of the WACC which were previously in the PTRM have been removed (while these calculations might still be necessary elsewhere, only the final outcome from the entire RoE/RoD process is required as an input into the PTRM). However, the adoption of a time varying WACC has then resulted in subsequent additions and alterations elsewhere in the PTRM.
B6: Align with new legislation (revenue adjustments) | C6: These changes accommodate the new building block specification (section 6.4.3 for Distribution) which includes additional categories in the building block requirements that expand on the types of revenue adjustments that should be included in the annual revenue requirement.
B7: Standardisation with Transmission PTRM (equity raising costs) | C7: These changes automate the process of calculating equity raising costs (ERC), which is done iteratively in conjunction with the smoothing operation for total revenue. Note the calculation of ERC was previously included in the transmission model (but not Distribution), though we have signifcantly improved the process - which previously required several manual steps
B8: Standardisation with Transmission PTRM (period length) | C8: These changes allow use of a regulatory period between 2 and 10 years in length (integer only), rather than assuming it will be exactly 5 years. Note the Transmission PTRM previously included this input (although not all calculations and display tables correctly reflected the length entered)
B9: Standardisation with Transmission PTRM (tax rates) | C9: These changes allow the tax rate to change year-by-year across the regulatory period, when previously the PTRM was hard-coded to use one value (30%) every year.
B11: Category | C11: Old Sheet | D11: Old Cell | E11: New Sheet | F11: New Cell | G11: Change Description
B12: General spreadsheet layout and management | C12: All | D12: B2, E2 | E12: All | F12: B2, D2, E2 | G12: The name of each sheet now shows the overall version number (based on input on the Intro sheet). In most cases this is cell B2 or E2 (but there are exceptions)
B13: General spreadsheet layout and management | C13: Intro | D13: K3 | E13: Intro | F13: K3 | G13: Updated version number - to reflect new version of model
B14: Standardisation with Transmission PTRM (equity raising costs) | E14: Input | F14: E215:G221 | G14: New section allows user input of parameters that determine equity raising cost calculation - all as per the existing transmission PTRM. Note label change (from Trans) to cell E217 to clarify type of payout ratio.
B15: General spreadsheet layout and management | C15: Input | D15: G198 | E15: Input | F15: E226 | G15: Label changed to indicate $/MWh (was incorrectly labelled c/KWh previously)
B16: Align with new legislation (rate of return) | C16: Input | D16: E176:G193 | E16: Input | F16: F202:Q210 | G16: Removal of most WACC inputs from the old PTRM, as they are no longer required here - intent is that the PTRM has only the minimum necessary final outputs of the WACC assessment. Labelling has been adjusted to reflect legislation. Also allows the ability to input a different return on debt each year (noting that this section also accommodates the use of a constant return on debt if this were required). Also note the debt raising cost benchmark has been moved (cell G221) consistent with the Transmission PTRM
B17: General spreadsheet layout and management | C17: Input | D17: G40:P40, F202 | E17: Input | F17: G40:P40, F229 | G17: Changed formula to update years in either calendar (20XX) or financial (20XX-YY) format. Note that these base cells provide the year labels that are referenced frequently throughout the document
B18: Standardisation with Transmission PTRM (equity raising costs) | C18: Input | D18: G70 | E18: Input | F18: G70 | G18: Equity raising costs now reside on the last asset row class. Further, the year 1 capex input cell is now a defined name range, which allows the macro to update equity raising costs under the new system.
B19: Align with new legislation (rate of return) | C19: Input | D19: G186 | E19: Input | G19: Removed input cells for risk free rate - no longer required as separate input
B20: Align with new legislation (rate of return) | C20: Input | D20: G188 | E20: Input | G20: Removed input cell for debt risk premium (DRP) presumed constant across the regulatory period
B21: Align with new legislation (rate of return) | E21: Input | F21: G205 | G21: New input location for overall cost of equity, as the final output from consideration of models/other information (as per Guideline). Note Re is fixed for entire period.
B22: Align with new legislation (rate of return) | E22: Input | F22: G211:Q213 | G22: Context-sensitive cautions designed to assist the user when updating the return on debt within the regulatory control period.
B23: General spreadsheet layout and management | C23: Input | D23: Q7 | E23: Input | F23: Q7 | G23: Allow user to input either calendar year (20XX) or financial year (20XX-YY)
B24: Align with new legislation (revenue adjustments) | C24: Input | D24: Q177 (button) | E24: Input | F24: Q177, Q186, Q193 | G24: Buttons and associated Macro changed - the additional revenue adjustment sections required reworking of the existing 'insert new row' macro to accommodate different multiple insertion locations. This also includes the definitions of new defined name ranges (the last row of each input panel).
B25: Standardisation with Transmission PTRM (period length) | E25: Input | F25: R6:R7 | G25: Allow user to enter length of regulatory control period, an integer between 2 and 10.
B26: General spreadsheet layout and management | C26: Input | D26: Col E | E26: Input | F26: Col E | G26: Changed formula for section headings, which now reports calendar or financial year based on user input
B27: Standardisation with Transmission PTRM (period length) | C27: Input | D27: Col Q | E27: Input | F27: Col Q | G27: Formula change to category subtotals, include only those years in the regulatory control period (length set in R7)
B28: Standardisation with Transmission PTRM (equity raising costs) | C28: Input | D28: Row 36 | E28: Input | F28: Row 36 | G28: Equity raising costs now reside on the last asset row class - this standardises with Transmission PTRM and allows new ERC integration (via macro when smoothing).
B29: Align with new legislation (revenue adjustments) | E29: Input | F29: Row 184:189, Row 191:196 | G29: Two new input panels for revenue adjustments as allowed under the new legislation 6.4.3. Note that the two input areas are identical here but have different treatment on the analysis page (i.e. the tax status of the increment/decrement)
B30: Standardisation with Transmission PTRM (period length) | E30: Input | F30: Row 198:200 | G30: Allow user to input the tax rate for each year of the regulatory period (which may vary year-by-year). Previously this was presumed constant and hard coded on the WACC tab.
B31: Align with new legislation (rate of return) | E31: Input | F31: Row 209:210 | G31: New section allows the input of different trailing average portfolio cost of debt for different years within the period. Only the first year (start of the regulatory period) is required at the time of the final decision - annual updates after this will require entry of cost of debt for later years (as per Guideline)
B32: Align with new legislation (rate of return) | E32: Input | F32: Row 211:213 | G32: New section includes error checking and context sensitive help based on the Cost of Debt input (rows 196:197) and year of annual debt update (X factor tab, cell D14)
B33: General spreadsheet layout and management | E33: Input | F33: Row 295:328 | G33: New section allows user to input expected quantity for year 6 - 10, should they be required. Note that the format has been chosen to keep the year 1-5 input panels as per previous PTRM. The year 5 values are repeated in the year 6-10 section as a reference point. There is context sensitive caution if the user has entered data here but not expanded the grouped rows.
B34: Align with new legislation (rate of return) | C34: WACC | D34: B7:F20 | E34: WACC | F34: B6:P26 | G34: Substantial reorganisation of this page. Major changes to align with new rate of return approach. Removed unnecessary parameters (MRP, beta, DRP). Implement rounding of Re (as per guideline). Switch to year-by-year presentation of parameters and calculations to allow time-varying Rd (and WACC). Group layout into fixed parameters, time-varying parameters, and time-varying WACC sections. Added underlying defined name ranges for real vanilla WACC (rvanilla01, rvanilla02, ..., rvanilla10) and vanilla WACC (vanilla01, vanilla02, ..., vanilla03) to enable calculations on later worksheets. Also note labelling changes (clarifications and corrections)
B35: Align with new legislation (rate of return) | C35: WACC | D35: F7:F8 | E35: WACC | G35: Removed calculation of nominal and real risk free rate
B36: Align with new legislation (rate of return) | C36: WACC | D36: F27 | E36: WACC | F36: G19:P19 | G36: Nominal Vanilla WACC calculation for each year - Defined these variables as 'vanilla01', 'vanilla02', …, 'vanilla10', to replace previously single definition of 'vanilla' variable
B37: Align with new legislation (rate of return) | C37: WACC | D37: F28 | E37: WACC | F37: G20:P20 | G37: Real Vanilla WACC calculation for each year - Defined these variables as 'rvanilla01', 'rvanilla02', …, 'rvanilla10', to replace previously single definition of 'rvanilla' variable
B38: Align with new legislation (rate of return) | C38: WACC | D38: G15:G16 | E38: WACC | F38: G28:G29 | G38: Changed the operation of these cells (effective tax rates for debt and equity). Previously there was a background macro that updated values from the cashflow calculations (R28 and R29). However, since the cashflow calculations should not be used during a regulatory period (after an annual cost of debt update) we now hard code the values here at the time of the final decision. There is a button to make this process easier for the user.
B39: Align with new legislation (rate of return) | E39: WACC | F39: G32 (and macro) | G39: This button will run a macro that copies the values from R28 and R29 (effective tax rates for equity and debt) and places them in cells G28 and G29 . Also added user guidance on use of this macro (at final decision stage only).
B40: Align with new legislation (rate of return) | E40: WACC | F40: R11 | G40: The calculation of an overall cost of equity (ie not just for any one year) is based on the cashflow calculations on the analysis sheet (as before). Note that this considers the return to equity across the 55-year modelling period.
B41: Align with new legislation (rate of return) | C41: WACC | D41: G15:G34 | E41: WACC | F41: R11:R29 | G41: These cashflow-derived calculations of WACC parameters are drawn from the Analysis tab; but have changed location and calculation basis in some cases - as described on Analysis tab.
B42: Align with new legislation (rate of return) | E42: WACC | F42: Col H:P | G42: New colums added to allow a separate WACC calculation for each year, which holds the final decision Re constant and updates the portfolio cost of debt each year.
B43: Standardisation with Transmission PTRM (period length) | E43: WACC | F43: Col L:P | G43: Allow up to 10 year regulatory control period, with year-by-year WACC each year. Note grouping for display purposes (hide years 6-10). For year 11 onwards, year 10 WACC will be used.
B44: Align with new legislation (rate of return) | C44: WACC | D44: Col G | E44: WACC | F44: Col R | G44: This column moved from previous location. Still shows (in orange) checks of key parameters that are based on cashflow calculations in the Analysis sheet. However, because these checks presume a constant WACC, they are only relevant for the final decision stage (prior to any annual debt updates)
B45: Align with new legislation (rate of return) | E45: WACC | F45: Row 10 | G45: Reports unrounded cost of equity (from input sheet). Note there is no longer calculation of Re from CAPM components
B46: Align with new legislation (rate of return) | E46: WACC | F46: Row 11 | G46: Reports final Re to one decimal place. This is the rounding specified in the Guideline. This row (in particular cell G11) is the key input to all other tabs requiring cost of equity. Note Re is fixed across regulatory period.
B47: Standardisation with Transmission PTRM (tax rates) | C47: WACC | D47: F14 | E47: WACC | F47: Row 14 | G47: Apply year-by-year tax rates (drawn from Input tab). Previously this assumed single tax rate for all years (hard coded). Some error checking (filling in blank values and zero values with the last available data point)
B48: Align with new legislation (rate of return) | C48: WACC | D48: F10:F12 | E48: WACC | F48: Row 15:16 | G48: Previous cost of debt calculations (from risk free rate and debt risk premium) have been deleted. Return on debt figures are shown on rows 15:16. Where the return on debt for a particular year is not yet known, the first available prior year return on debt is used instead. Some error checking performed here (blank cells, zero entry)
B49: Align with new legislation (rate of return) | C49: WACC | D49: F15:G16 | E49: WACC | F49: Row 28:33 | G49: Calculation of effective tax rates (equity and debt) has changed. Cashflow calculations as reported on the Analysis tab. New macro (run by button) will copy cashflow-derived Te and Td as pasted-value used to convert WACC values. This allows user to update Te/Td at time of final decision (but not after varying Rd/WACC within the regulatory period).
B50: Align with new legislation (rate of return) | C50: Assets | D50: Row 76:645 | E50: Assets | F50: G76:BI465 | G50: Changed whole-of-period real vanilla WACC references (variable 'rvanilla') to use the specific WACC for the relevant year (variables 'rvanilla01', 'rvanilla02',...,'rvanilla10'). In this block, each row uses a specific rvanilla (based on the year of the underlying capital expenditure)
B51: Align with new legislation (rate of return) | C51: Assets | D51: Row 11:40 | E51: Assets | F51: Row 11:40 | G51: Changed whole-of-period real vanilla WACC references (variable 'rvanilla') to use the specific WACC for the relevant year (variables 'rvanilla01', 'rvanilla02',...,'rvanilla10'). In this block, each column uses a specific rvanilla (based on the year of the regulatory period).
B52: General spreadsheet layout and management | E52: Assets | F52: Row 874:880 | G52: Add new summary (Asset Roll Forward in Nominal terms) that was already present in Transmission PTRM. Include check calculation for error detection.
B53: General spreadsheet layout and management | C53: Analysis | D53: B22 | E53: Analysis | F53: B30 | G53: Labelling change to clarify type of carryover included in opex.
B54: Align with new legislation (rate of return) | C54: Analysis | D54: D15, D18 | E54: Analysis | G54: Remove whole-of-period WACC and return of debt cashflow calculations (no longer relevant since these may vary year by year). Return on debt and overall return on capital buidling block calculations now use time-varying WACC.
B55: Align with new legislation (rate of return) | C55: Analysis | D55: D70 | E55: Analysis | F55: D81 | G55: Calculation of the effective tax rate for debt now uses the cashflow calculation of the overall return to debt (Cell E78) instead of the user-inputed cost of debt (presumed constant)
B56: Align with new legislation (rate of return) | C56: Analysis | D56: F50:52 | E56: Analysis | F56: F60:F62 | G56: Removed the =NPV() formula from these cells (which presumed a constant WACC), and instead use a =Sumproduct() function using row 13 (inverse cumulative discount factor). This accommodates the use of a time varying WACC when calculating the net present value of each row.
B57: Align with new legislation (rate of return) | E57: Analysis | F57: Row 9:13 | G57: Display and implement time-varying WACC, based on the calculation on the WACC sheet. WACC may vary year-by-year for first 10 years; year 10 WACC is used for year 11 onwards. Calculation of inverse cumulative discount factor simplifies calculations later in the analysis worksheet (allow use of sumproduct function to discount using accrued time varying WACC).
B58: Align with new legislation (rate of return) | E58: Analysis | F58: Row 10:11 | G58: Now shows the time varying cost of debt for each year, and then the resulting WACC for each year. Note that for year 11 onwards, the WACC for year 10 is used
B59: Align with new legislation (rate of return) | E59: Analysis | F59: Row 12:13 | G59: Added calculation of a discount factor that reflects the varying WACC for each year of the regulatory period (row 12). In row 13, the inverse of this discount factor is calculated (this is to allow the use of the =SumProduct() function in cells F60:F62)
B60: Align with new legislation (rate of return) | E60: Analysis | F60: Row 26 | G60: Changed formula references that used the (presumed) whole-of-period cost of debt (from the WACC sheet) to instead use the cost of debt for that specific year (from the WACC sheet). From year 11 on, this is the year 10 cost of debt.
B61: Align with new legislation (revenue adjustments) | E61: Analysis | F61: Row 39 | G61: Allow new category of additional tax income - revenue adjustments (from Input sheet) which are included as tax income for tax purposes. Note that this will not necessarily include all revenue adjustments (Input sheet distinguishes two types with different taxation implications). This tax income is then included in tax calculations (row 50 and 54)
B62: Standardisation with Transmission PTRM (tax rates) | C62: Analysis | D62: D42 | E62: Analysis | F62: Row 48 | G62: Now displays the corporate tax rate for each year, linked to WACC page. Previously used one value (presumed constant for whole period), which has been removed. Note that for year 11 onwards, the tax rate for year 10 is used.
B63: Standardisation with Transmission PTRM (tax rates) | E63: Analysis | F63: Row 52, 54, 81 | G63: Tax calculations (tax payable, intermediate tax, after tax cash flow to debt) now use varying corporate tax rate (from row 48) instead of one fixed value from cell $D$42. Note that for year 11 onwards, the tax rate for year 10 is used.
B64: Align with new legislation (rate of return) | C64: Analysis | D64: Row 68:71 | E64: Analysis | F64: Row 78:81 | G64: This is a new row (row 78) that calculates the implied overall cost of debt across the modelling period (55 years) based on the cash flows. The IRR is calculated based on initial debt amount and cash flow to debt holders (interest payments received and additional debt raising) across the period. However, this row does NOT account for the tax impact of debt (interest shield). Compare with row 81 (which already existed in the model), which is the same calculation but including debt impacts. The calculation of the effective tax rate for debt (cell D81) now uses this calculated IRR rather than the constant RD assumed in the earlier PTRM. This IRR single figure will accurately calculate the return to debtholders only where return on debt is constant in the final decision (and will not be the case after annual debt updates have altered the year-by-year debt returns during the regulatory control period).
B65: Align with new legislation (revenue adjustments) | C65: Analysis | D65: Row 110:116 | E65: Analysis | F65: Row 121:132 | G65: Converted this section from 'hidden' graph data to formal disaggregation aligning building blocks with legislated building blocks. New rows for revenue adjustments (125 to 126) and subtotal.
B66: Standardisation with Transmission PTRM (period length) | E66: Forecast revenues | F66: Many Col | G66: New sections inserted for years 6 to 10 in blocks (automatically grouped and hidden) which align with existing layout for years 1-5. New sections are Columns L to Q; W to AB; AH to AM; AS to AX; BD to BI; BO to BT; BZ to CE; CK to CP; CV to DA; DG to DL.
B67: General spreadsheet layout and management | E67: X factors | F67: E49, E64, E85 | G67: Added default smoothing (via macro accessed by button) equivalent to the default smoothing option in the Transmission PTRM
B68: Align with new legislation (rate of return) | E68: X factors | F68: F21 | G68: A drop down menu has been added for the year of update. The drop down menu is populated with the 10 years of the regulatory control period (in normal circumstances only the first 5 years will be used). This menu is used to trigger warnings throughout the model about necessary data inputs and the relevant year to update the X-factor.
B69: Align with new legislation (rate of return) | C69: X factor | D69: Col D | E69: X factors | F69: R39, R44, R55, R60, R71, R80 | G69: NPV calculations now use the discount rate in row 8 (which allows the WACC to change each year), rather than the NPV function
B70: Standardisation with Transmission PTRM (period length) | C70: X factor | D70: Col E:I | E70: X factors | F70: Col G:Q | G70: Added columns (L to Q) for years 6 to 10. Adjusted all formulae to incorporate period lengths 2-10 years (filtering calculations and display based on period length).
B71: Align with new legislation (rate of return) | C71: X factor | D71: B7:C8 | E71: X factors | F71: Row 7:11 | G71: Accommodate time-varying WACC (year-by-year). Cumulative discount WACC is displayed to allow NPV calculations on this page. Note that inflation presentation has changed but inflation is still presumed constant across the regulatory period (and inflation is not updated within the regulatory control period, in contrast to the return on debt).
B72: Align with new legislation (rate of return) | E72: X factors | F72: Row 7:8 | G72: To allow for a changing WACC in the discount rate, we have set up a 'manual' NPV calculation. These rows show the different WACC for each year and then calculate the cumulative discount factor.
B73: Standardisation with Transmission PTRM (equity raising costs) | E73: X factors | F73: Row 15:16 | G73: The new smoothing macros will automatically update X factors and can also iteratively setting equity raising costs as well. The drop down menu (merged cell H16:J16) added to allow user to control this behaviour.
B74: General spreadsheet layout and management | E74: X factors | F74: Row 21:27 | G74: Added user cautions/guidance with no determinative effect on PTRM calculations. Drop down menu in F21 controls some of these cautions. Row 23 displays positive message if no other cautions are active (implemented after user testing). Row 24 displays caution if user is updating return on debt within the regulatory period. Row 25 displays caution if necessary return on debt inputs appear missing on Input sheet. Row 26 dislpays caution if ERC on input page and ERC sheet do not match.
B75: Align with new legislation (revenue adjustments) | C75: X factor | D75: Row 11:16 | E75: X factors | F75: Row 30:35 | G75: New building block table includes additional types of revenue adjustment (row 33). This draws from disaggregated building blocks displayed at the bottom of Analysis sheet
B76: General spreadsheet layout and management | C76: X factor | D76: Row 20:74 | E76: X factors | F76: Row 37:86 | G76: Large scale layout change across all three forms of control. This includes reworking each section (weighted average price cap, revenue cap, revenue yield cap) to clearly identify smoothed/unsmoothed revenue, accommodate additional smoothing (macro) buttons, present first/last year differences, include content-sensitive cautions.
B77: Align with new legislation (rate of return) | C77: X factor | D77: C31, C49, C70 | E77: X factors | F77: Row 49, 65, 85 (and macros) | G77: Buttons call macros to implement smoothing (and update ERC). The equivalent 'set P0' button is still present, but now any year of the regulatory control period can be targetted for smoothing, and there is an additional default smoothing option across all years. Replicated across all three forms of control. Smoothing will use NPVs calculated with reference to time-varying WACC.
B78: General spreadsheet layout and management | C78: X factor | D78: Row 76:97 | E78: Revenue Summary | F78: Row 5:99 | G78: The new sheet Revenue Summary includes content previously on the X factor sheet, with substantial additions. Building block breakdown includes the new revenue adjustments. The revenue summary and indicative price path are now presented for each of the three forms of control. Discount rates (as used in NPV calculations) and inflation rate (for conversion from real to nominal) are those on the X factors sheet. Calculations do vary between the different forms of control. The WAPC price path is based on the CPI-X formula. The revenue cap and revenue yield use the total energy demand forecast to convert from total revenue to price path (revenue cap) or price path to total revenue (revenue yield cap). Cumulative percentage changes reflect the change between first and last years of the regulatory period. Average yearly changes are geometric means.
B79: Standardisation with Transmission PTRM (equity raising costs) | E79: Equity Raising Cost | F79: Row 1:54 | G79: Entire new sheet, based on that already included in the Transmission model. Draws from Inputs, Assets, WACC, Analysis and X Factors sheets. Accommodates period length up to 10 years. Discount rate calculation reflects time varying WACC (capex funding requirement). Key parameters controlling ERC calculation (cost of different types of equity, imputation credit payout ratio) drawn from input page. The smoothed total revenue is used for the cashflow analysis, and so the drop down menu (cell G19) controls which form of control is referenced. This drop down menu may be automatically updated by the smoothing macros on the X factors page.
B80: General spreadsheet layout and management | C80: Chart 1-Revenue | E80: Chart 1-Revenue | F80: Row 1:76 | G80: Conversion from chart object to sheet with three charts - one for each form of control. Source data is now on the revenue summary sheet. Colours and formatting updated.
B81: General spreadsheet layout and management | C81: Chart 2-Price path | E81: Chart 2-Price path | F81: Row 1:76 | G81: Conversion from chart object to sheet with three charts - one for each form of control. Source data is now on the revenue summary sheet. Colours and formatting updated.
B82: General spreadsheet layout and management | C82: Chart 3-Building blocks | E82: Chart 3-Building blocks | F82: Row 1:26 | G82: Conversion from chart object to sheet with embedded charts. Source data is on the revenue summary sheet. Colours and formatting updated.

Sheet Input
E2: ="Input Variables"&" - DNSP PTRM - version "&Intro!$L$4 -> Input Variables - DNSP PTRM - version 3 (Networks NSW submission) | G2: Input cells are in blue
E5: ="Opening Regulated Asset Base for "&Q7&" ($m Nominal)" -> Opening Regulated Asset Base for 2008 ($m Nominal)
G6: Asset Class Name | J6: Opening Asset Value | K6: Assets Under Construction | L6: Remaining Life | M6: Standard Life | N6: Opening Tax Value | O6: Tax Remaining Life | P6: Tax Standard Life | Q6: Base Regulatory Year | R6: Length of Regulatory Control Period (Year)
E7: Asset Class 1 | G7: Sub-transmission lines | J7: 700 | L7: 30 | M7: 50 | N7: 900 | O7: 30 | P7: 47.5 | Q7: 2008 | R7: 5
E8: Asset Class 2 | G8: distribution lines | J8: 600 | L8: 30 | M8: 50 | N8: 700 | O8: 30 | P8: 47.5
E9: Asset Class 3 | G9: substations | J9: 300 | L9: 20 | M9: 40 | N9: 200 | O9: 15 | P9: 35
E10: Asset Class 4 | G10: distribution transformers | J10: 300 | L10: 20 | M10: 40 | N10: 200 | O10: 15 | P10: 35
E11: Asset Class 5 | G11: LVS and meters | J11: 200 | L11: 10 | M11: 15 | N11: 150 | O11: 5 | P11: 10
E12: Asset Class 6 | G12: communications | J12: 50 | L12: 2 | M12: 7 | N12: 50 | O12: 2 | P12: 3
E13: Asset Class 7 | G13: vehicles | J13: 50 | L13: 3 | M13: 5 | N13: 20 | O13: 1 | P13: 2
E14: Asset Class 8 | G14: land and easements | J14: 100 | L14: n/a | M14: n/a | N14: 20 | O14: n/a | P14: n/a
E15: Asset Class 9
E16: Asset Class 10
E17: Asset Class 11
E18: Asset Class 12
E19: Asset Class 13
E20: Asset Class 14
E21: Asset Class 15
E22: Asset Class 16
E23: Asset Class 17
E24: Asset Class 18
E25: Asset Class 19
E26: Asset Class 20
E27: Asset Class 21
E28: Asset Class 22
E29: Asset Class 23
E30: Asset Class 24
E31: Asset Class 25
E32: Asset Class 26
E33: Asset Class 27
E34: Asset Class 28
E35: Asset Class 29
E36: Asset Class 30 | G36: Equity raising costs | J36: 2 | L36: 30 | M36: 35 | N36: 1.8 | O36: 30 | P36: 5
E37: Total | J37: =SUM(J7:J36)+K37 -> 2302 | K37: =SUM(K7:K36) -> 0 | N37: =SUM(N7:N36) -> 2241.8
E39: ="Forecast Capital Expenditure – As Incurred ($m Real "&$F$240&")" -> Forecast Capital Expenditure – As Incurred ($m Real 2007)
E40: Year | G40: =Q7 -> 2008 | H40: =(LEFT(G40,4)+1&IF(MID(G40,5,1)="","","-"&TEXT(MID(G40,6,2)+1,"00"))) -> 2009 | I40: =(LEFT(H40,4)+1&IF(MID(H40,5,1)="","","-"&TEXT(MID(H40,6,2)+1,"00"))) -> 2010 | J40: 2011 | K40: 2012 | L40: 2013 | M40: 2014 | N40: 2015 | O40: 2016 | P40: 2017
E41: =Asset1 -> Sub-transmission lines | G41: 250 | H41: 200 | I41: 160 | J41: 160 | K41: 250
E42: =Asset2 -> distribution lines | G42: 50 | H42: 50 | I42: 40 | J42: 40 | K42: 50
E43: =Asset3 -> substations | G43: 10 | H43: 10 | I43: 10 | J43: 10 | K43: 10
E44: =Asset4 -> distribution transformers | G44: 10 | H44: 10 | I44: 10 | J44: 10 | K44: 10
E45: =Asset5 -> LVS and meters | G45: 10 | H45: 10 | I45: 10 | J45: 10 | K45: 10
E46: =Asset6 -> communications | G46: 5 | H46: 2 | I46: 2 | J46: 2 | K46: 2
E47: =Asset7 -> vehicles | G47: 5 | H47: 2 | I47: 2 | J47: 2 | K47: 2
E48: =Asset8 -> land and easements | G48: 5 | H48: 2 | I48: 2 | J48: 2 | K48: 2
E49: =Asset9 -> 0
E50: =Asset10 -> 0
E51: =Asset11 -> 0
E52: =Asset12 -> 0
E53: =Asset13 -> 0
E54: =Asset14 -> 0
E55: =Asset15 -> 0
E56: =Asset16 -> 0
E57: =Asset17 -> 0
E58: =Asset18 -> 0
E59: =Asset19 -> 0
E60: =Asset20 -> 0
E61: =Asset21 -> 0
E62: =Asset22 -> 0
E63: =Asset23 -> 0
E64: =Asset24 -> 0
E65: =Asset25 -> 0
E66: =Asset26 -> 0
E67: =Asset27 -> 0
E68: =Asset28 -> 0
E69: =Asset29 -> 0
E70: =Asset30 -> Equity raising costs | G70: 2.628933832
E71: Total | G71: =SUM(G41:G70) -> 347.6289338 | H71: 286 | I71: 236 | J71: 236 | K71: 336 | L71: 0 | M71: =SUM(M41:M70) -> 0 | N71: 0 | O71: 0 | P71: 0
Q72: =SUM(OFFSET(G71,0,0,1,$R$7)) -> 1441.628934
E73: ="Forecast Asset Disposal – as incurred ($m Real "&$F$240&")" -> Forecast Asset Disposal – as incurred ($m Real 2007)
E74: =E40 -> Year | G74: =G40 -> 2008 | H74: =H40 -> 2009 | I74: 2010 | J74: 2011 | K74: 2012 | L74: 2013 | M74: 2014 | N74: 2015 | O74: 2016 | P74: 2017
E75: =Asset1 -> Sub-transmission lines
E76: =Asset2 -> distribution lines
E77: =Asset3 -> substations
E78: =Asset4 -> distribution transformers
E79: =Asset5 -> LVS and meters
E80: =Asset6 -> communications
E81: =Asset7 -> vehicles | G81: 1 | H81: 1 | I81: 1 | J81: 1 | K81: 1
E82: =Asset8 -> land and easements | G82: 1 | H82: 1 | I82: 1 | J82: 1 | K82: 1
E83: =Asset9 -> 0
E84: =Asset10 -> 0
E85: =Asset11 -> 0
E86: =Asset12 -> 0
E87: =Asset13 -> 0
E88: =Asset14 -> 0
E89: =Asset15 -> 0
E90: =Asset16 -> 0
E91: =Asset17 -> 0
E92: =Asset18 -> 0
E93: =Asset19 -> 0
E94: =Asset20 -> 0
E95: =Asset21 -> 0
E96: =Asset22 -> 0
E97: =Asset23 -> 0
E98: =Asset24 -> 0
E99: =Asset25 -> 0
E100: =Asset26 -> 0
E101: =Asset27 -> 0
E102: =Asset28 -> 0
E103: =Asset29 -> 0
E104: =Asset30 -> Equity raising costs
E105: Total | G105: =SUM(G75:G104) -> 2 | H105: 2 | I105: 2 | J105: =SUM(J75:J104) -> 2 | K105: 2 | L105: 0 | M105: 0 | N105: 0 | O105: 0 | P105: 0
Q106: =SUM(OFFSET(G105,0,0,1,$R$7)) -> 10
E107: ="Forecast Customer Contributions – As Incurred ($m Real "&$F$240&")" -> Forecast Customer Contributions – As Incurred ($m Real 2007)
E108: =E40 -> Year | G108: =G74 -> 2008 | H108: =H74 -> 2009 | I108: 2010 | J108: 2011 | K108: 2012 | L108: 2013 | M108: 2014 | N108: 2015 | O108: 2016 | P108: 2017
E109: =Asset1 -> Sub-transmission lines | G109: 5
E110: =Asset2 -> distribution lines | G110: 5 | H110: 5 | I110: 5 | J110: 5 | K110: 5
E111: =Asset3 -> substations
E112: =Asset4 -> distribution transformers
E113: =Asset5 -> LVS and meters | G113: 2 | H113: 2 | I113: 2 | J113: 2 | K113: 2
E114: =Asset6 -> communications
E115: =Asset7 -> vehicles
E116: =Asset8 -> land and easements
E117: =Asset9 -> 0
E118: =Asset10 -> 0
E119: =Asset11 -> 0
E120: =Asset12 -> 0
E121: =Asset13 -> 0
E122: =Asset14 -> 0
E123: =Asset15 -> 0
E124: =Asset16 -> 0
E125: =Asset17 -> 0
E126: =Asset18 -> 0
E127: =Asset19 -> 0
E128: =Asset20 -> 0
E129: =Asset21 -> 0
E130: =Asset22 -> 0
E131: =Asset23 -> 0
E132: =Asset24 -> 0
E133: =Asset25 -> 0
E134: =Asset26 -> 0
E135: =Asset27 -> 0
E136: =Asset28 -> 0
E137: =Asset29 -> 0
E138: =Asset30 -> Equity raising costs
E139: Total | G139: =SUM(G109:G138) -> 12 | H139: 7 | I139: 7 | J139: 7 | K139: 7 | L139: 0 | M139: 0 | N139: 0 | O139: 0 | P139: 0
Q140: =SUM(OFFSET(G139,0,0,1,$R$7)) -> 40
E141: ="Forecast Net Capital Expenditure – As Incurred ($m Real "&$F$240&")" -> Forecast Net Capital Expenditure – As Incurred ($m Real 2007)
E142: =E40 -> Year | G142: =G40 -> 2008 | H142: =H40 -> 2009 | I142: 2010 | J142: 2011 | K142: 2012 | L142: 2013 | M142: 2014 | N142: 2015 | O142: 2016 | P142: 2017
E143: =Asset1 -> Sub-transmission lines | G143: =G41-G75-G109 -> 245 | H143: =H41-H75-H109 -> 200 | I143: 160 | J143: 160 | K143: 250 | L143: 0 | M143: 0 | N143: 0 | O143: 0 | P143: 0
E144: =Asset2 -> distribution lines | G144: =G42-G76-G110 -> 45 | H144: 45 | I144: 35 | J144: 35 | K144: 45 | L144: 0 | M144: 0 | N144: 0 | O144: 0 | P144: 0
E145: =Asset3 -> substations | G145: =G43-G77-G111 -> 10 | H145: 10 | I145: 10 | J145: 10 | K145: 10 | L145: 0 | M145: 0 | N145: 0 | O145: 0 | P145: 0
E146: =Asset4 -> distribution transformers | G146: =G44-G78-G112 -> 10 | H146: 10 | I146: 10 | J146: 10 | K146: 10 | L146: 0 | M146: 0 | N146: 0 | O146: 0 | P146: 0
E147: =Asset5 -> LVS and meters | G147: =G45-G79-G113 -> 8 | H147: 8 | I147: 8 | J147: 8 | K147: 8 | L147: 0 | M147: 0 | N147: 0 | O147: 0 | P147: 0
E148: =Asset6 -> communications | G148: =G46-G80-G114 -> 5 | H148: 2 | I148: 2 | J148: =J46-J80-J114 -> 2 | K148: 2 | L148: 0 | M148: 0 | N148: 0 | O148: 0 | P148: 0
E149: =Asset7 -> vehicles | G149: =G47-G81-G115 -> 4 | H149: 1 | I149: 1 | J149: 1 | K149: 1 | L149: 0 | M149: 0 | N149: 0 | O149: 0 | P149: 0
E150: =Asset8 -> land and easements | G150: =G48-G82-G116 -> 4 | H150: 1 | I150: 1 | J150: 1 | K150: 1 | L150: 0 | M150: 0 | N150: 0 | O150: 0 | P150: 0
E151: =Asset9 -> 0 | G151: =G49-G83-G117 -> 0 | H151: 0 | I151: 0 | J151: 0 | K151: 0 | L151: 0 | M151: 0 | N151: 0 | O151: 0 | P151: 0
E152: =Asset10 -> 0 | G152: =G50-G84-G118 -> 0 | H152: 0 | I152: 0 | J152: 0 | K152: 0 | L152: 0 | M152: 0 | N152: 0 | O152: 0 | P152: 0
E153: =Asset11 -> 0 | G153: =G51-G85-G119 -> 0 | H153: 0 | I153: 0 | J153: 0 | K153: 0 | L153: 0 | M153: 0 | N153: 0 | O153: 0 | P153: 0
E154: =Asset12 -> 0 | G154: =G52-G86-G120 -> 0 | H154: 0 | I154: 0 | J154: 0 | K154: 0 | L154: 0 | M154: 0 | N154: 0 | O154: 0 | P154: 0
E155: =Asset13 -> 0 | G155: =G53-G87-G121 -> 0 | H155: 0 | I155: 0 | J155: 0 | K155: 0 | L155: 0 | M155: 0 | N155: 0 | O155: 0 | P155: 0
E156: =Asset14 -> 0 | G156: =G54-G88-G122 -> 0 | H156: 0 | I156: 0 | J156: 0 | K156: 0 | L156: 0 | M156: 0 | N156: 0 | O156: 0 | P156: 0
E157: =Asset15 -> 0 | G157: =G55-G89-G123 -> 0 | H157: 0 | I157: 0 | J157: 0 | K157: 0 | L157: 0 | M157: 0 | N157: 0 | O157: 0 | P157: 0
E158: =Asset16 -> 0 | G158: =G56-G90-G124 -> 0 | H158: 0 | I158: 0 | J158: 0 | K158: 0 | L158: 0 | M158: 0 | N158: 0 | O158: 0 | P158: 0
E159: =Asset17 -> 0 | G159: =G57-G91-G125 -> 0 | H159: 0 | I159: 0 | J159: 0 | K159: 0 | L159: 0 | M159: 0 | N159: 0 | O159: 0 | P159: 0
E160: =Asset18 -> 0 | G160: =G58-G92-G126 -> 0 | H160: 0 | I160: 0 | J160: 0 | K160: 0 | L160: 0 | M160: 0 | N160: 0 | O160: 0 | P160: 0
E161: =Asset19 -> 0 | G161: =G59-G93-G127 -> 0 | H161: 0 | I161: 0 | J161: 0 | K161: 0 | L161: 0 | M161: 0 | N161: 0 | O161: 0 | P161: 0
E162: =Asset20 -> 0 | G162: =G60-G94-G128 -> 0 | H162: 0 | I162: 0 | J162: 0 | K162: 0 | L162: 0 | M162: 0 | N162: 0 | O162: 0 | P162: 0
E163: =Asset21 -> 0 | G163: =G61-G95-G129 -> 0 | H163: 0 | I163: 0 | J163: 0 | K163: 0 | L163: 0 | M163: 0 | N163: 0 | O163: 0 | P163: 0
E164: =Asset22 -> 0 | G164: =G62-G96-G130 -> 0 | H164: 0 | I164: 0 | J164: 0 | K164: 0 | L164: 0 | M164: 0 | N164: 0 | O164: 0 | P164: 0
E165: =Asset23 -> 0 | G165: =G63-G97-G131 -> 0 | H165: 0 | I165: 0 | J165: 0 | K165: 0 | L165: 0 | M165: 0 | N165: 0 | O165: 0 | P165: 0
E166: =Asset24 -> 0 | G166: =G64-G98-G132 -> 0 | H166: 0 | I166: 0 | J166: 0 | K166: 0 | L166: 0 | M166: 0 | N166: 0 | O166: 0 | P166: 0
E167: =Asset25 -> 0 | G167: =G65-G99-G133 -> 0 | H167: 0 | I167: 0 | J167: 0 | K167: 0 | L167: 0 | M167: 0 | N167: 0 | O167: 0 | P167: 0
E168: =Asset26 -> 0 | G168: =G66-G100-G134 -> 0 | H168: 0 | I168: 0 | J168: 0 | K168: 0 | L168: 0 | M168: 0 | N168: 0 | O168: 0 | P168: 0
E169: =Asset27 -> 0 | G169: =G67-G101-G135 -> 0 | H169: 0 | I169: 0 | J169: 0 | K169: 0 | L169: 0 | M169: 0 | N169: 0 | O169: 0 | P169: 0
E170: =Asset28 -> 0 | G170: =G68-G102-G136 -> 0 | H170: 0 | I170: 0 | J170: 0 | K170: 0 | L170: 0 | M170: 0 | N170: 0 | O170: 0 | P170: 0
E171: =Asset29 -> 0 | G171: =G69-G103-G137 -> 0 | H171: 0 | I171: 0 | J171: 0 | K171: 0 | L171: 0 | M171: 0 | N171: 0 | O171: 0 | P171: 0
E172: =Asset30 -> Equity raising costs | G172: =G70-G104-G138 -> 2.628933832 | H172: 0 | I172: 0 | J172: 0 | K172: 0 | L172: 0 | M172: 0 | N172: 0 | O172: 0 | P172: 0
E173: Total | G173: =SUM(G143:G172) -> 333.6289338 | H173: 277 | I173: =SUM(I143:I172) -> 227 | J173: 227 | K173: 327 | L173: 0 | M173: 0 | N173: 0 | O173: 0 | P173: 0
Q174: =SUM(OFFSET(G173,0,0,1,$R$7)) -> 1391.628934
E175: ="Forecast Operating and Maintenance Expenditure ($m Real "&$F$240&")" -> Forecast Operating and Maintenance Expenditure ($m Real 2007)
E176: =E40 -> Year | G176: =G40 -> 2008 | H176: =H40 -> 2009 | I176: 2010 | J176: 2011 | K176: 2012 | L176: 2013 | M176: 2014 | N176: 2015 | O176: 2016 | P176: 2017
E177: Controllable opex | G177: 50 | H177: 50 | I177: 50 | J177: 50 | K177: 50
E178: Corporate | G178: 10 | H178: 10 | I178: 10 | J178: 10 | K178: 10
E179: Other | G179: 2 | H179: 2 | I179: 2 | J179: 2 | K179: 2
E181: Debt raising costs | G181: =IF(G177=0,0,(Dr*Dv*Assets!G475)/Assets!G7) -> 1.118772 | H181: =IF(H177=0,0,(Dr*Dv*Assets!H475)/Assets!H7) -> 1.219566616 | I181: =IF(I177=0,0,(Dr*Dv*Assets!I475)/Assets!I7) -> 1.287908996 | J181: =IF(J177=0,0,(Dr*Dv*Assets!J475)/Assets!J7) -> 1.340255682 | K181: =IF(K177=0,0,(Dr*Dv*Assets!K475)/Assets!K7) -> 1.397998975 | L181: =IF(L177=0,0,(Dr*Dv*Assets!L475)/Assets!L7) -> 0 | M181: =IF(M177=0,0,(Dr*Dv*Assets!M475)/Assets!M7) -> 0 | N181: =IF(N177=0,0,(Dr*Dv*Assets!N475)/Assets!N7) -> 0 | O181: =IF(O177=0,0,(Dr*Dv*Assets!O475)/Assets!O7) -> 0 | P181: =IF(P177=0,0,(Dr*Dv*Assets!P475)/Assets!P7) -> 0
E182: Total | G182: =SUM(G177:G181) -> 63.118772 | H182: 63.21956662 | I182: 63.287909 | J182: 63.34025568 | K182: 63.39799897 | L182: 0 | M182: 0 | N182: 0 | O182: 0 | P182: 0
Q183: =SUM(OFFSET(G182,0,0,1,$R$7)) -> 316.3645023
E184: ="Revenue Adjustments for application of incentives ($m Real "&$F$240&")" -> Revenue Adjustments for application of incentives ($m Real 2007)
G185: =G40 -> 2008 | H185: =H40 -> 2009 | I185: 2010 | J185: 2011 | K185: 2012 | L185: 2013 | M185: 2014 | N185: 2015 | O185: 2016 | P185: 2017
E186: EBSS clause 6.5.8 | F186: Revenue only | G186: 5 | H186: 3 | I186: 1 | J186: 0 | K186: -2.5
E187: CESS clause 6.5.8A | F187: Revenue only
E188: STPIS clause 6.6.2 | F188: Revenue only
E189: DMEGCIS clause 6.6.3 | F189: Tax deduction
E190: SSIS clause 6.6.4 | F190: Revenue only
E192: Total | G192: =SUM(G186:G191) -> 5 | H192: 3 | I192: 1 | J192: 0 | K192: -2.5 | L192: 0 | M192: 0 | N192: 0 | O192: 0 | P192: 0
Q193: =SUM(OFFSET(G192,0,0,1,$R$7)) -> 6.5
E194: ="Revenue Adjustments from Previous Regulatory Control Period ($m Real "&$F$240&")" -> Revenue Adjustments from Previous Regulatory Control Period ($m Real 2007)
E195: =E40 -> Year | G195: =G40 -> 2008 | H195: =H40 -> 2009 | I195: 2010 | J195: 2011 | K195: 2012 | L195: 2013 | M195: 2014 | N195: 2015 | O195: 2016 | P195: 2017
E196: Carryover from previous regulatory contol period - 6.4.3(a)(6) | F196: Revenue only | G196: 5 | H196: 5 | I196: 5 | J196: 5 | K196: 5
E199: Total | G199: =SUM(G196:G198) -> 5 | H199: 5 | I199: 5 | J199: 5 | K199: 5 | L199: 0 | M199: 0 | N199: 0 | O199: 0 | P199: 0
Q200: =SUM(OFFSET(G199,0,0,1,$R$7)) -> 25
E201: ="Revenue Adjustments from Other Use of Standard Control Services Assets ($m Real "&$F$240&")" -> Revenue Adjustments from Other Use of Standard Control Services Assets ($m Real 2007)
E202: Year | G202: =G40 -> 2008 | H202: 2009 | I202: 2010 | J202: 2011 | K202: 2012 | L202: 2013 | M202: 2014 | N202: 2015 | O202: 2016 | P202: 2017
E203: Decrement from shared assets - 6.4.3(a)(6A) | F203: Revenue only | G203: -3 | H203: -3 | I203: -3 | J203: -3 | K203: -3
E206: Total | G206: =SUM(G203:G205) -> -3 | H206: -3 | I206: -3 | J206: -3 | K206: -3 | L206: 0 | M206: 0 | N206: 0 | O206: 0 | P206: 0
Q207: =SUM(OFFSET(G206,0,0,1,$R$7)) -> -15
E208: Expected Taxation Rate (per cent)
E209: =E40 -> Year | G209: =G40 -> 2008 | H209: 2009 | I209: 2010 | J209: 2011 | K209: 2012 | L209: 2013 | M209: 2014 | N209: 2015 | O209: 2016 | P209: 2017
E210: Corporate Tax Rate | G210: 0.3
... 101 more rows

Sheet WACC
B2: ="Cost of Capital Parameters"&" - DNSP PTRM - version "&Intro!$L$4 -> Cost of Capital Parameters - DNSP PTRM - version 3 (Networks NSW submission)
B4: Year | G4: =Input!G40 -> 2008 | H4: =Input!H40 -> 2009 | I4: =Input!I40 -> 2010 | J4: =Input!J40 -> 2011 | K4: =Input!K40 -> 2012 | L4: =Input!L40 -> 2013 | M4: =Input!M40 -> 2014 | N4: =Input!N40 -> 2015 | O4: =Input!O40 -> 2016 | P4: =Input!P40 -> 2017 | R4: Final decision checks
B6: Inflation Rate | D6: f | F6: Constant | G6: =f -> 0.025 | H6: 0.025 | I6: 0.025 | J6: 0.025 | K6: 0.025 | L6: 0.025 | M6: 0.025 | N6: 0.025 | O6: 0.025 | P6: 0.025 | R6: This column contains calculations that presume a constant WACC. They are therefore to be used at the start of the regulatory period (prior to any annual debt updates).
B7: Value of Imputation Credits (gamma) | D7: γ | F7: Constant | G7: =g -> 0.5 | H7: 0.5 | I7: 0.5 | J7: 0.5 | K7: 0.5 | L7: 0.5 | M7: 0.5 | N7: 0.5 | O7: 0.5 | P7: 0.5
B8: Proportion of Equity Funding | D8: E/V | F8: Constant | G8: =1-G9 -> 0.4 | H8: =1-H9 -> 0.4 | I8: =1-I9 -> 0.4 | J8: 0.4 | K8: 0.4 | L8: 0.4 | M8: 0.4 | N8: 0.4 | O8: 0.4 | P8: =1-P9 -> 0.4
B9: Proportion of Debt Funding | D9: D/V | F9: Constant | G9: =Dv -> 0.6 | H9: 0.6 | I9: 0.6 | J9: 0.6 | K9: 0.6 | L9: 0.6 | M9: 0.6 | N9: 0.6 | O9: 0.6 | P9: 0.6
B10: Post-tax Nominal Return on Equity (unrounded) | F10: Constant | G10: =Input!$G$217 -> 0.089 | H10: =Input!$G$217 -> 0.089 | I10: =Input!$G$217 -> 0.089 | J10: =Input!$G$217 -> 0.089 | K10: =Input!$G$217 -> 0.089 | L10: =Input!$G$217 -> 0.089 | M10: =Input!$G$217 -> 0.089 | N10: =Input!$G$217 -> 0.089 | O10: =Input!$G$217 -> 0.089 | P10: =Input!$G$217 -> 0.089
B11: Post-tax Nominal Return on Equity (rounded) | D11: Re | F11: Constant | G11: =ROUND(G10,3) -> 0.089 | H11: =ROUND(H10,3) -> 0.089 | I11: 0.089 | J11: 0.089 | K11: 0.089 | L11: 0.089 | M11: 0.089 | N11: 0.089 | O11: 0.089 | P11: 0.089 | R11: =Analysis!$E$78 -> 0.08899999999
B12: Post-tax Real Return on Equity | D12: Rre | F12: Constant | G12: =(1+G11)/(1+G6)-1 -> 0.06243902439 | H12: =(1+H11)/(1+H6)-1 -> 0.06243902439 | I12: 0.06243902439 | J12: 0.06243902439 | K12: 0.06243902439 | L12: 0.06243902439 | M12: 0.06243902439 | N12: 0.06243902439 | O12: 0.06243902439 | P12: 0.06243902439 | R12: =Analysis!$E$82 -> 0.06243902439
B14: Corporate Tax Rate | D14: T | F14: Varying | G14: =Input!G210 -> 0.3 | H14: =IF(OR(ISBLANK(Input!H210),Input!H210=0),G14,Input!H210) -> 0.3 | I14: =IF(OR(ISBLANK(Input!I210),Input!I210=0),H14,Input!I210) -> 0.3 | J14: =IF(OR(ISBLANK(Input!J210),Input!J210=0),I14,Input!J210) -> 0.3 | K14: =IF(OR(ISBLANK(Input!K210),Input!K210=0),J14,Input!K210) -> 0.3 | L14: =IF(OR(ISBLANK(Input!L210),Input!L210=0),K14,Input!L210) -> 0.3 | M14: =IF(OR(ISBLANK(Input!M210),Input!M210=0),L14,Input!M210) -> 0.3 | N14: =IF(OR(ISBLANK(Input!N210),Input!N210=0),M14,Input!N210) -> 0.3 | O14: =IF(OR(ISBLANK(Input!O210),Input!O210=0),N14,Input!O210) -> 0.3 | P14: =IF(OR(ISBLANK(Input!P210),Input!P210=0),O14,Input!P210) -> 0.3
B15: Nominal Pre-tax Return on Debt | D15: Rd | F15: Varying | G15: =Input!G222 -> 0.074 | H15: =IF(OR(ISBLANK(Input!H222),Input!H222=0),G15,Input!H222) -> 0.074 | I15: =IF(OR(ISBLANK(Input!I222),Input!I222=0),H15,Input!I222) -> 0.074 | J15: =IF(OR(ISBLANK(Input!J222),Input!J222=0),I15,Input!J222) -> 0.074 | K15: =IF(OR(ISBLANK(Input!K222),Input!K222=0),J15,Input!K222) -> 0.074 | L15: =IF(OR(ISBLANK(Input!L222),Input!L222=0),K15,Input!L222) -> 0.074 | M15: =IF(OR(ISBLANK(Input!M222),Input!M222=0),L15,Input!M222) -> 0.074 | N15: =IF(OR(ISBLANK(Input!N222),Input!N222=0),M15,Input!N222) -> 0.074 | O15: =IF(OR(ISBLANK(Input!O222),Input!O222=0),N15,Input!O222) -> 0.074 | P15: =IF(OR(ISBLANK(Input!P222),Input!P222=0),O15,Input!P222) -> 0.074
B16: Real Pre-tax Return on Debt | D16: Rrd | F16: Varying | G16: =(1+G15)/(1+G6)-1 -> 0.04780487805 | H16: =(1+H15)/(1+H6)-1 -> 0.04780487805 | I16: 0.04780487805 | J16: 0.04780487805 | K16: 0.04780487805 | L16: 0.04780487805 | M16: 0.04780487805 | N16: 0.04780487805 | O16: 0.04780487805 | P16: 0.04780487805
G18: Formula approximations of WACC | R18: Cashflow derivations of WACC
B19: Nominal Vanilla WACC | F19: Varying | G19: =G8*G11+G9*G15 -> 0.08 | H19: =H8*H11+H9*H15 -> 0.08 | I19: 0.08 | J19: 0.08 | K19: 0.08 | L19: 0.08 | M19: 0.08 | N19: 0.08 | O19: 0.08 | P19: 0.08 | R19: =Analysis!$E$96 -> 0.08
B20: Real Vanilla WACC | F20: Varying | G20: =G8*G12+G9*G16 -> 0.05365853659 | H20: =H8*H12+H9*H16 -> 0.05365853659 | I20: 0.05365853659 | J20: 0.05365853659 | K20: 0.05365853659 | L20: 0.05365853659 | M20: 0.05365853659 | N20: 0.05365853659 | O20: 0.05365853659 | P20: 0.05365853659 | R20: =Analysis!$E$97 -> 0.05365853659
B21: Post-tax Nominal WACC | F21: Varying | G21: =G11*((1-G28)/(1-G28*(1-G7)))*G8+G15*G9*(1-G29) -> 0.06373476543 | H21: =H11*((1-H28)/(1-H28*(1-H7)))*H8+H15*H9*(1-H29) -> 0.06373476543 | I21: 0.06373476543 | J21: 0.06373476543 | K21: 0.06373476543 | L21: 0.06373476543 | M21: 0.06373476543 | N21: 0.06373476543 | O21: 0.06373476543 | P21: 0.06373476543 | R21: =Analysis!$E$93 -> 0.07703730322
B22: Post-tax Real WACC | F22: Varying | G22: =(1+G21)/(1+G6)-1 -> 0.03779001505 | H22: =(1+H21)/(1+H6)-1 -> 0.03779001505 | I22: 0.03779001505 | J22: 0.03779001505 | K22: 0.03779001505 | L22: 0.03779001505 | M22: 0.03779001505 | N22: 0.03779001505 | O22: 0.03779001505 | P22: 0.03779001505 | R22: =Analysis!$E$95 -> 0.05076810071
B23: Pre-tax Nominal WACC | F23: Varying | G23: =G11*(1/(1-G28*(1-G7)))*G8+G15*G9 -> 0.08294523457 | H23: =H11*(1/(1-H28*(1-H7)))*H8+H15*H9 -> 0.08294523457 | I23: 0.08294523457 | J23: 0.08294523457 | K23: 0.08294523457 | L23: 0.08294523457 | M23: 0.08294523457 | N23: 0.08294523457 | O23: 0.08294523457 | P23: 0.08294523457 | R23: =Analysis!$E$91 -> 0.08295347233
B24: Pre-tax Real WACC | F24: Varying | G24: =(1+G23)/(1+G6)-1 -> 0.05653193617 | H24: =(1+H23)/(1+H6)-1 -> 0.05653193617 | I24: 0.05653193617 | J24: 0.05653193617 | K24: 0.05653193617 | L24: 0.05653193617 | M24: 0.05653193617 | N24: 0.05653193617 | O24: 0.05653193617 | P24: 0.05653193617 | R24: =Analysis!$E$94 -> 0.056539973
B25: Nominal Tax Allowance | F25: Varying | G25: =G23-G19 -> 0.002945234572 | H25: =H23-H19 -> 0.002945234572 | I25: 0.002945234572 | J25: 0.002945234572 | K25: 0.002945234572 | L25: 0.002945234572 | M25: 0.002945234572 | N25: 0.002945234572 | O25: 0.002945234572 | P25: 0.002945234572 | R25: =$R$23-$R$19 -> 0.002953472328
B26: Real Tax Allowance | F26: Varying | G26: =G24-G20 -> 0.002873399582 | H26: =H24-H20 -> 0.002873399582 | I26: 0.002873399582 | J26: 0.002873399582 | K26: 0.002873399582 | L26: 0.002873399582 | M26: 0.002873399582 | N26: 0.002873399582 | O26: 0.002873399582 | P26: 0.002873399582 | R26: =$R$24-$R$20 -> 0.002881436417
B28: Effective Tax Rate for Equity (From Relevant Cash flows) | D28: Te | G28: 0.1528196471 | H28: =G28 -> 0.1528196471 | I28: =H28 -> 0.1528196471 | J28: 0.1528196471 | K28: 0.1528196471 | L28: 0.1528196471 | M28: 0.1528196471 | N28: 0.1528196471 | O28: 0.1528196471 | P28: 0.1528196471 | R28: =Analysis!$D$75 -> 0.1528197153
B29: Effective Tax Rate for Debt (Effective Debt Shield) | D29: Td | G29: 0.3 | H29: =G29 -> 0.3 | I29: =H29 -> 0.3 | J29: 0.3 | K29: 0.3 | L29: 0.3 | M29: 0.3 | N29: 0.3 | O29: 0.3 | P29: 0.3 | R29: =Analysis!$D$88 -> 0.3
H31: At the start of the regulatory control period, use this button to copy across the cashflow-calculated Te and Td.
H32: However, these calculations presume a constant WACC so the Te/Td should not be updated during a regulatory control period
H33: when you annually update the return on debt - just use the same Te/Td from the final decision.
G35: Numbers in White cells are calculated on this sheet from input parameters.
G36: Numbers in Orange cells are transferred from relevant sheets

Sheet Assets
B2: ="Asset Roll Forward"&" - DNSP PTRM - version "&Intro!$L$4 -> Asset Roll Forward - DNSP PTRM - version 3 (Networks NSW submission)
F3: 0 | G3: =F3+1 -> 1 | H3: 2 | I3: 3 | J3: 4 | K3: 5 | L3: 6 | M3: 7 | N3: 8 | O3: 9 | P3: 10
B4: Year | F4: =Input!F240 -> 2007 | G4: =Input!G40 -> 2008 | H4: =Input!H40 -> 2009 | I4: =Input!I40 -> 2010 | J4: =Input!J40 -> 2011 | K4: =Input!K40 -> 2012 | L4: =Input!L40 -> 2013 | M4: =Input!M40 -> 2014 | N4: =Input!N40 -> 2015 | O4: =Input!O40 -> 2016 | P4: =Input!P40 -> 2017
B6: Inflation Assumption (CPI % increase) | D6: =f -> 0.025 | G6: =$D$6 -> 0.025 | H6: =$D$6 -> 0.025 | I6: 0.025 | J6: 0.025 | K6: 0.025 | L6: 0.025 | M6: 0.025 | N6: 0.025 | O6: 0.025 | P6: 0.025
B7: Cumulative Inflation Index (CPI end period) | F7: 1 | G7: =F7*(1+G6) -> 1.025 | H7: =G7*(1+H6) -> 1.050625 | I7: =H7*(1+I6) -> 1.076890625 | J7: =I7*(1+J6) -> 1.103812891 | K7: 1.131408213 | L7: 1.159693418 | M7: 1.188685754 | N7: 1.218402898 | O7: 1.24886297 | P7: =O7*(1+P6) -> 1.280084544
B9: Opening Regulatory Asset Base (RAB) | F9: =RAB -> 2302
B10: Real Net Capital Expenditure (capex) | G10: =SUM(G11:G40) -> 342.4629967 | H10: =SUM(H11:H40) -> 284.3346019 | I10: =SUM(I11:I40) -> 233.0106666 | J10: 233.0106666 | K10: 335.6585373 | L10: 0 | M10: 0 | N10: 0 | O10: 0 | P10: 0
C11: =Asset1 -> Sub-transmission lines | G11: =Input!G143*(1+rvanilla01)^0.5 -> 251.4872833 | H11: =Input!H143*(1+rvanilla02)^0.5 -> 205.2957415 | I11: =Input!I143*(1+rvanilla03)^0.5 -> 164.2365932 | J11: =Input!J143*(1+rvanilla04)^0.5 -> 164.2365932 | K11: =Input!K143*(1+rvanilla05)^0.5 -> 256.6196768 | L11: =Input!L143*(1+rvanilla06)^0.5 -> 0 | M11: =Input!M143*(1+rvanilla07)^0.5 -> 0 | N11: =Input!N143*(1+rvanilla08)^0.5 -> 0 | O11: =Input!O143*(1+rvanilla09)^0.5 -> 0 | P11: =Input!P143*(1+rvanilla10)^0.5 -> 0
C12: =Asset2 -> distribution lines | G12: =Input!G144*(1+rvanilla01)^0.5 -> 46.19154183 | H12: =Input!H144*(1+rvanilla02)^0.5 -> 46.19154183 | I12: =Input!I144*(1+rvanilla03)^0.5 -> 35.92675476 | J12: =Input!J144*(1+rvanilla04)^0.5 -> 35.92675476 | K12: =Input!K144*(1+rvanilla05)^0.5 -> 46.19154183 | L12: =Input!L144*(1+rvanilla06)^0.5 -> 0 | M12: =Input!M144*(1+rvanilla07)^0.5 -> 0 | N12: =Input!N144*(1+rvanilla08)^0.5 -> 0 | O12: =Input!O144*(1+rvanilla09)^0.5 -> 0 | P12: =Input!P144*(1+rvanilla10)^0.5 -> 0
C13: =Asset3 -> substations | G13: =Input!G145*(1+rvanilla01)^0.5 -> 10.26478707 | H13: =Input!H145*(1+rvanilla02)^0.5 -> 10.26478707 | I13: =Input!I145*(1+rvanilla03)^0.5 -> 10.26478707 | J13: =Input!J145*(1+rvanilla04)^0.5 -> 10.26478707 | K13: =Input!K145*(1+rvanilla05)^0.5 -> 10.26478707 | L13: =Input!L145*(1+rvanilla06)^0.5 -> 0 | M13: =Input!M145*(1+rvanilla07)^0.5 -> 0 | N13: =Input!N145*(1+rvanilla08)^0.5 -> 0 | O13: =Input!O145*(1+rvanilla09)^0.5 -> 0 | P13: =Input!P145*(1+rvanilla10)^0.5 -> 0
C14: =Asset4 -> distribution transformers | G14: =Input!G146*(1+rvanilla01)^0.5 -> 10.26478707 | H14: =Input!H146*(1+rvanilla02)^0.5 -> 10.26478707 | I14: =Input!I146*(1+rvanilla03)^0.5 -> 10.26478707 | J14: =Input!J146*(1+rvanilla04)^0.5 -> 10.26478707 | K14: =Input!K146*(1+rvanilla05)^0.5 -> 10.26478707 | L14: =Input!L146*(1+rvanilla06)^0.5 -> 0 | M14: =Input!M146*(1+rvanilla07)^0.5 -> 0 | N14: =Input!N146*(1+rvanilla08)^0.5 -> 0 | O14: =Input!O146*(1+rvanilla09)^0.5 -> 0 | P14: =Input!P146*(1+rvanilla10)^0.5 -> 0
C15: =Asset5 -> LVS and meters | G15: =Input!G147*(1+rvanilla01)^0.5 -> 8.211829659 | H15: =Input!H147*(1+rvanilla02)^0.5 -> 8.211829659 | I15: =Input!I147*(1+rvanilla03)^0.5 -> 8.211829659 | J15: =Input!J147*(1+rvanilla04)^0.5 -> 8.211829659 | K15: =Input!K147*(1+rvanilla05)^0.5 -> 8.211829659 | L15: =Input!L147*(1+rvanilla06)^0.5 -> 0 | M15: =Input!M147*(1+rvanilla07)^0.5 -> 0 | N15: =Input!N147*(1+rvanilla08)^0.5 -> 0 | O15: =Input!O147*(1+rvanilla09)^0.5 -> 0 | P15: =Input!P147*(1+rvanilla10)^0.5 -> 0
C16: =Asset6 -> communications | G16: =Input!G148*(1+rvanilla01)^0.5 -> 5.132393537 | H16: =Input!H148*(1+rvanilla02)^0.5 -> 2.052957415 | I16: =Input!I148*(1+rvanilla03)^0.5 -> 2.052957415 | J16: =Input!J148*(1+rvanilla04)^0.5 -> 2.052957415 | K16: =Input!K148*(1+rvanilla05)^0.5 -> 2.052957415 | L16: =Input!L148*(1+rvanilla06)^0.5 -> 0 | M16: =Input!M148*(1+rvanilla07)^0.5 -> 0 | N16: =Input!N148*(1+rvanilla08)^0.5 -> 0 | O16: =Input!O148*(1+rvanilla09)^0.5 -> 0 | P16: =Input!P148*(1+rvanilla10)^0.5 -> 0
C17: =Asset7 -> vehicles | G17: =Input!G149*(1+rvanilla01)^0.5 -> 4.105914829 | H17: =Input!H149*(1+rvanilla02)^0.5 -> 1.026478707 | I17: =Input!I149*(1+rvanilla03)^0.5 -> 1.026478707 | J17: =Input!J149*(1+rvanilla04)^0.5 -> 1.026478707 | K17: =Input!K149*(1+rvanilla05)^0.5 -> 1.026478707 | L17: =Input!L149*(1+rvanilla06)^0.5 -> 0 | M17: =Input!M149*(1+rvanilla07)^0.5 -> 0 | N17: =Input!N149*(1+rvanilla08)^0.5 -> 0 | O17: =Input!O149*(1+rvanilla09)^0.5 -> 0 | P17: =Input!P149*(1+rvanilla10)^0.5 -> 0
C18: =Asset8 -> land and easements | G18: =Input!G150*(1+rvanilla01)^0.5 -> 4.105914829 | H18: =Input!H150*(1+rvanilla02)^0.5 -> 1.026478707 | I18: =Input!I150*(1+rvanilla03)^0.5 -> 1.026478707 | J18: =Input!J150*(1+rvanilla04)^0.5 -> 1.026478707 | K18: =Input!K150*(1+rvanilla05)^0.5 -> 1.026478707 | L18: =Input!L150*(1+rvanilla06)^0.5 -> 0 | M18: =Input!M150*(1+rvanilla07)^0.5 -> 0 | N18: =Input!N150*(1+rvanilla08)^0.5 -> 0 | O18: =Input!O150*(1+rvanilla09)^0.5 -> 0 | P18: =Input!P150*(1+rvanilla10)^0.5 -> 0
C19: =Asset9 -> 0 | G19: =Input!G151*(1+rvanilla01)^0.5 -> 0 | H19: =Input!H151*(1+rvanilla02)^0.5 -> 0 | I19: =Input!I151*(1+rvanilla03)^0.5 -> 0 | J19: =Input!J151*(1+rvanilla04)^0.5 -> 0 | K19: =Input!K151*(1+rvanilla05)^0.5 -> 0 | L19: =Input!L151*(1+rvanilla06)^0.5 -> 0 | M19: =Input!M151*(1+rvanilla07)^0.5 -> 0 | N19: =Input!N151*(1+rvanilla08)^0.5 -> 0 | O19: =Input!O151*(1+rvanilla09)^0.5 -> 0 | P19: =Input!P151*(1+rvanilla10)^0.5 -> 0
C20: =Asset10 -> 0 | G20: =Input!G152*(1+rvanilla01)^0.5 -> 0 | H20: =Input!H152*(1+rvanilla02)^0.5 -> 0 | I20: =Input!I152*(1+rvanilla03)^0.5 -> 0 | J20: =Input!J152*(1+rvanilla04)^0.5 -> 0 | K20: =Input!K152*(1+rvanilla05)^0.5 -> 0 | L20: =Input!L152*(1+rvanilla06)^0.5 -> 0 | M20: =Input!M152*(1+rvanilla07)^0.5 -> 0 | N20: =Input!N152*(1+rvanilla08)^0.5 -> 0 | O20: =Input!O152*(1+rvanilla09)^0.5 -> 0 | P20: =Input!P152*(1+rvanilla10)^0.5 -> 0
C21: =Asset11 -> 0 | G21: =Input!G153*(1+rvanilla01)^0.5 -> 0 | H21: =Input!H153*(1+rvanilla02)^0.5 -> 0 | I21: =Input!I153*(1+rvanilla03)^0.5 -> 0 | J21: =Input!J153*(1+rvanilla04)^0.5 -> 0 | K21: =Input!K153*(1+rvanilla05)^0.5 -> 0 | L21: =Input!L153*(1+rvanilla06)^0.5 -> 0 | M21: =Input!M153*(1+rvanilla07)^0.5 -> 0 | N21: =Input!N153*(1+rvanilla08)^0.5 -> 0 | O21: =Input!O153*(1+rvanilla09)^0.5 -> 0 | P21: =Input!P153*(1+rvanilla10)^0.5 -> 0
C22: =Asset12 -> 0 | G22: =Input!G154*(1+rvanilla01)^0.5 -> 0 | H22: =Input!H154*(1+rvanilla02)^0.5 -> 0 | I22: =Input!I154*(1+rvanilla03)^0.5 -> 0 | J22: =Input!J154*(1+rvanilla04)^0.5 -> 0 | K22: =Input!K154*(1+rvanilla05)^0.5 -> 0 | L22: =Input!L154*(1+rvanilla06)^0.5 -> 0 | M22: =Input!M154*(1+rvanilla07)^0.5 -> 0 | N22: =Input!N154*(1+rvanilla08)^0.5 -> 0 | O22: =Input!O154*(1+rvanilla09)^0.5 -> 0 | P22: =Input!P154*(1+rvanilla10)^0.5 -> 0
C23: =Asset13 -> 0 | G23: =Input!G155*(1+rvanilla01)^0.5 -> 0 | H23: =Input!H155*(1+rvanilla02)^0.5 -> 0 | I23: =Input!I155*(1+rvanilla03)^0.5 -> 0 | J23: =Input!J155*(1+rvanilla04)^0.5 -> 0 | K23: =Input!K155*(1+rvanilla05)^0.5 -> 0 | L23: =Input!L155*(1+rvanilla06)^0.5 -> 0 | M23: =Input!M155*(1+rvanilla07)^0.5 -> 0 | N23: =Input!N155*(1+rvanilla08)^0.5 -> 0 | O23: =Input!O155*(1+rvanilla09)^0.5 -> 0 | P23: =Input!P155*(1+rvanilla10)^0.5 -> 0
C24: =Asset14 -> 0 | G24: =Input!G156*(1+rvanilla01)^0.5 -> 0 | H24: =Input!H156*(1+rvanilla02)^0.5 -> 0 | I24: =Input!I156*(1+rvanilla03)^0.5 -> 0 | J24: =Input!J156*(1+rvanilla04)^0.5 -> 0 | K24: =Input!K156*(1+rvanilla05)^0.5 -> 0 | L24: =Input!L156*(1+rvanilla06)^0.5 -> 0 | M24: =Input!M156*(1+rvanilla07)^0.5 -> 0 | N24: =Input!N156*(1+rvanilla08)^0.5 -> 0 | O24: =Input!O156*(1+rvanilla09)^0.5 -> 0 | P24: =Input!P156*(1+rvanilla10)^0.5 -> 0
C25: =Asset15 -> 0 | G25: =Input!G157*(1+rvanilla01)^0.5 -> 0 | H25: =Input!H157*(1+rvanilla02)^0.5 -> 0 | I25: =Input!I157*(1+rvanilla03)^0.5 -> 0 | J25: =Input!J157*(1+rvanilla04)^0.5 -> 0 | K25: =Input!K157*(1+rvanilla05)^0.5 -> 0 | L25: =Input!L157*(1+rvanilla06)^0.5 -> 0 | M25: =Input!M157*(1+rvanilla07)^0.5 -> 0 | N25: =Input!N157*(1+rvanilla08)^0.5 -> 0 | O25: =Input!O157*(1+rvanilla09)^0.5 -> 0 | P25: =Input!P157*(1+rvanilla10)^0.5 -> 0
C26: =Asset16 -> 0 | G26: =Input!G158*(1+rvanilla01)^0.5 -> 0 | H26: =Input!H158*(1+rvanilla02)^0.5 -> 0 | I26: =Input!I158*(1+rvanilla03)^0.5 -> 0 | J26: =Input!J158*(1+rvanilla04)^0.5 -> 0 | K26: =Input!K158*(1+rvanilla05)^0.5 -> 0 | L26: =Input!L158*(1+rvanilla06)^0.5 -> 0 | M26: =Input!M158*(1+rvanilla07)^0.5 -> 0 | N26: =Input!N158*(1+rvanilla08)^0.5 -> 0 | O26: =Input!O158*(1+rvanilla09)^0.5 -> 0 | P26: =Input!P158*(1+rvanilla10)^0.5 -> 0
C27: =Asset17 -> 0 | G27: =Input!G159*(1+rvanilla01)^0.5 -> 0 | H27: =Input!H159*(1+rvanilla02)^0.5 -> 0 | I27: =Input!I159*(1+rvanilla03)^0.5 -> 0 | J27: =Input!J159*(1+rvanilla04)^0.5 -> 0 | K27: =Input!K159*(1+rvanilla05)^0.5 -> 0 | L27: =Input!L159*(1+rvanilla06)^0.5 -> 0 | M27: =Input!M159*(1+rvanilla07)^0.5 -> 0 | N27: =Input!N159*(1+rvanilla08)^0.5 -> 0 | O27: =Input!O159*(1+rvanilla09)^0.5 -> 0 | P27: =Input!P159*(1+rvanilla10)^0.5 -> 0
C28: =Asset18 -> 0 | G28: =Input!G160*(1+rvanilla01)^0.5 -> 0 | H28: =Input!H160*(1+rvanilla02)^0.5 -> 0 | I28: =Input!I160*(1+rvanilla03)^0.5 -> 0 | J28: =Input!J160*(1+rvanilla04)^0.5 -> 0 | K28: =Input!K160*(1+rvanilla05)^0.5 -> 0 | L28: =Input!L160*(1+rvanilla06)^0.5 -> 0 | M28: =Input!M160*(1+rvanilla07)^0.5 -> 0 | N28: =Input!N160*(1+rvanilla08)^0.5 -> 0 | O28: =Input!O160*(1+rvanilla09)^0.5 -> 0 | P28: =Input!P160*(1+rvanilla10)^0.5 -> 0
C29: =Asset19 -> 0 | G29: =Input!G161*(1+rvanilla01)^0.5 -> 0 | H29: =Input!H161*(1+rvanilla02)^0.5 -> 0 | I29: =Input!I161*(1+rvanilla03)^0.5 -> 0 | J29: =Input!J161*(1+rvanilla04)^0.5 -> 0 | K29: =Input!K161*(1+rvanilla05)^0.5 -> 0 | L29: =Input!L161*(1+rvanilla06)^0.5 -> 0 | M29: =Input!M161*(1+rvanilla07)^0.5 -> 0 | N29: =Input!N161*(1+rvanilla08)^0.5 -> 0 | O29: =Input!O161*(1+rvanilla09)^0.5 -> 0 | P29: =Input!P161*(1+rvanilla10)^0.5 -> 0
C30: =Asset20 -> 0 | G30: =Input!G162*(1+rvanilla01)^0.5 -> 0 | H30: =Input!H162*(1+rvanilla02)^0.5 -> 0 | I30: =Input!I162*(1+rvanilla03)^0.5 -> 0 | J30: =Input!J162*(1+rvanilla04)^0.5 -> 0 | K30: =Input!K162*(1+rvanilla05)^0.5 -> 0 | L30: =Input!L162*(1+rvanilla06)^0.5 -> 0 | M30: =Input!M162*(1+rvanilla07)^0.5 -> 0 | N30: =Input!N162*(1+rvanilla08)^0.5 -> 0 | O30: =Input!O162*(1+rvanilla09)^0.5 -> 0 | P30: =Input!P162*(1+rvanilla10)^0.5 -> 0
C31: =Asset21 -> 0 | G31: =Input!G163*(1+rvanilla01)^0.5 -> 0 | H31: =Input!H163*(1+rvanilla02)^0.5 -> 0 | I31: =Input!I163*(1+rvanilla03)^0.5 -> 0 | J31: =Input!J163*(1+rvanilla04)^0.5 -> 0 | K31: =Input!K163*(1+rvanilla05)^0.5 -> 0 | L31: =Input!L163*(1+rvanilla06)^0.5 -> 0 | M31: =Input!M163*(1+rvanilla07)^0.5 -> 0 | N31: =Input!N163*(1+rvanilla08)^0.5 -> 0 | O31: =Input!O163*(1+rvanilla09)^0.5 -> 0 | P31: =Input!P163*(1+rvanilla10)^0.5 -> 0
C32: =Asset22 -> 0 | G32: =Input!G164*(1+rvanilla01)^0.5 -> 0 | H32: =Input!H164*(1+rvanilla02)^0.5 -> 0 | I32: =Input!I164*(1+rvanilla03)^0.5 -> 0 | J32: =Input!J164*(1+rvanilla04)^0.5 -> 0 | K32: =Input!K164*(1+rvanilla05)^0.5 -> 0 | L32: =Input!L164*(1+rvanilla06)^0.5 -> 0 | M32: =Input!M164*(1+rvanilla07)^0.5 -> 0 | N32: =Input!N164*(1+rvanilla08)^0.5 -> 0 | O32: =Input!O164*(1+rvanilla09)^0.5 -> 0 | P32: =Input!P164*(1+rvanilla10)^0.5 -> 0
C33: =Asset23 -> 0 | G33: =Input!G165*(1+rvanilla01)^0.5 -> 0 | H33: =Input!H165*(1+rvanilla02)^0.5 -> 0 | I33: =Input!I165*(1+rvanilla03)^0.5 -> 0 | J33: =Input!J165*(1+rvanilla04)^0.5 -> 0 | K33: =Input!K165*(1+rvanilla05)^0.5 -> 0 | L33: =Input!L165*(1+rvanilla06)^0.5 -> 0 | M33: =Input!M165*(1+rvanilla07)^0.5 -> 0 | N33: =Input!N165*(1+rvanilla08)^0.5 -> 0 | O33: =Input!O165*(1+rvanilla09)^0.5 -> 0 | P33: =Input!P165*(1+rvanilla10)^0.5 -> 0
C34: =Asset24 -> 0 | G34: =Input!G166*(1+rvanilla01)^0.5 -> 0 | H34: =Input!H166*(1+rvanilla02)^0.5 -> 0 | I34: =Input!I166*(1+rvanilla03)^0.5 -> 0 | J34: =Input!J166*(1+rvanilla04)^0.5 -> 0 | K34: =Input!K166*(1+rvanilla05)^0.5 -> 0 | L34: =Input!L166*(1+rvanilla06)^0.5 -> 0 | M34: =Input!M166*(1+rvanilla07)^0.5 -> 0 | N34: =Input!N166*(1+rvanilla08)^0.5 -> 0 | O34: =Input!O166*(1+rvanilla09)^0.5 -> 0 | P34: =Input!P166*(1+rvanilla10)^0.5 -> 0
C35: =Asset25 -> 0 | G35: =Input!G167*(1+rvanilla01)^0.5 -> 0 | H35: =Input!H167*(1+rvanilla02)^0.5 -> 0 | I35: =Input!I167*(1+rvanilla03)^0.5 -> 0 | J35: =Input!J167*(1+rvanilla04)^0.5 -> 0 | K35: =Input!K167*(1+rvanilla05)^0.5 -> 0 | L35: =Input!L167*(1+rvanilla06)^0.5 -> 0 | M35: =Input!M167*(1+rvanilla07)^0.5 -> 0 | N35: =Input!N167*(1+rvanilla08)^0.5 -> 0 | O35: =Input!O167*(1+rvanilla09)^0.5 -> 0 | P35: =Input!P167*(1+rvanilla10)^0.5 -> 0
C36: =Asset26 -> 0 | G36: =Input!G168*(1+rvanilla01)^0.5 -> 0 | H36: =Input!H168*(1+rvanilla02)^0.5 -> 0 | I36: =Input!I168*(1+rvanilla03)^0.5 -> 0 | J36: =Input!J168*(1+rvanilla04)^0.5 -> 0 | K36: =Input!K168*(1+rvanilla05)^0.5 -> 0 | L36: =Input!L168*(1+rvanilla06)^0.5 -> 0 | M36: =Input!M168*(1+rvanilla07)^0.5 -> 0 | N36: =Input!N168*(1+rvanilla08)^0.5 -> 0 | O36: =Input!O168*(1+rvanilla09)^0.5 -> 0 | P36: =Input!P168*(1+rvanilla10)^0.5 -> 0
C37: =Asset27 -> 0 | G37: =Input!G169*(1+rvanilla01)^0.5 -> 0 | H37: =Input!H169*(1+rvanilla02)^0.5 -> 0 | I37: =Input!I169*(1+rvanilla03)^0.5 -> 0 | J37: =Input!J169*(1+rvanilla04)^0.5 -> 0 | K37: =Input!K169*(1+rvanilla05)^0.5 -> 0 | L37: =Input!L169*(1+rvanilla06)^0.5 -> 0 | M37: =Input!M169*(1+rvanilla07)^0.5 -> 0 | N37: =Input!N169*(1+rvanilla08)^0.5 -> 0 | O37: =Input!O169*(1+rvanilla09)^0.5 -> 0 | P37: =Input!P169*(1+rvanilla10)^0.5 -> 0
C38: =Asset28 -> 0 | G38: =Input!G170*(1+rvanilla01)^0.5 -> 0 | H38: =Input!H170*(1+rvanilla02)^0.5 -> 0 | I38: =Input!I170*(1+rvanilla03)^0.5 -> 0 | J38: =Input!J170*(1+rvanilla04)^0.5 -> 0 | K38: =Input!K170*(1+rvanilla05)^0.5 -> 0 | L38: =Input!L170*(1+rvanilla06)^0.5 -> 0 | M38: =Input!M170*(1+rvanilla07)^0.5 -> 0 | N38: =Input!N170*(1+rvanilla08)^0.5 -> 0 | O38: =Input!O170*(1+rvanilla09)^0.5 -> 0 | P38: =Input!P170*(1+rvanilla10)^0.5 -> 0
C39: =Asset29 -> 0 | G39: =Input!G171*(1+rvanilla01)^0.5 -> 0 | H39: =Input!H171*(1+rvanilla02)^0.5 -> 0 | I39: =Input!I171*(1+rvanilla03)^0.5 -> 0 | J39: =Input!J171*(1+rvanilla04)^0.5 -> 0 | K39: =Input!K171*(1+rvanilla05)^0.5 -> 0 | L39: =Input!L171*(1+rvanilla06)^0.5 -> 0 | M39: =Input!M171*(1+rvanilla07)^0.5 -> 0 | N39: =Input!N171*(1+rvanilla08)^0.5 -> 0 | O39: =Input!O171*(1+rvanilla09)^0.5 -> 0 | P39: =Input!P171*(1+rvanilla10)^0.5 -> 0
C40: =Asset30 -> Equity raising costs | G40: =Input!G172*(1+rvanilla01)^0.5 -> 2.698544601 | H40: =Input!H172*(1+rvanilla02)^0.5 -> 0 | I40: =Input!I172*(1+rvanilla03)^0.5 -> 0 | J40: =Input!J172*(1+rvanilla04)^0.5 -> 0 | K40: =Input!K172*(1+rvanilla05)^0.5 -> 0 | L40: =Input!L172*(1+rvanilla06)^0.5 -> 0 | M40: =Input!M172*(1+rvanilla07)^0.5 -> 0 | N40: =Input!N172*(1+rvanilla08)^0.5 -> 0 | O40: =Input!O172*(1+rvanilla09)^0.5 -> 0 | P40: =Input!P172*(1+rvanilla10)^0.5 -> 0
B41: Nominal Net Capex | G41: =SUM(G42:G71) -> 351.0245716 | H41: =SUM(H42:H71) -> 298.7290412 | I41: 250.9270023 | J41: 257.2001774 | K41: 379.7668258 | L41: 0 | M41: 0 | N41: 0 | O41: 0 | P41: 0
C42: =Asset1 -> Sub-transmission lines | G42: =G11*G$7 -> 257.7744654 | H42: =H11*H$7 -> 215.6888384 | I42: 176.8648475 | J42: 181.2864687 | K42: 290.34161 | L42: 0 | M42: 0 | N42: 0 | O42: 0 | P42: 0
C43: =Asset2 -> distribution lines | G43: 47.34633038 | H43: =H12*H$7 -> 48.52998863 | I43: 38.68918538 | J43: 39.65641502 | K43: 52.26148979 | L43: 0 | M43: 0 | N43: 0 | O43: 0 | P43: 0
C44: =Asset3 -> substations | G44: 10.52140675 | H44: =H13*H$7 -> 10.78444192 | I44: 11.05405297 | J44: =J13*J$7 -> 11.33040429 | K44: 11.6136644 | L44: 0 | M44: 0 | N44: 0 | O44: 0 | P44: 0
C45: =Asset4 -> distribution transformers | G45: 10.52140675 | H45: =H14*H$7 -> 10.78444192 | I45: =I14*I$7 -> 11.05405297 | J45: 11.33040429 | K45: 11.6136644 | L45: 0 | M45: 0 | N45: 0 | O45: 0 | P45: 0
C46: =Asset5 -> LVS and meters | G46: 8.4171254 | H46: =H15*H$7 -> 8.627553535 | I46: 8.843242373 | J46: 9.064323433 | K46: 9.290931519 | L46: 0 | M46: 0 | N46: 0 | O46: 0 | P46: 0
C47: =Asset6 -> communications | G47: 5.260703375 | H47: =H16*H$7 -> 2.156888384 | I47: 2.210810593 | J47: 2.266080858 | K47: 2.32273288 | L47: 0 | M47: 0 | N47: 0 | O47: 0 | P47: 0
C48: =Asset7 -> vehicles | G48: 4.2085627 | H48: =H17*H$7 -> 1.078444192 | I48: 1.105405297 | J48: 1.133040429 | K48: 1.16136644 | L48: 0 | M48: 0 | N48: 0 | O48: 0 | P48: 0
C49: =Asset8 -> land and easements | G49: 4.2085627 | H49: =H18*H$7 -> 1.078444192 | I49: 1.105405297 | J49: 1.133040429 | K49: 1.16136644 | L49: 0 | M49: 0 | N49: 0 | O49: 0 | P49: 0
C50: =Asset9 -> 0 | G50: 0 | H50: =H19*H$7 -> 0 | I50: 0 | J50: 0 | K50: 0 | L50: 0 | M50: 0 | N50: 0 | O50: 0 | P50: 0
C51: =Asset10 -> 0 | G51: 0 | H51: =H20*H$7 -> 0 | I51: 0 | J51: 0 | K51: 0 | L51: 0 | M51: 0 | N51: 0 | O51: 0 | P51: 0
C52: =Asset11 -> 0 | G52: 0 | H52: =H21*H$7 -> 0 | I52: 0 | J52: 0 | K52: 0 | L52: 0 | M52: 0 | N52: 0 | O52: 0 | P52: 0
C53: =Asset12 -> 0 | G53: 0 | H53: =H22*H$7 -> 0 | I53: 0 | J53: 0 | K53: 0 | L53: 0 | M53: 0 | N53: 0 | O53: 0 | P53: 0
C54: =Asset13 -> 0 | G54: 0 | H54: =H23*H$7 -> 0 | I54: 0 | J54: 0 | K54: 0 | L54: 0 | M54: 0 | N54: 0 | O54: 0 | P54: 0
C55: =Asset14 -> 0 | G55: 0 | H55: =H24*H$7 -> 0 | I55: 0 | J55: 0 | K55: 0 | L55: 0 | M55: 0 | N55: 0 | O55: 0 | P55: 0
C56: =Asset15 -> 0 | G56: 0 | H56: =H25*H$7 -> 0 | I56: 0 | J56: 0 | K56: 0 | L56: 0 | M56: 0 | N56: 0 | O56: 0 | P56: 0
C57: =Asset16 -> 0 | G57: 0 | H57: =H26*H$7 -> 0 | I57: 0 | J57: 0 | K57: =K26*K$7 -> 0 | L57: 0 | M57: 0 | N57: 0 | O57: 0 | P57: 0
C58: =Asset17 -> 0 | G58: 0 | H58: =H27*H$7 -> 0 | I58: 0 | J58: 0 | K58: 0 | L58: 0 | M58: 0 | N58: 0 | O58: 0 | P58: 0
C59: =Asset18 -> 0 | G59: 0 | H59: =H28*H$7 -> 0 | I59: 0 | J59: 0 | K59: 0 | L59: 0 | M59: 0 | N59: 0 | O59: 0 | P59: 0
C60: =Asset19 -> 0 | G60: 0 | H60: =H29*H$7 -> 0 | I60: 0 | J60: 0 | K60: 0 | L60: 0 | M60: 0 | N60: 0 | O60: 0 | P60: 0
C61: =Asset20 -> 0 | G61: 0 | H61: =H30*H$7 -> 0 | I61: 0 | J61: 0 | K61: 0 | L61: 0 | M61: 0 | N61: 0 | O61: 0 | P61: 0
C62: =Asset21 -> 0 | G62: 0 | H62: =H31*H$7 -> 0 | I62: 0 | J62: 0 | K62: 0 | L62: 0 | M62: 0 | N62: 0 | O62: 0 | P62: 0
C63: =Asset22 -> 0 | G63: 0 | H63: =H32*H$7 -> 0 | I63: 0 | J63: 0 | K63: 0 | L63: 0 | M63: 0 | N63: 0 | O63: 0 | P63: 0
C64: =Asset23 -> 0 | G64: 0 | H64: =H33*H$7 -> 0 | I64: 0 | J64: 0 | K64: 0 | L64: 0 | M64: 0 | N64: 0 | O64: 0 | P64: 0
C65: =Asset24 -> 0 | G65: 0 | H65: =H34*H$7 -> 0 | I65: 0 | J65: 0 | K65: 0 | L65: 0 | M65: 0 | N65: 0 | O65: 0 | P65: 0
C66: =Asset25 -> 0 | G66: 0 | H66: =H35*H$7 -> 0 | I66: 0 | J66: 0 | K66: 0 | L66: 0 | M66: 0 | N66: 0 | O66: 0 | P66: 0
C67: =Asset26 -> 0 | G67: 0 | H67: =H36*H$7 -> 0 | I67: 0 | J67: 0 | K67: 0 | L67: 0 | M67: 0 | N67: 0 | O67: 0 | P67: 0
C68: =Asset27 -> 0 | G68: 0 | H68: =H37*H$7 -> 0 | I68: 0 | J68: 0 | K68: 0 | L68: 0 | M68: 0 | N68: 0 | O68: 0 | P68: 0
C69: =Asset28 -> 0 | G69: 0 | H69: =H38*H$7 -> 0 | I69: 0 | J69: 0 | K69: 0 | L69: 0 | M69: 0 | N69: 0 | O69: 0 | P69: 0
C70: =Asset29 -> 0 | G70: =G39*G$7 -> 0 | H70: 0 | I70: 0 | J70: 0 | K70: 0 | L70: 0 | M70: 0 | N70: 0 | O70: 0 | P70: 0
C71: =Asset30 -> Equity raising costs | G71: =G40*G$7 -> 2.766008216 | H71: 0 | I71: 0 | J71: 0 | K71: 0 | L71: 0 | M71: 0 | N71: 0 | O71: 0 | P71: 0
B73: Real Asset Values
B75: Real Straight-line Depreciation | G75: =G88+G101+G114+G127+G140+G153+G166+G179+G192+G205+G218+G231+G244+G257+G270+G283+G296+G309+G322+G335+G348+G361+G374+G387+G400+G413+G426+G439+G452+G465 -> 135.0666667 | H75: =H88+H101+H114+H127+H140+H153+H166+H179+H192+H205+H218+H231+H244+H257+H270+H283+H296+H309+H322+H335+H348+H361+H374+H387+H400+H413+H426+H439+H452+H465 -> 143.7124212 | I75: =I88+I101+I114+I127+I140+I153+I166+I179+I192+I205+I218+I231+I244+I257+I270+I283+I296+I309+I322+I335+I348+I361+I374+I387+I400+I413+I426+I439+I452+I465 -> 125.3014369 | J75: 114.1973072 | K75: 119.7598442 | L75: 127.3753386 | M75: 126.5541556 | N75: 126.3488599 | O75: 125.4103651 | P75: 124.9117897
B76: =C88 -> Sub-transmission lines | D76: Initial Asset Base | G76: =IF(G$3>A1remlife,A1value-SUM($F76:F76),IF(A1remlife="N/A","n/a",A1value/A1remlife)) -> 23.33333333 | H76: =IF(H$3>A1remlife,A1value-SUM($F76:G76),IF(A1remlife="N/A","n/a",A1value/A1remlife)) -> 23.33333333 | I76: =IF(I$3>A1remlife,A1value-SUM($F76:H76),IF(A1remlife="N/A","n/a",A1value/A1remlife)) -> 23.33333333 | J76: =IF(J$3>A1remlife,A1value-SUM($F76:I76),IF(A1remlife="N/A","n/a",A1value/A1remlife)) -> 23.33333333 | K76: =IF(K$3>A1remlife,A1value-SUM($F76:J76),IF(A1remlife="N/A","n/a",A1value/A1remlife)) -> 23.33333333 | L76: =IF(L$3>A1remlife,A1value-SUM($F76:K76),IF(A1remlife="N/A","n/a",A1value/A1remlife)) -> 23.33333333 | M76: =IF(M$3>A1remlife,A1value-SUM($F76:L76),IF(A1remlife="N/A","n/a",A1value/A1remlife)) -> 23.33333333 | N76: =IF(N$3>A1remlife,A1value-SUM($F76:M76),IF(A1remlife="N/A","n/a",A1value/A1remlife)) -> 23.33333333 | O76: =IF(O$3>A1remlife,A1value-SUM($F76:N76),IF(A1remlife="N/A","n/a",A1value/A1remlife)) -> 23.33333333 | P76: =IF(P$3>A1remlife,A1value-SUM($F76:O76),IF(A1remlife="N/A","n/a",A1value/A1remlife)) -> 23.33333333
D77: Capex | E77: 0
E78: 1 | H78: =IF(A1stdlife="n/a","n/a",IF(H$3>(A1stdlife+$E78),(Input!$G$143*(1+rvanilla01)^0.5)-SUM($G78:G78),(Input!$G$143*(1+rvanilla01)^0.5)/A1stdlife)) -> 5.029745666 | I78: =IF(A1stdlife="n/a","n/a",IF(I$3>(A1stdlife+$E78),(Input!$G$143*(1+rvanilla01)^0.5)-SUM($G78:H78),(Input!$G$143*(1+rvanilla01)^0.5)/A1stdlife)) -> 5.029745666 | J78: =IF(A1stdlife="n/a","n/a",IF(J$3>(A1stdlife+$E78),(Input!$G$143*(1+rvanilla01)^0.5)-SUM($G78:I78),(Input!$G$143*(1+rvanilla01)^0.5)/A1stdlife)) -> 5.029745666 | K78: =IF(A1stdlife="n/a","n/a",IF(K$3>(A1stdlife+$E78),(Input!$G$143*(1+rvanilla01)^0.5)-SUM($G78:J78),(Input!$G$143*(1+rvanilla01)^0.5)/A1stdlife)) -> 5.029745666 | L78: =IF(A1stdlife="n/a","n/a",IF(L$3>(A1stdlife+$E78),(Input!$G$143*(1+rvanilla01)^0.5)-SUM($G78:K78),(Input!$G$143*(1+rvanilla01)^0.5)/A1stdlife)) -> 5.029745666 | M78: =IF(A1stdlife="n/a","n/a",IF(M$3>(A1stdlife+$E78),(Input!$G$143*(1+rvanilla01)^0.5)-SUM($G78:L78),(Input!$G$143*(1+rvanilla01)^0.5)/A1stdlife)) -> 5.029745666 | N78: =IF(A1stdlife="n/a","n/a",IF(N$3>(A1stdlife+$E78),(Input!$G$143*(1+rvanilla01)^0.5)-SUM($G78:M78),(Input!$G$143*(1+rvanilla01)^0.5)/A1stdlife)) -> 5.029745666 | O78: =IF(A1stdlife="n/a","n/a",IF(O$3>(A1stdlife+$E78),(Input!$G$143*(1+rvanilla01)^0.5)-SUM($G78:N78),(Input!$G$143*(1+rvanilla01)^0.5)/A1stdlife)) -> 5.029745666 | P78: =IF(A1stdlife="n/a","n/a",IF(P$3>(A1stdlife+$E78),(Input!$G$143*(1+rvanilla01)^0.5)-SUM($G78:O78),(Input!$G$143*(1+rvanilla01)^0.5)/A1stdlife)) -> 5.029745666
E79: 2 | I79: =IF(A1stdlife="n/a","n/a",IF(I$3>(A1stdlife+$E79),(Input!$H$143*(1+rvanilla02)^0.5)-SUM($H79:H79),(Input!$H$143*(1+rvanilla02)^0.5)/A1stdlife)) -> 4.105914829 | J79: =IF(A1stdlife="n/a","n/a",IF(J$3>(A1stdlife+$E79),(Input!$H$143*(1+rvanilla02)^0.5)-SUM($H79:I79),(Input!$H$143*(1+rvanilla02)^0.5)/A1stdlife)) -> 4.105914829 | K79: =IF(A1stdlife="n/a","n/a",IF(K$3>(A1stdlife+$E79),(Input!$H$143*(1+rvanilla02)^0.5)-SUM($H79:J79),(Input!$H$143*(1+rvanilla02)^0.5)/A1stdlife)) -> 4.105914829 | L79: =IF(A1stdlife="n/a","n/a",IF(L$3>(A1stdlife+$E79),(Input!$H$143*(1+rvanilla02)^0.5)-SUM($H79:K79),(Input!$H$143*(1+rvanilla02)^0.5)/A1stdlife)) -> 4.105914829 | M79: =IF(A1stdlife="n/a","n/a",IF(M$3>(A1stdlife+$E79),(Input!$H$143*(1+rvanilla02)^0.5)-SUM($H79:L79),(Input!$H$143*(1+rvanilla02)^0.5)/A1stdlife)) -> 4.105914829 | N79: =IF(A1stdlife="n/a","n/a",IF(N$3>(A1stdlife+$E79),(Input!$H$143*(1+rvanilla02)^0.5)-SUM($H79:M79),(Input!$H$143*(1+rvanilla02)^0.5)/A1stdlife)) -> 4.105914829 | O79: =IF(A1stdlife="n/a","n/a",IF(O$3>(A1stdlife+$E79),(Input!$H$143*(1+rvanilla02)^0.5)-SUM($H79:N79),(Input!$H$143*(1+rvanilla02)^0.5)/A1stdlife)) -> 4.105914829 | P79: =IF(A1stdlife="n/a","n/a",IF(P$3>(A1stdlife+$E79),(Input!$H$143*(1+rvanilla02)^0.5)-SUM($H79:O79),(Input!$H$143*(1+rvanilla02)^0.5)/A1stdlife)) -> 4.105914829
E80: 3 | J80: =IF(A1stdlife="n/a","n/a",IF(J$3>(A1stdlife+$E80),(Input!$I$143*(1+rvanilla03)^0.5)-SUM($I80:I80),(Input!$I$143*(1+rvanilla03)^0.5)/A1stdlife)) -> 3.284731863 | K80: =IF(A1stdlife="n/a","n/a",IF(K$3>(A1stdlife+$E80),(Input!$I$143*(1+rvanilla03)^0.5)-SUM($I80:J80),(Input!$I$143*(1+rvanilla03)^0.5)/A1stdlife)) -> 3.284731863 | L80: =IF(A1stdlife="n/a","n/a",IF(L$3>(A1stdlife+$E80),(Input!$I$143*(1+rvanilla03)^0.5)-SUM($I80:K80),(Input!$I$143*(1+rvanilla03)^0.5)/A1stdlife)) -> 3.284731863 | M80: =IF(A1stdlife="n/a","n/a",IF(M$3>(A1stdlife+$E80),(Input!$I$143*(1+rvanilla03)^0.5)-SUM($I80:L80),(Input!$I$143*(1+rvanilla03)^0.5)/A1stdlife)) -> 3.284731863 | N80: =IF(A1stdlife="n/a","n/a",IF(N$3>(A1stdlife+$E80),(Input!$I$143*(1+rvanilla03)^0.5)-SUM($I80:M80),(Input!$I$143*(1+rvanilla03)^0.5)/A1stdlife)) -> 3.284731863 | O80: =IF(A1stdlife="n/a","n/a",IF(O$3>(A1stdlife+$E80),(Input!$I$143*(1+rvanilla03)^0.5)-SUM($I80:N80),(Input!$I$143*(1+rvanilla03)^0.5)/A1stdlife)) -> 3.284731863 | P80: =IF(A1stdlife="n/a","n/a",IF(P$3>(A1stdlife+$E80),(Input!$I$143*(1+rvanilla03)^0.5)-SUM($I80:O80),(Input!$I$143*(1+rvanilla03)^0.5)/A1stdlife)) -> 3.284731863
E81: 4 | K81: =IF(A1stdlife="n/a","n/a",IF(K$3>(A1stdlife+$E81),(Input!$J$143*(1+rvanilla04)^0.5)-SUM($J81:J81),(Input!$J$143*(1+rvanilla04)^0.5)/A1stdlife)) -> 3.284731863 | L81: =IF(A1stdlife="n/a","n/a",IF(L$3>(A1stdlife+$E81),(Input!$J$143*(1+rvanilla04)^0.5)-SUM($J81:K81),(Input!$J$143*(1+rvanilla04)^0.5)/A1stdlife)) -> 3.284731863 | M81: =IF(A1stdlife="n/a","n/a",IF(M$3>(A1stdlife+$E81),(Input!$J$143*(1+rvanilla04)^0.5)-SUM($J81:L81),(Input!$J$143*(1+rvanilla04)^0.5)/A1stdlife)) -> 3.284731863 | N81: =IF(A1stdlife="n/a","n/a",IF(N$3>(A1stdlife+$E81),(Input!$J$143*(1+rvanilla04)^0.5)-SUM($J81:M81),(Input!$J$143*(1+rvanilla04)^0.5)/A1stdlife)) -> 3.284731863 | O81: =IF(A1stdlife="n/a","n/a",IF(O$3>(A1stdlife+$E81),(Input!$J$143*(1+rvanilla04)^0.5)-SUM($J81:N81),(Input!$J$143*(1+rvanilla04)^0.5)/A1stdlife)) -> 3.284731863 | P81: =IF(A1stdlife="n/a","n/a",IF(P$3>(A1stdlife+$E81),(Input!$J$143*(1+rvanilla04)^0.5)-SUM($J81:O81),(Input!$J$143*(1+rvanilla04)^0.5)/A1stdlife)) -> 3.284731863
E82: 5 | L82: =IF(A1stdlife="n/a","n/a",IF(L$3>(A1stdlife+$E82),(Input!$K$143*(1+rvanilla05)^0.5)-SUM($K82:K82),(Input!$K$143*(1+rvanilla05)^0.5)/A1stdlife)) -> 5.132393537 | M82: =IF(A1stdlife="n/a","n/a",IF(M$3>(A1stdlife+$E82),(Input!$K$143*(1+rvanilla05)^0.5)-SUM($K82:L82),(Input!$K$143*(1+rvanilla05)^0.5)/A1stdlife)) -> 5.132393537 | N82: =IF(A1stdlife="n/a","n/a",IF(N$3>(A1stdlife+$E82),(Input!$K$143*(1+rvanilla05)^0.5)-SUM($K82:M82),(Input!$K$143*(1+rvanilla05)^0.5)/A1stdlife)) -> 5.132393537 | O82: =IF(A1stdlife="n/a","n/a",IF(O$3>(A1stdlife+$E82),(Input!$K$143*(1+rvanilla05)^0.5)-SUM($K82:N82),(Input!$K$143*(1+rvanilla05)^0.5)/A1stdlife)) -> 5.132393537 | P82: =IF(A1stdlife="n/a","n/a",IF(P$3>(A1stdlife+$E82),(Input!$K$143*(1+rvanilla05)^0.5)-SUM($K82:O82),(Input!$K$143*(1+rvanilla05)^0.5)/A1stdlife)) -> 5.132393537
E83: 6 | M83: =IF(A1stdlife="n/a","n/a",IF(M$3>(A1stdlife+$E83),(Input!$L$143*(1+rvanilla06)^0.5)-SUM($L83:L83),(Input!$L$143*(1+rvanilla06)^0.5)/A1stdlife)) -> 0 | N83: =IF(A1stdlife="n/a","n/a",IF(N$3>(A1stdlife+$E83),(Input!$L$143*(1+rvanilla06)^0.5)-SUM($L83:M83),(Input!$L$143*(1+rvanilla06)^0.5)/A1stdlife)) -> 0 | O83: =IF(A1stdlife="n/a","n/a",IF(O$3>(A1stdlife+$E83),(Input!$L$143*(1+rvanilla06)^0.5)-SUM($L83:N83),(Input!$L$143*(1+rvanilla06)^0.5)/A1stdlife)) -> 0 | P83: =IF(A1stdlife="n/a","n/a",IF(P$3>(A1stdlife+$E83),(Input!$L$143*(1+rvanilla06)^0.5)-SUM($L83:O83),(Input!$L$143*(1+rvanilla06)^0.5)/A1stdlife)) -> 0
E84: 7 | N84: =IF(A1stdlife="n/a","n/a",IF(N$3>(A1stdlife+$E84),(Input!$M$143*(1+rvanilla07)^0.5)-SUM($M84:M84),(Input!$M$143*(1+rvanilla07)^0.5)/A1stdlife)) -> 0 | O84: =IF(A1stdlife="n/a","n/a",IF(O$3>(A1stdlife+$E84),(Input!$M$143*(1+rvanilla07)^0.5)-SUM($M84:N84),(Input!$M$143*(1+rvanilla07)^0.5)/A1stdlife)) -> 0 | P84: =IF(A1stdlife="n/a","n/a",IF(P$3>(A1stdlife+$E84),(Input!$M$143*(1+rvanilla07)^0.5)-SUM($M84:O84),(Input!$M$143*(1+rvanilla07)^0.5)/A1stdlife)) -> 0
E85: 8 | O85: =IF(A1stdlife="n/a","n/a",IF(O$3>(A1stdlife+$E85),(Input!$N$143*(1+rvanilla08)^0.5)-SUM($N85:N85),(Input!$N$143*(1+rvanilla08)^0.5)/A1stdlife)) -> 0 | P85: =IF(A1stdlife="n/a","n/a",IF(P$3>(A1stdlife+$E85),(Input!$N$143*(1+rvanilla08)^0.5)-SUM($N85:O85),(Input!$N$143*(1+rvanilla08)^0.5)/A1stdlife)) -> 0
E86: 9 | P86: =IF(A1stdlife="n/a","n/a",IF(P$3>(A1stdlife+$E86),(Input!$O$143*(1+rvanilla09)^0.5)-SUM($O86:O86),(Input!$O$143*(1+rvanilla09)^0.5)/A1stdlife)) -> 0
E87: 10
C88: =Asset1 -> Sub-transmission lines | G88: =SUM(G76:G87) -> 23.33333333 | H88: =SUM(H76:H87) -> 28.363079 | I88: =SUM(I76:I87) -> 32.46899383 | J88: 35.75372569 | K88: 39.03845756 | L88: 44.17085109 | M88: 44.17085109 | N88: 44.17085109 | O88: 44.17085109 | P88: 44.17085109
B89: =C101 -> distribution lines | D89: Initial Asset Base | G89: =IF(G$3>A2remlife,A2value-SUM($F89:F89),IF(A2remlife="N/A","n/a",A2value/A2remlife)) -> 20 | H89: =IF(H$3>A2remlife,A2value-SUM($F89:G89),IF(A2remlife="N/A","n/a",A2value/A2remlife)) -> 20 | I89: =IF(I$3>A2remlife,A2value-SUM($F89:H89),IF(A2remlife="N/A","n/a",A2value/A2remlife)) -> 20 | J89: =IF(J$3>A2remlife,A2value-SUM($F89:I89),IF(A2remlife="N/A","n/a",A2value/A2remlife)) -> 20 | K89: =IF(K$3>A2remlife,A2value-SUM($F89:J89),IF(A2remlife="N/A","n/a",A2value/A2remlife)) -> 20 | L89: =IF(L$3>A2remlife,A2value-SUM($F89:K89),IF(A2remlife="N/A","n/a",A2value/A2remlife)) -> 20 | M89: =IF(M$3>A2remlife,A2value-SUM($F89:L89),IF(A2remlife="N/A","n/a",A2value/A2remlife)) -> 20 | N89: =IF(N$3>A2remlife,A2value-SUM($F89:M89),IF(A2remlife="N/A","n/a",A2value/A2remlife)) -> 20 | O89: =IF(O$3>A2remlife,A2value-SUM($F89:N89),IF(A2remlife="N/A","n/a",A2value/A2remlife)) -> 20 | P89: =IF(P$3>A2remlife,A2value-SUM($F89:O89),IF(A2remlife="N/A","n/a",A2value/A2remlife)) -> 20
D90: Capex | E90: 0
E91: 1 | H91: =IF(A2stdlife="n/a","n/a",IF(H$3>(A2stdlife+$E91),(Input!$G$144*(1+rvanilla01)^0.5)-SUM($G91:G91),(Input!$G$144*(1+rvanilla01)^0.5)/A2stdlife)) -> 0.9238308366 | I91: =IF(A2stdlife="n/a","n/a",IF(I$3>(A2stdlife+$E91),(Input!$G$144*(1+rvanilla01)^0.5)-SUM($G91:H91),(Input!$G$144*(1+rvanilla01)^0.5)/A2stdlife)) -> 0.9238308366 | J91: =IF(A2stdlife="n/a","n/a",IF(J$3>(A2stdlife+$E91),(Input!$G$144*(1+rvanilla01)^0.5)-SUM($G91:I91),(Input!$G$144*(1+rvanilla01)^0.5)/A2stdlife)) -> 0.9238308366 | K91: =IF(A2stdlife="n/a","n/a",IF(K$3>(A2stdlife+$E91),(Input!$G$144*(1+rvanilla01)^0.5)-SUM($G91:J91),(Input!$G$144*(1+rvanilla01)^0.5)/A2stdlife)) -> 0.9238308366 | L91: =IF(A2stdlife="n/a","n/a",IF(L$3>(A2stdlife+$E91),(Input!$G$144*(1+rvanilla01)^0.5)-SUM($G91:K91),(Input!$G$144*(1+rvanilla01)^0.5)/A2stdlife)) -> 0.9238308366 | M91: =IF(A2stdlife="n/a","n/a",IF(M$3>(A2stdlife+$E91),(Input!$G$144*(1+rvanilla01)^0.5)-SUM($G91:L91),(Input!$G$144*(1+rvanilla01)^0.5)/A2stdlife)) -> 0.9238308366 | N91: =IF(A2stdlife="n/a","n/a",IF(N$3>(A2stdlife+$E91),(Input!$G$144*(1+rvanilla01)^0.5)-SUM($G91:M91),(Input!$G$144*(1+rvanilla01)^0.5)/A2stdlife)) -> 0.9238308366 | O91: =IF(A2stdlife="n/a","n/a",IF(O$3>(A2stdlife+$E91),(Input!$G$144*(1+rvanilla01)^0.5)-SUM($G91:N91),(Input!$G$144*(1+rvanilla01)^0.5)/A2stdlife)) -> 0.9238308366 | P91: =IF(A2stdlife="n/a","n/a",IF(P$3>(A2stdlife+$E91),(Input!$G$144*(1+rvanilla01)^0.5)-SUM($G91:O91),(Input!$G$144*(1+rvanilla01)^0.5)/A2stdlife)) -> 0.9238308366
E92: 2 | I92: =IF(A2stdlife="n/a","n/a",IF(I$3>(A2stdlife+$E92),(Input!$H$144*(1+rvanilla02)^0.5)-SUM($H92:H92),(Input!$H$144*(1+rvanilla02)^0.5)/A2stdlife)) -> 0.9238308366 | J92: =IF(A2stdlife="n/a","n/a",IF(J$3>(A2stdlife+$E92),(Input!$H$144*(1+rvanilla02)^0.5)-SUM($H92:I92),(Input!$H$144*(1+rvanilla02)^0.5)/A2stdlife)) -> 0.9238308366 | K92: =IF(A2stdlife="n/a","n/a",IF(K$3>(A2stdlife+$E92),(Input!$H$144*(1+rvanilla02)^0.5)-SUM($H92:J92),(Input!$H$144*(1+rvanilla02)^0.5)/A2stdlife)) -> 0.9238308366 | L92: =IF(A2stdlife="n/a","n/a",IF(L$3>(A2stdlife+$E92),(Input!$H$144*(1+rvanilla02)^0.5)-SUM($H92:K92),(Input!$H$144*(1+rvanilla02)^0.5)/A2stdlife)) -> 0.9238308366 | M92: =IF(A2stdlife="n/a","n/a",IF(M$3>(A2stdlife+$E92),(Input!$H$144*(1+rvanilla02)^0.5)-SUM($H92:L92),(Input!$H$144*(1+rvanilla02)^0.5)/A2stdlife)) -> 0.9238308366 | N92: =IF(A2stdlife="n/a","n/a",IF(N$3>(A2stdlife+$E92),(Input!$H$144*(1+rvanilla02)^0.5)-SUM($H92:M92),(Input!$H$144*(1+rvanilla02)^0.5)/A2stdlife)) -> 0.9238308366 | O92: =IF(A2stdlife="n/a","n/a",IF(O$3>(A2stdlife+$E92),(Input!$H$144*(1+rvanilla02)^0.5)-SUM($H92:N92),(Input!$H$144*(1+rvanilla02)^0.5)/A2stdlife)) -> 0.9238308366 | P92: =IF(A2stdlife="n/a","n/a",IF(P$3>(A2stdlife+$E92),(Input!$H$144*(1+rvanilla02)^0.5)-SUM($H92:O92),(Input!$H$144*(1+rvanilla02)^0.5)/A2stdlife)) -> 0.9238308366
E93: 3 | J93: =IF(A2stdlife="n/a","n/a",IF(J$3>(A2stdlife+$E93),(Input!$I$144*(1+rvanilla03)^0.5)-SUM($I93:I93),(Input!$I$144*(1+rvanilla03)^0.5)/A2stdlife)) -> 0.7185350951 | K93: =IF(A2stdlife="n/a","n/a",IF(K$3>(A2stdlife+$E93),(Input!$I$144*(1+rvanilla03)^0.5)-SUM($I93:J93),(Input!$I$144*(1+rvanilla03)^0.5)/A2stdlife)) -> 0.7185350951 | L93: =IF(A2stdlife="n/a","n/a",IF(L$3>(A2stdlife+$E93),(Input!$I$144*(1+rvanilla03)^0.5)-SUM($I93:K93),(Input!$I$144*(1+rvanilla03)^0.5)/A2stdlife)) -> 0.7185350951 | M93: =IF(A2stdlife="n/a","n/a",IF(M$3>(A2stdlife+$E93),(Input!$I$144*(1+rvanilla03)^0.5)-SUM($I93:L93),(Input!$I$144*(1+rvanilla03)^0.5)/A2stdlife)) -> 0.7185350951 | N93: =IF(A2stdlife="n/a","n/a",IF(N$3>(A2stdlife+$E93),(Input!$I$144*(1+rvanilla03)^0.5)-SUM($I93:M93),(Input!$I$144*(1+rvanilla03)^0.5)/A2stdlife)) -> 0.7185350951 | O93: =IF(A2stdlife="n/a","n/a",IF(O$3>(A2stdlife+$E93),(Input!$I$144*(1+rvanilla03)^0.5)-SUM($I93:N93),(Input!$I$144*(1+rvanilla03)^0.5)/A2stdlife)) -> 0.7185350951 | P93: =IF(A2stdlife="n/a","n/a",IF(P$3>(A2stdlife+$E93),(Input!$I$144*(1+rvanilla03)^0.5)-SUM($I93:O93),(Input!$I$144*(1+rvanilla03)^0.5)/A2stdlife)) -> 0.7185350951
E94: 4 | K94: =IF(A2stdlife="n/a","n/a",IF(K$3>(A2stdlife+$E94),(Input!$J$144*(1+rvanilla04)^0.5)-SUM($J94:J94),(Input!$J$144*(1+rvanilla04)^0.5)/A2stdlife)) -> 0.7185350951 | L94: =IF(A2stdlife="n/a","n/a",IF(L$3>(A2stdlife+$E94),(Input!$J$144*(1+rvanilla04)^0.5)-SUM($J94:K94),(Input!$J$144*(1+rvanilla04)^0.5)/A2stdlife)) -> 0.7185350951 | M94: =IF(A2stdlife="n/a","n/a",IF(M$3>(A2stdlife+$E94),(Input!$J$144*(1+rvanilla04)^0.5)-SUM($J94:L94),(Input!$J$144*(1+rvanilla04)^0.5)/A2stdlife)) -> 0.7185350951 | N94: =IF(A2stdlife="n/a","n/a",IF(N$3>(A2stdlife+$E94),(Input!$J$144*(1+rvanilla04)^0.5)-SUM($J94:M94),(Input!$J$144*(1+rvanilla04)^0.5)/A2stdlife)) -> 0.7185350951 | O94: =IF(A2stdlife="n/a","n/a",IF(O$3>(A2stdlife+$E94),(Input!$J$144*(1+rvanilla04)^0.5)-SUM($J94:N94),(Input!$J$144*(1+rvanilla04)^0.5)/A2stdlife)) -> 0.7185350951 | P94: =IF(A2stdlife="n/a","n/a",IF(P$3>(A2stdlife+$E94),(Input!$J$144*(1+rvanilla04)^0.5)-SUM($J94:O94),(Input!$J$144*(1+rvanilla04)^0.5)/A2stdlife)) -> 0.7185350951
E95: 5 | L95: =IF(A2stdlife="n/a","n/a",IF(L$3>(A2stdlife+$E95),(Input!$K$144*(1+rvanilla05)^0.5)-SUM($K95:K95),(Input!$K$144*(1+rvanilla05)^0.5)/A2stdlife)) -> 0.9238308366 | M95: =IF(A2stdlife="n/a","n/a",IF(M$3>(A2stdlife+$E95),(Input!$K$144*(1+rvanilla05)^0.5)-SUM($K95:L95),(Input!$K$144*(1+rvanilla05)^0.5)/A2stdlife)) -> 0.9238308366 | N95: =IF(A2stdlife="n/a","n/a",IF(N$3>(A2stdlife+$E95),(Input!$K$144*(1+rvanilla05)^0.5)-SUM($K95:M95),(Input!$K$144*(1+rvanilla05)^0.5)/A2stdlife)) -> 0.9238308366 | O95: =IF(A2stdlife="n/a","n/a",IF(O$3>(A2stdlife+$E95),(Input!$K$144*(1+rvanilla05)^0.5)-SUM($K95:N95),(Input!$K$144*(1+rvanilla05)^0.5)/A2stdlife)) -> 0.9238308366 | P95: =IF(A2stdlife="n/a","n/a",IF(P$3>(A2stdlife+$E95),(Input!$K$144*(1+rvanilla05)^0.5)-SUM($K95:O95),(Input!$K$144*(1+rvanilla05)^0.5)/A2stdlife)) -> 0.9238308366
E96: 6 | M96: =IF(A2stdlife="n/a","n/a",IF(M$3>(A2stdlife+$E96),(Input!$L$144*(1+rvanilla06)^0.5)-SUM($L96:L96),(Input!$L$144*(1+rvanilla06)^0.5)/A2stdlife)) -> 0 | N96: =IF(A2stdlife="n/a","n/a",IF(N$3>(A2stdlife+$E96),(Input!$L$144*(1+rvanilla06)^0.5)-SUM($L96:M96),(Input!$L$144*(1+rvanilla06)^0.5)/A2stdlife)) -> 0 | O96: =IF(A2stdlife="n/a","n/a",IF(O$3>(A2stdlife+$E96),(Input!$L$144*(1+rvanilla06)^0.5)-SUM($L96:N96),(Input!$L$144*(1+rvanilla06)^0.5)/A2stdlife)) -> 0 | P96: =IF(A2stdlife="n/a","n/a",IF(P$3>(A2stdlife+$E96),(Input!$L$144*(1+rvanilla06)^0.5)-SUM($L96:O96),(Input!$L$144*(1+rvanilla06)^0.5)/A2stdlife)) -> 0
E97: 7 | N97: =IF(A2stdlife="n/a","n/a",IF(N$3>(A2stdlife+$E97),(Input!$M$144*(1+rvanilla07)^0.5)-SUM($M97:M97),(Input!$M$144*(1+rvanilla07)^0.5)/A2stdlife)) -> 0 | O97: =IF(A2stdlife="n/a","n/a",IF(O$3>(A2stdlife+$E97),(Input!$M$144*(1+rvanilla07)^0.5)-SUM($M97:N97),(Input!$M$144*(1+rvanilla07)^0.5)/A2stdlife)) -> 0 | P97: =IF(A2stdlife="n/a","n/a",IF(P$3>(A2stdlife+$E97),(Input!$M$144*(1+rvanilla07)^0.5)-SUM($M97:O97),(Input!$M$144*(1+rvanilla07)^0.5)/A2stdlife)) -> 0
E98: 8 | O98: =IF(A2stdlife="n/a","n/a",IF(O$3>(A2stdlife+$E98),(Input!$N$144*(1+rvanilla08)^0.5)-SUM($N98:N98),(Input!$N$144*(1+rvanilla08)^0.5)/A2stdlife)) -> 0 | P98: =IF(A2stdlife="n/a","n/a",IF(P$3>(A2stdlife+$E98),(Input!$N$144*(1+rvanilla08)^0.5)-SUM($N98:O98),(Input!$N$144*(1+rvanilla08)^0.5)/A2stdlife)) -> 0
E99: 9 | P99: =IF(A2stdlife="n/a","n/a",IF(P$3>(A2stdlife+$E99),(Input!$O$144*(1+rvanilla09)^0.5)-SUM($O99:O99),(Input!$O$144*(1+rvanilla09)^0.5)/A2stdlife)) -> 0
E100: 10
C101: =Asset2 -> distribution lines | G101: =SUM(G89:G100) -> 20 | H101: =SUM(H89:H100) -> 20.92383084 | I101: 21.84766167 | J101: 22.56619677 | K101: 23.28473186 | L101: 24.2085627 | M101: 24.2085627 | N101: 24.2085627 | O101: 24.2085627 | P101: 24.2085627
B102: =C114 -> substations | D102: Initial Asset Base | G102: =IF(G$3>A3remlife,A3value-SUM($F102:F102),IF(A3remlife="N/A","n/a",A3value/A3remlife)) -> 15 | H102: =IF(H$3>A3remlife,A3value-SUM($F102:G102),IF(A3remlife="N/A","n/a",A3value/A3remlife)) -> 15 | I102: =IF(I$3>A3remlife,A3value-SUM($F102:H102),IF(A3remlife="N/A","n/a",A3value/A3remlife)) -> 15 | J102: =IF(J$3>A3remlife,A3value-SUM($F102:I102),IF(A3remlife="N/A","n/a",A3value/A3remlife)) -> 15 | K102: =IF(K$3>A3remlife,A3value-SUM($F102:J102),IF(A3remlife="N/A","n/a",A3value/A3remlife)) -> 15 | L102: =IF(L$3>A3remlife,A3value-SUM($F102:K102),IF(A3remlife="N/A","n/a",A3value/A3remlife)) -> 15 | M102: =IF(M$3>A3remlife,A3value-SUM($F102:L102),IF(A3remlife="N/A","n/a",A3value/A3remlife)) -> 15 | N102: =IF(N$3>A3remlife,A3value-SUM($F102:M102),IF(A3remlife="N/A","n/a",A3value/A3remlife)) -> 15 | O102: =IF(O$3>A3remlife,A3value-SUM($F102:N102),IF(A3remlife="N/A","n/a",A3value/A3remlife)) -> 15 | P102: =IF(P$3>A3remlife,A3value-SUM($F102:O102),IF(A3remlife="N/A","n/a",A3value/A3remlife)) -> 15
D103: Capex | E103: 0
E104: 1 | H104: =IF(A3stdlife="n/a","n/a",IF(H$3>(A3stdlife+$E104),(Input!$G$145*(1+rvanilla01)^0.5)-SUM($G104:G104),(Input!$G$145*(1+rvanilla01)^0.5)/A3stdlife)) -> 0.2566196768 | I104: =IF(A3stdlife="n/a","n/a",IF(I$3>(A3stdlife+$E104),(Input!$G$145*(1+rvanilla01)^0.5)-SUM($G104:H104),(Input!$G$145*(1+rvanilla01)^0.5)/A3stdlife)) -> 0.2566196768 | J104: =IF(A3stdlife="n/a","n/a",IF(J$3>(A3stdlife+$E104),(Input!$G$145*(1+rvanilla01)^0.5)-SUM($G104:I104),(Input!$G$145*(1+rvanilla01)^0.5)/A3stdlife)) -> 0.2566196768 | K104: =IF(A3stdlife="n/a","n/a",IF(K$3>(A3stdlife+$E104),(Input!$G$145*(1+rvanilla01)^0.5)-SUM($G104:J104),(Input!$G$145*(1+rvanilla01)^0.5)/A3stdlife)) -> 0.2566196768 | L104: =IF(A3stdlife="n/a","n/a",IF(L$3>(A3stdlife+$E104),(Input!$G$145*(1+rvanilla01)^0.5)-SUM($G104:K104),(Input!$G$145*(1+rvanilla01)^0.5)/A3stdlife)) -> 0.2566196768 | M104: =IF(A3stdlife="n/a","n/a",IF(M$3>(A3stdlife+$E104),(Input!$G$145*(1+rvanilla01)^0.5)-SUM($G104:L104),(Input!$G$145*(1+rvanilla01)^0.5)/A3stdlife)) -> 0.2566196768 | N104: =IF(A3stdlife="n/a","n/a",IF(N$3>(A3stdlife+$E104),(Input!$G$145*(1+rvanilla01)^0.5)-SUM($G104:M104),(Input!$G$145*(1+rvanilla01)^0.5)/A3stdlife)) -> 0.2566196768 | O104: =IF(A3stdlife="n/a","n/a",IF(O$3>(A3stdlife+$E104),(Input!$G$145*(1+rvanilla01)^0.5)-SUM($G104:N104),(Input!$G$145*(1+rvanilla01)^0.5)/A3stdlife)) -> 0.2566196768 | P104: =IF(A3stdlife="n/a","n/a",IF(P$3>(A3stdlife+$E104),(Input!$G$145*(1+rvanilla01)^0.5)-SUM($G104:O104),(Input!$G$145*(1+rvanilla01)^0.5)/A3stdlife)) -> 0.2566196768
E105: 2 | I105: =IF(A3stdlife="n/a","n/a",IF(I$3>(A3stdlife+$E105),(Input!$H$145*(1+rvanilla02)^0.5)-SUM($H105:H105),(Input!$H$145*(1+rvanilla02)^0.5)/A3stdlife)) -> 0.2566196768 | J105: =IF(A3stdlife="n/a","n/a",IF(J$3>(A3stdlife+$E105),(Input!$H$145*(1+rvanilla02)^0.5)-SUM($H105:I105),(Input!$H$145*(1+rvanilla02)^0.5)/A3stdlife)) -> 0.2566196768 | K105: =IF(A3stdlife="n/a","n/a",IF(K$3>(A3stdlife+$E105),(Input!$H$145*(1+rvanilla02)^0.5)-SUM($H105:J105),(Input!$H$145*(1+rvanilla02)^0.5)/A3stdlife)) -> 0.2566196768 | L105: =IF(A3stdlife="n/a","n/a",IF(L$3>(A3stdlife+$E105),(Input!$H$145*(1+rvanilla02)^0.5)-SUM($H105:K105),(Input!$H$145*(1+rvanilla02)^0.5)/A3stdlife)) -> 0.2566196768 | M105: =IF(A3stdlife="n/a","n/a",IF(M$3>(A3stdlife+$E105),(Input!$H$145*(1+rvanilla02)^0.5)-SUM($H105:L105),(Input!$H$145*(1+rvanilla02)^0.5)/A3stdlife)) -> 0.2566196768 | N105: =IF(A3stdlife="n/a","n/a",IF(N$3>(A3stdlife+$E105),(Input!$H$145*(1+rvanilla02)^0.5)-SUM($H105:M105),(Input!$H$145*(1+rvanilla02)^0.5)/A3stdlife)) -> 0.2566196768 | O105: =IF(A3stdlife="n/a","n/a",IF(O$3>(A3stdlife+$E105),(Input!$H$145*(1+rvanilla02)^0.5)-SUM($H105:N105),(Input!$H$145*(1+rvanilla02)^0.5)/A3stdlife)) -> 0.2566196768 | P105: =IF(A3stdlife="n/a","n/a",IF(P$3>(A3stdlife+$E105),(Input!$H$145*(1+rvanilla02)^0.5)-SUM($H105:O105),(Input!$H$145*(1+rvanilla02)^0.5)/A3stdlife)) -> 0.2566196768
E106: 3 | J106: =IF(A3stdlife="n/a","n/a",IF(J$3>(A3stdlife+$E106),(Input!$I$145*(1+rvanilla03)^0.5)-SUM($I106:I106),(Input!$I$145*(1+rvanilla03)^0.5)/A3stdlife)) -> 0.2566196768 | K106: =IF(A3stdlife="n/a","n/a",IF(K$3>(A3stdlife+$E106),(Input!$I$145*(1+rvanilla03)^0.5)-SUM($I106:J106),(Input!$I$145*(1+rvanilla03)^0.5)/A3stdlife)) -> 0.2566196768 | L106: =IF(A3stdlife="n/a","n/a",IF(L$3>(A3stdlife+$E106),(Input!$I$145*(1+rvanilla03)^0.5)-SUM($I106:K106),(Input!$I$145*(1+rvanilla03)^0.5)/A3stdlife)) -> 0.2566196768 | M106: =IF(A3stdlife="n/a","n/a",IF(M$3>(A3stdlife+$E106),(Input!$I$145*(1+rvanilla03)^0.5)-SUM($I106:L106),(Input!$I$145*(1+rvanilla03)^0.5)/A3stdlife)) -> 0.2566196768 | N106: =IF(A3stdlife="n/a","n/a",IF(N$3>(A3stdlife+$E106),(Input!$I$145*(1+rvanilla03)^0.5)-SUM($I106:M106),(Input!$I$145*(1+rvanilla03)^0.5)/A3stdlife)) -> 0.2566196768 | O106: =IF(A3stdlife="n/a","n/a",IF(O$3>(A3stdlife+$E106),(Input!$I$145*(1+rvanilla03)^0.5)-SUM($I106:N106),(Input!$I$145*(1+rvanilla03)^0.5)/A3stdlife)) -> 0.2566196768 | P106: =IF(A3stdlife="n/a","n/a",IF(P$3>(A3stdlife+$E106),(Input!$I$145*(1+rvanilla03)^0.5)-SUM($I106:O106),(Input!$I$145*(1+rvanilla03)^0.5)/A3stdlife)) -> 0.2566196768
E107: 4 | K107: =IF(A3stdlife="n/a","n/a",IF(K$3>(A3stdlife+$E107),(Input!$J$145*(1+rvanilla04)^0.5)-SUM($J107:J107),(Input!$J$145*(1+rvanilla04)^0.5)/A3stdlife)) -> 0.2566196768 | L107: =IF(A3stdlife="n/a","n/a",IF(L$3>(A3stdlife+$E107),(Input!$J$145*(1+rvanilla04)^0.5)-SUM($J107:K107),(Input!$J$145*(1+rvanilla04)^0.5)/A3stdlife)) -> 0.2566196768 | M107: =IF(A3stdlife="n/a","n/a",IF(M$3>(A3stdlife+$E107),(Input!$J$145*(1+rvanilla04)^0.5)-SUM($J107:L107),(Input!$J$145*(1+rvanilla04)^0.5)/A3stdlife)) -> 0.2566196768 | N107: =IF(A3stdlife="n/a","n/a",IF(N$3>(A3stdlife+$E107),(Input!$J$145*(1+rvanilla04)^0.5)-SUM($J107:M107),(Input!$J$145*(1+rvanilla04)^0.5)/A3stdlife)) -> 0.2566196768 | O107: =IF(A3stdlife="n/a","n/a",IF(O$3>(A3stdlife+$E107),(Input!$J$145*(1+rvanilla04)^0.5)-SUM($J107:N107),(Input!$J$145*(1+rvanilla04)^0.5)/A3stdlife)) -> 0.2566196768 | P107: =IF(A3stdlife="n/a","n/a",IF(P$3>(A3stdlife+$E107),(Input!$J$145*(1+rvanilla04)^0.5)-SUM($J107:O107),(Input!$J$145*(1+rvanilla04)^0.5)/A3stdlife)) -> 0.2566196768
E108: 5 | L108: =IF(A3stdlife="n/a","n/a",IF(L$3>(A3stdlife+$E108),(Input!$K$145*(1+rvanilla05)^0.5)-SUM($K108:K108),(Input!$K$145*(1+rvanilla05)^0.5)/A3stdlife)) -> 0.2566196768 | M108: =IF(A3stdlife="n/a","n/a",IF(M$3>(A3stdlife+$E108),(Input!$K$145*(1+rvanilla05)^0.5)-SUM($K108:L108),(Input!$K$145*(1+rvanilla05)^0.5)/A3stdlife)) -> 0.2566196768 | N108: =IF(A3stdlife="n/a","n/a",IF(N$3>(A3stdlife+$E108),(Input!$K$145*(1+rvanilla05)^0.5)-SUM($K108:M108),(Input!$K$145*(1+rvanilla05)^0.5)/A3stdlife)) -> 0.2566196768 | O108: =IF(A3stdlife="n/a","n/a",IF(O$3>(A3stdlife+$E108),(Input!$K$145*(1+rvanilla05)^0.5)-SUM($K108:N108),(Input!$K$145*(1+rvanilla05)^0.5)/A3stdlife)) -> 0.2566196768 | P108: =IF(A3stdlife="n/a","n/a",IF(P$3>(A3stdlife+$E108),(Input!$K$145*(1+rvanilla05)^0.5)-SUM($K108:O108),(Input!$K$145*(1+rvanilla05)^0.5)/A3stdlife)) -> 0.2566196768
E109: 6 | M109: =IF(A3stdlife="n/a","n/a",IF(M$3>(A3stdlife+$E109),(Input!$L$145*(1+rvanilla06)^0.5)-SUM($L109:L109),(Input!$L$145*(1+rvanilla06)^0.5)/A3stdlife)) -> 0 | N109: =IF(A3stdlife="n/a","n/a",IF(N$3>(A3stdlife+$E109),(Input!$L$145*(1+rvanilla06)^0.5)-SUM($L109:M109),(Input!$L$145*(1+rvanilla06)^0.5)/A3stdlife)) -> 0 | O109: =IF(A3stdlife="n/a","n/a",IF(O$3>(A3stdlife+$E109),(Input!$L$145*(1+rvanilla06)^0.5)-SUM($L109:N109),(Input!$L$145*(1+rvanilla06)^0.5)/A3stdlife)) -> 0 | P109: =IF(A3stdlife="n/a","n/a",IF(P$3>(A3stdlife+$E109),(Input!$L$145*(1+rvanilla06)^0.5)-SUM($L109:O109),(Input!$L$145*(1+rvanilla06)^0.5)/A3stdlife)) -> 0
E110: 7 | N110: =IF(A3stdlife="n/a","n/a",IF(N$3>(A3stdlife+$E110),(Input!$M$145*(1+rvanilla07)^0.5)-SUM($M110:M110),(Input!$M$145*(1+rvanilla07)^0.5)/A3stdlife)) -> 0 | O110: =IF(A3stdlife="n/a","n/a",IF(O$3>(A3stdlife+$E110),(Input!$M$145*(1+rvanilla07)^0.5)-SUM($M110:N110),(Input!$M$145*(1+rvanilla07)^0.5)/A3stdlife)) -> 0 | P110: =IF(A3stdlife="n/a","n/a",IF(P$3>(A3stdlife+$E110),(Input!$M$145*(1+rvanilla07)^0.5)-SUM($M110:O110),(Input!$M$145*(1+rvanilla07)^0.5)/A3stdlife)) -> 0
E111: 8 | O111: =IF(A3stdlife="n/a","n/a",IF(O$3>(A3stdlife+$E111),(Input!$N$145*(1+rvanilla08)^0.5)-SUM($N111:N111),(Input!$N$145*(1+rvanilla08)^0.5)/A3stdlife)) -> 0 | P111: =IF(A3stdlife="n/a","n/a",IF(P$3>(A3stdlife+$E111),(Input!$N$145*(1+rvanilla08)^0.5)-SUM($N111:O111),(Input!$N$145*(1+rvanilla08)^0.5)/A3stdlife)) -> 0
E112: 9 | P112: =IF(A3stdlife="n/a","n/a",IF(P$3>(A3stdlife+$E112),(Input!$O$145*(1+rvanilla09)^0.5)-SUM($O112:O112),(Input!$O$145*(1+rvanilla09)^0.5)/A3stdlife)) -> 0
E113: 10
C114: =Asset3 -> substations | G114: =SUM(G102:G113) -> 15 | H114: =SUM(H102:H113) -> 15.25661968 | I114: 15.51323935 | J114: 15.76985903 | K114: 16.02647871 | L114: 16.28309838 | M114: 16.28309838 | N114: 16.28309838 | O114: 16.28309838 | P114: 16.28309838
B115: =C127 -> distribution transformers | D115: Initial Asset Base | G115: =IF(G$3>A4remlife,A4value-SUM($F115:F115),IF(A4remlife="N/A","n/a",A4value/A4remlife)) -> 15 | H115: =IF(H$3>A4remlife,A4value-SUM($F115:G115),IF(A4remlife="N/A","n/a",A4value/A4remlife)) -> 15 | I115: =IF(I$3>A4remlife,A4value-SUM($F115:H115),IF(A4remlife="N/A","n/a",A4value/A4remlife)) -> 15 | J115: =IF(J$3>A4remlife,A4value-SUM($F115:I115),IF(A4remlife="N/A","n/a",A4value/A4remlife)) -> 15 | K115: =IF(K$3>A4remlife,A4value-SUM($F115:J115),IF(A4remlife="N/A","n/a",A4value/A4remlife)) -> 15 | L115: =IF(L$3>A4remlife,A4value-SUM($F115:K115),IF(A4remlife="N/A","n/a",A4value/A4remlife)) -> 15 | M115: =IF(M$3>A4remlife,A4value-SUM($F115:L115),IF(A4remlife="N/A","n/a",A4value/A4remlife)) -> 15 | N115: =IF(N$3>A4remlife,A4value-SUM($F115:M115),IF(A4remlife="N/A","n/a",A4value/A4remlife)) -> 15 | O115: =IF(O$3>A4remlife,A4value-SUM($F115:N115),IF(A4remlife="N/A","n/a",A4value/A4remlife)) -> 15 | P115: =IF(P$3>A4remlife,A4value-SUM($F115:O115),IF(A4remlife="N/A","n/a",A4value/A4remlife)) -> 15
D116: Capex | E116: 0
E117: 1 | H117: =IF(A4stdlife="n/a","n/a",IF(H$3>(A4stdlife+$E117),(Input!$G$146*(1+rvanilla01)^0.5)-SUM($G117:G117),(Input!$G$146*(1+rvanilla01)^0.5)/A4stdlife)) -> 0.2566196768 | I117: =IF(A4stdlife="n/a","n/a",IF(I$3>(A4stdlife+$E117),(Input!$G$146*(1+rvanilla01)^0.5)-SUM($G117:H117),(Input!$G$146*(1+rvanilla01)^0.5)/A4stdlife)) -> 0.2566196768 | J117: =IF(A4stdlife="n/a","n/a",IF(J$3>(A4stdlife+$E117),(Input!$G$146*(1+rvanilla01)^0.5)-SUM($G117:I117),(Input!$G$146*(1+rvanilla01)^0.5)/A4stdlife)) -> 0.2566196768 | K117: =IF(A4stdlife="n/a","n/a",IF(K$3>(A4stdlife+$E117),(Input!$G$146*(1+rvanilla01)^0.5)-SUM($G117:J117),(Input!$G$146*(1+rvanilla01)^0.5)/A4stdlife)) -> 0.2566196768 | L117: =IF(A4stdlife="n/a","n/a",IF(L$3>(A4stdlife+$E117),(Input!$G$146*(1+rvanilla01)^0.5)-SUM($G117:K117),(Input!$G$146*(1+rvanilla01)^0.5)/A4stdlife)) -> 0.2566196768 | M117: =IF(A4stdlife="n/a","n/a",IF(M$3>(A4stdlife+$E117),(Input!$G$146*(1+rvanilla01)^0.5)-SUM($G117:L117),(Input!$G$146*(1+rvanilla01)^0.5)/A4stdlife)) -> 0.2566196768 | N117: =IF(A4stdlife="n/a","n/a",IF(N$3>(A4stdlife+$E117),(Input!$G$146*(1+rvanilla01)^0.5)-SUM($G117:M117),(Input!$G$146*(1+rvanilla01)^0.5)/A4stdlife)) -> 0.2566196768 | O117: =IF(A4stdlife="n/a","n/a",IF(O$3>(A4stdlife+$E117),(Input!$G$146*(1+rvanilla01)^0.5)-SUM($G117:N117),(Input!$G$146*(1+rvanilla01)^0.5)/A4stdlife)) -> 0.2566196768 | P117: =IF(A4stdlife="n/a","n/a",IF(P$3>(A4stdlife+$E117),(Input!$G$146*(1+rvanilla01)^0.5)-SUM($G117:O117),(Input!$G$146*(1+rvanilla01)^0.5)/A4stdlife)) -> 0.2566196768
E118: 2 | I118: =IF(A4stdlife="n/a","n/a",IF(I$3>(A4stdlife+$E118),(Input!$H$146*(1+rvanilla02)^0.5)-SUM($H118:H118),(Input!$H$146*(1+rvanilla02)^0.5)/A4stdlife)) -> 0.2566196768 | J118: =IF(A4stdlife="n/a","n/a",IF(J$3>(A4stdlife+$E118),(Input!$H$146*(1+rvanilla02)^0.5)-SUM($H118:I118),(Input!$H$146*(1+rvanilla02)^0.5)/A4stdlife)) -> 0.2566196768 | K118: =IF(A4stdlife="n/a","n/a",IF(K$3>(A4stdlife+$E118),(Input!$H$146*(1+rvanilla02)^0.5)-SUM($H118:J118),(Input!$H$146*(1+rvanilla02)^0.5)/A4stdlife)) -> 0.2566196768 | L118: =IF(A4stdlife="n/a","n/a",IF(L$3>(A4stdlife+$E118),(Input!$H$146*(1+rvanilla02)^0.5)-SUM($H118:K118),(Input!$H$146*(1+rvanilla02)^0.5)/A4stdlife)) -> 0.2566196768 | M118: =IF(A4stdlife="n/a","n/a",IF(M$3>(A4stdlife+$E118),(Input!$H$146*(1+rvanilla02)^0.5)-SUM($H118:L118),(Input!$H$146*(1+rvanilla02)^0.5)/A4stdlife)) -> 0.2566196768 | N118: =IF(A4stdlife="n/a","n/a",IF(N$3>(A4stdlife+$E118),(Input!$H$146*(1+rvanilla02)^0.5)-SUM($H118:M118),(Input!$H$146*(1+rvanilla02)^0.5)/A4stdlife)) -> 0.2566196768 | O118: =IF(A4stdlife="n/a","n/a",IF(O$3>(A4stdlife+$E118),(Input!$H$146*(1+rvanilla02)^0.5)-SUM($H118:N118),(Input!$H$146*(1+rvanilla02)^0.5)/A4stdlife)) -> 0.2566196768 | P118: =IF(A4stdlife="n/a","n/a",IF(P$3>(A4stdlife+$E118),(Input!$H$146*(1+rvanilla02)^0.5)-SUM($H118:O118),(Input!$H$146*(1+rvanilla02)^0.5)/A4stdlife)) -> 0.2566196768
E119: 3 | J119: =IF(A4stdlife="n/a","n/a",IF(J$3>(A4stdlife+$E119),(Input!$I$146*(1+rvanilla03)^0.5)-SUM($I119:I119),(Input!$I$146*(1+rvanilla03)^0.5)/A4stdlife)) -> 0.2566196768 | K119: =IF(A4stdlife="n/a","n/a",IF(K$3>(A4stdlife+$E119),(Input!$I$146*(1+rvanilla03)^0.5)-SUM($I119:J119),(Input!$I$146*(1+rvanilla03)^0.5)/A4stdlife)) -> 0.2566196768 | L119: =IF(A4stdlife="n/a","n/a",IF(L$3>(A4stdlife+$E119),(Input!$I$146*(1+rvanilla03)^0.5)-SUM($I119:K119),(Input!$I$146*(1+rvanilla03)^0.5)/A4stdlife)) -> 0.2566196768 | M119: =IF(A4stdlife="n/a","n/a",IF(M$3>(A4stdlife+$E119),(Input!$I$146*(1+rvanilla03)^0.5)-SUM($I119:L119),(Input!$I$146*(1+rvanilla03)^0.5)/A4stdlife)) -> 0.2566196768 | N119: =IF(A4stdlife="n/a","n/a",IF(N$3>(A4stdlife+$E119),(Input!$I$146*(1+rvanilla03)^0.5)-SUM($I119:M119),(Input!$I$146*(1+rvanilla03)^0.5)/A4stdlife)) -> 0.2566196768 | O119: =IF(A4stdlife="n/a","n/a",IF(O$3>(A4stdlife+$E119),(Input!$I$146*(1+rvanilla03)^0.5)-SUM($I119:N119),(Input!$I$146*(1+rvanilla03)^0.5)/A4stdlife)) -> 0.2566196768 | P119: =IF(A4stdlife="n/a","n/a",IF(P$3>(A4stdlife+$E119),(Input!$I$146*(1+rvanilla03)^0.5)-SUM($I119:O119),(Input!$I$146*(1+rvanilla03)^0.5)/A4stdlife)) -> 0.2566196768
E120: 4 | K120: =IF(A4stdlife="n/a","n/a",IF(K$3>(A4stdlife+$E120),(Input!$J$146*(1+rvanilla04)^0.5)-SUM($J120:J120),(Input!$J$146*(1+rvanilla04)^0.5)/A4stdlife)) -> 0.2566196768 | L120: =IF(A4stdlife="n/a","n/a",IF(L$3>(A4stdlife+$E120),(Input!$J$146*(1+rvanilla04)^0.5)-SUM($J120:K120),(Input!$J$146*(1+rvanilla04)^0.5)/A4stdlife)) -> 0.2566196768 | M120: =IF(A4stdlife="n/a","n/a",IF(M$3>(A4stdlife+$E120),(Input!$J$146*(1+rvanilla04)^0.5)-SUM($J120:L120),(Input!$J$146*(1+rvanilla04)^0.5)/A4stdlife)) -> 0.2566196768 | N120: =IF(A4stdlife="n/a","n/a",IF(N$3>(A4stdlife+$E120),(Input!$J$146*(1+rvanilla04)^0.5)-SUM($J120:M120),(Input!$J$146*(1+rvanilla04)^0.5)/A4stdlife)) -> 0.2566196768 | O120: =IF(A4stdlife="n/a","n/a",IF(O$3>(A4stdlife+$E120),(Input!$J$146*(1+rvanilla04)^0.5)-SUM($J120:N120),(Input!$J$146*(1+rvanilla04)^0.5)/A4stdlife)) -> 0.2566196768 | P120: =IF(A4stdlife="n/a","n/a",IF(P$3>(A4stdlife+$E120),(Input!$J$146*(1+rvanilla04)^0.5)-SUM($J120:O120),(Input!$J$146*(1+rvanilla04)^0.5)/A4stdlife)) -> 0.2566196768
E121: 5 | L121: =IF(A4stdlife="n/a","n/a",IF(L$3>(A4stdlife+$E121),(Input!$K$146*(1+rvanilla05)^0.5)-SUM($K121:K121),(Input!$K$146*(1+rvanilla05)^0.5)/A4stdlife)) -> 0.2566196768 | M121: =IF(A4stdlife="n/a","n/a",IF(M$3>(A4stdlife+$E121),(Input!$K$146*(1+rvanilla05)^0.5)-SUM($K121:L121),(Input!$K$146*(1+rvanilla05)^0.5)/A4stdlife)) -> 0.2566196768 | N121: =IF(A4stdlife="n/a","n/a",IF(N$3>(A4stdlife+$E121),(Input!$K$146*(1+rvanilla05)^0.5)-SUM($K121:M121),(Input!$K$146*(1+rvanilla05)^0.5)/A4stdlife)) -> 0.2566196768 | O121: =IF(A4stdlife="n/a","n/a",IF(O$3>(A4stdlife+$E121),(Input!$K$146*(1+rvanilla05)^0.5)-SUM($K121:N121),(Input!$K$146*(1+rvanilla05)^0.5)/A4stdlife)) -> 0.2566196768 | P121: =IF(A4stdlife="n/a","n/a",IF(P$3>(A4stdlife+$E121),(Input!$K$146*(1+rvanilla05)^0.5)-SUM($K121:O121),(Input!$K$146*(1+rvanilla05)^0.5)/A4stdlife)) -> 0.2566196768
E122: 6 | M122: =IF(A4stdlife="n/a","n/a",IF(M$3>(A4stdlife+$E122),(Input!$L$146*(1+rvanilla06)^0.5)-SUM($L122:L122),(Input!$L$146*(1+rvanilla06)^0.5)/A4stdlife)) -> 0 | N122: =IF(A4stdlife="n/a","n/a",IF(N$3>(A4stdlife+$E122),(Input!$L$146*(1+rvanilla06)^0.5)-SUM($L122:M122),(Input!$L$146*(1+rvanilla06)^0.5)/A4stdlife)) -> 0 | O122: =IF(A4stdlife="n/a","n/a",IF(O$3>(A4stdlife+$E122),(Input!$L$146*(1+rvanilla06)^0.5)-SUM($L122:N122),(Input!$L$146*(1+rvanilla06)^0.5)/A4stdlife)) -> 0 | P122: =IF(A4stdlife="n/a","n/a",IF(P$3>(A4stdlife+$E122),(Input!$L$146*(1+rvanilla06)^0.5)-SUM($L122:O122),(Input!$L$146*(1+rvanilla06)^0.5)/A4stdlife)) -> 0
E123: 7 | N123: =IF(A4stdlife="n/a","n/a",IF(N$3>(A4stdlife+$E123),(Input!$M$146*(1+rvanilla07)^0.5)-SUM($M123:M123),(Input!$M$146*(1+rvanilla07)^0.5)/A4stdlife)) -> 0 | O123: =IF(A4stdlife="n/a","n/a",IF(O$3>(A4stdlife+$E123),(Input!$M$146*(1+rvanilla07)^0.5)-SUM($M123:N123),(Input!$M$146*(1+rvanilla07)^0.5)/A4stdlife)) -> 0 | P123: =IF(A4stdlife="n/a","n/a",IF(P$3>(A4stdlife+$E123),(Input!$M$146*(1+rvanilla07)^0.5)-SUM($M123:O123),(Input!$M$146*(1+rvanilla07)^0.5)/A4stdlife)) -> 0
E124: 8 | O124: =IF(A4stdlife="n/a","n/a",IF(O$3>(A4stdlife+$E124),(Input!$N$146*(1+rvanilla08)^0.5)-SUM($N124:N124),(Input!$N$146*(1+rvanilla08)^0.5)/A4stdlife)) -> 0 | P124: =IF(A4stdlife="n/a","n/a",IF(P$3>(A4stdlife+$E124),(Input!$N$146*(1+rvanilla08)^0.5)-SUM($N124:O124),(Input!$N$146*(1+rvanilla08)^0.5)/A4stdlife)) -> 0
E125: 9 | P125: =IF(A4stdlife="n/a","n/a",IF(P$3>(A4stdlife+$E125),(Input!$O$146*(1+rvanilla09)^0.5)-SUM($O221:O221),(Input!$O$146*(1+rvanilla09)^0.5)/A4stdlife)) -> 0
E126: 10
C127: =Asset4 -> distribution transformers | G127: =SUM(G115:G126) -> 15 | H127: 15.25661968 | I127: 15.51323935 | J127: 15.76985903 | K127: 16.02647871 | L127: 16.28309838 | M127: 16.28309838 | N127: 16.28309838 | O127: 16.28309838 | P127: 16.28309838
B128: =C140 -> LVS and meters | D128: Initial Asset Base | G128: =IF(G$3>A5remlife,A5value-SUM($F128:F128),IF(A5remlife="N/A","n/a",A5value/A5remlife)) -> 20 | H128: =IF(H$3>A5remlife,A5value-SUM($F128:G128),IF(A5remlife="N/A","n/a",A5value/A5remlife)) -> 20 | I128: =IF(I$3>A5remlife,A5value-SUM($F128:H128),IF(A5remlife="N/A","n/a",A5value/A5remlife)) -> 20 | J128: =IF(J$3>A5remlife,A5value-SUM($F128:I128),IF(A5remlife="N/A","n/a",A5value/A5remlife)) -> 20 | K128: =IF(K$3>A5remlife,A5value-SUM($F128:J128),IF(A5remlife="N/A","n/a",A5value/A5remlife)) -> 20 | L128: =IF(L$3>A5remlife,A5value-SUM($F128:K128),IF(A5remlife="N/A","n/a",A5value/A5remlife)) -> 20 | M128: =IF(M$3>A5remlife,A5value-SUM($F128:L128),IF(A5remlife="N/A","n/a",A5value/A5remlife)) -> 20 | N128: =IF(N$3>A5remlife,A5value-SUM($F128:M128),IF(A5remlife="N/A","n/a",A5value/A5remlife)) -> 20 | O128: =IF(O$3>A5remlife,A5value-SUM($F128:N128),IF(A5remlife="N/A","n/a",A5value/A5remlife)) -> 20 | P128: =IF(P$3>A5remlife,A5value-SUM($F128:O128),IF(A5remlife="N/A","n/a",A5value/A5remlife)) -> 20
D129: Capex | E129: 0
E130: 1 | H130: =IF(A5stdlife="n/a","n/a",IF(H$3>(A5stdlife+$E130),(Input!$G$147*(1+rvanilla01)^0.5)-SUM($G130:G130),(Input!$G$147*(1+rvanilla01)^0.5)/A5stdlife)) -> 0.5474553106 | I130: =IF(A5stdlife="n/a","n/a",IF(I$3>(A5stdlife+$E130),(Input!$G$147*(1+rvanilla01)^0.5)-SUM($G130:H130),(Input!$G$147*(1+rvanilla01)^0.5)/A5stdlife)) -> 0.5474553106 | J130: =IF(A5stdlife="n/a","n/a",IF(J$3>(A5stdlife+$E130),(Input!$G$147*(1+rvanilla01)^0.5)-SUM($G130:I130),(Input!$G$147*(1+rvanilla01)^0.5)/A5stdlife)) -> 0.5474553106 | K130: =IF(A5stdlife="n/a","n/a",IF(K$3>(A5stdlife+$E130),(Input!$G$147*(1+rvanilla01)^0.5)-SUM($G130:J130),(Input!$G$147*(1+rvanilla01)^0.5)/A5stdlife)) -> 0.5474553106 | L130: =IF(A5stdlife="n/a","n/a",IF(L$3>(A5stdlife+$E130),(Input!$G$147*(1+rvanilla01)^0.5)-SUM($G130:K130),(Input!$G$147*(1+rvanilla01)^0.5)/A5stdlife)) -> 0.5474553106 | M130: =IF(A5stdlife="n/a","n/a",IF(M$3>(A5stdlife+$E130),(Input!$G$147*(1+rvanilla01)^0.5)-SUM($G130:L130),(Input!$G$147*(1+rvanilla01)^0.5)/A5stdlife)) -> 0.5474553106 | N130: =IF(A5stdlife="n/a","n/a",IF(N$3>(A5stdlife+$E130),(Input!$G$147*(1+rvanilla01)^0.5)-SUM($G130:M130),(Input!$G$147*(1+rvanilla01)^0.5)/A5stdlife)) -> 0.5474553106 | O130: =IF(A5stdlife="n/a","n/a",IF(O$3>(A5stdlife+$E130),(Input!$G$147*(1+rvanilla01)^0.5)-SUM($G130:N130),(Input!$G$147*(1+rvanilla01)^0.5)/A5stdlife)) -> 0.5474553106 | P130: =IF(A5stdlife="n/a","n/a",IF(P$3>(A5stdlife+$E130),(Input!$G$147*(1+rvanilla01)^0.5)-SUM($G130:O130),(Input!$G$147*(1+rvanilla01)^0.5)/A5stdlife)) -> 0.5474553106
E131: 2 | I131: =IF(A5stdlife="n/a","n/a",IF(I$3>(A5stdlife+$E131),(Input!$H$147*(1+rvanilla02)^0.5)-SUM($H131:H131),(Input!$H$147*(1+rvanilla02)^0.5)/A5stdlife)) -> 0.5474553106 | J131: =IF(A5stdlife="n/a","n/a",IF(J$3>(A5stdlife+$E131),(Input!$H$147*(1+rvanilla02)^0.5)-SUM($H131:I131),(Input!$H$147*(1+rvanilla02)^0.5)/A5stdlife)) -> 0.5474553106 | K131: =IF(A5stdlife="n/a","n/a",IF(K$3>(A5stdlife+$E131),(Input!$H$147*(1+rvanilla02)^0.5)-SUM($H131:J131),(Input!$H$147*(1+rvanilla02)^0.5)/A5stdlife)) -> 0.5474553106 | L131: =IF(A5stdlife="n/a","n/a",IF(L$3>(A5stdlife+$E131),(Input!$H$147*(1+rvanilla02)^0.5)-SUM($H131:K131),(Input!$H$147*(1+rvanilla02)^0.5)/A5stdlife)) -> 0.5474553106 | M131: =IF(A5stdlife="n/a","n/a",IF(M$3>(A5stdlife+$E131),(Input!$H$147*(1+rvanilla02)^0.5)-SUM($H131:L131),(Input!$H$147*(1+rvanilla02)^0.5)/A5stdlife)) -> 0.5474553106 | N131: =IF(A5stdlife="n/a","n/a",IF(N$3>(A5stdlife+$E131),(Input!$H$147*(1+rvanilla02)^0.5)-SUM($H131:M131),(Input!$H$147*(1+rvanilla02)^0.5)/A5stdlife)) -> 0.5474553106 | O131: =IF(A5stdlife="n/a","n/a",IF(O$3>(A5stdlife+$E131),(Input!$H$147*(1+rvanilla02)^0.5)-SUM($H131:N131),(Input!$H$147*(1+rvanilla02)^0.5)/A5stdlife)) -> 0.5474553106 | P131: =IF(A5stdlife="n/a","n/a",IF(P$3>(A5stdlife+$E131),(Input!$H$147*(1+rvanilla02)^0.5)-SUM($H131:O131),(Input!$H$147*(1+rvanilla02)^0.5)/A5stdlife)) -> 0.5474553106
E132: 3 | J132: =IF(A5stdlife="n/a","n/a",IF(J$3>(A5stdlife+$E132),(Input!$I$147*(1+rvanilla03)^0.5)-SUM($I132:I132),(Input!$I$147*(1+rvanilla03)^0.5)/A5stdlife)) -> 0.5474553106 | K132: =IF(A5stdlife="n/a","n/a",IF(K$3>(A5stdlife+$E132),(Input!$I$147*(1+rvanilla03)^0.5)-SUM($I132:J132),(Input!$I$147*(1+rvanilla03)^0.5)/A5stdlife)) -> 0.5474553106 | L132: =IF(A5stdlife="n/a","n/a",IF(L$3>(A5stdlife+$E132),(Input!$I$147*(1+rvanilla03)^0.5)-SUM($I132:K132),(Input!$I$147*(1+rvanilla03)^0.5)/A5stdlife)) -> 0.5474553106 | M132: =IF(A5stdlife="n/a","n/a",IF(M$3>(A5stdlife+$E132),(Input!$I$147*(1+rvanilla03)^0.5)-SUM($I132:L132),(Input!$I$147*(1+rvanilla03)^0.5)/A5stdlife)) -> 0.5474553106 | N132: =IF(A5stdlife="n/a","n/a",IF(N$3>(A5stdlife+$E132),(Input!$I$147*(1+rvanilla03)^0.5)-SUM($I132:M132),(Input!$I$147*(1+rvanilla03)^0.5)/A5stdlife)) -> 0.5474553106 | O132: =IF(A5stdlife="n/a","n/a",IF(O$3>(A5stdlife+$E132),(Input!$I$147*(1+rvanilla03)^0.5)-SUM($I132:N132),(Input!$I$147*(1+rvanilla03)^0.5)/A5stdlife)) -> 0.5474553106 | P132: =IF(A5stdlife="n/a","n/a",IF(P$3>(A5stdlife+$E132),(Input!$I$147*(1+rvanilla03)^0.5)-SUM($I132:O132),(Input!$I$147*(1+rvanilla03)^0.5)/A5stdlife)) -> 0.5474553106
E133: 4 | K133: =IF(A5stdlife="n/a","n/a",IF(K$3>(A5stdlife+$E133),(Input!$J$147*(1+rvanilla04)^0.5)-SUM($J133:J133),(Input!$J$147*(1+rvanilla04)^0.5)/A5stdlife)) -> 0.5474553106 | L133: =IF(A5stdlife="n/a","n/a",IF(L$3>(A5stdlife+$E133),(Input!$J$147*(1+rvanilla04)^0.5)-SUM($J133:K133),(Input!$J$147*(1+rvanilla04)^0.5)/A5stdlife)) -> 0.5474553106 | M133: =IF(A5stdlife="n/a","n/a",IF(M$3>(A5stdlife+$E133),(Input!$J$147*(1+rvanilla04)^0.5)-SUM($J133:L133),(Input!$J$147*(1+rvanilla04)^0.5)/A5stdlife)) -> 0.5474553106 | N133: =IF(A5stdlife="n/a","n/a",IF(N$3>(A5stdlife+$E133),(Input!$J$147*(1+rvanilla04)^0.5)-SUM($J133:M133),(Input!$J$147*(1+rvanilla04)^0.5)/A5stdlife)) -> 0.5474553106 | O133: =IF(A5stdlife="n/a","n/a",IF(O$3>(A5stdlife+$E133),(Input!$J$147*(1+rvanilla04)^0.5)-SUM($J133:N133),(Input!$J$147*(1+rvanilla04)^0.5)/A5stdlife)) -> 0.5474553106 | P133: =IF(A5stdlife="n/a","n/a",IF(P$3>(A5stdlife+$E133),(Input!$J$147*(1+rvanilla04)^0.5)-SUM($J133:O133),(Input!$J$147*(1+rvanilla04)^0.5)/A5stdlife)) -> 0.5474553106
E134: 5 | L134: =IF(A5stdlife="n/a","n/a",IF(L$3>(A5stdlife+$E134),(Input!$K$147*(1+rvanilla05)^0.5)-SUM($K134:K134),(Input!$K$147*(1+rvanilla05)^0.5)/A5stdlife)) -> 0.5474553106 | M134: =IF(A5stdlife="n/a","n/a",IF(M$3>(A5stdlife+$E134),(Input!$K$147*(1+rvanilla05)^0.5)-SUM($K134:L134),(Input!$K$147*(1+rvanilla05)^0.5)/A5stdlife)) -> 0.5474553106 | N134: =IF(A5stdlife="n/a","n/a",IF(N$3>(A5stdlife+$E134),(Input!$K$147*(1+rvanilla05)^0.5)-SUM($K134:M134),(Input!$K$147*(1+rvanilla05)^0.5)/A5stdlife)) -> 0.5474553106 | O134: =IF(A5stdlife="n/a","n/a",IF(O$3>(A5stdlife+$E134),(Input!$K$147*(1+rvanilla05)^0.5)-SUM($K134:N134),(Input!$K$147*(1+rvanilla05)^0.5)/A5stdlife)) -> 0.5474553106 | P134: =IF(A5stdlife="n/a","n/a",IF(P$3>(A5stdlife+$E134),(Input!$K$147*(1+rvanilla05)^0.5)-SUM($K134:O134),(Input!$K$147*(1+rvanilla05)^0.5)/A5stdlife)) -> 0.5474553106
E135: 6 | M135: =IF(A5stdlife="n/a","n/a",IF(M$3>(A5stdlife+$E135),(Input!$L$147*(1+rvanilla06)^0.5)-SUM($L135:L135),(Input!$L$147*(1+rvanilla06)^0.5)/A5stdlife)) -> 0 | N135: =IF(A5stdlife="n/a","n/a",IF(N$3>(A5stdlife+$E135),(Input!$L$147*(1+rvanilla06)^0.5)-SUM($L135:M135),(Input!$L$147*(1+rvanilla06)^0.5)/A5stdlife)) -> 0 | O135: =IF(A5stdlife="n/a","n/a",IF(O$3>(A5stdlife+$E135),(Input!$L$147*(1+rvanilla06)^0.5)-SUM($L135:N135),(Input!$L$147*(1+rvanilla06)^0.5)/A5stdlife)) -> 0 | P135: =IF(A5stdlife="n/a","n/a",IF(P$3>(A5stdlife+$E135),(Input!$L$147*(1+rvanilla06)^0.5)-SUM($L135:O135),(Input!$L$147*(1+rvanilla06)^0.5)/A5stdlife)) -> 0
E136: 7 | N136: =IF(A5stdlife="n/a","n/a",IF(N$3>(A5stdlife+$E136),(Input!$M$147*(1+rvanilla07)^0.5)-SUM($M136:M136),(Input!$M$147*(1+rvanilla07)^0.5)/A5stdlife)) -> 0 | O136: =IF(A5stdlife="n/a","n/a",IF(O$3>(A5stdlife+$E136),(Input!$M$147*(1+rvanilla07)^0.5)-SUM($M136:N136),(Input!$M$147*(1+rvanilla07)^0.5)/A5stdlife)) -> 0 | P136: =IF(A5stdlife="n/a","n/a",IF(P$3>(A5stdlife+$E136),(Input!$M$147*(1+rvanilla07)^0.5)-SUM($M136:O136),(Input!$M$147*(1+rvanilla07)^0.5)/A5stdlife)) -> 0
E137: 8 | O137: =IF(A5stdlife="n/a","n/a",IF(O$3>(A5stdlife+$E137),(Input!$N$147*(1+rvanilla08)^0.5)-SUM($N137:N137),(Input!$N$147*(1+rvanilla08)^0.5)/A5stdlife)) -> 0 | P137: =IF(A5stdlife="n/a","n/a",IF(P$3>(A5stdlife+$E137),(Input!$N$147*(1+rvanilla08)^0.5)-SUM($N137:O137),(Input!$N$147*(1+rvanilla08)^0.5)/A5stdlife)) -> 0
E138: 9 | P138: =IF(A5stdlife="n/a","n/a",IF(P$3>(A5stdlife+$E138),(Input!$O$147*(1+rvanilla09)^0.5)-SUM($O138:O138),(Input!$O$147*(1+rvanilla09)^0.5)/A5stdlife)) -> 0
E139: 10
C140: =Asset5 -> LVS and meters | G140: =SUM(G128:G139) -> 20 | H140: 20.54745531 | I140: 21.09491062 | J140: 21.64236593 | K140: 22.18982124 | L140: 22.73727655 | M140: 22.73727655 | N140: 22.73727655 | O140: 22.73727655 | P140: 22.73727655
B141: =C153 -> communications | D141: Initial Asset Base | G141: =IF(G$3>A6remlife,A6value-SUM($F141:F141),IF(A6remlife="N/A","n/a",A6value/A6remlife)) -> 25 | H141: =IF(H$3>A6remlife,A6value-SUM($F141:G141),IF(A6remlife="N/A","n/a",A6value/A6remlife)) -> 25 | I141: =IF(I$3>A6remlife,A6value-SUM($F141:H141),IF(A6remlife="N/A","n/a",A6value/A6remlife)) -> 0 | J141: =IF(J$3>A6remlife,A6value-SUM($F141:I141),IF(A6remlife="N/A","n/a",A6value/A6remlife)) -> 0 | K141: =IF(K$3>A6remlife,A6value-SUM($F141:J141),IF(A6remlife="N/A","n/a",A6value/A6remlife)) -> 0 | L141: =IF(L$3>A6remlife,A6value-SUM($F141:K141),IF(A6remlife="N/A","n/a",A6value/A6remlife)) -> 0 | M141: =IF(M$3>A6remlife,A6value-SUM($F141:L141),IF(A6remlife="N/A","n/a",A6value/A6remlife)) -> 0 | N141: =IF(N$3>A6remlife,A6value-SUM($F141:M141),IF(A6remlife="N/A","n/a",A6value/A6remlife)) -> 0 | O141: =IF(O$3>A6remlife,A6value-SUM($F141:N141),IF(A6remlife="N/A","n/a",A6value/A6remlife)) -> 0 | P141: =IF(P$3>A6remlife,A6value-SUM($F141:O141),IF(A6remlife="N/A","n/a",A6value/A6remlife)) -> 0
D142: Capex | E142: 0
E143: 1 | H143: =IF(A6stdlife="n/a","n/a",IF(H$3>(A6stdlife+$E143),(Input!$G$148*(1+rvanilla01)^0.5)-SUM($G143:G143),(Input!$G$148*(1+rvanilla01)^0.5)/A6stdlife)) -> 0.7331990767 | I143: =IF(A6stdlife="n/a","n/a",IF(I$3>(A6stdlife+$E143),(Input!$G$148*(1+rvanilla01)^0.5)-SUM($G143:H143),(Input!$G$148*(1+rvanilla01)^0.5)/A6stdlife)) -> 0.7331990767 | J143: =IF(A6stdlife="n/a","n/a",IF(J$3>(A6stdlife+$E143),(Input!$G$148*(1+rvanilla01)^0.5)-SUM($G143:I143),(Input!$G$148*(1+rvanilla01)^0.5)/A6stdlife)) -> 0.7331990767 | K143: =IF(A6stdlife="n/a","n/a",IF(K$3>(A6stdlife+$E143),(Input!$G$148*(1+rvanilla01)^0.5)-SUM($G143:J143),(Input!$G$148*(1+rvanilla01)^0.5)/A6stdlife)) -> 0.7331990767 | L143: =IF(A6stdlife="n/a","n/a",IF(L$3>(A6stdlife+$E143),(Input!$G$148*(1+rvanilla01)^0.5)-SUM($G143:K143),(Input!$G$148*(1+rvanilla01)^0.5)/A6stdlife)) -> 0.7331990767 | M143: =IF(A6stdlife="n/a","n/a",IF(M$3>(A6stdlife+$E143),(Input!$G$148*(1+rvanilla01)^0.5)-SUM($G143:L143),(Input!$G$148*(1+rvanilla01)^0.5)/A6stdlife)) -> 0.7331990767 | N143: =IF(A6stdlife="n/a","n/a",IF(N$3>(A6stdlife+$E143),(Input!$G$148*(1+rvanilla01)^0.5)-SUM($G143:M143),(Input!$G$148*(1+rvanilla01)^0.5)/A6stdlife)) -> 0.7331990767 | O143: =IF(A6stdlife="n/a","n/a",IF(O$3>(A6stdlife+$E143),(Input!$G$148*(1+rvanilla01)^0.5)-SUM($G143:N143),(Input!$G$148*(1+rvanilla01)^0.5)/A6stdlife)) -> 0 | P143: =IF(A6stdlife="n/a","n/a",IF(P$3>(A6stdlife+$E143),(Input!$G$148*(1+rvanilla01)^0.5)-SUM($G143:O143),(Input!$G$148*(1+rvanilla01)^0.5)/A6stdlife)) -> 0
E144: 2 | I144: =IF(A6stdlife="n/a","n/a",IF(I$3>(A6stdlife+$E144),(Input!$H$148*(1+rvanilla02)^0.5)-SUM($H144:H144),(Input!$H$148*(1+rvanilla02)^0.5)/A6stdlife)) -> 0.2932796307 | J144: =IF(A6stdlife="n/a","n/a",IF(J$3>(A6stdlife+$E144),(Input!$H$148*(1+rvanilla02)^0.5)-SUM($H144:I144),(Input!$H$148*(1+rvanilla02)^0.5)/A6stdlife)) -> 0.2932796307 | K144: =IF(A6stdlife="n/a","n/a",IF(K$3>(A6stdlife+$E144),(Input!$H$148*(1+rvanilla02)^0.5)-SUM($H144:J144),(Input!$H$148*(1+rvanilla02)^0.5)/A6stdlife)) -> 0.2932796307 | L144: =IF(A6stdlife="n/a","n/a",IF(L$3>(A6stdlife+$E144),(Input!$H$148*(1+rvanilla02)^0.5)-SUM($H144:K144),(Input!$H$148*(1+rvanilla02)^0.5)/A6stdlife)) -> 0.2932796307 | M144: =IF(A6stdlife="n/a","n/a",IF(M$3>(A6stdlife+$E144),(Input!$H$148*(1+rvanilla02)^0.5)-SUM($H144:L144),(Input!$H$148*(1+rvanilla02)^0.5)/A6stdlife)) -> 0.2932796307 | N144: =IF(A6stdlife="n/a","n/a",IF(N$3>(A6stdlife+$E144),(Input!$H$148*(1+rvanilla02)^0.5)-SUM($H144:M144),(Input!$H$148*(1+rvanilla02)^0.5)/A6stdlife)) -> 0.2932796307 | O144: =IF(A6stdlife="n/a","n/a",IF(O$3>(A6stdlife+$E144),(Input!$H$148*(1+rvanilla02)^0.5)-SUM($H144:N144),(Input!$H$148*(1+rvanilla02)^0.5)/A6stdlife)) -> 0.2932796307 | P144: =IF(A6stdlife="n/a","n/a",IF(P$3>(A6stdlife+$E144),(Input!$H$148*(1+rvanilla02)^0.5)-SUM($H144:O144),(Input!$H$148*(1+rvanilla02)^0.5)/A6stdlife)) -> 4.440892099e-16
E145: 3 | J145: =IF(A6stdlife="n/a","n/a",IF(J$3>(A6stdlife+$E145),(Input!$I$148*(1+rvanilla03)^0.5)-SUM($I145:I145),(Input!$I$148*(1+rvanilla03)^0.5)/A6stdlife)) -> 0.2932796307 | K145: =IF(A6stdlife="n/a","n/a",IF(K$3>(A6stdlife+$E145),(Input!$I$148*(1+rvanilla03)^0.5)-SUM($I145:J145),(Input!$I$148*(1+rvanilla03)^0.5)/A6stdlife)) -> 0.2932796307 | L145: =IF(A6stdlife="n/a","n/a",IF(L$3>(A6stdlife+$E145),(Input!$I$148*(1+rvanilla03)^0.5)-SUM($I145:K145),(Input!$I$148*(1+rvanilla03)^0.5)/A6stdlife)) -> 0.2932796307 | M145: =IF(A6stdlife="n/a","n/a",IF(M$3>(A6stdlife+$E145),(Input!$I$148*(1+rvanilla03)^0.5)-SUM($I145:L145),(Input!$I$148*(1+rvanilla03)^0.5)/A6stdlife)) -> 0.2932796307 | N145: =IF(A6stdlife="n/a","n/a",IF(N$3>(A6stdlife+$E145),(Input!$I$148*(1+rvanilla03)^0.5)-SUM($I145:M145),(Input!$I$148*(1+rvanilla03)^0.5)/A6stdlife)) -> 0.2932796307 | O145: =IF(A6stdlife="n/a","n/a",IF(O$3>(A6stdlife+$E145),(Input!$I$148*(1+rvanilla03)^0.5)-SUM($I145:N145),(Input!$I$148*(1+rvanilla03)^0.5)/A6stdlife)) -> 0.2932796307 | P145: =IF(A6stdlife="n/a","n/a",IF(P$3>(A6stdlife+$E145),(Input!$I$148*(1+rvanilla03)^0.5)-SUM($I145:O145),(Input!$I$148*(1+rvanilla03)^0.5)/A6stdlife)) -> 0.2932796307
E146: 4 | K146: =IF(A6stdlife="n/a","n/a",IF(K$3>(A6stdlife+$E146),(Input!$J$148*(1+rvanilla04)^0.5)-SUM($J146:J146),(Input!$J$148*(1+rvanilla04)^0.5)/A6stdlife)) -> 0.2932796307 | L146: =IF(A6stdlife="n/a","n/a",IF(L$3>(A6stdlife+$E146),(Input!$J$148*(1+rvanilla04)^0.5)-SUM($J146:K146),(Input!$J$148*(1+rvanilla04)^0.5)/A6stdlife)) -> 0.2932796307 | M146: =IF(A6stdlife="n/a","n/a",IF(M$3>(A6stdlife+$E146),(Input!$J$148*(1+rvanilla04)^0.5)-SUM($J146:L146),(Input!$J$148*(1+rvanilla04)^0.5)/A6stdlife)) -> 0.2932796307 | N146: =IF(A6stdlife="n/a","n/a",IF(N$3>(A6stdlife+$E146),(Input!$J$148*(1+rvanilla04)^0.5)-SUM($J146:M146),(Input!$J$148*(1+rvanilla04)^0.5)/A6stdlife)) -> 0.2932796307 | O146: =IF(A6stdlife="n/a","n/a",IF(O$3>(A6stdlife+$E146),(Input!$J$148*(1+rvanilla04)^0.5)-SUM($J146:N146),(Input!$J$148*(1+rvanilla04)^0.5)/A6stdlife)) -> 0.2932796307 | P146: =IF(A6stdlife="n/a","n/a",IF(P$3>(A6stdlife+$E146),(Input!$J$148*(1+rvanilla04)^0.5)-SUM($J146:O146),(Input!$J$148*(1+rvanilla04)^0.5)/A6stdlife)) -> 0.2932796307
E147: 5 | L147: =IF(A6stdlife="n/a","n/a",IF(L$3>(A6stdlife+$E147),(Input!$K$148*(1+rvanilla05)^0.5)-SUM($K147:K147),(Input!$K$148*(1+rvanilla05)^0.5)/A6stdlife)) -> 0.2932796307 | M147: =IF(A6stdlife="n/a","n/a",IF(M$3>(A6stdlife+$E147),(Input!$K$148*(1+rvanilla05)^0.5)-SUM($K147:L147),(Input!$K$148*(1+rvanilla05)^0.5)/A6stdlife)) -> 0.2932796307 | N147: =IF(A6stdlife="n/a","n/a",IF(N$3>(A6stdlife+$E147),(Input!$K$148*(1+rvanilla05)^0.5)-SUM($K147:M147),(Input!$K$148*(1+rvanilla05)^0.5)/A6stdlife)) -> 0.2932796307 | O147: =IF(A6stdlife="n/a","n/a",IF(O$3>(A6stdlife+$E147),(Input!$K$148*(1+rvanilla05)^0.5)-SUM($K147:N147),(Input!$K$148*(1+rvanilla05)^0.5)/A6stdlife)) -> 0.2932796307 | P147: =IF(A6stdlife="n/a","n/a",IF(P$3>(A6stdlife+$E147),(Input!$K$148*(1+rvanilla05)^0.5)-SUM($K147:O147),(Input!$K$148*(1+rvanilla05)^0.5)/A6stdlife)) -> 0.2932796307
E148: 6 | M148: =IF(A6stdlife="n/a","n/a",IF(M$3>(A6stdlife+$E148),(Input!$L$148*(1+rvanilla06)^0.5)-SUM($L148:L148),(Input!$L$148*(1+rvanilla06)^0.5)/A6stdlife)) -> 0 | N148: =IF(A6stdlife="n/a","n/a",IF(N$3>(A6stdlife+$E148),(Input!$L$148*(1+rvanilla06)^0.5)-SUM($L148:M148),(Input!$L$148*(1+rvanilla06)^0.5)/A6stdlife)) -> 0 | O148: =IF(A6stdlife="n/a","n/a",IF(O$3>(A6stdlife+$E148),(Input!$L$148*(1+rvanilla06)^0.5)-SUM($L148:N148),(Input!$L$148*(1+rvanilla06)^0.5)/A6stdlife)) -> 0 | P148: =IF(A6stdlife="n/a","n/a",IF(P$3>(A6stdlife+$E148),(Input!$L$148*(1+rvanilla06)^0.5)-SUM($L148:O148),(Input!$L$148*(1+rvanilla06)^0.5)/A6stdlife)) -> 0
E149: 7 | N149: =IF(A6stdlife="n/a","n/a",IF(N$3>(A6stdlife+$E149),(Input!$M$148*(1+rvanilla07)^0.5)-SUM($M149:M149),(Input!$M$148*(1+rvanilla07)^0.5)/A6stdlife)) -> 0 | O149: =IF(A6stdlife="n/a","n/a",IF(O$3>(A6stdlife+$E149),(Input!$M$148*(1+rvanilla07)^0.5)-SUM($M149:N149),(Input!$M$148*(1+rvanilla07)^0.5)/A6stdlife)) -> 0 | P149: =IF(A6stdlife="n/a","n/a",IF(P$3>(A6stdlife+$E149),(Input!$M$148*(1+rvanilla07)^0.5)-SUM($M149:O149),(Input!$M$148*(1+rvanilla07)^0.5)/A6stdlife)) -> 0
E150: 8 | O150: =IF(A6stdlife="n/a","n/a",IF(O$3>(A6stdlife+$E150),(Input!$N$148*(1+rvanilla08)^0.5)-SUM($N150:N150),(Input!$N$148*(1+rvanilla08)^0.5)/A6stdlife)) -> 0 | P150: =IF(A6stdlife="n/a","n/a",IF(P$3>(A6stdlife+$E150),(Input!$N$148*(1+rvanilla08)^0.5)-SUM($N150:O150),(Input!$N$148*(1+rvanilla08)^0.5)/A6stdlife)) -> 0
E151: 9 | P151: =IF(A6stdlife="n/a","n/a",IF(P$3>(A6stdlife+$E151),(Input!$O$148*(1+rvanilla09)^0.5)-SUM($O151:O151),(Input!$O$148*(1+rvanilla09)^0.5)/A6stdlife)) -> 0
E152: 10
C153: =Asset6 -> communications | G153: =SUM(G141:G152) -> 25 | H153: 25.73319908 | I153: 1.026478707 | J153: 1.319758338 | K153: 1.613037969 | L153: 1.906317599 | M153: 1.906317599 | N153: 1.906317599 | O153: 1.173118523 | P153: 0.879838892
B154: =C166 -> vehicles | D154: Initial Asset Base | G154: =IF(G$3>A7remlife,A7value-SUM($F154:F154),IF(A7remlife="N/A","n/a",A7value/A7remlife)) -> 16.66666667 | H154: =IF(H$3>A7remlife,A7value-SUM($F154:G154),IF(A7remlife="N/A","n/a",A7value/A7remlife)) -> 16.66666667 | I154: =IF(I$3>A7remlife,A7value-SUM($F154:H154),IF(A7remlife="N/A","n/a",A7value/A7remlife)) -> 16.66666667 | J154: =IF(J$3>A7remlife,A7value-SUM($F154:I154),IF(A7remlife="N/A","n/a",A7value/A7remlife)) -> 0 | K154: =IF(K$3>A7remlife,A7value-SUM($F154:J154),IF(A7remlife="N/A","n/a",A7value/A7remlife)) -> 0 | L154: =IF(L$3>A7remlife,A7value-SUM($F154:K154),IF(A7remlife="N/A","n/a",A7value/A7remlife)) -> 0 | M154: =IF(M$3>A7remlife,A7value-SUM($F154:L154),IF(A7remlife="N/A","n/a",A7value/A7remlife)) -> 0 | N154: =IF(N$3>A7remlife,A7value-SUM($F154:M154),IF(A7remlife="N/A","n/a",A7value/A7remlife)) -> 0 | O154: =IF(O$3>A7remlife,A7value-SUM($F154:N154),IF(A7remlife="N/A","n/a",A7value/A7remlife)) -> 0 | P154: =IF(P$3>A7remlife,A7value-SUM($F154:O154),IF(A7remlife="N/A","n/a",A7value/A7remlife)) -> 0
D155: Capex | E155: 0
E156: 1 | H156: =IF(A7stdlife="n/a","n/a",IF(H$3>(A7stdlife+$E156),(Input!$G$149*(1+rvanilla01)^0.5)-SUM($G156:G156),(Input!$G$149*(1+rvanilla01)^0.5)/A7stdlife)) -> 0.8211829659 | I156: =IF(A7stdlife="n/a","n/a",IF(I$3>(A7stdlife+$E156),(Input!$G$149*(1+rvanilla01)^0.5)-SUM($G156:H156),(Input!$G$149*(1+rvanilla01)^0.5)/A7stdlife)) -> 0.8211829659 | J156: =IF(A7stdlife="n/a","n/a",IF(J$3>(A7stdlife+$E156),(Input!$G$149*(1+rvanilla01)^0.5)-SUM($G156:I156),(Input!$G$149*(1+rvanilla01)^0.5)/A7stdlife)) -> 0.8211829659 | K156: =IF(A7stdlife="n/a","n/a",IF(K$3>(A7stdlife+$E156),(Input!$G$149*(1+rvanilla01)^0.5)-SUM($G156:J156),(Input!$G$149*(1+rvanilla01)^0.5)/A7stdlife)) -> 0.8211829659 | L156: =IF(A7stdlife="n/a","n/a",IF(L$3>(A7stdlife+$E156),(Input!$G$149*(1+rvanilla01)^0.5)-SUM($G156:K156),(Input!$G$149*(1+rvanilla01)^0.5)/A7stdlife)) -> 0.8211829659 | M156: =IF(A7stdlife="n/a","n/a",IF(M$3>(A7stdlife+$E156),(Input!$G$149*(1+rvanilla01)^0.5)-SUM($G156:L156),(Input!$G$149*(1+rvanilla01)^0.5)/A7stdlife)) -> 0 | N156: =IF(A7stdlife="n/a","n/a",IF(N$3>(A7stdlife+$E156),(Input!$G$149*(1+rvanilla01)^0.5)-SUM($G156:M156),(Input!$G$149*(1+rvanilla01)^0.5)/A7stdlife)) -> 0 | O156: =IF(A7stdlife="n/a","n/a",IF(O$3>(A7stdlife+$E156),(Input!$G$149*(1+rvanilla01)^0.5)-SUM($G156:N156),(Input!$G$149*(1+rvanilla01)^0.5)/A7stdlife)) -> 0 | P156: =IF(A7stdlife="n/a","n/a",IF(P$3>(A7stdlife+$E156),(Input!$G$149*(1+rvanilla01)^0.5)-SUM($G156:O156),(Input!$G$149*(1+rvanilla01)^0.5)/A7stdlife)) -> 0
E157: 2 | I157: =IF(A7stdlife="n/a","n/a",IF(I$3>(A7stdlife+$E157),(Input!$H$149*(1+rvanilla02)^0.5)-SUM($H157:H157),(Input!$H$149*(1+rvanilla02)^0.5)/A7stdlife)) -> 0.2052957415 | J157: =IF(A7stdlife="n/a","n/a",IF(J$3>(A7stdlife+$E157),(Input!$H$149*(1+rvanilla02)^0.5)-SUM($H157:I157),(Input!$H$149*(1+rvanilla02)^0.5)/A7stdlife)) -> 0.2052957415 | K157: =IF(A7stdlife="n/a","n/a",IF(K$3>(A7stdlife+$E157),(Input!$H$149*(1+rvanilla02)^0.5)-SUM($H157:J157),(Input!$H$149*(1+rvanilla02)^0.5)/A7stdlife)) -> 0.2052957415 | L157: =IF(A7stdlife="n/a","n/a",IF(L$3>(A7stdlife+$E157),(Input!$H$149*(1+rvanilla02)^0.5)-SUM($H157:K157),(Input!$H$149*(1+rvanilla02)^0.5)/A7stdlife)) -> 0.2052957415 | M157: =IF(A7stdlife="n/a","n/a",IF(M$3>(A7stdlife+$E157),(Input!$H$149*(1+rvanilla02)^0.5)-SUM($H157:L157),(Input!$H$149*(1+rvanilla02)^0.5)/A7stdlife)) -> 0.2052957415 | N157: =IF(A7stdlife="n/a","n/a",IF(N$3>(A7stdlife+$E157),(Input!$H$149*(1+rvanilla02)^0.5)-SUM($H157:M157),(Input!$H$149*(1+rvanilla02)^0.5)/A7stdlife)) -> 0 | O157: =IF(A7stdlife="n/a","n/a",IF(O$3>(A7stdlife+$E157),(Input!$H$149*(1+rvanilla02)^0.5)-SUM($H157:N157),(Input!$H$149*(1+rvanilla02)^0.5)/A7stdlife)) -> 0 | P157: =IF(A7stdlife="n/a","n/a",IF(P$3>(A7stdlife+$E157),(Input!$H$149*(1+rvanilla02)^0.5)-SUM($H157:O157),(Input!$H$149*(1+rvanilla02)^0.5)/A7stdlife)) -> 0
E158: 3 | J158: =IF(A7stdlife="n/a","n/a",IF(J$3>(A7stdlife+$E158),(Input!$I$149*(1+rvanilla03)^0.5)-SUM($I158:I158),(Input!$I$149*(1+rvanilla03)^0.5)/A7stdlife)) -> 0.2052957415 | K158: =IF(A7stdlife="n/a","n/a",IF(K$3>(A7stdlife+$E158),(Input!$I$149*(1+rvanilla03)^0.5)-SUM($I158:J158),(Input!$I$149*(1+rvanilla03)^0.5)/A7stdlife)) -> 0.2052957415 | L158: =IF(A7stdlife="n/a","n/a",IF(L$3>(A7stdlife+$E158),(Input!$I$149*(1+rvanilla03)^0.5)-SUM($I158:K158),(Input!$I$149*(1+rvanilla03)^0.5)/A7stdlife)) -> 0.2052957415 | M158: =IF(A7stdlife="n/a","n/a",IF(M$3>(A7stdlife+$E158),(Input!$I$149*(1+rvanilla03)^0.5)-SUM($I158:L158),(Input!$I$149*(1+rvanilla03)^0.5)/A7stdlife)) -> 0.2052957415 | N158: =IF(A7stdlife="n/a","n/a",IF(N$3>(A7stdlife+$E158),(Input!$I$149*(1+rvanilla03)^0.5)-SUM($I158:M158),(Input!$I$149*(1+rvanilla03)^0.5)/A7stdlife)) -> 0.2052957415 | O158: =IF(A7stdlife="n/a","n/a",IF(O$3>(A7stdlife+$E158),(Input!$I$149*(1+rvanilla03)^0.5)-SUM($I158:N158),(Input!$I$149*(1+rvanilla03)^0.5)/A7stdlife)) -> 0 | P158: =IF(A7stdlife="n/a","n/a",IF(P$3>(A7stdlife+$E158),(Input!$I$149*(1+rvanilla03)^0.5)-SUM($I158:O158),(Input!$I$149*(1+rvanilla03)^0.5)/A7stdlife)) -> 0
E159: 4 | K159: =IF(A7stdlife="n/a","n/a",IF(K$3>(A7stdlife+$E159),(Input!$J$149*(1+rvanilla04)^0.5)-SUM($J159:J159),(Input!$J$149*(1+rvanilla04)^0.5)/A7stdlife)) -> 0.2052957415 | L159: =IF(A7stdlife="n/a","n/a",IF(L$3>(A7stdlife+$E159),(Input!$J$149*(1+rvanilla04)^0.5)-SUM($J159:K159),(Input!$J$149*(1+rvanilla04)^0.5)/A7stdlife)) -> 0.2052957415 | M159: =IF(A7stdlife="n/a","n/a",IF(M$3>(A7stdlife+$E159),(Input!$J$149*(1+rvanilla04)^0.5)-SUM($J159:L159),(Input!$J$149*(1+rvanilla04)^0.5)/A7stdlife)) -> 0.2052957415 | N159: =IF(A7stdlife="n/a","n/a",IF(N$3>(A7stdlife+$E159),(Input!$J$149*(1+rvanilla04)^0.5)-SUM($J159:M159),(Input!$J$149*(1+rvanilla04)^0.5)/A7stdlife)) -> 0.2052957415 | O159: =IF(A7stdlife="n/a","n/a",IF(O$3>(A7stdlife+$E159),(Input!$J$149*(1+rvanilla04)^0.5)-SUM($J159:N159),(Input!$J$149*(1+rvanilla04)^0.5)/A7stdlife)) -> 0.2052957415 | P159: =IF(A7stdlife="n/a","n/a",IF(P$3>(A7stdlife+$E159),(Input!$J$149*(1+rvanilla04)^0.5)-SUM($J159:O159),(Input!$J$149*(1+rvanilla04)^0.5)/A7stdlife)) -> 0
E160: 5 | L160: =IF(A7stdlife="n/a","n/a",IF(L$3>(A7stdlife+$E160),(Input!$K$149*(1+rvanilla05)^0.5)-SUM($K160:K160),(Input!$K$149*(1+rvanilla05)^0.5)/A7stdlife)) -> 0.2052957415 | M160: =IF(A7stdlife="n/a","n/a",IF(M$3>(A7stdlife+$E160),(Input!$K$149*(1+rvanilla05)^0.5)-SUM($K160:L160),(Input!$K$149*(1+rvanilla05)^0.5)/A7stdlife)) -> 0.2052957415 | N160: =IF(A7stdlife="n/a","n/a",IF(N$3>(A7stdlife+$E160),(Input!$K$149*(1+rvanilla05)^0.5)-SUM($K160:M160),(Input!$K$149*(1+rvanilla05)^0.5)/A7stdlife)) -> 0.2052957415 | O160: =IF(A7stdlife="n/a","n/a",IF(O$3>(A7stdlife+$E160),(Input!$K$149*(1+rvanilla05)^0.5)-SUM($K160:N160),(Input!$K$149*(1+rvanilla05)^0.5)/A7stdlife)) -> 0.2052957415 | P160: =IF(A7stdlife="n/a","n/a",IF(P$3>(A7stdlife+$E160),(Input!$K$149*(1+rvanilla05)^0.5)-SUM($K160:O160),(Input!$K$149*(1+rvanilla05)^0.5)/A7stdlife)) -> 0.2052957415
E161: 6 | M161: =IF(A7stdlife="n/a","n/a",IF(M$3>(A7stdlife+$E161),(Input!$L$149*(1+rvanilla06)^0.5)-SUM($L161:L161),(Input!$L$149*(1+rvanilla06)^0.5)/A7stdlife)) -> 0 | N161: =IF(A7stdlife="n/a","n/a",IF(N$3>(A7stdlife+$E161),(Input!$L$149*(1+rvanilla06)^0.5)-SUM($L161:M161),(Input!$L$149*(1+rvanilla06)^0.5)/A7stdlife)) -> 0 | O161: =IF(A7stdlife="n/a","n/a",IF(O$3>(A7stdlife+$E161),(Input!$L$149*(1+rvanilla06)^0.5)-SUM($L161:N161),(Input!$L$149*(1+rvanilla06)^0.5)/A7stdlife)) -> 0 | P161: =IF(A7stdlife="n/a","n/a",IF(P$3>(A7stdlife+$E161),(Input!$L$149*(1+rvanilla06)^0.5)-SUM($L161:O161),(Input!$L$149*(1+rvanilla06)^0.5)/A7stdlife)) -> 0
E162: 7 | N162: =IF(A7stdlife="n/a","n/a",IF(N$3>(A7stdlife+$E162),(Input!$M$149*(1+rvanilla07)^0.5)-SUM($M162:M162),(Input!$M$149*(1+rvanilla07)^0.5)/A7stdlife)) -> 0 | O162: =IF(A7stdlife="n/a","n/a",IF(O$3>(A7stdlife+$E162),(Input!$M$149*(1+rvanilla07)^0.5)-SUM($M162:N162),(Input!$M$149*(1+rvanilla07)^0.5)/A7stdlife)) -> 0 | P162: =IF(A7stdlife="n/a","n/a",IF(P$3>(A7stdlife+$E162),(Input!$M$149*(1+rvanilla07)^0.5)-SUM($M162:O162),(Input!$M$149*(1+rvanilla07)^0.5)/A7stdlife)) -> 0
E163: 8 | O163: =IF(A7stdlife="n/a","n/a",IF(O$3>(A7stdlife+$E163),(Input!$N$149*(1+rvanilla08)^0.5)-SUM($N163:N163),(Input!$N$149*(1+rvanilla08)^0.5)/A7stdlife)) -> 0 | P163: =IF(A7stdlife="n/a","n/a",IF(P$3>(A7stdlife+$E163),(Input!$N$149*(1+rvanilla08)^0.5)-SUM($N163:O163),(Input!$N$149*(1+rvanilla08)^0.5)/A7stdlife)) -> 0
E164: 9 | P164: =IF(A7stdlife="n/a","n/a",IF(P$3>(A7stdlife+$E164),(Input!$O$149*(1+rvanilla09)^0.5)-SUM($O164:O164),(Input!$O$149*(1+rvanilla09)^0.5)/A7stdlife)) -> 0
E165: 10
C166: =Asset7 -> vehicles | G166: =SUM(G154:G165) -> 16.66666667 | H166: 17.48784963 | I166: 17.69314537 | J166: 1.231774449 | K166: 1.43707019 | L166: 1.642365932 | M166: 0.8211829659 | N166: 0.6158872244 | O166: 0.4105914829 | P166: 0.2052957415
B167: =C179 -> land and easements | D167: Initial Asset Base | G167: =IF(G$3>A8remlife,A8value-SUM($F167:F167),IF(A8remlife="N/A","n/a",A8value/A8remlife)) -> n/a | H167: =IF(H$3>A8remlife,A8value-SUM($F167:G167),IF(A8remlife="N/A","n/a",A8value/A8remlife)) -> n/a | I167: =IF(I$3>A8remlife,A8value-SUM($F167:H167),IF(A8remlife="N/A","n/a",A8value/A8remlife)) -> n/a | J167: =IF(J$3>A8remlife,A8value-SUM($F167:I167),IF(A8remlife="N/A","n/a",A8value/A8remlife)) -> n/a | K167: =IF(K$3>A8remlife,A8value-SUM($F167:J167),IF(A8remlife="N/A","n/a",A8value/A8remlife)) -> n/a | L167: =IF(L$3>A8remlife,A8value-SUM($F167:K167),IF(A8remlife="N/A","n/a",A8value/A8remlife)) -> n/a | M167: =IF(M$3>A8remlife,A8value-SUM($F167:L167),IF(A8remlife="N/A","n/a",A8value/A8remlife)) -> n/a | N167: =IF(N$3>A8remlife,A8value-SUM($F167:M167),IF(A8remlife="N/A","n/a",A8value/A8remlife)) -> n/a | O167: =IF(O$3>A8remlife,A8value-SUM($F167:N167),IF(A8remlife="N/A","n/a",A8value/A8remlife)) -> n/a | P167: =IF(P$3>A8remlife,A8value-SUM($F167:O167),IF(A8remlife="N/A","n/a",A8value/A8remlife)) -> n/a
D168: Capex | E168: 0
E169: 1 | H169: =IF(A8stdlife="n/a","n/a",IF(H$3>(A8stdlife+$E169),(Input!$G$150*(1+rvanilla01)^0.5)-SUM($G169:G169),(Input!$G$150*(1+rvanilla01)^0.5)/A8stdlife)) -> n/a | I169: =IF(A8stdlife="n/a","n/a",IF(I$3>(A8stdlife+$E169),(Input!$G$150*(1+rvanilla01)^0.5)-SUM($G169:H169),(Input!$G$150*(1+rvanilla01)^0.5)/A8stdlife)) -> n/a | J169: =IF(A8stdlife="n/a","n/a",IF(J$3>(A8stdlife+$E169),(Input!$G$150*(1+rvanilla01)^0.5)-SUM($G169:I169),(Input!$G$150*(1+rvanilla01)^0.5)/A8stdlife)) -> n/a | K169: =IF(A8stdlife="n/a","n/a",IF(K$3>(A8stdlife+$E169),(Input!$G$150*(1+rvanilla01)^0.5)-SUM($G169:J169),(Input!$G$150*(1+rvanilla01)^0.5)/A8stdlife)) -> n/a | L169: =IF(A8stdlife="n/a","n/a",IF(L$3>(A8stdlife+$E169),(Input!$G$150*(1+rvanilla01)^0.5)-SUM($G169:K169),(Input!$G$150*(1+rvanilla01)^0.5)/A8stdlife)) -> n/a | M169: =IF(A8stdlife="n/a","n/a",IF(M$3>(A8stdlife+$E169),(Input!$G$150*(1+rvanilla01)^0.5)-SUM($G169:L169),(Input!$G$150*(1+rvanilla01)^0.5)/A8stdlife)) -> n/a | N169: =IF(A8stdlife="n/a","n/a",IF(N$3>(A8stdlife+$E169),(Input!$G$150*(1+rvanilla01)^0.5)-SUM($G169:M169),(Input!$G$150*(1+rvanilla01)^0.5)/A8stdlife)) -> n/a | O169: =IF(A8stdlife="n/a","n/a",IF(O$3>(A8stdlife+$E169),(Input!$G$150*(1+rvanilla01)^0.5)-SUM($G169:N169),(Input!$G$150*(1+rvanilla01)^0.5)/A8stdlife)) -> n/a | P169: =IF(A8stdlife="n/a","n/a",IF(P$3>(A8stdlife+$E169),(Input!$G$150*(1+rvanilla01)^0.5)-SUM($G169:O169),(Input!$G$150*(1+rvanilla01)^0.5)/A8stdlife)) -> n/a
E170: 2 | I170: =IF(A8stdlife="n/a","n/a",IF(I$3>(A8stdlife+$E170),(Input!$H$150*(1+rvanilla02)^0.5)-SUM($H170:H170),(Input!$H$150*(1+rvanilla02)^0.5)/A8stdlife)) -> n/a | J170: =IF(A8stdlife="n/a","n/a",IF(J$3>(A8stdlife+$E170),(Input!$H$150*(1+rvanilla02)^0.5)-SUM($H170:I170),(Input!$H$150*(1+rvanilla02)^0.5)/A8stdlife)) -> n/a | K170: =IF(A8stdlife="n/a","n/a",IF(K$3>(A8stdlife+$E170),(Input!$H$150*(1+rvanilla02)^0.5)-SUM($H170:J170),(Input!$H$150*(1+rvanilla02)^0.5)/A8stdlife)) -> n/a | L170: =IF(A8stdlife="n/a","n/a",IF(L$3>(A8stdlife+$E170),(Input!$H$150*(1+rvanilla02)^0.5)-SUM($H170:K170),(Input!$H$150*(1+rvanilla02)^0.5)/A8stdlife)) -> n/a | M170: =IF(A8stdlife="n/a","n/a",IF(M$3>(A8stdlife+$E170),(Input!$H$150*(1+rvanilla02)^0.5)-SUM($H170:L170),(Input!$H$150*(1+rvanilla02)^0.5)/A8stdlife)) -> n/a | N170: =IF(A8stdlife="n/a","n/a",IF(N$3>(A8stdlife+$E170),(Input!$H$150*(1+rvanilla02)^0.5)-SUM($H170:M170),(Input!$H$150*(1+rvanilla02)^0.5)/A8stdlife)) -> n/a | O170: =IF(A8stdlife="n/a","n/a",IF(O$3>(A8stdlife+$E170),(Input!$H$150*(1+rvanilla02)^0.5)-SUM($H170:N170),(Input!$H$150*(1+rvanilla02)^0.5)/A8stdlife)) -> n/a | P170: =IF(A8stdlife="n/a","n/a",IF(P$3>(A8stdlife+$E170),(Input!$H$150*(1+rvanilla02)^0.5)-SUM($H170:O170),(Input!$H$150*(1+rvanilla02)^0.5)/A8stdlife)) -> n/a
E171: 3 | J171: =IF(A8stdlife="n/a","n/a",IF(J$3>(A8stdlife+$E171),(Input!$I$150*(1+rvanilla03)^0.5)-SUM($I171:I171),(Input!$I$150*(1+rvanilla03)^0.5)/A8stdlife)) -> n/a | K171: =IF(A8stdlife="n/a","n/a",IF(K$3>(A8stdlife+$E171),(Input!$I$150*(1+rvanilla03)^0.5)-SUM($I171:J171),(Input!$I$150*(1+rvanilla03)^0.5)/A8stdlife)) -> n/a | L171: =IF(A8stdlife="n/a","n/a",IF(L$3>(A8stdlife+$E171),(Input!$I$150*(1+rvanilla03)^0.5)-SUM($I171:K171),(Input!$I$150*(1+rvanilla03)^0.5)/A8stdlife)) -> n/a | M171: =IF(A8stdlife="n/a","n/a",IF(M$3>(A8stdlife+$E171),(Input!$I$150*(1+rvanilla03)^0.5)-SUM($I171:L171),(Input!$I$150*(1+rvanilla03)^0.5)/A8stdlife)) -> n/a | N171: =IF(A8stdlife="n/a","n/a",IF(N$3>(A8stdlife+$E171),(Input!$I$150*(1+rvanilla03)^0.5)-SUM($I171:M171),(Input!$I$150*(1+rvanilla03)^0.5)/A8stdlife)) -> n/a | O171: =IF(A8stdlife="n/a","n/a",IF(O$3>(A8stdlife+$E171),(Input!$I$150*(1+rvanilla03)^0.5)-SUM($I171:N171),(Input!$I$150*(1+rvanilla03)^0.5)/A8stdlife)) -> n/a | P171: =IF(A8stdlife="n/a","n/a",IF(P$3>(A8stdlife+$E171),(Input!$I$150*(1+rvanilla03)^0.5)-SUM($I171:O171),(Input!$I$150*(1+rvanilla03)^0.5)/A8stdlife)) -> n/a
E172: 4 | K172: =IF(A8stdlife="n/a","n/a",IF(K$3>(A8stdlife+$E172),(Input!$J$150*(1+rvanilla04)^0.5)-SUM($J172:J172),(Input!$J$150*(1+rvanilla04)^0.5)/A8stdlife)) -> n/a | L172: =IF(A8stdlife="n/a","n/a",IF(L$3>(A8stdlife+$E172),(Input!$J$150*(1+rvanilla04)^0.5)-SUM($J172:K172),(Input!$J$150*(1+rvanilla04)^0.5)/A8stdlife)) -> n/a | M172: =IF(A8stdlife="n/a","n/a",IF(M$3>(A8stdlife+$E172),(Input!$J$150*(1+rvanilla04)^0.5)-SUM($J172:L172),(Input!$J$150*(1+rvanilla04)^0.5)/A8stdlife)) -> n/a | N172: =IF(A8stdlife="n/a","n/a",IF(N$3>(A8stdlife+$E172),(Input!$J$150*(1+rvanilla04)^0.5)-SUM($J172:M172),(Input!$J$150*(1+rvanilla04)^0.5)/A8stdlife)) -> n/a | O172: =IF(A8stdlife="n/a","n/a",IF(O$3>(A8stdlife+$E172),(Input!$J$150*(1+rvanilla04)^0.5)-SUM($J172:N172),(Input!$J$150*(1+rvanilla04)^0.5)/A8stdlife)) -> n/a | P172: =IF(A8stdlife="n/a","n/a",IF(P$3>(A8stdlife+$E172),(Input!$J$150*(1+rvanilla04)^0.5)-SUM($J172:O172),(Input!$J$150*(1+rvanilla04)^0.5)/A8stdlife)) -> n/a
E173: 5 | L173: =IF(A8stdlife="n/a","n/a",IF(L$3>(A8stdlife+$E173),(Input!$K$150*(1+rvanilla05)^0.5)-SUM($K173:K173),(Input!$K$150*(1+rvanilla05)^0.5)/A8stdlife)) -> n/a | M173: =IF(A8stdlife="n/a","n/a",IF(M$3>(A8stdlife+$E173),(Input!$K$150*(1+rvanilla05)^0.5)-SUM($K173:L173),(Input!$K$150*(1+rvanilla05)^0.5)/A8stdlife)) -> n/a | N173: =IF(A8stdlife="n/a","n/a",IF(N$3>(A8stdlife+$E173),(Input!$K$150*(1+rvanilla05)^0.5)-SUM($K173:M173),(Input!$K$150*(1+rvanilla05)^0.5)/A8stdlife)) -> n/a | O173: =IF(A8stdlife="n/a","n/a",IF(O$3>(A8stdlife+$E173),(Input!$K$150*(1+rvanilla05)^0.5)-SUM($K173:N173),(Input!$K$150*(1+rvanilla05)^0.5)/A8stdlife)) -> n/a | P173: =IF(A8stdlife="n/a","n/a",IF(P$3>(A8stdlife+$E173),(Input!$K$150*(1+rvanilla05)^0.5)-SUM($K173:O173),(Input!$K$150*(1+rvanilla05)^0.5)/A8stdlife)) -> n/a
E174: 6 | M174: =IF(A8stdlife="n/a","n/a",IF(M$3>(A8stdlife+$E174),(Input!$L$150*(1+rvanilla06)^0.5)-SUM($L174:L174),(Input!$L$150*(1+rvanilla06)^0.5)/A8stdlife)) -> n/a | N174: =IF(A8stdlife="n/a","n/a",IF(N$3>(A8stdlife+$E174),(Input!$L$150*(1+rvanilla06)^0.5)-SUM($L174:M174),(Input!$L$150*(1+rvanilla06)^0.5)/A8stdlife)) -> n/a | O174: =IF(A8stdlife="n/a","n/a",IF(O$3>(A8stdlife+$E174),(Input!$L$150*(1+rvanilla06)^0.5)-SUM($L174:N174),(Input!$L$150*(1+rvanilla06)^0.5)/A8stdlife)) -> n/a | P174: =IF(A8stdlife="n/a","n/a",IF(P$3>(A8stdlife+$E174),(Input!$L$150*(1+rvanilla06)^0.5)-SUM($L174:O174),(Input!$L$150*(1+rvanilla06)^0.5)/A8stdlife)) -> n/a
E175: 7 | N175: =IF(A8stdlife="n/a","n/a",IF(N$3>(A8stdlife+$E175),(Input!$M$150*(1+rvanilla07)^0.5)-SUM($M175:M175),(Input!$M$150*(1+rvanilla07)^0.5)/A8stdlife)) -> n/a | O175: =IF(A8stdlife="n/a","n/a",IF(O$3>(A8stdlife+$E175),(Input!$M$150*(1+rvanilla07)^0.5)-SUM($M175:N175),(Input!$M$150*(1+rvanilla07)^0.5)/A8stdlife)) -> n/a | P175: =IF(A8stdlife="n/a","n/a",IF(P$3>(A8stdlife+$E175),(Input!$M$150*(1+rvanilla07)^0.5)-SUM($M175:O175),(Input!$M$150*(1+rvanilla07)^0.5)/A8stdlife)) -> n/a
E176: 8 | O176: =IF(A8stdlife="n/a","n/a",IF(O$3>(A8stdlife+$E176),(Input!$N$150*(1+rvanilla08)^0.5)-SUM($N176:N176),(Input!$N$150*(1+rvanilla08)^0.5)/A8stdlife)) -> n/a | P176: =IF(A8stdlife="n/a","n/a",IF(P$3>(A8stdlife+$E176),(Input!$N$150*(1+rvanilla08)^0.5)-SUM($N176:O176),(Input!$N$150*(1+rvanilla08)^0.5)/A8stdlife)) -> n/a
E177: 9 | P177: =IF(A8stdlife="n/a","n/a",IF(P$3>(A8stdlife+$E177),(Input!$O$150*(1+rvanilla09)^0.5)-SUM($O177:O177),(Input!$O$150*(1+rvanilla09)^0.5)/A8stdlife)) -> n/a
E178: 10
C179: =Asset8 -> land and easements | G179: =SUM(G167:G178) -> 0 | H179: 0 | I179: 0 | J179: 0 | K179: 0 | L179: 0 | M179: 0 | N179: 0 | O179: 0 | P179: 0
B180: =C192 -> 0 | D180: Initial Asset Base | G180: =IF(G$3>A9remlife,A9value-SUM($F180:F180),IF(A9remlife="N/A","n/a",A9value/A9remlife)) -> 0 | H180: =IF(H$3>A9remlife,A9value-SUM($F180:G180),IF(A9remlife="N/A","n/a",A9value/A9remlife)) -> 0 | I180: =IF(I$3>A9remlife,A9value-SUM($F180:H180),IF(A9remlife="N/A","n/a",A9value/A9remlife)) -> 0 | J180: =IF(J$3>A9remlife,A9value-SUM($F180:I180),IF(A9remlife="N/A","n/a",A9value/A9remlife)) -> 0 | K180: =IF(K$3>A9remlife,A9value-SUM($F180:J180),IF(A9remlife="N/A","n/a",A9value/A9remlife)) -> 0 | L180: =IF(L$3>A9remlife,A9value-SUM($F180:K180),IF(A9remlife="N/A","n/a",A9value/A9remlife)) -> 0 | M180: =IF(M$3>A9remlife,A9value-SUM($F180:L180),IF(A9remlife="N/A","n/a",A9value/A9remlife)) -> 0 | N180: =IF(N$3>A9remlife,A9value-SUM($F180:M180),IF(A9remlife="N/A","n/a",A9value/A9remlife)) -> 0 | O180: =IF(O$3>A9remlife,A9value-SUM($F180:N180),IF(A9remlife="N/A","n/a",A9value/A9remlife)) -> 0 | P180: =IF(P$3>A9remlife,A9value-SUM($F180:O180),IF(A9remlife="N/A","n/a",A9value/A9remlife)) -> 0
D181: Capex | E181: 0
E182: 1 | H182: =IF(A9stdlife="n/a","n/a",IF(H$3>(A9stdlife+$E182),(Input!$G$151*(1+rvanilla01)^0.5)-SUM($G182:G182),(Input!$G$151*(1+rvanilla01)^0.5)/A9stdlife)) -> 0 | I182: =IF(A9stdlife="n/a","n/a",IF(I$3>(A9stdlife+$E182),(Input!$G$151*(1+rvanilla01)^0.5)-SUM($G182:H182),(Input!$G$151*(1+rvanilla01)^0.5)/A9stdlife)) -> 0 | J182: =IF(A9stdlife="n/a","n/a",IF(J$3>(A9stdlife+$E182),(Input!$G$151*(1+rvanilla01)^0.5)-SUM($G182:I182),(Input!$G$151*(1+rvanilla01)^0.5)/A9stdlife)) -> 0 | K182: =IF(A9stdlife="n/a","n/a",IF(K$3>(A9stdlife+$E182),(Input!$G$151*(1+rvanilla01)^0.5)-SUM($G182:J182),(Input!$G$151*(1+rvanilla01)^0.5)/A9stdlife)) -> 0 | L182: =IF(A9stdlife="n/a","n/a",IF(L$3>(A9stdlife+$E182),(Input!$G$151*(1+rvanilla01)^0.5)-SUM($G182:K182),(Input!$G$151*(1+rvanilla01)^0.5)/A9stdlife)) -> 0 | M182: =IF(A9stdlife="n/a","n/a",IF(M$3>(A9stdlife+$E182),(Input!$G$151*(1+rvanilla01)^0.5)-SUM($G182:L182),(Input!$G$151*(1+rvanilla01)^0.5)/A9stdlife)) -> 0 | N182: =IF(A9stdlife="n/a","n/a",IF(N$3>(A9stdlife+$E182),(Input!$G$151*(1+rvanilla01)^0.5)-SUM($G182:M182),(Input!$G$151*(1+rvanilla01)^0.5)/A9stdlife)) -> 0 | O182: =IF(A9stdlife="n/a","n/a",IF(O$3>(A9stdlife+$E182),(Input!$G$151*(1+rvanilla01)^0.5)-SUM($G182:N182),(Input!$G$151*(1+rvanilla01)^0.5)/A9stdlife)) -> 0 | P182: =IF(A9stdlife="n/a","n/a",IF(P$3>(A9stdlife+$E182),(Input!$G$151*(1+rvanilla01)^0.5)-SUM($G182:O182),(Input!$G$151*(1+rvanilla01)^0.5)/A9stdlife)) -> 0
E183: 2 | I183: =IF(A9stdlife="n/a","n/a",IF(I$3>(A9stdlife+$E183),(Input!$H$151*(1+rvanilla02)^0.5)-SUM($H183:H183),(Input!$H$151*(1+rvanilla02)^0.5)/A9stdlife)) -> 0 | J183: =IF(A9stdlife="n/a","n/a",IF(J$3>(A9stdlife+$E183),(Input!$H$151*(1+rvanilla02)^0.5)-SUM($H183:I183),(Input!$H$151*(1+rvanilla02)^0.5)/A9stdlife)) -> 0 | K183: =IF(A9stdlife="n/a","n/a",IF(K$3>(A9stdlife+$E183),(Input!$H$151*(1+rvanilla02)^0.5)-SUM($H183:J183),(Input!$H$151*(1+rvanilla02)^0.5)/A9stdlife)) -> 0 | L183: =IF(A9stdlife="n/a","n/a",IF(L$3>(A9stdlife+$E183),(Input!$H$151*(1+rvanilla02)^0.5)-SUM($H183:K183),(Input!$H$151*(1+rvanilla02)^0.5)/A9stdlife)) -> 0 | M183: =IF(A9stdlife="n/a","n/a",IF(M$3>(A9stdlife+$E183),(Input!$H$151*(1+rvanilla02)^0.5)-SUM($H183:L183),(Input!$H$151*(1+rvanilla02)^0.5)/A9stdlife)) -> 0 | N183: =IF(A9stdlife="n/a","n/a",IF(N$3>(A9stdlife+$E183),(Input!$H$151*(1+rvanilla02)^0.5)-SUM($H183:M183),(Input!$H$151*(1+rvanilla02)^0.5)/A9stdlife)) -> 0 | O183: =IF(A9stdlife="n/a","n/a",IF(O$3>(A9stdlife+$E183),(Input!$H$151*(1+rvanilla02)^0.5)-SUM($H183:N183),(Input!$H$151*(1+rvanilla02)^0.5)/A9stdlife)) -> 0 | P183: =IF(A9stdlife="n/a","n/a",IF(P$3>(A9stdlife+$E183),(Input!$H$151*(1+rvanilla02)^0.5)-SUM($H183:O183),(Input!$H$151*(1+rvanilla02)^0.5)/A9stdlife)) -> 0
E184: 3 | J184: =IF(A9stdlife="n/a","n/a",IF(J$3>(A9stdlife+$E184),(Input!$I$151*(1+rvanilla03)^0.5)-SUM($I184:I184),(Input!$I$151*(1+rvanilla03)^0.5)/A9stdlife)) -> 0 | K184: =IF(A9stdlife="n/a","n/a",IF(K$3>(A9stdlife+$E184),(Input!$I$151*(1+rvanilla03)^0.5)-SUM($I184:J184),(Input!$I$151*(1+rvanilla03)^0.5)/A9stdlife)) -> 0 | L184: =IF(A9stdlife="n/a","n/a",IF(L$3>(A9stdlife+$E184),(Input!$I$151*(1+rvanilla03)^0.5)-SUM($I184:K184),(Input!$I$151*(1+rvanilla03)^0.5)/A9stdlife)) -> 0 | M184: =IF(A9stdlife="n/a","n/a",IF(M$3>(A9stdlife+$E184),(Input!$I$151*(1+rvanilla03)^0.5)-SUM($I184:L184),(Input!$I$151*(1+rvanilla03)^0.5)/A9stdlife)) -> 0 | N184: =IF(A9stdlife="n/a","n/a",IF(N$3>(A9stdlife+$E184),(Input!$I$151*(1+rvanilla03)^0.5)-SUM($I184:M184),(Input!$I$151*(1+rvanilla03)^0.5)/A9stdlife)) -> 0 | O184: =IF(A9stdlife="n/a","n/a",IF(O$3>(A9stdlife+$E184),(Input!$I$151*(1+rvanilla03)^0.5)-SUM($I184:N184),(Input!$I$151*(1+rvanilla03)^0.5)/A9stdlife)) -> 0 | P184: =IF(A9stdlife="n/a","n/a",IF(P$3>(A9stdlife+$E184),(Input!$I$151*(1+rvanilla03)^0.5)-SUM($I184:O184),(Input!$I$151*(1+rvanilla03)^0.5)/A9stdlife)) -> 0
E185: 4 | K185: =IF(A9stdlife="n/a","n/a",IF(K$3>(A9stdlife+$E185),(Input!$J$151*(1+rvanilla04)^0.5)-SUM($J185:J185),(Input!$J$151*(1+rvanilla04)^0.5)/A9stdlife)) -> 0 | L185: =IF(A9stdlife="n/a","n/a",IF(L$3>(A9stdlife+$E185),(Input!$J$151*(1+rvanilla04)^0.5)-SUM($J185:K185),(Input!$J$151*(1+rvanilla04)^0.5)/A9stdlife)) -> 0 | M185: =IF(A9stdlife="n/a","n/a",IF(M$3>(A9stdlife+$E185),(Input!$J$151*(1+rvanilla04)^0.5)-SUM($J185:L185),(Input!$J$151*(1+rvanilla04)^0.5)/A9stdlife)) -> 0 | N185: =IF(A9stdlife="n/a","n/a",IF(N$3>(A9stdlife+$E185),(Input!$J$151*(1+rvanilla04)^0.5)-SUM($J185:M185),(Input!$J$151*(1+rvanilla04)^0.5)/A9stdlife)) -> 0 | O185: =IF(A9stdlife="n/a","n/a",IF(O$3>(A9stdlife+$E185),(Input!$J$151*(1+rvanilla04)^0.5)-SUM($J185:N185),(Input!$J$151*(1+rvanilla04)^0.5)/A9stdlife)) -> 0 | P185: =IF(A9stdlife="n/a","n/a",IF(P$3>(A9stdlife+$E185),(Input!$J$151*(1+rvanilla04)^0.5)-SUM($J185:O185),(Input!$J$151*(1+rvanilla04)^0.5)/A9stdlife)) -> 0
E186: 5 | L186: =IF(A9stdlife="n/a","n/a",IF(L$3>(A9stdlife+$E186),(Input!$K$151*(1+rvanilla05)^0.5)-SUM($K186:K186),(Input!$K$151*(1+rvanilla05)^0.5)/A9stdlife)) -> 0 | M186: =IF(A9stdlife="n/a","n/a",IF(M$3>(A9stdlife+$E186),(Input!$K$151*(1+rvanilla05)^0.5)-SUM($K186:L186),(Input!$K$151*(1+rvanilla05)^0.5)/A9stdlife)) -> 0 | N186: =IF(A9stdlife="n/a","n/a",IF(N$3>(A9stdlife+$E186),(Input!$K$151*(1+rvanilla05)^0.5)-SUM($K186:M186),(Input!$K$151*(1+rvanilla05)^0.5)/A9stdlife)) -> 0 | O186: =IF(A9stdlife="n/a","n/a",IF(O$3>(A9stdlife+$E186),(Input!$K$151*(1+rvanilla05)^0.5)-SUM($K186:N186),(Input!$K$151*(1+rvanilla05)^0.5)/A9stdlife)) -> 0 | P186: =IF(A9stdlife="n/a","n/a",IF(P$3>(A9stdlife+$E186),(Input!$K$151*(1+rvanilla05)^0.5)-SUM($K186:O186),(Input!$K$151*(1+rvanilla05)^0.5)/A9stdlife)) -> 0
E187: 6 | M187: =IF(A9stdlife="n/a","n/a",IF(M$3>(A9stdlife+$E187),(Input!$L$151*(1+rvanilla06)^0.5)-SUM($L187:L187),(Input!$L$151*(1+rvanilla06)^0.5)/A9stdlife)) -> 0 | N187: =IF(A9stdlife="n/a","n/a",IF(N$3>(A9stdlife+$E187),(Input!$L$151*(1+rvanilla06)^0.5)-SUM($L187:M187),(Input!$L$151*(1+rvanilla06)^0.5)/A9stdlife)) -> 0 | O187: =IF(A9stdlife="n/a","n/a",IF(O$3>(A9stdlife+$E187),(Input!$L$151*(1+rvanilla06)^0.5)-SUM($L187:N187),(Input!$L$151*(1+rvanilla06)^0.5)/A9stdlife)) -> 0 | P187: =IF(A9stdlife="n/a","n/a",IF(P$3>(A9stdlife+$E187),(Input!$L$151*(1+rvanilla06)^0.5)-SUM($L187:O187),(Input!$L$151*(1+rvanilla06)^0.5)/A9stdlife)) -> 0
E188: 7 | N188: =IF(A9stdlife="n/a","n/a",IF(N$3>(A9stdlife+$E188),(Input!$M$151*(1+rvanilla07)^0.5)-SUM($M188:M188),(Input!$M$151*(1+rvanilla07)^0.5)/A9stdlife)) -> 0 | O188: =IF(A9stdlife="n/a","n/a",IF(O$3>(A9stdlife+$E188),(Input!$M$151*(1+rvanilla07)^0.5)-SUM($M188:N188),(Input!$M$151*(1+rvanilla07)^0.5)/A9stdlife)) -> 0 | P188: =IF(A9stdlife="n/a","n/a",IF(P$3>(A9stdlife+$E188),(Input!$M$151*(1+rvanilla07)^0.5)-SUM($M188:O188),(Input!$M$151*(1+rvanilla07)^0.5)/A9stdlife)) -> 0
E189: 8 | O189: =IF(A9stdlife="n/a","n/a",IF(O$3>(A9stdlife+$E189),(Input!$N$151*(1+rvanilla08)^0.5)-SUM($N189:N189),(Input!$N$151*(1+rvanilla08)^0.5)/A9stdlife)) -> 0 | P189: =IF(A9stdlife="n/a","n/a",IF(P$3>(A9stdlife+$E189),(Input!$N$151*(1+rvanilla08)^0.5)-SUM($N189:O189),(Input!$N$151*(1+rvanilla08)^0.5)/A9stdlife)) -> 0
E190: 9 | P190: =IF(A9stdlife="n/a","n/a",IF(P$3>(A9stdlife+$E190),(Input!$O$151*(1+rvanilla09)^0.5)-SUM($O190:O190),(Input!$O$151*(1+rvanilla09)^0.5)/A9stdlife)) -> 0
E191: 10
C192: =Asset9 -> 0 | G192: =SUM(G180:G191) -> 0 | H192: =SUM(H180:H191) -> 0 | I192: 0 | J192: 0 | K192: 0 | L192: 0 | M192: 0 | N192: 0 | O192: 0 | P192: 0
B193: =C205 -> 0 | D193: Initial Asset Base | G193: =IF(G$3>A10remlife,A10value-SUM($F193:F193),IF(A10remlife="N/A","n/a",A10value/A10remlife)) -> 0 | H193: =IF(H$3>A10remlife,A10value-SUM($F193:G193),IF(A10remlife="N/A","n/a",A10value/A10remlife)) -> 0 | I193: =IF(I$3>A10remlife,A10value-SUM($F193:H193),IF(A10remlife="N/A","n/a",A10value/A10remlife)) -> 0 | J193: =IF(J$3>A10remlife,A10value-SUM($F193:I193),IF(A10remlife="N/A","n/a",A10value/A10remlife)) -> 0 | K193: =IF(K$3>A10remlife,A10value-SUM($F193:J193),IF(A10remlife="N/A","n/a",A10value/A10remlife)) -> 0 | L193: =IF(L$3>A10remlife,A10value-SUM($F193:K193),IF(A10remlife="N/A","n/a",A10value/A10remlife)) -> 0 | M193: =IF(M$3>A10remlife,A10value-SUM($F193:L193),IF(A10remlife="N/A","n/a",A10value/A10remlife)) -> 0 | N193: =IF(N$3>A10remlife,A10value-SUM($F193:M193),IF(A10remlife="N/A","n/a",A10value/A10remlife)) -> 0 | O193: =IF(O$3>A10remlife,A10value-SUM($F193:N193),IF(A10remlife="N/A","n/a",A10value/A10remlife)) -> 0 | P193: =IF(P$3>A10remlife,A10value-SUM($F193:O193),IF(A10remlife="N/A","n/a",A10value/A10remlife)) -> 0
D194: Capex | E194: 0
E195: 1 | H195: =IF(A10stdlife="n/a","n/a",IF(H$3>(A10stdlife+$E195),(Input!$G$152*(1+rvanilla01)^0.5)-SUM($G195:G195),(Input!$G$152*(1+rvanilla01)^0.5)/A10stdlife)) -> 0 | I195: =IF(A10stdlife="n/a","n/a",IF(I$3>(A10stdlife+$E195),(Input!$G$152*(1+rvanilla01)^0.5)-SUM($G195:H195),(Input!$G$152*(1+rvanilla01)^0.5)/A10stdlife)) -> 0 | J195: =IF(A10stdlife="n/a","n/a",IF(J$3>(A10stdlife+$E195),(Input!$G$152*(1+rvanilla01)^0.5)-SUM($G195:I195),(Input!$G$152*(1+rvanilla01)^0.5)/A10stdlife)) -> 0 | K195: =IF(A10stdlife="n/a","n/a",IF(K$3>(A10stdlife+$E195),(Input!$G$152*(1+rvanilla01)^0.5)-SUM($G195:J195),(Input!$G$152*(1+rvanilla01)^0.5)/A10stdlife)) -> 0 | L195: =IF(A10stdlife="n/a","n/a",IF(L$3>(A10stdlife+$E195),(Input!$G$152*(1+rvanilla01)^0.5)-SUM($G195:K195),(Input!$G$152*(1+rvanilla01)^0.5)/A10stdlife)) -> 0 | M195: =IF(A10stdlife="n/a","n/a",IF(M$3>(A10stdlife+$E195),(Input!$G$152*(1+rvanilla01)^0.5)-SUM($G195:L195),(Input!$G$152*(1+rvanilla01)^0.5)/A10stdlife)) -> 0 | N195: =IF(A10stdlife="n/a","n/a",IF(N$3>(A10stdlife+$E195),(Input!$G$152*(1+rvanilla01)^0.5)-SUM($G195:M195),(Input!$G$152*(1+rvanilla01)^0.5)/A10stdlife)) -> 0 | O195: =IF(A10stdlife="n/a","n/a",IF(O$3>(A10stdlife+$E195),(Input!$G$152*(1+rvanilla01)^0.5)-SUM($G195:N195),(Input!$G$152*(1+rvanilla01)^0.5)/A10stdlife)) -> 0 | P195: =IF(A10stdlife="n/a","n/a",IF(P$3>(A10stdlife+$E195),(Input!$G$152*(1+rvanilla01)^0.5)-SUM($G195:O195),(Input!$G$152*(1+rvanilla01)^0.5)/A10stdlife)) -> 0
E196: 2 | I196: =IF(A10stdlife="n/a","n/a",IF(I$3>(A10stdlife+$E196),(Input!$H$152*(1+rvanilla02)^0.5)-SUM($H196:H196),(Input!$H$152*(1+rvanilla02)^0.5)/A10stdlife)) -> 0 | J196: =IF(A10stdlife="n/a","n/a",IF(J$3>(A10stdlife+$E196),(Input!$H$152*(1+rvanilla02)^0.5)-SUM($H196:I196),(Input!$H$152*(1+rvanilla02)^0.5)/A10stdlife)) -> 0 | K196: =IF(A10stdlife="n/a","n/a",IF(K$3>(A10stdlife+$E196),(Input!$H$152*(1+rvanilla02)^0.5)-SUM($H196:J196),(Input!$H$152*(1+rvanilla02)^0.5)/A10stdlife)) -> 0 | L196: =IF(A10stdlife="n/a","n/a",IF(L$3>(A10stdlife+$E196),(Input!$H$152*(1+rvanilla02)^0.5)-SUM($H196:K196),(Input!$H$152*(1+rvanilla02)^0.5)/A10stdlife)) -> 0 | M196: =IF(A10stdlife="n/a","n/a",IF(M$3>(A10stdlife+$E196),(Input!$H$152*(1+rvanilla02)^0.5)-SUM($H196:L196),(Input!$H$152*(1+rvanilla02)^0.5)/A10stdlife)) -> 0 | N196: =IF(A10stdlife="n/a","n/a",IF(N$3>(A10stdlife+$E196),(Input!$H$152*(1+rvanilla02)^0.5)-SUM($H196:M196),(Input!$H$152*(1+rvanilla02)^0.5)/A10stdlife)) -> 0 | O196: =IF(A10stdlife="n/a","n/a",IF(O$3>(A10stdlife+$E196),(Input!$H$152*(1+rvanilla02)^0.5)-SUM($H196:N196),(Input!$H$152*(1+rvanilla02)^0.5)/A10stdlife)) -> 0 | P196: =IF(A10stdlife="n/a","n/a",IF(P$3>(A10stdlife+$E196),(Input!$H$152*(1+rvanilla02)^0.5)-SUM($H196:O196),(Input!$H$152*(1+rvanilla02)^0.5)/A10stdlife)) -> 0
E197: 3 | J197: =IF(A10stdlife="n/a","n/a",IF(J$3>(A10stdlife+$E197),(Input!$I$152*(1+rvanilla03)^0.5)-SUM($I197:I197),(Input!$I$152*(1+rvanilla03)^0.5)/A10stdlife)) -> 0 | K197: =IF(A10stdlife="n/a","n/a",IF(K$3>(A10stdlife+$E197),(Input!$I$152*(1+rvanilla03)^0.5)-SUM($I197:J197),(Input!$I$152*(1+rvanilla03)^0.5)/A10stdlife)) -> 0 | L197: =IF(A10stdlife="n/a","n/a",IF(L$3>(A10stdlife+$E197),(Input!$I$152*(1+rvanilla03)^0.5)-SUM($I197:K197),(Input!$I$152*(1+rvanilla03)^0.5)/A10stdlife)) -> 0 | M197: =IF(A10stdlife="n/a","n/a",IF(M$3>(A10stdlife+$E197),(Input!$I$152*(1+rvanilla03)^0.5)-SUM($I197:L197),(Input!$I$152*(1+rvanilla03)^0.5)/A10stdlife)) -> 0 | N197: =IF(A10stdlife="n/a","n/a",IF(N$3>(A10stdlife+$E197),(Input!$I$152*(1+rvanilla03)^0.5)-SUM($I197:M197),(Input!$I$152*(1+rvanilla03)^0.5)/A10stdlife)) -> 0 | O197: =IF(A10stdlife="n/a","n/a",IF(O$3>(A10stdlife+$E197),(Input!$I$152*(1+rvanilla03)^0.5)-SUM($I197:N197),(Input!$I$152*(1+rvanilla03)^0.5)/A10stdlife)) -> 0 | P197: =IF(A10stdlife="n/a","n/a",IF(P$3>(A10stdlife+$E197),(Input!$I$152*(1+rvanilla03)^0.5)-SUM($I197:O197),(Input!$I$152*(1+rvanilla03)^0.5)/A10stdlife)) -> 0
E198: 4 | K198: =IF(A10stdlife="n/a","n/a",IF(K$3>(A10stdlife+$E198),(Input!$J$152*(1+rvanilla04)^0.5)-SUM($J198:J198),(Input!$J$152*(1+rvanilla04)^0.5)/A10stdlife)) -> 0 | L198: =IF(A10stdlife="n/a","n/a",IF(L$3>(A10stdlife+$E198),(Input!$J$152*(1+rvanilla04)^0.5)-SUM($J198:K198),(Input!$J$152*(1+rvanilla04)^0.5)/A10stdlife)) -> 0 | M198: =IF(A10stdlife="n/a","n/a",IF(M$3>(A10stdlife+$E198),(Input!$J$152*(1+rvanilla04)^0.5)-SUM($J198:L198),(Input!$J$152*(1+rvanilla04)^0.5)/A10stdlife)) -> 0 | N198: =IF(A10stdlife="n/a","n/a",IF(N$3>(A10stdlife+$E198),(Input!$J$152*(1+rvanilla04)^0.5)-SUM($J198:M198),(Input!$J$152*(1+rvanilla04)^0.5)/A10stdlife)) -> 0 | O198: =IF(A10stdlife="n/a","n/a",IF(O$3>(A10stdlife+$E198),(Input!$J$152*(1+rvanilla04)^0.5)-SUM($J198:N198),(Input!$J$152*(1+rvanilla04)^0.5)/A10stdlife)) -> 0 | P198: =IF(A10stdlife="n/a","n/a",IF(P$3>(A10stdlife+$E198),(Input!$J$152*(1+rvanilla04)^0.5)-SUM($J198:O198),(Input!$J$152*(1+rvanilla04)^0.5)/A10stdlife)) -> 0
E199: 5 | L199: =IF(A10stdlife="n/a","n/a",IF(L$3>(A10stdlife+$E199),(Input!$K$152*(1+rvanilla05)^0.5)-SUM($K199:K199),(Input!$K$152*(1+rvanilla05)^0.5)/A10stdlife)) -> 0 | M199: =IF(A10stdlife="n/a","n/a",IF(M$3>(A10stdlife+$E199),(Input!$K$152*(1+rvanilla05)^0.5)-SUM($K199:L199),(Input!$K$152*(1+rvanilla05)^0.5)/A10stdlife)) -> 0 | N199: =IF(A10stdlife="n/a","n/a",IF(N$3>(A10stdlife+$E199),(Input!$K$152*(1+rvanilla05)^0.5)-SUM($K199:M199),(Input!$K$152*(1+rvanilla05)^0.5)/A10stdlife)) -> 0 | O199: =IF(A10stdlife="n/a","n/a",IF(O$3>(A10stdlife+$E199),(Input!$K$152*(1+rvanilla05)^0.5)-SUM($K199:N199),(Input!$K$152*(1+rvanilla05)^0.5)/A10stdlife)) -> 0 | P199: =IF(A10stdlife="n/a","n/a",IF(P$3>(A10stdlife+$E199),(Input!$K$152*(1+rvanilla05)^0.5)-SUM($K199:O199),(Input!$K$152*(1+rvanilla05)^0.5)/A10stdlife)) -> 0
E200: 6 | M200: =IF(A10stdlife="n/a","n/a",IF(M$3>(A10stdlife+$E200),(Input!$L$152*(1+rvanilla06)^0.5)-SUM($L200:L200),(Input!$L$152*(1+rvanilla06)^0.5)/A10stdlife)) -> 0 | N200: =IF(A10stdlife="n/a","n/a",IF(N$3>(A10stdlife+$E200),(Input!$L$152*(1+rvanilla06)^0.5)-SUM($L200:M200),(Input!$L$152*(1+rvanilla06)^0.5)/A10stdlife)) -> 0 | O200: =IF(A10stdlife="n/a","n/a",IF(O$3>(A10stdlife+$E200),(Input!$L$152*(1+rvanilla06)^0.5)-SUM($L200:N200),(Input!$L$152*(1+rvanilla06)^0.5)/A10stdlife)) -> 0 | P200: =IF(A10stdlife="n/a","n/a",IF(P$3>(A10stdlife+$E200),(Input!$L$152*(1+rvanilla06)^0.5)-SUM($L200:O200),(Input!$L$152*(1+rvanilla06)^0.5)/A10stdlife)) -> 0
E201: 7 | N201: =IF(A10stdlife="n/a","n/a",IF(N$3>(A10stdlife+$E201),(Input!$M$152*(1+rvanilla07)^0.5)-SUM($M201:M201),(Input!$M$152*(1+rvanilla07)^0.5)/A10stdlife)) -> 0 | O201: =IF(A10stdlife="n/a","n/a",IF(O$3>(A10stdlife+$E201),(Input!$M$152*(1+rvanilla07)^0.5)-SUM($M201:N201),(Input!$M$152*(1+rvanilla07)^0.5)/A10stdlife)) -> 0 | P201: =IF(A10stdlife="n/a","n/a",IF(P$3>(A10stdlife+$E201),(Input!$M$152*(1+rvanilla07)^0.5)-SUM($M201:O201),(Input!$M$152*(1+rvanilla07)^0.5)/A10stdlife)) -> 0
E202: 8 | O202: =IF(A10stdlife="n/a","n/a",IF(O$3>(A10stdlife+$E202),(Input!$N$152*(1+rvanilla08)^0.5)-SUM($N202:N202),(Input!$N$152*(1+rvanilla08)^0.5)/A10stdlife)) -> 0 | P202: =IF(A10stdlife="n/a","n/a",IF(P$3>(A10stdlife+$E202),(Input!$N$152*(1+rvanilla08)^0.5)-SUM($N202:O202),(Input!$N$152*(1+rvanilla08)^0.5)/A10stdlife)) -> 0
E203: 9 | P203: =IF(A10stdlife="n/a","n/a",IF(P$3>(A10stdlife+$E203),(Input!$O$152*(1+rvanilla09)^0.5)-SUM($O203:O203),(Input!$O$152*(1+rvanilla09)^0.5)/A10stdlife)) -> 0
E204: 10
C205: =Asset10 -> 0 | G205: =SUM(G193:G204) -> 0 | H205: 0 | I205: 0 | J205: 0 | K205: 0 | L205: 0 | M205: 0 | N205: 0 | O205: 0 | P205: 0
... 668 more rows

Sheet Analysis
B2: ="Cash Flow Analysis"&" - DNSP PTRM - version "&Intro!$L$4 -> Cash Flow Analysis - DNSP PTRM - version 3 (Networks NSW submission)
B4: Year | F4: =Assets!F4 -> 2007 | G4: =Assets!G4 -> 2008 | H4: =Assets!H4 -> 2009 | I4: =Assets!I4 -> 2010 | J4: =Assets!J4 -> 2011 | K4: =Assets!K4 -> 2012 | L4: =Assets!L4 -> 2013 | M4: =Assets!M4 -> 2014 | N4: =Assets!N4 -> 2015 | O4: =Assets!O4 -> 2016 | P4: =Assets!P4 -> 2017
B6: Inflation Assumption (CPI % increase) | G6: =WACC!G6 -> 0.025 | H6: =G6 -> 0.025 | I6: =H6 -> 0.025 | J6: 0.025 | K6: 0.025 | L6: 0.025 | M6: 0.025 | N6: 0.025 | O6: 0.025 | P6: 0.025
B7: Cumulative Inflation Index (CPI end period) | F7: 1 | G7: =F7*(1+G6) -> 1.025 | H7: =G7*(1+H6) -> 1.050625 | I7: 1.076890625 | J7: 1.103812891 | K7: 1.131408213 | L7: 1.159693418 | M7: 1.188685754 | N7: 1.218402898 | O7: 1.24886297 | P7: =O7*(1+P6) -> 1.280084544
B9: Time Varying WACC
B10: Time Varying Return on Debt | G10: =WACC!G15 -> 0.074 | H10: =WACC!H15 -> 0.074 | I10: =WACC!I15 -> 0.074 | J10: =WACC!J15 -> 0.074 | K10: =WACC!K15 -> 0.074 | L10: =WACC!L15 -> 0.074 | M10: =WACC!M15 -> 0.074 | N10: =WACC!N15 -> 0.074 | O10: =WACC!O15 -> 0.074 | P10: =WACC!P15 -> 0.074
B11: Time Varying Nominal Vanilla WACC | G11: =WACC!G19 -> 0.08 | H11: =WACC!H19 -> 0.08 | I11: =WACC!I19 -> 0.08 | J11: =WACC!J19 -> 0.08 | K11: =WACC!K19 -> 0.08 | L11: =WACC!L19 -> 0.08 | M11: =WACC!M19 -> 0.08 | N11: =WACC!N19 -> 0.08 | O11: =WACC!O19 -> 0.08 | P11: =WACC!P19 -> 0.08
B12: Cumulative Discount Factor | F12: 1 | G12: =F12*(1+G11) -> 1.08 | H12: =G12*(1+H11) -> 1.1664 | I12: 1.259712 | J12: 1.36048896 | K12: 1.469328077 | L12: 1.586874323 | M12: 1.713824269 | N12: 1.85093021 | O12: 1.999004627 | P12: 2.158924997
B13: Inverse Cumulative Discount Factor | F13: =1/F12 -> 1 | G13: =1/G12 -> 0.9259259259 | H13: 0.8573388203 | I13: 0.793832241 | J13: 0.7350298528 | K13: 0.680583197 | L13: 0.6301696269 | M13: 0.5834903953 | N13: 0.5402688845 | O13: 0.5002489671 | P13: 0.4631934881
B15: Annual Building Blocks ($m Nominal)
B17: RAB (start period) | D17: (nominal value) | G17: =Assets!F474 -> 2302 | H17: =Assets!G474 -> 2572.131238 | I17: =Assets!H474 -> 2784.175698 | J17: =Assets!I474 -> 2969.77115 | K17: =Assets!J474 -> 3175.163147 | L17: =Assets!K474 -> 3498.81178 | M17: =Assets!L474 -> 3438.565732 | N17: =Assets!M474 -> 3374.096754 | O17: =Assets!N474 -> 3304.505356 | P17: =Assets!O474 -> 3230.497629
B18: - Equity | D18: =WACC!G8 -> 0.4 | G18: =$D18*G$17 -> 920.8 | H18: =$D18*H$17 -> 1028.852495 | I18: =$D18*I$17 -> 1113.670279 | J18: 1187.90846 | K18: 1270.065259 | L18: 1399.524712 | M18: 1375.426293 | N18: 1349.638702 | O18: 1321.802142 | P18: 1292.199051
B19: - Debt | D19: =WACC!G9 -> 0.6 | G19: =$D19*G$17 -> 1381.2 | H19: 1543.278743 | I19: 1670.505419 | J19: 1781.86269 | K19: 1905.097888 | L19: 2099.287068 | M19: 2063.139439 | N19: 2024.458052 | O19: 1982.703213 | P19: 1938.298577
B21: Revenue Building Blocks
B23: Nominal Vanilla WACC | G23: =SUM(G25:G26) -> 184.16 | H23: =SUM(H25:H26) -> 205.7704991 | I23: =SUM(I25:I26) -> 222.7340558 | J23: 237.581692 | K23: 254.0130517 | L23: 279.9049424 | M23: 275.0852586 | N23: 269.9277403 | O23: 264.3604285 | P23: 258.4398103
B24: Return on Asset
B25: - Return on Equity | D25: =WACC!G10 -> 0.089 | G25: =$D25*G18 -> 81.9512 | H25: 91.56787208 | I25: 99.11665485 | J25: 105.7238529 | K25: 113.035808 | L25: 124.5576994 | M25: 122.4129401 | N25: 120.1178444 | O25: 117.6403907 | P25: 115.0057156
B26: - Return on Debt | G26: =G10*G19 -> 102.2088 | H26: =H10*H19 -> 114.202627 | I26: 123.617401 | J26: 131.8578391 | K26: 140.9772437 | L26: 155.347243 | M26: 152.6723185 | N26: 149.8098959 | O26: 146.7200378 | P26: 143.4340947
B28: Return of Asset (regulatory depreciation) | G28: =Assets!G$473 -> 80.89333333 | H28: =Assets!H$473 -> 86.68458151 | I28: =Assets!I$473 -> 65.3315502 | J28: =Assets!J$473 -> 51.80818099 | K28: =Assets!K$473 -> 56.11819261 | L28: =Assets!L$473 -> 60.24604731 | M28: =Assets!M$473 -> 64.46897854 | N28: =Assets!N$473 -> 69.59139813 | O28: =Assets!O$473 -> 74.00772708 | P28: =Assets!P$473 -> 79.13521065
B30: Opex (excludes EBSS carryover amounts) | G30: =Input!G182*G$7 -> 64.6967413 | H30: =Input!H182*H$7 -> 66.42005718 | I30: =Input!I182*I$7 -> 68.15415587 | J30: =Input!J182*J$7 -> 69.91579072 | K30: =Input!K182*K$7 -> 71.72901672 | L30: =Input!L182*L$7 -> 0 | M30: =Input!M182*M$7 -> 0 | N30: =Input!N182*N$7 -> 0 | O30: =Input!O182*O$7 -> 0 | P30: =Input!P182*P$7 -> 0
B32: Revenue from incentives | G32: =Input!G$192*Analysis!G$7 -> 5.125 | H32: =Input!H$192*Analysis!H$7 -> 3.151875 | I32: =Input!I$192*Analysis!I$7 -> 1.076890625 | J32: =Input!J$192*Analysis!J$7 -> 0 | K32: =Input!K$192*Analysis!K$7 -> -2.828520532 | L32: =Input!L$192*Analysis!L$7 -> 0 | M32: =Input!M$192*Analysis!M$7 -> 0 | N32: =Input!N$192*Analysis!N$7 -> 0 | O32: =Input!O$192*Analysis!O$7 -> 0 | P32: =Input!P$192*Analysis!P$7 -> 0
B33: Revenue from previous control mechanism | G33: =Input!G$199*Analysis!G$7 -> 5.125 | H33: =Input!H$199*Analysis!H$7 -> 5.253125 | I33: =Input!I$199*Analysis!I$7 -> 5.384453125 | J33: =Input!J$199*Analysis!J$7 -> 5.519064453 | K33: =Input!K$199*Analysis!K$7 -> 5.657041064 | L33: =Input!L$199*Analysis!L$7 -> 0 | M33: =Input!M$199*Analysis!M$7 -> 0 | N33: =Input!N$199*Analysis!N$7 -> 0 | O33: =Input!O$199*Analysis!O$7 -> 0 | P33: =Input!P$199*Analysis!P$7 -> 0
B34: Revenue from shared assets | G34: =Input!G$206*Analysis!G$7 -> -3.075 | H34: =Input!H$206*Analysis!H$7 -> -3.151875 | I34: =Input!I$206*Analysis!I$7 -> -3.230671875 | J34: =Input!J$206*Analysis!J$7 -> -3.311438672 | K34: =Input!K$206*Analysis!K$7 -> -3.394224639 | L34: =Input!L$206*Analysis!L$7 -> 0 | M34: =Input!M$206*Analysis!M$7 -> 0 | N34: =Input!N$206*Analysis!N$7 -> 0 | O34: =Input!O$206*Analysis!O$7 -> 0 | P34: =Input!P$206*Analysis!P$7 -> 0
B36: Tax Payable | G36: =G58 -> 9.621011765 | H36: =H58 -> 15.32410247 | I36: =I58 -> 15.65969346 | J36: 11.0066346 | K36: 12.27915408 | L36: 22.61708882 | M36: 23.98894891 | N36: 25.4462089 | O36: 26.39673149 | P36: 27.27654625
B37: Less Value of Imputation Credits | D37: =WACC!$G$7 -> 0.5 | G37: =-G36*$D$37 -> -4.810505882 | H37: =-H36*$D$37 -> -7.662051235 | I37: -7.829846728 | J37: -5.5033173 | K37: -6.139577039 | L37: -11.30854441 | M37: -11.99447446 | N37: -12.72310445 | O37: -13.19836574 | P37: -13.63827312
B39: Building Block Subtotal | G39: =SUM(G25:G38) -> 341.7355805 | H39: =SUM(H25:H38) -> 371.790314 | I39: 367.2802805 | J39: 367.0166068 | K39: 387.434134 | L39: 351.4595341 | M39: 351.5487116 | N39: 352.2422429 | O39: 351.5665213 | P39: 351.2132941
B41: Additional Tax Income
B42: - Customer Contributions | G42: =Input!G139*Analysis!G7 -> 12.3 | H42: =Input!H139*Analysis!H7 -> 7.354375 | I42: =Input!I139*Analysis!I7 -> 7.538234375 | J42: =Input!J139*Analysis!J7 -> 7.726690234 | K42: =Input!K139*Analysis!K7 -> 7.91985749 | L42: =Input!L139*Analysis!L7 -> 0 | M42: =Input!M139*Analysis!M7 -> 0 | N42: =Input!N139*Analysis!N7 -> 0 | O42: =Input!O139*Analysis!O7 -> 0 | P42: =Input!P139*Analysis!P7 -> 0
B44: Tax Expenses
B45: - Opex | G45: =G30 -> 64.6967413 | H45: =H30 -> 66.42005718 | I45: 68.15415587 | J45: 69.91579072 | K45: 71.72901672 | L45: 0 | M45: 0 | N45: 0 | O45: 0 | P45: 0
B46: - Tax deductions from revenue adjustments and incentives | G46: =Input!G212 -> 0 | H46: =Input!H212 -> 0 | I46: =Input!I212 -> 0 | J46: =Input!J212 -> 0 | K46: =Input!K212 -> 0 | L46: =Input!L212 -> 0 | M46: =Input!M212 -> 0 | N46: =Input!N212 -> 0 | O46: =Input!O212 -> 0 | P46: =Input!P212 -> 0
B47: - Tax Depreciation | G47: =Assets!G479 -> 155.06 | H47: =Assets!H479 -> 147.4416633 | I47: =Assets!I479 -> 130.8479798 | J47: =Assets!J479 -> 136.2808852 | K47: =Assets!K479 -> 141.7172175 | L47: =Assets!L479 -> 120.721995 | M47: =Assets!M479 -> 118.91323 | N47: =Assets!N479 -> 117.6116507 | O47: =Assets!O479 -> 116.8573785 | P47: =Assets!P479 -> 116.8573785
B48: - Interest | G48: =G26 -> 102.2088 | H48: 114.202627 | I48: 123.617401 | J48: 131.8578391 | K48: 140.9772437 | L48: 155.347243 | M48: 152.6723185 | N48: 149.8098959 | O48: 146.7200378 | P48: 143.4340947
B49: Total Tax Expenses | G49: =SUM(G45:G48) -> 321.9655413 | H49: =SUM(H45:H48) -> 328.0643474 | I49: 322.6195367 | J49: 338.054515 | K49: 354.4234779 | L49: 276.069238 | M49: 271.5855486 | N49: 267.4215465 | O49: 263.5774163 | P49: 260.2914732
B51: Tax Calculation
B52: Corporate tax rate | G52: =WACC!G14 -> 0.3 | H52: =WACC!H14 -> 0.3 | I52: =WACC!I14 -> 0.3 | J52: =WACC!J14 -> 0.3 | K52: =WACC!K14 -> 0.3 | L52: =WACC!L14 -> 0.3 | M52: =WACC!M14 -> 0.3 | N52: =WACC!N14 -> 0.3 | O52: =WACC!O14 -> 0.3 | P52: =WACC!P14 -> 0.3
B53: Taxable Income | G53: =G54+F55 -> 32.07003922 | H53: =H54+G55 -> 51.08034157 | I53: =I54+H55 -> 52.19897818 | J53: 36.688782 | K53: 40.9305136 | L53: 75.39029608 | M53: 79.96316304 | N53: 84.82069635 | O53: 87.98910496 | P53: 90.92182083
B54: - Pre-tax Income | G54: =G39+G42-G49 -> 32.07003922 | H54: =H39+H42-H49 -> 51.08034157 | I54: 52.19897818 | J54: 36.688782 | K54: 40.9305136 | L54: 75.39029608 | M54: 79.96316304 | N54: 84.82069635 | O54: 87.98910496 | P54: 90.92182083
B55: - Tax Loss Carried Forward | F55: =Input!$G$211 -> 0 | G55: =IF(G53<0,G53,0) -> 0 | H55: =IF(H53<0,H53,0) -> 0 | I55: =IF(I53<0,I53,0) -> 0 | J55: =IF(J53<0,J53,0) -> 0 | K55: 0 | L55: 0 | M55: 0 | N55: 0 | O55: 0 | P55: 0
B56: Tax Payable | G56: =IF(G53>0,G52*G53,0) -> 9.621011765 | H56: =IF(H53>0,H52*H53,0) -> 15.32410247 | I56: 15.65969346 | J56: 11.0066346 | K56: 12.27915408 | L56: 22.61708882 | M56: 23.98894891 | N56: 25.4462089 | O56: 26.39673149 | P56: 27.27654625
B57: Value of Imputation Credits | D57: =WACC!$G$7 -> 0.5 | G57: =$D$57*G56 -> 4.810505882 | H57: 7.662051235 | I57: 7.829846728 | J57: 5.5033173 | K57: 6.139577039 | L57: 11.30854441 | M57: 11.99447446 | N57: 12.72310445 | O57: 13.19836574 | P57: 13.63827312
D58: (intermediate tax calculation) | G58: =MAX(0,(G25+G26+G28+G30+G42+G34+G33+G32-G49+F55)*G52/(1-(1-$D$37)*G52)) -> 9.621011765 | H58: =MAX(0,(H25+H26+H28+H30+H42+H34+H33+H32-H49+G55)*H52/(1-(1-$D$37)*H52)) -> 15.32410247 | I58: 15.65969346 | J58: 11.0066346 | K58: 12.27915408 | L58: 22.61708882 | M58: 23.98894891 | N58: 25.4462089 | O58: 26.39673149 | P58: 27.27654625
B60: Cash Flow Analysis Below This Line
B62: Net Present Values
B63: RAB (start period) | D63: Project NPV Check | F63: =F64-F65-G63+F66 -> -3.637978807e-12 | G63: =Assets!F474 -> 2302 | H63: =Assets!G474 -> 2572.131238 | I63: =Assets!H474 -> 2784.175698 | J63: =Assets!I474 -> 2969.77115 | K63: =Assets!J474 -> 3175.163147 | L63: =Assets!K474 -> 3498.81178 | M63: =Assets!L474 -> 3438.565732 | N63: =Assets!M474 -> 3374.096754 | O63: =Assets!N474 -> 3304.505356 | P63: =Assets!O474 -> 3230.497629
B64: PV for Returns on and of Asset Only | F64: =SUMPRODUCT(G64:P64,G$13:P$13) -> 2070.150878 | G64: =SUM(G25:G26,G28) -> 265.0533333 | H64: 292.4550806 | I64: 288.065606 | J64: 289.389873 | K64: 310.1312443 | L64: 340.1509897 | M64: 339.5542371 | N64: 339.5191384 | O64: 338.3681555 | P64: 337.5750209
B65: PV for Capex Only | F65: =SUMPRODUCT(G65:P65,G$13:P$13) -> 1227.841429 | G65: =Assets!G41 -> 351.0245716 | H65: =Assets!H41 -> 298.7290412 | I65: =Assets!I41 -> 250.9270023 | J65: =Assets!J41 -> 257.2001774 | K65: =Assets!K41 -> 379.7668258 | L65: =Assets!L41 -> 0 | M65: =Assets!M41 -> 0 | N65: =Assets!N41 -> 0 | O65: =Assets!O41 -> 0 | P65: =Assets!P41 -> 0
B66: PV for end of period assets | F66: =SUMPRODUCT(G66:P66,G$13:P$13) -> 1459.690551 | G66: 0 | H66: 0 | I66: 0 | J66: 0 | K66: 0 | L66: 0 | M66: 0 | N66: 0 | O66: 0 | P66: =Assets!P474 -> 3151.362418
B68: Nominal Cash Flow Analysis
B69: Capital Expenditure | F69: =Assets!F9+Assets!F41 -> 2302 | G69: =Assets!G9+Assets!G41 -> 351.0245716 | H69: =Assets!H9+Assets!H41 -> 298.7290412 | I69: =Assets!I9+Assets!I41 -> 250.9270023 | J69: =Assets!J9+Assets!J41 -> 257.2001774 | K69: =Assets!K9+Assets!K41 -> 379.7668258 | L69: =Assets!L9+Assets!L41 -> 0 | M69: =Assets!M9+Assets!M41 -> 0 | N69: =Assets!N9+Assets!N41 -> 0 | O69: =Assets!O9+Assets!O41 -> 0 | P69: =Assets!P9+Assets!P41 -> 0
B70: Interest Payments | F70: =F26 -> 0 | G70: 102.2088 | H70: 114.202627 | I70: 123.617401 | J70: 131.8578391 | K70: 140.9772437 | L70: 155.347243 | M70: 152.6723185 | N70: 149.8098959 | O70: 146.7200378 | P70: 143.4340947
B71: Repayment of Debt | F71: =F19-G19+F72 -> -1381.2 | G71: -162.078743 | H71: -127.2266758 | I71: -111.3572713 | J71: -123.2351978 | K71: -194.1891799 | L71: 36.14762838 | M71: 38.68138713 | N71: 41.75483888 | O71: 44.40463625 | P71: 47.48112639
B72: (residual debt at end of cashflows) | P72: =-Assets!P474*$D$19 -> -1890.817451
B74: Nominal Cash Flow to Equity Holders
B75: - Pre-tax | C75: Te = | D75: =1-E77/E75 -> 0.1528197153 | E75: =IRR(F75:P75) -> 0.09633263952 | F75: =F39-F45-F69-F70-F71-SUM(F32:F34) -> -920.8 | G75: =G39-G30-G69-G70-G71-SUM(G32:G34) -> -21.29078944 | H75: =H39-H45-H69-H70-H71-SUM(H32:H34) -> 14.41213946 | I75: 32.70832071 | J75: 29.07037168 | K75: -10.28406823 | L75: 159.9646627 | M75: 160.1950059 | N75: 160.6775081 | O75: 160.4418472 | P75: =P39-P45-P69-P70-P71-SUM(P32:P34)+P76 -> 1420.84304
B76: (residual equity at end of cashflows) | P76: =Assets!P474*$D$18 -> 1260.544967
B77: - Post-tax | E77: =IRR(F77:P77) -> 0.08161111298 | F77: =F75-F56 -> -920.8 | G77: -30.91180121 | H77: -0.9119630063 | I77: 17.04862726 | J77: 18.06373708 | K77: -22.56322231 | L77: 137.3475739 | M77: 136.206057 | N77: 135.2312992 | O77: 134.0451158 | P77: 1393.566494
B78: - Post-tax + Value of Imputation Credits | E78: =IRR(F78:P78) -> 0.08899999999 | F78: =F77-F37 -> -920.8 | G78: -26.10129532 | H78: 6.750088229 | I78: 24.87847399 | J78: 23.56705438 | K78: -16.42364527 | L78: 148.6561183 | M78: 148.2005315 | N78: 147.9544037 | O78: 147.2434815 | P78: 1407.204767
B79: Real Cash Flow to Equity
B80: - Pre-tax | E80: =IRR(F80:P80) -> 0.06959281905 | F80: =F75/F$7 -> -920.8 | G80: -20.77150189 | H80: 13.71768182 | I80: 30.37292735 | J80: 26.33632197 | K80: -9.089617798 | L80: 137.9370273 | M80: 134.7664893 | N80: 131.8755138 | O80: 128.4703375 | P80: =P75/P$7 -> 1109.960312
B81: - Post-tax | E81: =IRR(F81:P81) -> 0.05523035413 | F81: =F77/F$7 -> -920.8 | G81: -30.15785484 | H81: -0.8680195182 | I81: 15.83134523 | J81: 16.36485425 | K81: -19.94260078 | L81: 118.4343825 | M81: 114.5854206 | N81: 110.9906251 | O81: 107.3337259 | P81: =P77/P$7 -> 1088.651918
B82: - Post-tax + Value of Imputation Credits | E82: =IRR(F82:P82) -> 0.06243902439 | F82: -920.8 | G82: -25.46467836 | H82: 6.424831152 | I82: 23.10213629 | J82: 21.35058811 | K82: -14.51610929 | L82: 128.1857049 | M82: 124.675955 | N82: 121.4330695 | O82: 117.9020317 | P82: =P78/P$7 -> 1099.306115
B83: Net Cash Flow to Debt
B84: Cash flow to debt before Tax calculation | E84: =IRR(F84:P84) -> 0.074 | F84: =F71 -> -1381.2 | G84: =G48+G71 -> -59.86994299 | H84: -13.0240488 | I84: 12.2601297 | J84: 8.622641215 | K84: -53.21193622 | L84: 191.4948714 | M84: 191.3537056 | N84: 191.5647347 | O84: 191.124674 | P84: =P48+P71+P85 -> 2081.732672
B85: (residual debt at end of cashflows) | P85: =Assets!$P$474*$D$19 -> 1890.817451
B86: Deduction Utilised to Reduce Tax | G86: =MAX(0,MIN(G48+G54,F87+G48)) -> 102.2088 | H86: 114.202627 | I86: 123.617401 | J86: 131.8578391 | K86: 140.9772437 | L86: 155.347243 | M86: 152.6723185 | N86: 149.8098959 | O86: 146.7200378 | P86: 143.4340947
B87: Unutilised Deductions Carried Forward | G87: =MAX(0,F87+G48-G86) -> 0 | H87: 0 | I87: 0 | J87: 0 | K87: 0 | L87: 0 | M87: 0 | N87: 0 | O87: 0 | P87: 0
B88: Net Cash Flow to Debt | C88: Td = | D88: =1-$E$88/$E$84 -> 0.3 | E88: =IRR(F88:P88) -> 0.0518 | F88: =F48-F86*F52+F71+F85 -> -1381.2 | G88: -90.53258299 | H88: -47.2848369 | I88: -24.8250906 | J88: -30.9347105 | K88: -95.50510933 | L88: 144.8906985 | M88: 145.5520101 | N88: 146.621766 | O88: 147.1086627 | P88: =P48-P86*P52+P71+P89 -> 2038.702444
B89: (residual debt at end of cashflows) | P89: =Assets!$P$474*$D$19 -> 1890.817451
B90: Nominal Cash Flows to Assets
B91: Cash flow to Asset | E91: =IRR(F91:P91) -> 0.08295347233 | F91: =F39-F69-F30-SUM(F32:F34) -> -2302 | G91: -81.16073243 | H91: 1.388090662 | I91: 44.96845041 | J91: 37.69301289 | K91: -63.49600445 | L91: 351.4595341 | M91: 351.5487116 | N91: 352.2422429 | O91: 351.5665213 | P91: =P39-P69-P30-SUM(P32:P34)+P92 -> 3502.575712
B92: (residual capital at end of cashflows) | P92: =Assets!P474 -> 3151.362418
B93: Cash flow to Asset Post-tax | E93: =IRR(F93:P93) -> 0.07703730322 | F93: =F91-F56 -> -2302 | G93: -90.78174419 | H93: -13.93601181 | I93: 29.30875696 | J93: 26.68637829 | K93: -75.77515853 | L93: 328.8424453 | M93: 327.5597627 | N93: 326.796034 | O93: 325.1697898 | P93: 3475.299166
B94: Cash flow to Asset Real | E94: =IRR(F94:P94) -> 0.056539973 | F94: =F91/F$7 -> -2302 | G94: -79.18120237 | H94: 1.321204676 | I94: 41.75767656 | J94: 34.14800933 | K94: -56.12121578 | L94: 303.0624548 | M94: 295.7457095 | N94: 289.1016129 | O94: 281.5092846 | P94: =P91/P$7 -> 2736.206548
B95: Cash flow to Asset Real Post-tax | E95: =IRR(F95:P95) -> 0.05076810071 | F95: =F93/F$7 -> -2302 | G95: =G93/G$7 -> -88.56755531 | H95: =H93/H$7 -> -13.26449666 | I95: 27.21609445 | J95: 24.17654162 | K95: -66.97419876 | L95: 283.55981 | M95: 275.5646408 | N95: 268.2167242 | O95: 260.3726731 | P95: =P93/P$7 -> 2714.898154
B96: Check on Vanilla WACC Cash Flow (nom) | E96: =IRR(F96:P96) -> 0.08 | F96: =F94/F$7 -> -2302 | G96: =(G91-G56+G57) -> -85.97123831 | H96: -6.273960573 | I96: 37.13860369 | J96: 32.18969559 | K96: -69.63558149 | L96: 340.1509897 | M96: 339.5542371 | N96: 339.5191384 | O96: 338.3681555 | P96: 3488.937439
B97: Check on Vanilla WACC Cash Flow (real) | E97: =IRR(F97:P97) -> 0.05365853659 | F97: =F96/F$7 -> -2302 | G97: =G96/G$7 -> -83.87437884 | H97: -5.971645994 | I97: 34.48688551 | J97: 29.16227548 | K97: -61.54770727 | L97: 293.3111324 | M97: 285.6551751 | N97: 278.6591686 | O97: 270.9409789 | P97: =P96/P$7 -> 2725.552351
B99: Further Dissection of Cash Flows
B101: Return on Equity
B102: Cash flow with Imputation | G102: =G78 -> -26.10129532 | H102: =H78 -> 6.750088229 | I102: 24.87847399 | J102: 23.56705438 | K102: -16.42364527 | L102: 148.6561183 | M102: 148.2005315 | N102: 147.9544037 | O102: 147.2434815 | P102: =P78-P103 -> 146.6597998
B103: (residual equity at end of cashflows) | G103: 0 | H103: 0 | I103: 0 | J103: 0 | K103: 0 | L103: 0 | M103: 0 | N103: 0 | O103: 0 | P103: =Assets!P474*$D$18 -> 1260.544967
B104: Add back Capex | G104: =G69 -> 351.0245716 | H104: 298.7290412 | I104: 250.9270023 | J104: 257.2001774 | K104: 379.7668258 | L104: 0 | M104: 0 | N104: 0 | O104: 0 | P104: 0
B105: Less Nominal Depreciation of RAB | G105: =-Assets!G473 -> -80.89333333 | H105: =-Assets!H473 -> -86.68458151 | I105: =-Assets!I473 -> -65.3315502 | J105: =-Assets!J473 -> -51.80818099 | K105: =-Assets!K473 -> -56.11819261 | L105: =-Assets!L473 -> -60.24604731 | M105: =-Assets!M473 -> -64.46897854 | N105: =-Assets!N473 -> -69.59139813 | O105: =-Assets!O473 -> -74.00772708 | P105: =-Assets!P473 -> -79.13521065
B106: Add Debt Repayment | G106: =G71 -> -162.078743 | H106: -127.2266758 | I106: -111.3572713 | J106: -123.2351978 | K106: -194.1891799 | L106: 36.14762838 | M106: 38.68138713 | N106: 41.75483888 | O106: 44.40463625 | P106: 47.48112639
B107: Gives Nominal Return to Equity | G107: =SUM(G102:G106) -> 81.9512 | H107: 91.56787208 | I107: 99.11665485 | J107: 105.7238529 | K107: 113.035808 | L107: 124.5576994 | M107: 122.4129401 | N107: 120.1178444 | O107: 117.6403907 | P107: 1375.550683
B108: Less Inflation in Equity Component | G108: =-$D$18*(Assets!G475-Assets!F474) -> -23.02 | H108: =-$D$18*(Assets!H475-Assets!G474) -> -25.72131238 | I108: =-$D$18*(Assets!I475-Assets!H474) -> -27.84175698 | J108: =-$D$18*(Assets!J475-Assets!I474) -> -29.6977115 | K108: =-$D$18*(Assets!K475-Assets!J474) -> -31.75163147 | L108: =-$D$18*(Assets!L475-Assets!K474) -> -34.9881178 | M108: =-$D$18*(Assets!M475-Assets!L474) -> -34.38565732 | N108: =-$D$18*(Assets!N475-Assets!M474) -> -33.74096754 | O108: =-$D$18*(Assets!O475-Assets!N474) -> -33.04505356 | P108: =-$D$18*(Assets!P475-Assets!O474) -> -32.30497629
B109: Gives Real Return to Equity | G109: =G107+G108 -> 58.9312 | H109: =H107+H108 -> 65.8465597 | I109: 71.27489787 | J109: 76.02614144 | K109: 81.28417655 | L109: 89.56958156 | M109: 88.02728275 | N109: 86.3768769 | O109: 84.59533711 | P109: =P107+P108 -> 1343.245707
B110: %ROE (1 year) | G110: =G107/G113 -> 0.089 | H110: 0.089 | I110: 0.089 | J110: 0.089 | K110: 0.089 | L110: 0.089 | M110: 0.089 | N110: 0.089 | O110: 0.089 | P110: 1.064503709
B111: %real ROE (1 year) | G111: =G109/G113/(1+G$6) -> 0.06243902439 | H111: =H109/H113/(1+H$6) -> 0.06243902439 | I111: 0.06243902439 | J111: 0.06243902439 | K111: 0.06243902439 | L111: 0.06243902439 | M111: 0.06243902439 | N111: 0.06243902439 | O111: 0.06243902439 | P111: 1.01414996
B113: Equity at Start of Period | G113: =G18 -> 920.8 | H113: 1028.852495 | I113: 1113.670279 | J113: 1187.90846 | K113: 1270.065259 | L113: 1399.524712 | M113: 1375.426293 | N113: 1349.638702 | O113: 1321.802142 | P113: 1292.199051
B115: Regulatory Control Period Analysis
B117: Revenue | F117: =F39 -> 0 | G117: 341.7355805 | H117: 371.790314 | I117: 367.2802805 | J117: 367.0166068 | K117: 387.434134 | L117: 351.4595341 | M117: 351.5487116 | N117: 352.2422429 | O117: 351.5665213 | P117: 351.2132941
B118: Less Opex | F118: =-F30 -> 0 | G118: -64.6967413 | H118: -66.42005718 | I118: -68.15415587 | J118: -69.91579072 | K118: -71.72901672 | L118: 0 | M118: 0 | N118: 0 | O118: 0 | P118: 0
B119: Less Revenue from incentives | F119: =-F32 -> 0 | G119: -5.125 | H119: -3.151875 | I119: -1.076890625 | J119: 0 | K119: 2.828520532 | L119: 0 | M119: 0 | N119: 0 | O119: 0 | P119: 0
B120: Less Revenue from previous control mechanism | F120: =-F33 -> 0 | G120: -5.125 | H120: -5.253125 | I120: -5.384453125 | J120: -5.519064453 | K120: -5.657041064 | L120: 0 | M120: 0 | N120: 0 | O120: 0 | P120: 0
B121: Less Revenue from Shared Assets | F121: =-F34 -> 0 | G121: 3.075 | H121: 3.151875 | I121: 3.230671875 | J121: 3.311438672 | K121: 3.394224639 | L121: 0 | M121: 0 | N121: 0 | O121: 0 | P121: 0
B122: Less Interest | G122: =-G48 -> -102.2088 | H122: -114.202627 | I122: -123.617401 | J122: -131.8578391 | K122: -140.9772437 | L122: -155.347243 | M122: -152.6723185 | N122: -149.8098959 | O122: -146.7200378 | P122: -143.4340947
B123: Less Tax | F123: =-F56 -> 0 | G123: -9.621011765 | H123: -15.32410247 | I123: -15.65969346 | J123: -11.0066346 | K123: -12.27915408 | L123: -22.61708882 | M123: -23.98894891 | N123: -25.4462089 | O123: -26.39673149 | P123: -27.27654625
B124: Plus Imputation Credits | F124: =+F57 -> 0 | G124: 4.810505882 | H124: 7.662051235 | I124: 7.829846728 | J124: 5.5033173 | K124: 6.139577039 | L124: 11.30854441 | M124: 11.99447446 | N124: 12.72310445 | O124: 13.19836574 | P124: 13.63827312
B125: Less Capex | F125: =-F69 -> -2302 | G125: -351.0245716 | H125: -298.7290412 | I125: -250.9270023 | J125: -257.2001774 | K125: -379.7668258 | L125: 0 | M125: 0 | N125: 0 | O125: 0 | P125: 0
B126: Less Loan Repayments | F126: =-F71 -> 1381.2 | G126: 162.078743 | H126: 127.2266758 | I126: 111.3572713 | J126: 123.2351978 | K126: 194.1891799 | L126: -36.14762838 | M126: -38.68138713 | N126: -41.75483888 | O126: -44.40463625 | P126: -47.48112639
B127: RAB Residual Value | K127: =IF(L118=0, L18, 0) -> 1399.524712 | L127: =IF(M118=0, IF(L118=0, 0, M18), 0) -> 0 | M127: =IF(N118=0, IF(M118=0, 0, N18), 0) -> 0 | N127: =IF(O118=0, IF(N118=0, 0, O18), 0) -> 0 | O127: =IF(P118=0, IF(O118=0, 0, P18), 0) -> 0 | P127: =IF(Q118=0, IF(P118=0, 0, Q18), 0) -> 0
B128: Post-tax Return on Equity | F128: =SUM(F117:F127) -> -920.8 | G128: =SUM(G117:G127) -> -26.10129532 | H128: 6.750088229 | I128: 24.87847399 | J128: 23.56705438 | K128: 1383.101067 | L128: =IF(L118=0, 0, SUM(L117:L127)) -> 0 | M128: =IF(M118=0, 0, SUM(M117:M127)) -> 0 | N128: =IF(N118=0, 0, SUM(N117:N127)) -> 0 | O128: =IF(O118=0, 0, SUM(O117:O127)) -> 0 | P128: =IF(P118=0, 0, SUM(P117:P127)) -> 0
B130: IRR (during regulatory control period) | E130: =IRR(F128:P128) -> 0.089
B131: Target (during regulatory control period) | E131: =WACC!G11 -> 0.089
B134: Additional disaggregation
B135: Return on Capital | G135: =G25+G26 -> 184.16 | H135: 205.7704991 | I135: 222.7340558 | J135: 237.581692 | K135: 254.0130517 | L135: 279.9049424 | M135: 275.0852586 | N135: 269.9277403 | O135: 264.3604285 | P135: 258.4398103
B136: Opex | G136: =G30 -> 64.6967413 | H136: =H30 -> 66.42005718 | I136: 68.15415587 | J136: 69.91579072 | K136: 71.72901672 | L136: 0 | M136: 0 | N136: 0 | O136: 0 | P136: 0
B137: Incentives revenue | G137: =Input!G$192*Analysis!G$7 -> 5.125 | H137: =Input!H$192*Analysis!H$7 -> 3.151875 | I137: =Input!I$192*Analysis!I$7 -> 1.076890625 | J137: =Input!J$192*Analysis!J$7 -> 0 | K137: =Input!K$192*Analysis!K$7 -> -2.828520532 | L137: =Input!L$192*Analysis!L$7 -> 0 | M137: =Input!M$192*Analysis!M$7 -> 0 | N137: =Input!N$192*Analysis!N$7 -> 0 | O137: =Input!O$192*Analysis!O$7 -> 0 | P137: =Input!P$192*Analysis!P$7 -> 0
B138: Revenue Adjustments 1 | G138: =Input!G199*Analysis!G$7 -> 5.125 | H138: =Input!H199*Analysis!H$7 -> 5.253125 | I138: =Input!I199*Analysis!I$7 -> 5.384453125 | J138: =Input!J199*Analysis!J$7 -> 5.519064453 | K138: =Input!K199*Analysis!K$7 -> 5.657041064 | L138: =Input!L199*Analysis!L$7 -> 0 | M138: =Input!M199*Analysis!M$7 -> 0 | N138: =Input!N199*Analysis!N$7 -> 0 | O138: =Input!O199*Analysis!O$7 -> 0 | P138: =Input!P199*Analysis!P$7 -> 0
B139: Revenue Adjustments 2 | G139: =Input!G206*Analysis!G$7 -> -3.075 | H139: =Input!H206*Analysis!H$7 -> -3.151875 | I139: =Input!I206*Analysis!I$7 -> -3.230671875 | J139: =Input!J206*Analysis!J$7 -> -3.311438672 | K139: =Input!K206*Analysis!K$7 -> -3.394224639 | L139: =Input!L206*Analysis!L$7 -> 0 | M139: =Input!M206*Analysis!M$7 -> 0 | N139: =Input!N206*Analysis!N$7 -> 0 | O139: =Input!O206*Analysis!O$7 -> 0 | P139: =Input!P206*Analysis!P$7 -> 0
B140: Carryover & Adjustments Subtotal | G140: =SUM(G137:G139) -> 7.175 | H140: =SUM(H137:H139) -> 5.253125 | I140: 3.230671875 | J140: 2.207625781 | K140: -0.5657041064 | L140: 0 | M140: 0 | N140: 0 | O140: 0 | P140: 0
B141: Return of Capital | G141: =G28 -> 80.89333333 | H141: 86.68458151 | I141: 65.3315502 | J141: 51.80818099 | K141: 56.11819261 | L141: 60.24604731 | M141: 64.46897854 | N141: 69.59139813 | O141: 74.00772708 | P141: 79.13521065
B142: Net Tax Costs | G142: =G36+G37 -> 4.810505882 | H142: 7.662051235 | I142: 7.829846728 | J142: 5.5033173 | K142: 6.139577039 | L142: 11.30854441 | M142: 11.99447446 | N142: 12.72310445 | O142: 13.19836574 | P142: 13.63827312
B143: Building Block total | G143: =SUM(G135,G136,G140,G141,G142) -> 341.7355805 | H143: =SUM(H135,H136,H140,H141,H142) -> 371.790314 | I143: 367.2802805 | J143: 367.0166068 | K143: 387.434134 | L143: 351.4595341 | M143: 351.5487116 | N143: 352.2422429 | O143: 351.5665213 | P143: 351.2132941
B144: Checks | G144: =G39=G143 -> TRUE | H144: =H39=H143 -> TRUE | I144: TRUE | J144: TRUE | K144: TRUE | L144: TRUE | M144: TRUE | N144: TRUE | O144: TRUE | P144: TRUE

Sheet Forecast revenues
E2: ="Forecast Revenues"&" - DNSP PTRM - version "&Intro!$L$4 -> Forecast Revenues - DNSP PTRM - version 3 (Networks NSW submission)
F4: =Input!F240 -> 2007 | G4: =Input!G240 -> 2008 | H4: =Input!H240 -> 2009 | I4: =Input!I240 -> 2010 | J4: =Input!J240 -> 2011 | K4: =Input!K240 -> 2012 | L4: =Input!L240 -> 2013 | M4: =Input!M240 -> 2014 | N4: =Input!N240 -> 2015 | O4: =Input!O240 -> 2016 | P4: =Input!P240 -> 2017
E5: Total Forecast Revenues ($ Nominal)
E7: Total Revenue | F7: =SUM(F107,Q107,AB107,AM107,AX107,BI107,BT107,CE107,CP107,DA107) -> 329548000 | G7: =SUM(G107,R107,AC107,AN107,AY107,BJ107,BU107,CF107,CQ107,DB107) -> 341735580.5 | H7: 354229672.2 | I7: 367224169.5 | J7: 380740143.8 | K7: 394799575.9 | L7: 409425395.8 | M7: =SUM(M107,X107,AI107,AT107,BE107,BP107,CA107,CL107,CW107,DH107) -> 424641524 | N7: =SUM(N107,Y107,AJ107,AU107,BF107,BQ107,CB107,CM107,CX107,DI107) -> 440472915.2 | O7: =SUM(O107,Z107,AK107,AV107,BG107,BR107,CC107,CN107,CY107,DJ107) -> 456945602.9 | P7: =SUM(P107,AA107,AL107,AW107,BH107,BS107,CD107,CO107,CZ107,DK107) -> 474086747
E10: Forecast Sales Quantities
E12: Quantities | F12: =Input!F276 -> Customer Numbers | L12: =Input!F310 -> Customer Numbers [years 6-10] | Q12: =Input!L276 -> Non TOU Energy (kWh) | W12: =Input!L310 -> Non TOU Energy (kWh) [years 6-10] | AB12: =Input!R276 -> Peak Energy (KWh) BLK 1 | AH12: =Input!R310 -> Peak Energy (KWh) BLK 1 [years 6-10] | AM12: =Input!X276 -> Peak Energy (KWh) BLK 2 | AS12: =Input!X310 -> Peak Energy (KWh) BLK 2 [years 6-10] | AX12: =Input!AD276 -> Off Peak Energy (KWh) BLK 1 | BD12: =Input!AD310 -> Off Peak Energy (KWh) BLK 1 [years 6-10] | BI12: =Input!AJ276 -> Off Peak Energy (KWh) BLK 2 | BO12: =Input!AJ310 -> Off Peak Energy (KWh) BLK 2 [years 6-10] | BT12: =Input!AP276 -> Peak Demand (kVa) BLK 1 | BZ12: =Input!AP310 -> Peak Demand (kVa) BLK 1 [years 6-10] | CE12: =Input!AV276 -> Peak Demand (kVa) BLK 2 | CK12: =Input!AV310 -> Peak Demand (kVa) BLK 2 [years 6-10] | CP12: =Input!BB276 -> Off Peak Demand (kVa) BLK 1 | CV12: =Input!BB310 -> Off Peak Demand (kVa) BLK 1 [years 6-10] | DA12: =Input!BH276 -> Off Peak Demand (kVa) BLK 2 | DG12: =Input!BH310 -> Off Peak Demand (kVa) BLK 2 [years 6-10]
E13: Year | F13: =$F$4 -> 2007 | G13: =$G$4 -> 2008 | H13: =$H$4 -> 2009 | I13: =$I$4 -> 2010 | J13: =$J$4 -> 2011 | K13: =$K$4 -> 2012 | L13: =$L$4 -> 2013 | M13: =$M$4 -> 2014 | N13: =$N$4 -> 2015 | O13: =$O$4 -> 2016 | P13: =$P$4 -> 2017 | Q13: =$F$4 -> 2007 | R13: =$G$4 -> 2008 | S13: =$H$4 -> 2009 | T13: =$I$4 -> 2010 | U13: =$J$4 -> 2011 | V13: =$K$4 -> 2012 | W13: =$L$4 -> 2013 | X13: =$M$4 -> 2014 | Y13: =$N$4 -> 2015 | Z13: =$O$4 -> 2016 | AA13: =$P$4 -> 2017 | AB13: =$F$4 -> 2007 | AC13: =$G$4 -> 2008 | AD13: =$H$4 -> 2009 | AE13: =$I$4 -> 2010 | AF13: =$J$4 -> 2011 | AG13: =$K$4 -> 2012 | AH13: =$L$4 -> 2013 | AI13: =$M$4 -> 2014 | AJ13: =$N$4 -> 2015 | AK13: =$O$4 -> 2016 | AL13: =$P$4 -> 2017 | AM13: =$F$4 -> 2007 | AN13: =$G$4 -> 2008 | AO13: =$H$4 -> 2009 | AP13: =$I$4 -> 2010 | AQ13: =$J$4 -> 2011 | AR13: =$K$4 -> 2012 | AS13: =$L$4 -> 2013 | AT13: =$M$4 -> 2014 | AU13: =$N$4 -> 2015 | AV13: =$O$4 -> 2016 | AW13: =$P$4 -> 2017 | AX13: =$F$4 -> 2007 | AY13: =$G$4 -> 2008 | AZ13: =$H$4 -> 2009 | BA13: =$I$4 -> 2010 | BB13: =$J$4 -> 2011 | BC13: =$K$4 -> 2012 | BD13: =$L$4 -> 2013 | BE13: =$M$4 -> 2014 | BF13: =$N$4 -> 2015 | BG13: =$O$4 -> 2016 | BH13: =$P$4 -> 2017 | BI13: =$F$4 -> 2007 | BJ13: =$G$4 -> 2008 | BK13: =$H$4 -> 2009 | BL13: =$I$4 -> 2010 | BM13: =$J$4 -> 2011 | BN13: =$K$4 -> 2012 | BO13: =$L$4 -> 2013 | BP13: =$M$4 -> 2014 | BQ13: =$N$4 -> 2015 | BR13: =$O$4 -> 2016 | BS13: =$P$4 -> 2017 | BT13: =$F$4 -> 2007 | BU13: =$G$4 -> 2008 | BV13: =$H$4 -> 2009 | BW13: =$I$4 -> 2010 | BX13: =$J$4 -> 2011 | BY13: =$K$4 -> 2012 | BZ13: =$L$4 -> 2013 | CA13: =$M$4 -> 2014 | CB13: =$N$4 -> 2015 | CC13: =$O$4 -> 2016 | CD13: =$P$4 -> 2017 | CE13: =$F$4 -> 2007 | CF13: =$G$4 -> 2008 | CG13: =$H$4 -> 2009 | CH13: =$I$4 -> 2010 | CI13: =$J$4 -> 2011 | CJ13: =$K$4 -> 2012 | CK13: =$L$4 -> 2013 | CL13: =$M$4 -> 2014 | CM13: =$N$4 -> 2015 | CN13: =$O$4 -> 2016 | CO13: =$P$4 -> 2017 | CP13: =$F$4 -> 2007 | CQ13: =$G$4 -> 2008 | CR13: =$H$4 -> 2009 | CS13: =$I$4 -> 2010 | CT13: =$J$4 -> 2011 | CU13: =$K$4 -> 2012 | CV13: =$L$4 -> 2013 | CW13: =$M$4 -> 2014 | CX13: =$N$4 -> 2015 | CY13: =$O$4 -> 2016 | CZ13: =$P$4 -> 2017 | DA13: =$F$4 -> 2007 | DB13: =$G$4 -> 2008 | DC13: =$H$4 -> 2009 | DD13: =$I$4 -> 2010 | DE13: =$J$4 -> 2011 | DF13: =$K$4 -> 2012 | DG13: =$L$4 -> 2013 | DH13: =$M$4 -> 2014 | DI13: =$N$4 -> 2015 | DJ13: =$O$4 -> 2016 | DK13: =$P$4 -> 2017
E14: =Input!E278 -> Residential A | F14: =Input!F278 -> 400000 | G14: =Input!G278 -> 408000 | H14: =Input!H278 -> 416160 | I14: =Input!I278 -> 424483.2 | J14: =Input!J278 -> 432972.864 | K14: =Input!K278 -> 441632.3213 | L14: =Input!G312 -> 450464.9677 | M14: =Input!H312 -> 459474.2671 | N14: =Input!I312 -> 468663.7524 | O14: =Input!J312 -> 478037.0274 | P14: =Input!K312 -> 487597.768 | Q14: =Input!L278 -> 1000000000 | R14: =Input!M278 -> 996000000 | S14: =Input!N278 -> 992016000 | T14: =Input!O278 -> 988047936 | U14: =Input!P278 -> 984095744.3 | V14: =Input!Q278 -> 980159361.3 | W14: =Input!M312 -> 976238723.8 | X14: =Input!N312 -> 972333768.9 | Y14: =Input!O312 -> 968444433.9 | Z14: =Input!P312 -> 964570656.1 | AA14: =Input!Q312 -> 960712373.5 | AB14: =Input!R278 -> 0 | AC14: =Input!S278 -> 0 | AD14: =Input!T278 -> 0 | AE14: =Input!U278 -> 0 | AF14: =Input!V278 -> 0 | AG14: =Input!W278 -> 0 | AH14: =Input!S312 -> 0 | AI14: =Input!T312 -> 0 | AJ14: =Input!U312 -> 0 | AK14: =Input!V312 -> 0 | AL14: =Input!W312 -> 0 | AM14: =Input!X278 -> 0 | AN14: =Input!Y278 -> 0 | AO14: =Input!Z278 -> 0 | AP14: =Input!AA278 -> 0 | AQ14: =Input!AB278 -> 0 | AR14: =Input!AC278 -> 0 | AS14: =Input!Y312 -> 0 | AT14: =Input!Z312 -> 0 | AU14: =Input!AA312 -> 0 | AV14: =Input!AB312 -> 0 | AW14: =Input!AC312 -> 0 | AX14: =Input!AD278 -> 0 | AY14: =Input!AE278 -> 0 | AZ14: =Input!AF278 -> 0 | BA14: =Input!AG278 -> 0 | BB14: =Input!AH278 -> 0 | BC14: =Input!AI278 -> 0 | BD14: =Input!AE312 -> 0 | BE14: =Input!AF312 -> 0 | BF14: =Input!AG312 -> 0 | BG14: =Input!AH312 -> 0 | BH14: =Input!AI312 -> 0 | BI14: =Input!AJ278 -> 0 | BJ14: =Input!AK278 -> 0 | BK14: =Input!AL278 -> 0 | BL14: =Input!AM278 -> 0 | BM14: =Input!AN278 -> 0 | BN14: =Input!AO278 -> 0 | BO14: =Input!AK312 -> 0 | BP14: =Input!AL312 -> 0 | BQ14: =Input!AM312 -> 0 | BR14: =Input!AN312 -> 0 | BS14: =Input!AO312 -> 0 | BT14: =Input!AP278 -> 0 | BU14: =Input!AQ278 -> 0 | BV14: =Input!AR278 -> 0 | BW14: =Input!AS278 -> 0 | BX14: =Input!AT278 -> 0 | BY14: =Input!AU278 -> 0 | BZ14: =Input!AQ312 -> 0 | CA14: =Input!AR312 -> 0 | CB14: =Input!AS312 -> 0 | CC14: =Input!AT312 -> 0 | CD14: =Input!AU312 -> 0 | CE14: =Input!AV278 -> 0 | CF14: =Input!AW278 -> 0 | CG14: =Input!AX278 -> 0 | CH14: =Input!AY278 -> 0 | CI14: =Input!AZ278 -> 0 | CJ14: =Input!BA278 -> 0 | CK14: =Input!AW312 -> 0 | CL14: =Input!AX312 -> 0 | CM14: =Input!AY312 -> 0 | CN14: =Input!AZ312 -> 0 | CO14: =Input!BA312 -> 0 | CP14: =Input!BB278 -> 0 | CQ14: =Input!BC278 -> 0 | CR14: =Input!BD278 -> 0 | CS14: =Input!BE278 -> 0 | CT14: =Input!BF278 -> 0 | CU14: =Input!BG278 -> 0 | CV14: =Input!BC312 -> 0 | CW14: =Input!BD312 -> 0 | CX14: =Input!BE312 -> 0 | CY14: =Input!BF312 -> 0 | CZ14: =Input!BG312 -> 0 | DA14: =Input!BH278 -> 0 | DB14: =Input!BI278 -> 0 | DC14: =Input!BJ278 -> 0 | DD14: =Input!BK278 -> 0 | DE14: =Input!BL278 -> 0 | DF14: =Input!BM278 -> 0 | DG14: =Input!BI312 -> 0 | DH14: =Input!BJ312 -> 0 | DI14: =Input!BK312 -> 0 | DJ14: =Input!BL312 -> 0 | DK14: =Input!BM312 -> 0
E15: =Input!E279 -> Residential B | F15: =Input!F279 -> 100000 | G15: =Input!G279 -> 102000 | H15: =Input!H279 -> 104040 | I15: =Input!I279 -> 106120.8 | J15: =Input!J279 -> 108243.216 | K15: =Input!K279 -> 110408.0803 | L15: =Input!G313 -> 112616.2419 | M15: =Input!H313 -> 114868.5668 | N15: =Input!I313 -> 117165.9381 | O15: =Input!J313 -> 119509.2569 | P15: =Input!K313 -> 121899.442 | Q15: =Input!L279 -> 0 | R15: =Input!M279 -> 0 | S15: =Input!N279 -> 0 | T15: =Input!O279 -> 0 | U15: =Input!P279 -> 0 | V15: =Input!Q279 -> 0 | W15: =Input!M313 -> 0 | X15: =Input!N313 -> 0 | Y15: =Input!O313 -> 0 | Z15: =Input!P313 -> 0 | AA15: =Input!Q313 -> 0 | AB15: =Input!R279 -> 5000000 | AC15: =Input!S279 -> 4990000 | AD15: =Input!T279 -> 4980020 | AE15: =Input!U279 -> 4970059.96 | AF15: =Input!V279 -> 4960119.84 | AG15: =Input!W279 -> 4950199.6 | AH15: =Input!S313 -> 4940299.201 | AI15: =Input!T313 -> 4930418.603 | AJ15: =Input!U313 -> 4920557.766 | AK15: =Input!V313 -> 4910716.65 | AL15: =Input!W313 -> 4900895.217 | AM15: =Input!X279 -> 2500000 | AN15: =Input!Y279 -> 2495000 | AO15: =Input!Z279 -> 2490010 | AP15: =Input!AA279 -> 2485029.98 | AQ15: =Input!AB279 -> 2480059.92 | AR15: =Input!AC279 -> 2475099.8 | AS15: =Input!Y313 -> 2470149.601 | AT15: =Input!Z313 -> 2465209.301 | AU15: =Input!AA313 -> 2460278.883 | AV15: =Input!AB313 -> 2455358.325 | AW15: =Input!AC313 -> 2450447.608 | AX15: =Input!AD279 -> 1000000 | AY15: =Input!AE279 -> 998000 | AZ15: =Input!AF279 -> 996004 | BA15: =Input!AG279 -> 994011.992 | BB15: =Input!AH279 -> 992023.968 | BC15: =Input!AI279 -> 990039.9201 | BD15: =Input!AE313 -> 988059.8402 | BE15: =Input!AF313 -> 986083.7206 | BF15: =Input!AG313 -> 984111.5531 | BG15: =Input!AH313 -> 982143.33 | BH15: =Input!AI313 -> 980179.0434 | BI15: =Input!AJ279 -> 500000 | BJ15: =Input!AK279 -> 499000 | BK15: =Input!AL279 -> 498002 | BL15: =Input!AM279 -> 497005.996 | BM15: =Input!AN279 -> 496011.984 | BN15: =Input!AO279 -> 495019.96 | BO15: =Input!AK313 -> 494029.9201 | BP15: =Input!AL313 -> 493041.8603 | BQ15: =Input!AM313 -> 492055.7766 | BR15: =Input!AN313 -> 491071.665 | BS15: =Input!AO313 -> 490089.5217 | BT15: =Input!AP279 -> 10000 | BU15: =Input!AQ279 -> 10200 | BV15: =Input!AR279 -> 10404 | BW15: =Input!AS279 -> 10612.08 | BX15: =Input!AT279 -> 10824.3216 | BY15: =Input!AU279 -> 11040.80803 | BZ15: =Input!AQ313 -> 11261.62419 | CA15: =Input!AR313 -> 11486.85668 | CB15: =Input!AS313 -> 11716.59381 | CC15: =Input!AT313 -> 11950.92569 | CD15: =Input!AU313 -> 12189.9442 | CE15: =Input!AV279 -> 2000 | CF15: =Input!AW279 -> 2040 | CG15: =Input!AX279 -> 2080.8 | CH15: =Input!AY279 -> 2122.416 | CI15: =Input!AZ279 -> 2164.86432 | CJ15: =Input!BA279 -> 2208.161606 | CK15: =Input!AW313 -> 2252.324839 | CL15: =Input!AX313 -> 2297.371335 | CM15: =Input!AY313 -> 2343.318762 | CN15: =Input!AZ313 -> 2390.185137 | CO15: =Input!BA313 -> 2437.98884 | CP15: =Input!BB279 -> 5000 | CQ15: =Input!BC279 -> 5100 | CR15: =Input!BD279 -> 5202 | CS15: =Input!BE279 -> 5306.04 | CT15: =Input!BF279 -> 5412.1608 | CU15: =Input!BG279 -> 5520.404016 | CV15: =Input!BC313 -> 5630.812096 | CW15: =Input!BD313 -> 5743.428338 | CX15: =Input!BE313 -> 5858.296905 | CY15: =Input!BF313 -> 5975.462843 | CZ15: =Input!BG313 -> 6094.9721 | DA15: =Input!BH279 -> 200 | DB15: =Input!BI279 -> 204 | DC15: =Input!BJ279 -> 208.08 | DD15: =Input!BK279 -> 212.2416 | DE15: =Input!BL279 -> 216.486432 | DF15: =Input!BM279 -> 220.8161606 | DG15: =Input!BI313 -> 225.2324839 | DH15: =Input!BJ313 -> 229.7371335 | DI15: =Input!BK313 -> 234.3318762 | DJ15: =Input!BL313 -> 239.0185137 | DK15: =Input!BM313 -> 243.798884
E16: =Input!E280 -> Residential C | F16: =Input!F280 -> 100000 | G16: =Input!G280 -> 102000 | H16: =Input!H280 -> 104040 | I16: =Input!I280 -> 106120.8 | J16: =Input!J280 -> 108243.216 | K16: =Input!K280 -> 110408.0803 | L16: =Input!G314 -> 112616.2419 | M16: =Input!H314 -> 114868.5668 | N16: =Input!I314 -> 117165.9381 | O16: =Input!J314 -> 119509.2569 | P16: =Input!K314 -> 121899.442 | Q16: =Input!L280 -> 0 | R16: =Input!M280 -> 0 | S16: =Input!N280 -> 0 | T16: =Input!O280 -> 0 | U16: =Input!P280 -> 0 | V16: =Input!Q280 -> 0 | W16: =Input!M314 -> 0 | X16: =Input!N314 -> 0 | Y16: =Input!O314 -> 0 | Z16: =Input!P314 -> 0 | AA16: =Input!Q314 -> 0 | AB16: =Input!R280 -> 5000000 | AC16: =Input!S280 -> 5000000 | AD16: =Input!T280 -> 5000000 | AE16: =Input!U280 -> 5000000 | AF16: =Input!V280 -> 5000000 | AG16: =Input!W280 -> 5000000 | AH16: =Input!S314 -> 5000000 | AI16: =Input!T314 -> 5000000 | AJ16: =Input!U314 -> 5000000 | AK16: =Input!V314 -> 5000000 | AL16: =Input!W314 -> 5000000 | AM16: =Input!X280 -> 2500000 | AN16: =Input!Y280 -> 2500000 | AO16: =Input!Z280 -> 2500000 | AP16: =Input!AA280 -> 2500000 | AQ16: =Input!AB280 -> 2500000 | AR16: =Input!AC280 -> 2500000 | AS16: =Input!Y314 -> 2500000 | AT16: =Input!Z314 -> 2500000 | AU16: =Input!AA314 -> 2500000 | AV16: =Input!AB314 -> 2500000 | AW16: =Input!AC314 -> 2500000 | AX16: =Input!AD280 -> 1000000 | AY16: =Input!AE280 -> 1000000 | AZ16: =Input!AF280 -> 1000000 | BA16: =Input!AG280 -> 1000000 | BB16: =Input!AH280 -> 1000000 | BC16: =Input!AI280 -> 1000000 | BD16: =Input!AE314 -> 1000000 | BE16: =Input!AF314 -> 1000000 | BF16: =Input!AG314 -> 1000000 | BG16: =Input!AH314 -> 1000000 | BH16: =Input!AI314 -> 1000000 | BI16: =Input!AJ280 -> 500000 | BJ16: =Input!AK280 -> 500000 | BK16: =Input!AL280 -> 500000 | BL16: =Input!AM280 -> 500000 | BM16: =Input!AN280 -> 500000 | BN16: =Input!AO280 -> 500000 | BO16: =Input!AK314 -> 500000 | BP16: =Input!AL314 -> 500000 | BQ16: =Input!AM314 -> 500000 | BR16: =Input!AN314 -> 500000 | BS16: =Input!AO314 -> 500000 | BT16: =Input!AP280 -> 10000 | BU16: =Input!AQ280 -> 10200 | BV16: =Input!AR280 -> 10404 | BW16: =Input!AS280 -> 10612.08 | BX16: =Input!AT280 -> 10824.3216 | BY16: =Input!AU280 -> 11040.80803 | BZ16: =Input!AQ314 -> 11261.62419 | CA16: =Input!AR314 -> 11486.85668 | CB16: =Input!AS314 -> 11716.59381 | CC16: =Input!AT314 -> 11950.92569 | CD16: =Input!AU314 -> 12189.9442 | CE16: =Input!AV280 -> 2000 | CF16: =Input!AW280 -> 2040 | CG16: =Input!AX280 -> 2080.8 | CH16: =Input!AY280 -> 2122.416 | CI16: =Input!AZ280 -> 2164.86432 | CJ16: =Input!BA280 -> 2208.161606 | CK16: =Input!AW314 -> 2252.324839 | CL16: =Input!AX314 -> 2297.371335 | CM16: =Input!AY314 -> 2343.318762 | CN16: =Input!AZ314 -> 2390.185137 | CO16: =Input!BA314 -> 2437.98884 | CP16: =Input!BB280 -> 5000 | CQ16: =Input!BC280 -> 5100 | CR16: =Input!BD280 -> 5202 | CS16: =Input!BE280 -> 5306.04 | CT16: =Input!BF280 -> 5412.1608 | CU16: =Input!BG280 -> 5520.404016 | CV16: =Input!BC314 -> 5630.812096 | CW16: =Input!BD314 -> 5743.428338 | CX16: =Input!BE314 -> 5858.296905 | CY16: =Input!BF314 -> 5975.462843 | CZ16: =Input!BG314 -> 6094.9721 | DA16: =Input!BH280 -> 200 | DB16: =Input!BI280 -> 204 | DC16: =Input!BJ280 -> 208.08 | DD16: =Input!BK280 -> 212.2416 | DE16: =Input!BL280 -> 216.486432 | DF16: =Input!BM280 -> 220.8161606 | DG16: =Input!BI314 -> 225.2324839 | DH16: =Input!BJ314 -> 229.7371335 | DI16: =Input!BK314 -> 234.3318762 | DJ16: =Input!BL314 -> 239.0185137 | DK16: =Input!BM314 -> 243.798884
E17: =Input!E281 -> Small Business A | F17: =Input!F281 -> 20000 | G17: =Input!G281 -> 20400 | H17: =Input!H281 -> 20808 | I17: =Input!I281 -> 21224.16 | J17: =Input!J281 -> 21648.6432 | K17: =Input!K281 -> 22081.61606 | L17: =Input!G315 -> 22523.24839 | M17: =Input!H315 -> 22973.71335 | N17: =Input!I315 -> 23433.18762 | O17: =Input!J315 -> 23901.85137 | P17: =Input!K315 -> 24379.8884 | Q17: =Input!L281 -> 0 | R17: =Input!M281 -> 0 | S17: =Input!N281 -> 0 | T17: =Input!O281 -> 0 | U17: =Input!P281 -> 0 | V17: =Input!Q281 -> 0 | W17: =Input!M315 -> 0 | X17: =Input!N315 -> 0 | Y17: =Input!O315 -> 0 | Z17: =Input!P315 -> 0 | AA17: =Input!Q315 -> 0 | AB17: =Input!R281 -> 5000000 | AC17: =Input!S281 -> 5100000 | AD17: =Input!T281 -> 5202000 | AE17: =Input!U281 -> 5306040 | AF17: =Input!V281 -> 5412160.8 | AG17: =Input!W281 -> 5520404.016 | AH17: =Input!S315 -> 5630812.096 | AI17: =Input!T315 -> 5743428.338 | AJ17: =Input!U315 -> 5858296.905 | AK17: =Input!V315 -> 5975462.843 | AL17: =Input!W315 -> 6094972.1 | AM17: =Input!X281 -> 2500000 | AN17: =Input!Y281 -> 2550000 | AO17: =Input!Z281 -> 2601000 | AP17: =Input!AA281 -> 2653020 | AQ17: =Input!AB281 -> 2706080.4 | AR17: =Input!AC281 -> 2760202.008 | AS17: =Input!Y315 -> 2815406.048 | AT17: =Input!Z315 -> 2871714.169 | AU17: =Input!AA315 -> 2929148.453 | AV17: =Input!AB315 -> 2987731.422 | AW17: =Input!AC315 -> 3047486.05 | AX17: =Input!AD281 -> 1000000 | AY17: =Input!AE281 -> 1020000 | AZ17: =Input!AF281 -> 1040400 | BA17: =Input!AG281 -> 1061208 | BB17: =Input!AH281 -> 1082432.16 | BC17: =Input!AI281 -> 1104080.803 | BD17: =Input!AE315 -> 1126162.419 | BE17: =Input!AF315 -> 1148685.668 | BF17: =Input!AG315 -> 1171659.381 | BG17: =Input!AH315 -> 1195092.569 | BH17: =Input!AI315 -> 1218994.42 | BI17: =Input!AJ281 -> 500000 | BJ17: =Input!AK281 -> 510000 | BK17: =Input!AL281 -> 520200 | BL17: =Input!AM281 -> 530604 | BM17: =Input!AN281 -> 541216.08 | BN17: =Input!AO281 -> 552040.4016 | BO17: =Input!AK315 -> 563081.2096 | BP17: =Input!AL315 -> 574342.8338 | BQ17: =Input!AM315 -> 585829.6905 | BR17: =Input!AN315 -> 597546.2843 | BS17: =Input!AO315 -> 609497.21 | BT17: =Input!AP281 -> 10000 | BU17: =Input!AQ281 -> 10200 | BV17: =Input!AR281 -> 10404 | BW17: =Input!AS281 -> 10612.08 | BX17: =Input!AT281 -> 10824.3216 | BY17: =Input!AU281 -> 11040.80803 | BZ17: =Input!AQ315 -> 11261.62419 | CA17: =Input!AR315 -> 11486.85668 | CB17: =Input!AS315 -> 11716.59381 | CC17: =Input!AT315 -> 11950.92569 | CD17: =Input!AU315 -> 12189.9442 | CE17: =Input!AV281 -> 2000 | CF17: =Input!AW281 -> 2040 | CG17: =Input!AX281 -> 2080.8 | CH17: =Input!AY281 -> 2122.416 | CI17: =Input!AZ281 -> 2164.86432 | CJ17: =Input!BA281 -> 2208.161606 | CK17: =Input!AW315 -> 2252.324839 | CL17: =Input!AX315 -> 2297.371335 | CM17: =Input!AY315 -> 2343.318762 | CN17: =Input!AZ315 -> 2390.185137 | CO17: =Input!BA315 -> 2437.98884 | CP17: =Input!BB281 -> 5000 | CQ17: =Input!BC281 -> 5100 | CR17: =Input!BD281 -> 5202 | CS17: =Input!BE281 -> 5306.04 | CT17: =Input!BF281 -> 5412.1608 | CU17: =Input!BG281 -> 5520.404016 | CV17: =Input!BC315 -> 5630.812096 | CW17: =Input!BD315 -> 5743.428338 | CX17: =Input!BE315 -> 5858.296905 | CY17: =Input!BF315 -> 5975.462843 | CZ17: =Input!BG315 -> 6094.9721 | DA17: =Input!BH281 -> 200 | DB17: =Input!BI281 -> 204 | DC17: =Input!BJ281 -> 208.08 | DD17: =Input!BK281 -> 212.2416 | DE17: =Input!BL281 -> 216.486432 | DF17: =Input!BM281 -> 220.8161606 | DG17: =Input!BI315 -> 225.2324839 | DH17: =Input!BJ315 -> 229.7371335 | DI17: =Input!BK315 -> 234.3318762 | DJ17: =Input!BL315 -> 239.0185137 | DK17: =Input!BM315 -> 243.798884
E18: =Input!E282 -> Small Business B | F18: =Input!F282 -> 20000 | G18: =Input!G282 -> 20400 | H18: =Input!H282 -> 20808 | I18: =Input!I282 -> 21224.16 | J18: =Input!J282 -> 21648.6432 | K18: =Input!K282 -> 22081.61606 | L18: =Input!G316 -> 22523.24839 | M18: =Input!H316 -> 22973.71335 | N18: =Input!I316 -> 23433.18762 | O18: =Input!J316 -> 23901.85137 | P18: =Input!K316 -> 24379.8884 | Q18: =Input!L282 -> 0 | R18: =Input!M282 -> 0 | S18: =Input!N282 -> 0 | T18: =Input!O282 -> 0 | U18: =Input!P282 -> 0 | V18: =Input!Q282 -> 0 | W18: =Input!M316 -> 0 | X18: =Input!N316 -> 0 | Y18: =Input!O316 -> 0 | Z18: =Input!P316 -> 0 | AA18: =Input!Q316 -> 0 | AB18: =Input!R282 -> 5000000 | AC18: =Input!S282 -> 5100000 | AD18: =Input!T282 -> 5202000 | AE18: =Input!U282 -> 5306040 | AF18: =Input!V282 -> 5412160.8 | AG18: =Input!W282 -> 5520404.016 | AH18: =Input!S316 -> 5630812.096 | AI18: =Input!T316 -> 5743428.338 | AJ18: =Input!U316 -> 5858296.905 | AK18: =Input!V316 -> 5975462.843 | AL18: =Input!W316 -> 6094972.1 | AM18: =Input!X282 -> 2500000 | AN18: =Input!Y282 -> 2550000 | AO18: =Input!Z282 -> 2601000 | AP18: =Input!AA282 -> 2653020 | AQ18: =Input!AB282 -> 2706080.4 | AR18: =Input!AC282 -> 2760202.008 | AS18: =Input!Y316 -> 2815406.048 | AT18: =Input!Z316 -> 2871714.169 | AU18: =Input!AA316 -> 2929148.453 | AV18: =Input!AB316 -> 2987731.422 | AW18: =Input!AC316 -> 3047486.05 | AX18: =Input!AD282 -> 1000000 | AY18: =Input!AE282 -> 1020000 | AZ18: =Input!AF282 -> 1040400 | BA18: =Input!AG282 -> 1061208 | BB18: =Input!AH282 -> 1082432.16 | BC18: =Input!AI282 -> 1104080.803 | BD18: =Input!AE316 -> 1126162.419 | BE18: =Input!AF316 -> 1148685.668 | BF18: =Input!AG316 -> 1171659.381 | BG18: =Input!AH316 -> 1195092.569 | BH18: =Input!AI316 -> 1218994.42 | BI18: =Input!AJ282 -> 500000 | BJ18: =Input!AK282 -> 510000 | BK18: =Input!AL282 -> 520200 | BL18: =Input!AM282 -> 530604 | BM18: =Input!AN282 -> 541216.08 | BN18: =Input!AO282 -> 552040.4016 | BO18: =Input!AK316 -> 563081.2096 | BP18: =Input!AL316 -> 574342.8338 | BQ18: =Input!AM316 -> 585829.6905 | BR18: =Input!AN316 -> 597546.2843 | BS18: =Input!AO316 -> 609497.21 | BT18: =Input!AP282 -> 10000 | BU18: =Input!AQ282 -> 10200 | BV18: =Input!AR282 -> 10404 | BW18: =Input!AS282 -> 10612.08 | BX18: =Input!AT282 -> 10824.3216 | BY18: =Input!AU282 -> 11040.80803 | BZ18: =Input!AQ316 -> 11261.62419 | CA18: =Input!AR316 -> 11486.85668 | CB18: =Input!AS316 -> 11716.59381 | CC18: =Input!AT316 -> 11950.92569 | CD18: =Input!AU316 -> 12189.9442 | CE18: =Input!AV282 -> 2000 | CF18: =Input!AW282 -> 2040 | CG18: =Input!AX282 -> 2080.8 | CH18: =Input!AY282 -> 2122.416 | CI18: =Input!AZ282 -> 2164.86432 | CJ18: =Input!BA282 -> 2208.161606 | CK18: =Input!AW316 -> 2252.324839 | CL18: =Input!AX316 -> 2297.371335 | CM18: =Input!AY316 -> 2343.318762 | CN18: =Input!AZ316 -> 2390.185137 | CO18: =Input!BA316 -> 2437.98884 | CP18: =Input!BB282 -> 5000 | CQ18: =Input!BC282 -> 5100 | CR18: =Input!BD282 -> 5202 | CS18: =Input!BE282 -> 5306.04 | CT18: =Input!BF282 -> 5412.1608 | CU18: =Input!BG282 -> 5520.404016 | CV18: =Input!BC316 -> 5630.812096 | CW18: =Input!BD316 -> 5743.428338 | CX18: =Input!BE316 -> 5858.296905 | CY18: =Input!BF316 -> 5975.462843 | CZ18: =Input!BG316 -> 6094.9721 | DA18: =Input!BH282 -> 200 | DB18: =Input!BI282 -> 204 | DC18: =Input!BJ282 -> 208.08 | DD18: =Input!BK282 -> 212.2416 | DE18: =Input!BL282 -> 216.486432 | DF18: =Input!BM282 -> 220.8161606 | DG18: =Input!BI316 -> 225.2324839 | DH18: =Input!BJ316 -> 229.7371335 | DI18: =Input!BK316 -> 234.3318762 | DJ18: =Input!BL316 -> 239.0185137 | DK18: =Input!BM316 -> 243.798884
E19: =Input!E283 -> Small Business C | F19: =Input!F283 -> 20000 | G19: =Input!G283 -> 20400 | H19: =Input!H283 -> 20808 | I19: =Input!I283 -> 21224.16 | J19: =Input!J283 -> 21648.6432 | K19: =Input!K283 -> 22081.61606 | L19: =Input!G317 -> 22523.24839 | M19: =Input!H317 -> 22973.71335 | N19: =Input!I317 -> 23433.18762 | O19: =Input!J317 -> 23901.85137 | P19: =Input!K317 -> 24379.8884 | Q19: =Input!L283 -> 0 | R19: =Input!M283 -> 0 | S19: =Input!N283 -> 0 | T19: =Input!O283 -> 0 | U19: =Input!P283 -> 0 | V19: =Input!Q283 -> 0 | W19: =Input!M317 -> 0 | X19: =Input!N317 -> 0 | Y19: =Input!O317 -> 0 | Z19: =Input!P317 -> 0 | AA19: =Input!Q317 -> 0 | AB19: =Input!R283 -> 5000000 | AC19: =Input!S283 -> 5100000 | AD19: =Input!T283 -> 5202000 | AE19: =Input!U283 -> 5306040 | AF19: =Input!V283 -> 5412160.8 | AG19: =Input!W283 -> 5520404.016 | AH19: =Input!S317 -> 5630812.096 | AI19: =Input!T317 -> 5743428.338 | AJ19: =Input!U317 -> 5858296.905 | AK19: =Input!V317 -> 5975462.843 | AL19: =Input!W317 -> 6094972.1 | AM19: =Input!X283 -> 2500000 | AN19: =Input!Y283 -> 2550000 | AO19: =Input!Z283 -> 2601000 | AP19: =Input!AA283 -> 2653020 | AQ19: =Input!AB283 -> 2706080.4 | AR19: =Input!AC283 -> 2760202.008 | AS19: =Input!Y317 -> 2815406.048 | AT19: =Input!Z317 -> 2871714.169 | AU19: =Input!AA317 -> 2929148.453 | AV19: =Input!AB317 -> 2987731.422 | AW19: =Input!AC317 -> 3047486.05 | AX19: =Input!AD283 -> 1000000 | AY19: =Input!AE283 -> 1020000 | AZ19: =Input!AF283 -> 1040400 | BA19: =Input!AG283 -> 1061208 | BB19: =Input!AH283 -> 1082432.16 | BC19: =Input!AI283 -> 1104080.803 | BD19: =Input!AE317 -> 1126162.419 | BE19: =Input!AF317 -> 1148685.668 | BF19: =Input!AG317 -> 1171659.381 | BG19: =Input!AH317 -> 1195092.569 | BH19: =Input!AI317 -> 1218994.42 | BI19: =Input!AJ283 -> 500000 | BJ19: =Input!AK283 -> 510000 | BK19: =Input!AL283 -> 520200 | BL19: =Input!AM283 -> 530604 | BM19: =Input!AN283 -> 541216.08 | BN19: =Input!AO283 -> 552040.4016 | BO19: =Input!AK317 -> 563081.2096 | BP19: =Input!AL317 -> 574342.8338 | BQ19: =Input!AM317 -> 585829.6905 | BR19: =Input!AN317 -> 597546.2843 | BS19: =Input!AO317 -> 609497.21 | BT19: =Input!AP283 -> 10000 | BU19: =Input!AQ283 -> 10200 | BV19: =Input!AR283 -> 10404 | BW19: =Input!AS283 -> 10612.08 | BX19: =Input!AT283 -> 10824.3216 | BY19: =Input!AU283 -> 11040.80803 | BZ19: =Input!AQ317 -> 11261.62419 | CA19: =Input!AR317 -> 11486.85668 | CB19: =Input!AS317 -> 11716.59381 | CC19: =Input!AT317 -> 11950.92569 | CD19: =Input!AU317 -> 12189.9442 | CE19: =Input!AV283 -> 2000 | CF19: =Input!AW283 -> 2040 | CG19: =Input!AX283 -> 2080.8 | CH19: =Input!AY283 -> 2122.416 | CI19: =Input!AZ283 -> 2164.86432 | CJ19: =Input!BA283 -> 2208.161606 | CK19: =Input!AW317 -> 2252.324839 | CL19: =Input!AX317 -> 2297.371335 | CM19: =Input!AY317 -> 2343.318762 | CN19: =Input!AZ317 -> 2390.185137 | CO19: =Input!BA317 -> 2437.98884 | CP19: =Input!BB283 -> 5000 | CQ19: =Input!BC283 -> 5100 | CR19: =Input!BD283 -> 5202 | CS19: =Input!BE283 -> 5306.04 | CT19: =Input!BF283 -> 5412.1608 | CU19: =Input!BG283 -> 5520.404016 | CV19: =Input!BC317 -> 5630.812096 | CW19: =Input!BD317 -> 5743.428338 | CX19: =Input!BE317 -> 5858.296905 | CY19: =Input!BF317 -> 5975.462843 | CZ19: =Input!BG317 -> 6094.9721 | DA19: =Input!BH283 -> 200 | DB19: =Input!BI283 -> 204 | DC19: =Input!BJ283 -> 208.08 | DD19: =Input!BK283 -> 212.2416 | DE19: =Input!BL283 -> 216.486432 | DF19: =Input!BM283 -> 220.8161606 | DG19: =Input!BI317 -> 225.2324839 | DH19: =Input!BJ317 -> 229.7371335 | DI19: =Input!BK317 -> 234.3318762 | DJ19: =Input!BL317 -> 239.0185137 | DK19: =Input!BM317 -> 243.798884
E20: =Input!E284 -> Large Business A | F20: =Input!F284 -> 10000 | G20: =Input!G284 -> 10200 | H20: =Input!H284 -> 10404 | I20: =Input!I284 -> 10612.08 | J20: =Input!J284 -> 10824.3216 | K20: =Input!K284 -> 11040.80803 | L20: =Input!G318 -> 11261.62419 | M20: =Input!H318 -> 11486.85668 | N20: =Input!I318 -> 11716.59381 | O20: =Input!J318 -> 11950.92569 | P20: =Input!K318 -> 12189.9442 | Q20: =Input!L284 -> 0 | R20: =Input!M284 -> 0 | S20: =Input!N284 -> 0 | T20: =Input!O284 -> 0 | U20: =Input!P284 -> 0 | V20: =Input!Q284 -> 0 | W20: =Input!M318 -> 0 | X20: =Input!N318 -> 0 | Y20: =Input!O318 -> 0 | Z20: =Input!P318 -> 0 | AA20: =Input!Q318 -> 0 | AB20: =Input!R284 -> 5000000 | AC20: =Input!S284 -> 5100000 | AD20: =Input!T284 -> 5202000 | AE20: =Input!U284 -> 5306040 | AF20: =Input!V284 -> 5412160.8 | AG20: =Input!W284 -> 5520404.016 | AH20: =Input!S318 -> 5630812.096 | AI20: =Input!T318 -> 5743428.338 | AJ20: =Input!U318 -> 5858296.905 | AK20: =Input!V318 -> 5975462.843 | AL20: =Input!W318 -> 6094972.1 | AM20: =Input!X284 -> 2500000 | AN20: =Input!Y284 -> 2550000 | AO20: =Input!Z284 -> 2601000 | AP20: =Input!AA284 -> 2653020 | AQ20: =Input!AB284 -> 2706080.4 | AR20: =Input!AC284 -> 2760202.008 | AS20: =Input!Y318 -> 2815406.048 | AT20: =Input!Z318 -> 2871714.169 | AU20: =Input!AA318 -> 2929148.453 | AV20: =Input!AB318 -> 2987731.422 | AW20: =Input!AC318 -> 3047486.05 | AX20: =Input!AD284 -> 1000000 | AY20: =Input!AE284 -> 1020000 | AZ20: =Input!AF284 -> 1040400 | BA20: =Input!AG284 -> 1061208 | BB20: =Input!AH284 -> 1082432.16 | BC20: =Input!AI284 -> 1104080.803 | BD20: =Input!AE318 -> 1126162.419 | BE20: =Input!AF318 -> 1148685.668 | BF20: =Input!AG318 -> 1171659.381 | BG20: =Input!AH318 -> 1195092.569 | BH20: =Input!AI318 -> 1218994.42 | BI20: =Input!AJ284 -> 500000 | BJ20: =Input!AK284 -> 510000 | BK20: =Input!AL284 -> 520200 | BL20: =Input!AM284 -> 530604 | BM20: =Input!AN284 -> 541216.08 | BN20: =Input!AO284 -> 552040.4016 | BO20: =Input!AK318 -> 563081.2096 | BP20: =Input!AL318 -> 574342.8338 | BQ20: =Input!AM318 -> 585829.6905 | BR20: =Input!AN318 -> 597546.2843 | BS20: =Input!AO318 -> 609497.21 | BT20: =Input!AP284 -> 10000 | BU20: =Input!AQ284 -> 10200 | BV20: =Input!AR284 -> 10404 | BW20: =Input!AS284 -> 10612.08 | BX20: =Input!AT284 -> 10824.3216 | BY20: =Input!AU284 -> 11040.80803 | BZ20: =Input!AQ318 -> 11261.62419 | CA20: =Input!AR318 -> 11486.85668 | CB20: =Input!AS318 -> 11716.59381 | CC20: =Input!AT318 -> 11950.92569 | CD20: =Input!AU318 -> 12189.9442 | CE20: =Input!AV284 -> 2000 | CF20: =Input!AW284 -> 2040 | CG20: =Input!AX284 -> 2080.8 | CH20: =Input!AY284 -> 2122.416 | CI20: =Input!AZ284 -> 2164.86432 | CJ20: =Input!BA284 -> 2208.161606 | CK20: =Input!AW318 -> 2252.324839 | CL20: =Input!AX318 -> 2297.371335 | CM20: =Input!AY318 -> 2343.318762 | CN20: =Input!AZ318 -> 2390.185137 | CO20: =Input!BA318 -> 2437.98884 | CP20: =Input!BB284 -> 5000 | CQ20: =Input!BC284 -> 5100 | CR20: =Input!BD284 -> 5202 | CS20: =Input!BE284 -> 5306.04 | CT20: =Input!BF284 -> 5412.1608 | CU20: =Input!BG284 -> 5520.404016 | CV20: =Input!BC318 -> 5630.812096 | CW20: =Input!BD318 -> 5743.428338 | CX20: =Input!BE318 -> 5858.296905 | CY20: =Input!BF318 -> 5975.462843 | CZ20: =Input!BG318 -> 6094.9721 | DA20: =Input!BH284 -> 200 | DB20: =Input!BI284 -> 204 | DC20: =Input!BJ284 -> 208.08 | DD20: =Input!BK284 -> 212.2416 | DE20: =Input!BL284 -> 216.486432 | DF20: =Input!BM284 -> 220.8161606 | DG20: =Input!BI318 -> 225.2324839 | DH20: =Input!BJ318 -> 229.7371335 | DI20: =Input!BK318 -> 234.3318762 | DJ20: =Input!BL318 -> 239.0185137 | DK20: =Input!BM318 -> 243.798884
E21: =Input!E285 -> Large Business B | F21: =Input!F285 -> 10000 | G21: =Input!G285 -> 10200 | H21: =Input!H285 -> 10404 | I21: =Input!I285 -> 10612.08 | J21: =Input!J285 -> 10824.3216 | K21: =Input!K285 -> 11040.80803 | L21: =Input!G319 -> 11261.62419 | M21: =Input!H319 -> 11486.85668 | N21: =Input!I319 -> 11716.59381 | O21: =Input!J319 -> 11950.92569 | P21: =Input!K319 -> 12189.9442 | Q21: =Input!L285 -> 0 | R21: =Input!M285 -> 0 | S21: =Input!N285 -> 0 | T21: =Input!O285 -> 0 | U21: =Input!P285 -> 0 | V21: =Input!Q285 -> 0 | W21: =Input!M319 -> 0 | X21: =Input!N319 -> 0 | Y21: =Input!O319 -> 0 | Z21: =Input!P319 -> 0 | AA21: =Input!Q319 -> 0 | AB21: =Input!R285 -> 5000000 | AC21: =Input!S285 -> 5100000 | AD21: =Input!T285 -> 5202000 | AE21: =Input!U285 -> 5306040 | AF21: =Input!V285 -> 5412160.8 | AG21: =Input!W285 -> 5520404.016 | AH21: =Input!S319 -> 5630812.096 | AI21: =Input!T319 -> 5743428.338 | AJ21: =Input!U319 -> 5858296.905 | AK21: =Input!V319 -> 5975462.843 | AL21: =Input!W319 -> 6094972.1 | AM21: =Input!X285 -> 2500000 | AN21: =Input!Y285 -> 2550000 | AO21: =Input!Z285 -> 2601000 | AP21: =Input!AA285 -> 2653020 | AQ21: =Input!AB285 -> 2706080.4 | AR21: =Input!AC285 -> 2760202.008 | AS21: =Input!Y319 -> 2815406.048 | AT21: =Input!Z319 -> 2871714.169 | AU21: =Input!AA319 -> 2929148.453 | AV21: =Input!AB319 -> 2987731.422 | AW21: =Input!AC319 -> 3047486.05 | AX21: =Input!AD285 -> 1000000 | AY21: =Input!AE285 -> 1020000 | AZ21: =Input!AF285 -> 1040400 | BA21: =Input!AG285 -> 1061208 | BB21: =Input!AH285 -> 1082432.16 | BC21: =Input!AI285 -> 1104080.803 | BD21: =Input!AE319 -> 1126162.419 | BE21: =Input!AF319 -> 1148685.668 | BF21: =Input!AG319 -> 1171659.381 | BG21: =Input!AH319 -> 1195092.569 | BH21: =Input!AI319 -> 1218994.42 | BI21: =Input!AJ285 -> 500000 | BJ21: =Input!AK285 -> 510000 | BK21: =Input!AL285 -> 520200 | BL21: =Input!AM285 -> 530604 | BM21: =Input!AN285 -> 541216.08 | BN21: =Input!AO285 -> 552040.4016 | BO21: =Input!AK319 -> 563081.2096 | BP21: =Input!AL319 -> 574342.8338 | BQ21: =Input!AM319 -> 585829.6905 | BR21: =Input!AN319 -> 597546.2843 | BS21: =Input!AO319 -> 609497.21 | BT21: =Input!AP285 -> 10000 | BU21: =Input!AQ285 -> 10200 | BV21: =Input!AR285 -> 10404 | BW21: =Input!AS285 -> 10612.08 | BX21: =Input!AT285 -> 10824.3216 | BY21: =Input!AU285 -> 11040.80803 | BZ21: =Input!AQ319 -> 11261.62419 | CA21: =Input!AR319 -> 11486.85668 | CB21: =Input!AS319 -> 11716.59381 | CC21: =Input!AT319 -> 11950.92569 | CD21: =Input!AU319 -> 12189.9442 | CE21: =Input!AV285 -> 2000 | CF21: =Input!AW285 -> 2040 | CG21: =Input!AX285 -> 2080.8 | CH21: =Input!AY285 -> 2122.416 | CI21: =Input!AZ285 -> 2164.86432 | CJ21: =Input!BA285 -> 2208.161606 | CK21: =Input!AW319 -> 2252.324839 | CL21: =Input!AX319 -> 2297.371335 | CM21: =Input!AY319 -> 2343.318762 | CN21: =Input!AZ319 -> 2390.185137 | CO21: =Input!BA319 -> 2437.98884 | CP21: =Input!BB285 -> 5000 | CQ21: =Input!BC285 -> 5100 | CR21: =Input!BD285 -> 5202 | CS21: =Input!BE285 -> 5306.04 | CT21: =Input!BF285 -> 5412.1608 | CU21: =Input!BG285 -> 5520.404016 | CV21: =Input!BC319 -> 5630.812096 | CW21: =Input!BD319 -> 5743.428338 | CX21: =Input!BE319 -> 5858.296905 | CY21: =Input!BF319 -> 5975.462843 | CZ21: =Input!BG319 -> 6094.9721 | DA21: =Input!BH285 -> 200 | DB21: =Input!BI285 -> 204 | DC21: =Input!BJ285 -> 208.08 | DD21: =Input!BK285 -> 212.2416 | DE21: =Input!BL285 -> 216.486432 | DF21: =Input!BM285 -> 220.8161606 | DG21: =Input!BI319 -> 225.2324839 | DH21: =Input!BJ319 -> 229.7371335 | DI21: =Input!BK319 -> 234.3318762 | DJ21: =Input!BL319 -> 239.0185137 | DK21: =Input!BM319 -> 243.798884
E22: =Input!E286 -> Large Business C | F22: =Input!F286 -> 10000 | G22: =Input!G286 -> 10200 | H22: =Input!H286 -> 10404 | I22: =Input!I286 -> 10612.08 | J22: =Input!J286 -> 10824.3216 | K22: =Input!K286 -> 11040.80803 | L22: =Input!G320 -> 11261.62419 | M22: =Input!H320 -> 11486.85668 | N22: =Input!I320 -> 11716.59381 | O22: =Input!J320 -> 11950.92569 | P22: =Input!K320 -> 12189.9442 | Q22: =Input!L286 -> 0 | R22: =Input!M286 -> 0 | S22: =Input!N286 -> 0 | T22: =Input!O286 -> 0 | U22: =Input!P286 -> 0 | V22: =Input!Q286 -> 0 | W22: =Input!M320 -> 0 | X22: =Input!N320 -> 0 | Y22: =Input!O320 -> 0 | Z22: =Input!P320 -> 0 | AA22: =Input!Q320 -> 0 | AB22: =Input!R286 -> 5000000 | AC22: =Input!S286 -> 5100000 | AD22: =Input!T286 -> 5202000 | AE22: =Input!U286 -> 5306040 | AF22: =Input!V286 -> 5412160.8 | AG22: =Input!W286 -> 5520404.016 | AH22: =Input!S320 -> 5630812.096 | AI22: =Input!T320 -> 5743428.338 | AJ22: =Input!U320 -> 5858296.905 | AK22: =Input!V320 -> 5975462.843 | AL22: =Input!W320 -> 6094972.1 | AM22: =Input!X286 -> 2500000 | AN22: =Input!Y286 -> 2550000 | AO22: =Input!Z286 -> 2601000 | AP22: =Input!AA286 -> 2653020 | AQ22: =Input!AB286 -> 2706080.4 | AR22: =Input!AC286 -> 2760202.008 | AS22: =Input!Y320 -> 2815406.048 | AT22: =Input!Z320 -> 2871714.169 | AU22: =Input!AA320 -> 2929148.453 | AV22: =Input!AB320 -> 2987731.422 | AW22: =Input!AC320 -> 3047486.05 | AX22: =Input!AD286 -> 1000000 | AY22: =Input!AE286 -> 1020000 | AZ22: =Input!AF286 -> 1040400 | BA22: =Input!AG286 -> 1061208 | BB22: =Input!AH286 -> 1082432.16 | BC22: =Input!AI286 -> 1104080.803 | BD22: =Input!AE320 -> 1126162.419 | BE22: =Input!AF320 -> 1148685.668 | BF22: =Input!AG320 -> 1171659.381 | BG22: =Input!AH320 -> 1195092.569 | BH22: =Input!AI320 -> 1218994.42 | BI22: =Input!AJ286 -> 500000 | BJ22: =Input!AK286 -> 510000 | BK22: =Input!AL286 -> 520200 | BL22: =Input!AM286 -> 530604 | BM22: =Input!AN286 -> 541216.08 | BN22: =Input!AO286 -> 552040.4016 | BO22: =Input!AK320 -> 563081.2096 | BP22: =Input!AL320 -> 574342.8338 | BQ22: =Input!AM320 -> 585829.6905 | BR22: =Input!AN320 -> 597546.2843 | BS22: =Input!AO320 -> 609497.21 | BT22: =Input!AP286 -> 10000 | BU22: =Input!AQ286 -> 10200 | BV22: =Input!AR286 -> 10404 | BW22: =Input!AS286 -> 10612.08 | BX22: =Input!AT286 -> 10824.3216 | BY22: =Input!AU286 -> 11040.80803 | BZ22: =Input!AQ320 -> 11261.62419 | CA22: =Input!AR320 -> 11486.85668 | CB22: =Input!AS320 -> 11716.59381 | CC22: =Input!AT320 -> 11950.92569 | CD22: =Input!AU320 -> 12189.9442 | CE22: =Input!AV286 -> 2000 | CF22: =Input!AW286 -> 2040 | CG22: =Input!AX286 -> 2080.8 | CH22: =Input!AY286 -> 2122.416 | CI22: =Input!AZ286 -> 2164.86432 | CJ22: =Input!BA286 -> 2208.161606 | CK22: =Input!AW320 -> 2252.324839 | CL22: =Input!AX320 -> 2297.371335 | CM22: =Input!AY320 -> 2343.318762 | CN22: =Input!AZ320 -> 2390.185137 | CO22: =Input!BA320 -> 2437.98884 | CP22: =Input!BB286 -> 5000 | CQ22: =Input!BC286 -> 5100 | CR22: =Input!BD286 -> 5202 | CS22: =Input!BE286 -> 5306.04 | CT22: =Input!BF286 -> 5412.1608 | CU22: =Input!BG286 -> 5520.404016 | CV22: =Input!BC320 -> 5630.812096 | CW22: =Input!BD320 -> 5743.428338 | CX22: =Input!BE320 -> 5858.296905 | CY22: =Input!BF320 -> 5975.462843 | CZ22: =Input!BG320 -> 6094.9721 | DA22: =Input!BH286 -> 200 | DB22: =Input!BI286 -> 204 | DC22: =Input!BJ286 -> 208.08 | DD22: =Input!BK286 -> 212.2416 | DE22: =Input!BL286 -> 216.486432 | DF22: =Input!BM286 -> 220.8161606 | DG22: =Input!BI320 -> 225.2324839 | DH22: =Input!BJ320 -> 229.7371335 | DI22: =Input!BK320 -> 234.3318762 | DJ22: =Input!BL320 -> 239.0185137 | DK22: =Input!BM320 -> 243.798884
E23: =Input!E287 -> 0 | F23: =Input!F287 -> 0 | G23: =Input!G287 -> 0 | H23: =Input!H287 -> 0 | I23: =Input!I287 -> 0 | J23: =Input!J287 -> 0 | K23: =Input!K287 -> 0 | L23: =Input!G321 -> 0 | M23: =Input!H321 -> 0 | N23: =Input!I321 -> 0 | O23: =Input!J321 -> 0 | P23: =Input!K321 -> 0 | Q23: =Input!L287 -> 0 | R23: =Input!M287 -> 0 | S23: =Input!N287 -> 0 | T23: =Input!O287 -> 0 | U23: =Input!P287 -> 0 | V23: =Input!Q287 -> 0 | W23: =Input!M321 -> 0 | X23: =Input!N321 -> 0 | Y23: =Input!O321 -> 0 | Z23: =Input!P321 -> 0 | AA23: =Input!Q321 -> 0 | AB23: =Input!R287 -> 0 | AC23: =Input!S287 -> 0 | AD23: =Input!T287 -> 0 | AE23: =Input!U287 -> 0 | AF23: =Input!V287 -> 0 | AG23: =Input!W287 -> 0 | AH23: =Input!S321 -> 0 | AI23: =Input!T321 -> 0 | AJ23: =Input!U321 -> 0 | AK23: =Input!V321 -> 0 | AL23: =Input!W321 -> 0 | AM23: =Input!X287 -> 0 | AN23: =Input!Y287 -> 0 | AO23: =Input!Z287 -> 0 | AP23: =Input!AA287 -> 0 | AQ23: =Input!AB287 -> 0 | AR23: =Input!AC287 -> 0 | AS23: =Input!Y321 -> 0 | AT23: =Input!Z321 -> 0 | AU23: =Input!AA321 -> 0 | AV23: =Input!AB321 -> 0 | AW23: =Input!AC321 -> 0 | AX23: =Input!AD287 -> 0 | AY23: =Input!AE287 -> 0 | AZ23: =Input!AF287 -> 0 | BA23: =Input!AG287 -> 0 | BB23: =Input!AH287 -> 0 | BC23: =Input!AI287 -> 0 | BD23: =Input!AE321 -> 0 | BE23: =Input!AF321 -> 0 | BF23: =Input!AG321 -> 0 | BG23: =Input!AH321 -> 0 | BH23: =Input!AI321 -> 0 | BI23: =Input!AJ287 -> 0 | BJ23: =Input!AK287 -> 0 | BK23: =Input!AL287 -> 0 | BL23: =Input!AM287 -> 0 | BM23: =Input!AN287 -> 0 | BN23: =Input!AO287 -> 0 | BO23: =Input!AK321 -> 0 | BP23: =Input!AL321 -> 0 | BQ23: =Input!AM321 -> 0 | BR23: =Input!AN321 -> 0 | BS23: =Input!AO321 -> 0 | BT23: =Input!AP287 -> 0 | BU23: =Input!AQ287 -> 0 | BV23: =Input!AR287 -> 0 | BW23: =Input!AS287 -> 0 | BX23: =Input!AT287 -> 0 | BY23: =Input!AU287 -> 0 | BZ23: =Input!AQ321 -> 0 | CA23: =Input!AR321 -> 0 | CB23: =Input!AS321 -> 0 | CC23: =Input!AT321 -> 0 | CD23: =Input!AU321 -> 0 | CE23: =Input!AV287 -> 0 | CF23: =Input!AW287 -> 0 | CG23: =Input!AX287 -> 0 | CH23: =Input!AY287 -> 0 | CI23: =Input!AZ287 -> 0 | CJ23: =Input!BA287 -> 0 | CK23: =Input!AW321 -> 0 | CL23: =Input!AX321 -> 0 | CM23: =Input!AY321 -> 0 | CN23: =Input!AZ321 -> 0 | CO23: =Input!BA321 -> 0 | CP23: =Input!BB287 -> 0 | CQ23: =Input!BC287 -> 0 | CR23: =Input!BD287 -> 0 | CS23: =Input!BE287 -> 0 | CT23: =Input!BF287 -> 0 | CU23: =Input!BG287 -> 0 | CV23: =Input!BC321 -> 0 | CW23: =Input!BD321 -> 0 | CX23: =Input!BE321 -> 0 | CY23: =Input!BF321 -> 0 | CZ23: =Input!BG321 -> 0 | DA23: =Input!BH287 -> 0 | DB23: =Input!BI287 -> 0 | DC23: =Input!BJ287 -> 0 | DD23: =Input!BK287 -> 0 | DE23: =Input!BL287 -> 0 | DF23: =Input!BM287 -> 0 | DG23: =Input!BI321 -> 0 | DH23: =Input!BJ321 -> 0 | DI23: =Input!BK321 -> 0 | DJ23: =Input!BL321 -> 0 | DK23: =Input!BM321 -> 0
E24: =Input!E288 -> 0 | F24: =Input!F288 -> 0 | G24: =Input!G288 -> 0 | H24: =Input!H288 -> 0 | I24: =Input!I288 -> 0 | J24: =Input!J288 -> 0 | K24: =Input!K288 -> 0 | L24: =Input!G322 -> 0 | M24: =Input!H322 -> 0 | N24: =Input!I322 -> 0 | O24: =Input!J322 -> 0 | P24: =Input!K322 -> 0 | Q24: =Input!L288 -> 0 | R24: =Input!M288 -> 0 | S24: =Input!N288 -> 0 | T24: =Input!O288 -> 0 | U24: =Input!P288 -> 0 | V24: =Input!Q288 -> 0 | W24: =Input!M322 -> 0 | X24: =Input!N322 -> 0 | Y24: =Input!O322 -> 0 | Z24: =Input!P322 -> 0 | AA24: =Input!Q322 -> 0 | AB24: =Input!R288 -> 0 | AC24: =Input!S288 -> 0 | AD24: =Input!T288 -> 0 | AE24: =Input!U288 -> 0 | AF24: =Input!V288 -> 0 | AG24: =Input!W288 -> 0 | AH24: =Input!S322 -> 0 | AI24: =Input!T322 -> 0 | AJ24: =Input!U322 -> 0 | AK24: =Input!V322 -> 0 | AL24: =Input!W322 -> 0 | AM24: =Input!X288 -> 0 | AN24: =Input!Y288 -> 0 | AO24: =Input!Z288 -> 0 | AP24: =Input!AA288 -> 0 | AQ24: =Input!AB288 -> 0 | AR24: =Input!AC288 -> 0 | AS24: =Input!Y322 -> 0 | AT24: =Input!Z322 -> 0 | AU24: =Input!AA322 -> 0 | AV24: =Input!AB322 -> 0 | AW24: =Input!AC322 -> 0 | AX24: =Input!AD288 -> 0 | AY24: =Input!AE288 -> 0 | AZ24: =Input!AF288 -> 0 | BA24: =Input!AG288 -> 0 | BB24: =Input!AH288 -> 0 | BC24: =Input!AI288 -> 0 | BD24: =Input!AE322 -> 0 | BE24: =Input!AF322 -> 0 | BF24: =Input!AG322 -> 0 | BG24: =Input!AH322 -> 0 | BH24: =Input!AI322 -> 0 | BI24: =Input!AJ288 -> 0 | BJ24: =Input!AK288 -> 0 | BK24: =Input!AL288 -> 0 | BL24: =Input!AM288 -> 0 | BM24: =Input!AN288 -> 0 | BN24: =Input!AO288 -> 0 | BO24: =Input!AK322 -> 0 | BP24: =Input!AL322 -> 0 | BQ24: =Input!AM322 -> 0 | BR24: =Input!AN322 -> 0 | BS24: =Input!AO322 -> 0 | BT24: =Input!AP288 -> 0 | BU24: =Input!AQ288 -> 0 | BV24: =Input!AR288 -> 0 | BW24: =Input!AS288 -> 0 | BX24: =Input!AT288 -> 0 | BY24: =Input!AU288 -> 0 | BZ24: =Input!AQ322 -> 0 | CA24: =Input!AR322 -> 0 | CB24: =Input!AS322 -> 0 | CC24: =Input!AT322 -> 0 | CD24: =Input!AU322 -> 0 | CE24: =Input!AV288 -> 0 | CF24: =Input!AW288 -> 0 | CG24: =Input!AX288 -> 0 | CH24: =Input!AY288 -> 0 | CI24: =Input!AZ288 -> 0 | CJ24: =Input!BA288 -> 0 | CK24: =Input!AW322 -> 0 | CL24: =Input!AX322 -> 0 | CM24: =Input!AY322 -> 0 | CN24: =Input!AZ322 -> 0 | CO24: =Input!BA322 -> 0 | CP24: =Input!BB288 -> 0 | CQ24: =Input!BC288 -> 0 | CR24: =Input!BD288 -> 0 | CS24: =Input!BE288 -> 0 | CT24: =Input!BF288 -> 0 | CU24: =Input!BG288 -> 0 | CV24: =Input!BC322 -> 0 | CW24: =Input!BD322 -> 0 | CX24: =Input!BE322 -> 0 | CY24: =Input!BF322 -> 0 | CZ24: =Input!BG322 -> 0 | DA24: =Input!BH288 -> 0 | DB24: =Input!BI288 -> 0 | DC24: =Input!BJ288 -> 0 | DD24: =Input!BK288 -> 0 | DE24: =Input!BL288 -> 0 | DF24: =Input!BM288 -> 0 | DG24: =Input!BI322 -> 0 | DH24: =Input!BJ322 -> 0 | DI24: =Input!BK322 -> 0 | DJ24: =Input!BL322 -> 0 | DK24: =Input!BM322 -> 0
E25: =Input!E289 -> 0 | F25: =Input!F289 -> 0 | G25: =Input!G289 -> 0 | H25: =Input!H289 -> 0 | I25: =Input!I289 -> 0 | J25: =Input!J289 -> 0 | K25: =Input!K289 -> 0 | L25: =Input!G323 -> 0 | M25: =Input!H323 -> 0 | N25: =Input!I323 -> 0 | O25: =Input!J323 -> 0 | P25: =Input!K323 -> 0 | Q25: =Input!L289 -> 0 | R25: =Input!M289 -> 0 | S25: =Input!N289 -> 0 | T25: =Input!O289 -> 0 | U25: =Input!P289 -> 0 | V25: =Input!Q289 -> 0 | W25: =Input!M323 -> 0 | X25: =Input!N323 -> 0 | Y25: =Input!O323 -> 0 | Z25: =Input!P323 -> 0 | AA25: =Input!Q323 -> 0 | AB25: =Input!R289 -> 0 | AC25: =Input!S289 -> 0 | AD25: =Input!T289 -> 0 | AE25: =Input!U289 -> 0 | AF25: =Input!V289 -> 0 | AG25: =Input!W289 -> 0 | AH25: =Input!S323 -> 0 | AI25: =Input!T323 -> 0 | AJ25: =Input!U323 -> 0 | AK25: =Input!V323 -> 0 | AL25: =Input!W323 -> 0 | AM25: =Input!X289 -> 0 | AN25: =Input!Y289 -> 0 | AO25: =Input!Z289 -> 0 | AP25: =Input!AA289 -> 0 | AQ25: =Input!AB289 -> 0 | AR25: =Input!AC289 -> 0 | AS25: =Input!Y323 -> 0 | AT25: =Input!Z323 -> 0 | AU25: =Input!AA323 -> 0 | AV25: =Input!AB323 -> 0 | AW25: =Input!AC323 -> 0 | AX25: =Input!AD289 -> 0 | AY25: =Input!AE289 -> 0 | AZ25: =Input!AF289 -> 0 | BA25: =Input!AG289 -> 0 | BB25: =Input!AH289 -> 0 | BC25: =Input!AI289 -> 0 | BD25: =Input!AE323 -> 0 | BE25: =Input!AF323 -> 0 | BF25: =Input!AG323 -> 0 | BG25: =Input!AH323 -> 0 | BH25: =Input!AI323 -> 0 | BI25: =Input!AJ289 -> 0 | BJ25: =Input!AK289 -> 0 | BK25: =Input!AL289 -> 0 | BL25: =Input!AM289 -> 0 | BM25: =Input!AN289 -> 0 | BN25: =Input!AO289 -> 0 | BO25: =Input!AK323 -> 0 | BP25: =Input!AL323 -> 0 | BQ25: =Input!AM323 -> 0 | BR25: =Input!AN323 -> 0 | BS25: =Input!AO323 -> 0 | BT25: =Input!AP289 -> 0 | BU25: =Input!AQ289 -> 0 | BV25: =Input!AR289 -> 0 | BW25: =Input!AS289 -> 0 | BX25: =Input!AT289 -> 0 | BY25: =Input!AU289 -> 0 | BZ25: =Input!AQ323 -> 0 | CA25: =Input!AR323 -> 0 | CB25: =Input!AS323 -> 0 | CC25: =Input!AT323 -> 0 | CD25: =Input!AU323 -> 0 | CE25: =Input!AV289 -> 0 | CF25: =Input!AW289 -> 0 | CG25: =Input!AX289 -> 0 | CH25: =Input!AY289 -> 0 | CI25: =Input!AZ289 -> 0 | CJ25: =Input!BA289 -> 0 | CK25: =Input!AW323 -> 0 | CL25: =Input!AX323 -> 0 | CM25: =Input!AY323 -> 0 | CN25: =Input!AZ323 -> 0 | CO25: =Input!BA323 -> 0 | CP25: =Input!BB289 -> 0 | CQ25: =Input!BC289 -> 0 | CR25: =Input!BD289 -> 0 | CS25: =Input!BE289 -> 0 | CT25: =Input!BF289 -> 0 | CU25: =Input!BG289 -> 0 | CV25: =Input!BC323 -> 0 | CW25: =Input!BD323 -> 0 | CX25: =Input!BE323 -> 0 | CY25: =Input!BF323 -> 0 | CZ25: =Input!BG323 -> 0 | DA25: =Input!BH289 -> 0 | DB25: =Input!BI289 -> 0 | DC25: =Input!BJ289 -> 0 | DD25: =Input!BK289 -> 0 | DE25: =Input!BL289 -> 0 | DF25: =Input!BM289 -> 0 | DG25: =Input!BI323 -> 0 | DH25: =Input!BJ323 -> 0 | DI25: =Input!BK323 -> 0 | DJ25: =Input!BL323 -> 0 | DK25: =Input!BM323 -> 0
E26: =Input!E290 -> 0 | F26: =Input!F290 -> 0 | G26: =Input!G290 -> 0 | H26: =Input!H290 -> 0 | I26: =Input!I290 -> 0 | J26: =Input!J290 -> 0 | K26: =Input!K290 -> 0 | L26: =Input!G324 -> 0 | M26: =Input!H324 -> 0 | N26: =Input!I324 -> 0 | O26: =Input!J324 -> 0 | P26: =Input!K324 -> 0 | Q26: =Input!L290 -> 0 | R26: =Input!M290 -> 0 | S26: =Input!N290 -> 0 | T26: =Input!O290 -> 0 | U26: =Input!P290 -> 0 | V26: =Input!Q290 -> 0 | W26: =Input!M324 -> 0 | X26: =Input!N324 -> 0 | Y26: =Input!O324 -> 0 | Z26: =Input!P324 -> 0 | AA26: =Input!Q324 -> 0 | AB26: =Input!R290 -> 0 | AC26: =Input!S290 -> 0 | AD26: =Input!T290 -> 0 | AE26: =Input!U290 -> 0 | AF26: =Input!V290 -> 0 | AG26: =Input!W290 -> 0 | AH26: =Input!S324 -> 0 | AI26: =Input!T324 -> 0 | AJ26: =Input!U324 -> 0 | AK26: =Input!V324 -> 0 | AL26: =Input!W324 -> 0 | AM26: =Input!X290 -> 0 | AN26: =Input!Y290 -> 0 | AO26: =Input!Z290 -> 0 | AP26: =Input!AA290 -> 0 | AQ26: =Input!AB290 -> 0 | AR26: =Input!AC290 -> 0 | AS26: =Input!Y324 -> 0 | AT26: =Input!Z324 -> 0 | AU26: =Input!AA324 -> 0 | AV26: =Input!AB324 -> 0 | AW26: =Input!AC324 -> 0 | AX26: =Input!AD290 -> 0 | AY26: =Input!AE290 -> 0 | AZ26: =Input!AF290 -> 0 | BA26: =Input!AG290 -> 0 | BB26: =Input!AH290 -> 0 | BC26: =Input!AI290 -> 0 | BD26: =Input!AE324 -> 0 | BE26: =Input!AF324 -> 0 | BF26: =Input!AG324 -> 0 | BG26: =Input!AH324 -> 0 | BH26: =Input!AI324 -> 0 | BI26: =Input!AJ290 -> 0 | BJ26: =Input!AK290 -> 0 | BK26: =Input!AL290 -> 0 | BL26: =Input!AM290 -> 0 | BM26: =Input!AN290 -> 0 | BN26: =Input!AO290 -> 0 | BO26: =Input!AK324 -> 0 | BP26: =Input!AL324 -> 0 | BQ26: =Input!AM324 -> 0 | BR26: =Input!AN324 -> 0 | BS26: =Input!AO324 -> 0 | BT26: =Input!AP290 -> 0 | BU26: =Input!AQ290 -> 0 | BV26: =Input!AR290 -> 0 | BW26: =Input!AS290 -> 0 | BX26: =Input!AT290 -> 0 | BY26: =Input!AU290 -> 0 | BZ26: =Input!AQ324 -> 0 | CA26: =Input!AR324 -> 0 | CB26: =Input!AS324 -> 0 | CC26: =Input!AT324 -> 0 | CD26: =Input!AU324 -> 0 | CE26: =Input!AV290 -> 0 | CF26: =Input!AW290 -> 0 | CG26: =Input!AX290 -> 0 | CH26: =Input!AY290 -> 0 | CI26: =Input!AZ290 -> 0 | CJ26: =Input!BA290 -> 0 | CK26: =Input!AW324 -> 0 | CL26: =Input!AX324 -> 0 | CM26: =Input!AY324 -> 0 | CN26: =Input!AZ324 -> 0 | CO26: =Input!BA324 -> 0 | CP26: =Input!BB290 -> 0 | CQ26: =Input!BC290 -> 0 | CR26: =Input!BD290 -> 0 | CS26: =Input!BE290 -> 0 | CT26: =Input!BF290 -> 0 | CU26: =Input!BG290 -> 0 | CV26: =Input!BC324 -> 0 | CW26: =Input!BD324 -> 0 | CX26: =Input!BE324 -> 0 | CY26: =Input!BF324 -> 0 | CZ26: =Input!BG324 -> 0 | DA26: =Input!BH290 -> 0 | DB26: =Input!BI290 -> 0 | DC26: =Input!BJ290 -> 0 | DD26: =Input!BK290 -> 0 | DE26: =Input!BL290 -> 0 | DF26: =Input!BM290 -> 0 | DG26: =Input!BI324 -> 0 | DH26: =Input!BJ324 -> 0 | DI26: =Input!BK324 -> 0 | DJ26: =Input!BL324 -> 0 | DK26: =Input!BM324 -> 0
E27: =Input!E291 -> 0 | F27: =Input!F291 -> 0 | G27: =Input!G291 -> 0 | H27: =Input!H291 -> 0 | I27: =Input!I291 -> 0 | J27: =Input!J291 -> 0 | K27: =Input!K291 -> 0 | L27: =Input!G325 -> 0 | M27: =Input!H325 -> 0 | N27: =Input!I325 -> 0 | O27: =Input!J325 -> 0 | P27: =Input!K325 -> 0 | Q27: =Input!L291 -> 0 | R27: =Input!M291 -> 0 | S27: =Input!N291 -> 0 | T27: =Input!O291 -> 0 | U27: =Input!P291 -> 0 | V27: =Input!Q291 -> 0 | W27: =Input!M325 -> 0 | X27: =Input!N325 -> 0 | Y27: =Input!O325 -> 0 | Z27: =Input!P325 -> 0 | AA27: =Input!Q325 -> 0 | AB27: =Input!R291 -> 0 | AC27: =Input!S291 -> 0 | AD27: =Input!T291 -> 0 | AE27: =Input!U291 -> 0 | AF27: =Input!V291 -> 0 | AG27: =Input!W291 -> 0 | AH27: =Input!S325 -> 0 | AI27: =Input!T325 -> 0 | AJ27: =Input!U325 -> 0 | AK27: =Input!V325 -> 0 | AL27: =Input!W325 -> 0 | AM27: =Input!X291 -> 0 | AN27: =Input!Y291 -> 0 | AO27: =Input!Z291 -> 0 | AP27: =Input!AA291 -> 0 | AQ27: =Input!AB291 -> 0 | AR27: =Input!AC291 -> 0 | AS27: =Input!Y325 -> 0 | AT27: =Input!Z325 -> 0 | AU27: =Input!AA325 -> 0 | AV27: =Input!AB325 -> 0 | AW27: =Input!AC325 -> 0 | AX27: =Input!AD291 -> 0 | AY27: =Input!AE291 -> 0 | AZ27: =Input!AF291 -> 0 | BA27: =Input!AG291 -> 0 | BB27: =Input!AH291 -> 0 | BC27: =Input!AI291 -> 0 | BD27: =Input!AE325 -> 0 | BE27: =Input!AF325 -> 0 | BF27: =Input!AG325 -> 0 | BG27: =Input!AH325 -> 0 | BH27: =Input!AI325 -> 0 | BI27: =Input!AJ291 -> 0 | BJ27: =Input!AK291 -> 0 | BK27: =Input!AL291 -> 0 | BL27: =Input!AM291 -> 0 | BM27: =Input!AN291 -> 0 | BN27: =Input!AO291 -> 0 | BO27: =Input!AK325 -> 0 | BP27: =Input!AL325 -> 0 | BQ27: =Input!AM325 -> 0 | BR27: =Input!AN325 -> 0 | BS27: =Input!AO325 -> 0 | BT27: =Input!AP291 -> 0 | BU27: =Input!AQ291 -> 0 | BV27: =Input!AR291 -> 0 | BW27: =Input!AS291 -> 0 | BX27: =Input!AT291 -> 0 | BY27: =Input!AU291 -> 0 | BZ27: =Input!AQ325 -> 0 | CA27: =Input!AR325 -> 0 | CB27: =Input!AS325 -> 0 | CC27: =Input!AT325 -> 0 | CD27: =Input!AU325 -> 0 | CE27: =Input!AV291 -> 0 | CF27: =Input!AW291 -> 0 | CG27: =Input!AX291 -> 0 | CH27: =Input!AY291 -> 0 | CI27: =Input!AZ291 -> 0 | CJ27: =Input!BA291 -> 0 | CK27: =Input!AW325 -> 0 | CL27: =Input!AX325 -> 0 | CM27: =Input!AY325 -> 0 | CN27: =Input!AZ325 -> 0 | CO27: =Input!BA325 -> 0 | CP27: =Input!BB291 -> 0 | CQ27: =Input!BC291 -> 0 | CR27: =Input!BD291 -> 0 | CS27: =Input!BE291 -> 0 | CT27: =Input!BF291 -> 0 | CU27: =Input!BG291 -> 0 | CV27: =Input!BC325 -> 0 | CW27: =Input!BD325 -> 0 | CX27: =Input!BE325 -> 0 | CY27: =Input!BF325 -> 0 | CZ27: =Input!BG325 -> 0 | DA27: =Input!BH291 -> 0 | DB27: =Input!BI291 -> 0 | DC27: =Input!BJ291 -> 0 | DD27: =Input!BK291 -> 0 | DE27: =Input!BL291 -> 0 | DF27: =Input!BM291 -> 0 | DG27: =Input!BI325 -> 0 | DH27: =Input!BJ325 -> 0 | DI27: =Input!BK325 -> 0 | DJ27: =Input!BL325 -> 0 | DK27: =Input!BM325 -> 0
E28: =Input!E292 -> 0 | F28: =Input!F292 -> 0 | G28: =Input!G292 -> 0 | H28: =Input!H292 -> 0 | I28: =Input!I292 -> 0 | J28: =Input!J292 -> 0 | K28: =Input!K292 -> 0 | L28: =Input!G326 -> 0 | M28: =Input!H326 -> 0 | N28: =Input!I326 -> 0 | O28: =Input!J326 -> 0 | P28: =Input!K326 -> 0 | Q28: =Input!L292 -> 0 | R28: =Input!M292 -> 0 | S28: =Input!N292 -> 0 | T28: =Input!O292 -> 0 | U28: =Input!P292 -> 0 | V28: =Input!Q292 -> 0 | W28: =Input!M326 -> 0 | X28: =Input!N326 -> 0 | Y28: =Input!O326 -> 0 | Z28: =Input!P326 -> 0 | AA28: =Input!Q326 -> 0 | AB28: =Input!R292 -> 0 | AC28: =Input!S292 -> 0 | AD28: =Input!T292 -> 0 | AE28: =Input!U292 -> 0 | AF28: =Input!V292 -> 0 | AG28: =Input!W292 -> 0 | AH28: =Input!S326 -> 0 | AI28: =Input!T326 -> 0 | AJ28: =Input!U326 -> 0 | AK28: =Input!V326 -> 0 | AL28: =Input!W326 -> 0 | AM28: =Input!X292 -> 0 | AN28: =Input!Y292 -> 0 | AO28: =Input!Z292 -> 0 | AP28: =Input!AA292 -> 0 | AQ28: =Input!AB292 -> 0 | AR28: =Input!AC292 -> 0 | AS28: =Input!Y326 -> 0 | AT28: =Input!Z326 -> 0 | AU28: =Input!AA326 -> 0 | AV28: =Input!AB326 -> 0 | AW28: =Input!AC326 -> 0 | AX28: =Input!AD292 -> 0 | AY28: =Input!AE292 -> 0 | AZ28: =Input!AF292 -> 0 | BA28: =Input!AG292 -> 0 | BB28: =Input!AH292 -> 0 | BC28: =Input!AI292 -> 0 | BD28: =Input!AE326 -> 0 | BE28: =Input!AF326 -> 0 | BF28: =Input!AG326 -> 0 | BG28: =Input!AH326 -> 0 | BH28: =Input!AI326 -> 0 | BI28: =Input!AJ292 -> 0 | BJ28: =Input!AK292 -> 0 | BK28: =Input!AL292 -> 0 | BL28: =Input!AM292 -> 0 | BM28: =Input!AN292 -> 0 | BN28: =Input!AO292 -> 0 | BO28: =Input!AK326 -> 0 | BP28: =Input!AL326 -> 0 | BQ28: =Input!AM326 -> 0 | BR28: =Input!AN326 -> 0 | BS28: =Input!AO326 -> 0 | BT28: =Input!AP292 -> 0 | BU28: =Input!AQ292 -> 0 | BV28: =Input!AR292 -> 0 | BW28: =Input!AS292 -> 0 | BX28: =Input!AT292 -> 0 | BY28: =Input!AU292 -> 0 | BZ28: =Input!AQ326 -> 0 | CA28: =Input!AR326 -> 0 | CB28: =Input!AS326 -> 0 | CC28: =Input!AT326 -> 0 | CD28: =Input!AU326 -> 0 | CE28: =Input!AV292 -> 0 | CF28: =Input!AW292 -> 0 | CG28: =Input!AX292 -> 0 | CH28: =Input!AY292 -> 0 | CI28: =Input!AZ292 -> 0 | CJ28: =Input!BA292 -> 0 | CK28: =Input!AW326 -> 0 | CL28: =Input!AX326 -> 0 | CM28: =Input!AY326 -> 0 | CN28: =Input!AZ326 -> 0 | CO28: =Input!BA326 -> 0 | CP28: =Input!BB292 -> 0 | CQ28: =Input!BC292 -> 0 | CR28: =Input!BD292 -> 0 | CS28: =Input!BE292 -> 0 | CT28: =Input!BF292 -> 0 | CU28: =Input!BG292 -> 0 | CV28: =Input!BC326 -> 0 | CW28: =Input!BD326 -> 0 | CX28: =Input!BE326 -> 0 | CY28: =Input!BF326 -> 0 | CZ28: =Input!BG326 -> 0 | DA28: =Input!BH292 -> 0 | DB28: =Input!BI292 -> 0 | DC28: =Input!BJ292 -> 0 | DD28: =Input!BK292 -> 0 | DE28: =Input!BL292 -> 0 | DF28: =Input!BM292 -> 0 | DG28: =Input!BI326 -> 0 | DH28: =Input!BJ326 -> 0 | DI28: =Input!BK326 -> 0 | DJ28: =Input!BL326 -> 0 | DK28: =Input!BM326 -> 0
E29: =Input!E293 -> 0 | F29: =Input!F293 -> 0 | G29: =Input!G293 -> 0 | H29: =Input!H293 -> 0 | I29: =Input!I293 -> 0 | J29: =Input!J293 -> 0 | K29: =Input!K293 -> 0 | L29: =Input!G327 -> 0 | M29: =Input!H327 -> 0 | N29: =Input!I327 -> 0 | O29: =Input!J327 -> 0 | P29: =Input!K327 -> 0 | Q29: =Input!L293 -> 0 | R29: =Input!M293 -> 0 | S29: =Input!N293 -> 0 | T29: =Input!O293 -> 0 | U29: =Input!P293 -> 0 | V29: =Input!Q293 -> 0 | W29: =Input!M327 -> 0 | X29: =Input!N327 -> 0 | Y29: =Input!O327 -> 0 | Z29: =Input!P327 -> 0 | AA29: =Input!Q327 -> 0 | AB29: =Input!R293 -> 0 | AC29: =Input!S293 -> 0 | AD29: =Input!T293 -> 0 | AE29: =Input!U293 -> 0 | AF29: =Input!V293 -> 0 | AG29: =Input!W293 -> 0 | AH29: =Input!S327 -> 0 | AI29: =Input!T327 -> 0 | AJ29: =Input!U327 -> 0 | AK29: =Input!V327 -> 0 | AL29: =Input!W327 -> 0 | AM29: =Input!X293 -> 0 | AN29: =Input!Y293 -> 0 | AO29: =Input!Z293 -> 0 | AP29: =Input!AA293 -> 0 | AQ29: =Input!AB293 -> 0 | AR29: =Input!AC293 -> 0 | AS29: =Input!Y327 -> 0 | AT29: =Input!Z327 -> 0 | AU29: =Input!AA327 -> 0 | AV29: =Input!AB327 -> 0 | AW29: =Input!AC327 -> 0 | AX29: =Input!AD293 -> 0 | AY29: =Input!AE293 -> 0 | AZ29: =Input!AF293 -> 0 | BA29: =Input!AG293 -> 0 | BB29: =Input!AH293 -> 0 | BC29: =Input!AI293 -> 0 | BD29: =Input!AE327 -> 0 | BE29: =Input!AF327 -> 0 | BF29: =Input!AG327 -> 0 | BG29: =Input!AH327 -> 0 | BH29: =Input!AI327 -> 0 | BI29: =Input!AJ293 -> 0 | BJ29: =Input!AK293 -> 0 | BK29: =Input!AL293 -> 0 | BL29: =Input!AM293 -> 0 | BM29: =Input!AN293 -> 0 | BN29: =Input!AO293 -> 0 | BO29: =Input!AK327 -> 0 | BP29: =Input!AL327 -> 0 | BQ29: =Input!AM327 -> 0 | BR29: =Input!AN327 -> 0 | BS29: =Input!AO327 -> 0 | BT29: =Input!AP293 -> 0 | BU29: =Input!AQ293 -> 0 | BV29: =Input!AR293 -> 0 | BW29: =Input!AS293 -> 0 | BX29: =Input!AT293 -> 0 | BY29: =Input!AU293 -> 0 | BZ29: =Input!AQ327 -> 0 | CA29: =Input!AR327 -> 0 | CB29: =Input!AS327 -> 0 | CC29: =Input!AT327 -> 0 | CD29: =Input!AU327 -> 0 | CE29: =Input!AV293 -> 0 | CF29: =Input!AW293 -> 0 | CG29: =Input!AX293 -> 0 | CH29: =Input!AY293 -> 0 | CI29: =Input!AZ293 -> 0 | CJ29: =Input!BA293 -> 0 | CK29: =Input!AW327 -> 0 | CL29: =Input!AX327 -> 0 | CM29: =Input!AY327 -> 0 | CN29: =Input!AZ327 -> 0 | CO29: =Input!BA327 -> 0 | CP29: =Input!BB293 -> 0 | CQ29: =Input!BC293 -> 0 | CR29: =Input!BD293 -> 0 | CS29: =Input!BE293 -> 0 | CT29: =Input!BF293 -> 0 | CU29: =Input!BG293 -> 0 | CV29: =Input!BC327 -> 0 | CW29: =Input!BD327 -> 0 | CX29: =Input!BE327 -> 0 | CY29: =Input!BF327 -> 0 | CZ29: =Input!BG327 -> 0 | DA29: =Input!BH293 -> 0 | DB29: =Input!BI293 -> 0 | DC29: =Input!BJ293 -> 0 | DD29: =Input!BK293 -> 0 | DE29: =Input!BL293 -> 0 | DF29: =Input!BM293 -> 0 | DG29: =Input!BI327 -> 0 | DH29: =Input!BJ327 -> 0 | DI29: =Input!BK327 -> 0 | DJ29: =Input!BL327 -> 0 | DK29: =Input!BM327 -> 0
E30: =Input!E294 -> 0 | F30: =Input!F294 -> 0 | G30: =Input!G294 -> 0 | H30: =Input!H294 -> 0 | I30: =Input!I294 -> 0 | J30: =Input!J294 -> 0 | K30: =Input!K294 -> 0 | L30: =Input!G328 -> 0 | M30: =Input!H328 -> 0 | N30: =Input!I328 -> 0 | O30: =Input!J328 -> 0 | P30: =Input!K328 -> 0 | Q30: =Input!L294 -> 0 | R30: =Input!M294 -> 0 | S30: =Input!N294 -> 0 | T30: =Input!O294 -> 0 | U30: =Input!P294 -> 0 | V30: =Input!Q294 -> 0 | W30: =Input!M328 -> 0 | X30: =Input!N328 -> 0 | Y30: =Input!O328 -> 0 | Z30: =Input!P328 -> 0 | AA30: =Input!Q328 -> 0 | AB30: =Input!R294 -> 0 | AC30: =Input!S294 -> 0 | AD30: =Input!T294 -> 0 | AE30: =Input!U294 -> 0 | AF30: =Input!V294 -> 0 | AG30: =Input!W294 -> 0 | AH30: =Input!S328 -> 0 | AI30: =Input!T328 -> 0 | AJ30: =Input!U328 -> 0 | AK30: =Input!V328 -> 0 | AL30: =Input!W328 -> 0 | AM30: =Input!X294 -> 0 | AN30: =Input!Y294 -> 0 | AO30: =Input!Z294 -> 0 | AP30: =Input!AA294 -> 0 | AQ30: =Input!AB294 -> 0 | AR30: =Input!AC294 -> 0 | AS30: =Input!Y328 -> 0 | AT30: =Input!Z328 -> 0 | AU30: =Input!AA328 -> 0 | AV30: =Input!AB328 -> 0 | AW30: =Input!AC328 -> 0 | AX30: =Input!AD294 -> 0 | AY30: =Input!AE294 -> 0 | AZ30: =Input!AF294 -> 0 | BA30: =Input!AG294 -> 0 | BB30: =Input!AH294 -> 0 | BC30: =Input!AI294 -> 0 | BD30: =Input!AE328 -> 0 | BE30: =Input!AF328 -> 0 | BF30: =Input!AG328 -> 0 | BG30: =Input!AH328 -> 0 | BH30: =Input!AI328 -> 0 | BI30: =Input!AJ294 -> 0 | BJ30: =Input!AK294 -> 0 | BK30: =Input!AL294 -> 0 | BL30: =Input!AM294 -> 0 | BM30: =Input!AN294 -> 0 | BN30: =Input!AO294 -> 0 | BO30: =Input!AK328 -> 0 | BP30: =Input!AL328 -> 0 | BQ30: =Input!AM328 -> 0 | BR30: =Input!AN328 -> 0 | BS30: =Input!AO328 -> 0 | BT30: =Input!AP294 -> 0 | BU30: =Input!AQ294 -> 0 | BV30: =Input!AR294 -> 0 | BW30: =Input!AS294 -> 0 | BX30: =Input!AT294 -> 0 | BY30: =Input!AU294 -> 0 | BZ30: =Input!AQ328 -> 0 | CA30: =Input!AR328 -> 0 | CB30: =Input!AS328 -> 0 | CC30: =Input!AT328 -> 0 | CD30: =Input!AU328 -> 0 | CE30: =Input!AV294 -> 0 | CF30: =Input!AW294 -> 0 | CG30: =Input!AX294 -> 0 | CH30: =Input!AY294 -> 0 | CI30: =Input!AZ294 -> 0 | CJ30: =Input!BA294 -> 0 | CK30: =Input!AW328 -> 0 | CL30: =Input!AX328 -> 0 | CM30: =Input!AY328 -> 0 | CN30: =Input!AZ328 -> 0 | CO30: =Input!BA328 -> 0 | CP30: =Input!BB294 -> 0 | CQ30: =Input!BC294 -> 0 | CR30: =Input!BD294 -> 0 | CS30: =Input!BE294 -> 0 | CT30: =Input!BF294 -> 0 | CU30: =Input!BG294 -> 0 | CV30: =Input!BC328 -> 0 | CW30: =Input!BD328 -> 0 | CX30: =Input!BE328 -> 0 | CY30: =Input!BF328 -> 0 | CZ30: =Input!BG328 -> 0 | DA30: =Input!BH294 -> 0 | DB30: =Input!BI294 -> 0 | DC30: =Input!BJ294 -> 0 | DD30: =Input!BK294 -> 0 | DE30: =Input!BL294 -> 0 | DF30: =Input!BM294 -> 0 | DG30: =Input!BI328 -> 0 | DH30: =Input!BJ328 -> 0 | DI30: =Input!BK328 -> 0 | DJ30: =Input!BL328 -> 0 | DK30: =Input!BM328 -> 0
E31: =Input!E295 -> 0 | F31: =Input!F295 -> 0 | G31: =Input!G295 -> 0 | H31: =Input!H295 -> 0 | I31: =Input!I295 -> 0 | J31: =Input!J295 -> 0 | K31: =Input!K295 -> 0 | L31: =Input!G329 -> 0 | M31: =Input!H329 -> 0 | N31: =Input!I329 -> 0 | O31: =Input!J329 -> 0 | P31: =Input!K329 -> 0 | Q31: =Input!L295 -> 0 | R31: =Input!M295 -> 0 | S31: =Input!N295 -> 0 | T31: =Input!O295 -> 0 | U31: =Input!P295 -> 0 | V31: =Input!Q295 -> 0 | W31: =Input!M329 -> 0 | X31: =Input!N329 -> 0 | Y31: =Input!O329 -> 0 | Z31: =Input!P329 -> 0 | AA31: =Input!Q329 -> 0 | AB31: =Input!R295 -> 0 | AC31: =Input!S295 -> 0 | AD31: =Input!T295 -> 0 | AE31: =Input!U295 -> 0 | AF31: =Input!V295 -> 0 | AG31: =Input!W295 -> 0 | AH31: =Input!S329 -> 0 | AI31: =Input!T329 -> 0 | AJ31: =Input!U329 -> 0 | AK31: =Input!V329 -> 0 | AL31: =Input!W329 -> 0 | AM31: =Input!X295 -> 0 | AN31: =Input!Y295 -> 0 | AO31: =Input!Z295 -> 0 | AP31: =Input!AA295 -> 0 | AQ31: =Input!AB295 -> 0 | AR31: =Input!AC295 -> 0 | AS31: =Input!Y329 -> 0 | AT31: =Input!Z329 -> 0 | AU31: =Input!AA329 -> 0 | AV31: =Input!AB329 -> 0 | AW31: =Input!AC329 -> 0 | AX31: =Input!AD295 -> 0 | AY31: =Input!AE295 -> 0 | AZ31: =Input!AF295 -> 0 | BA31: =Input!AG295 -> 0 | BB31: =Input!AH295 -> 0 | BC31: =Input!AI295 -> 0 | BD31: =Input!AE329 -> 0 | BE31: =Input!AF329 -> 0 | BF31: =Input!AG329 -> 0 | BG31: =Input!AH329 -> 0 | BH31: =Input!AI329 -> 0 | BI31: =Input!AJ295 -> 0 | BJ31: =Input!AK295 -> 0 | BK31: =Input!AL295 -> 0 | BL31: =Input!AM295 -> 0 | BM31: =Input!AN295 -> 0 | BN31: =Input!AO295 -> 0 | BO31: =Input!AK329 -> 0 | BP31: =Input!AL329 -> 0 | BQ31: =Input!AM329 -> 0 | BR31: =Input!AN329 -> 0 | BS31: =Input!AO329 -> 0 | BT31: =Input!AP295 -> 0 | BU31: =Input!AQ295 -> 0 | BV31: =Input!AR295 -> 0 | BW31: =Input!AS295 -> 0 | BX31: =Input!AT295 -> 0 | BY31: =Input!AU295 -> 0 | BZ31: =Input!AQ329 -> 0 | CA31: =Input!AR329 -> 0 | CB31: =Input!AS329 -> 0 | CC31: =Input!AT329 -> 0 | CD31: =Input!AU329 -> 0 | CE31: =Input!AV295 -> 0 | CF31: =Input!AW295 -> 0 | CG31: =Input!AX295 -> 0 | CH31: =Input!AY295 -> 0 | CI31: =Input!AZ295 -> 0 | CJ31: =Input!BA295 -> 0 | CK31: =Input!AW329 -> 0 | CL31: =Input!AX329 -> 0 | CM31: =Input!AY329 -> 0 | CN31: =Input!AZ329 -> 0 | CO31: =Input!BA329 -> 0 | CP31: =Input!BB295 -> 0 | CQ31: =Input!BC295 -> 0 | CR31: =Input!BD295 -> 0 | CS31: =Input!BE295 -> 0 | CT31: =Input!BF295 -> 0 | CU31: =Input!BG295 -> 0 | CV31: =Input!BC329 -> 0 | CW31: =Input!BD329 -> 0 | CX31: =Input!BE329 -> 0 | CY31: =Input!BF329 -> 0 | CZ31: =Input!BG329 -> 0 | DA31: =Input!BH295 -> 0 | DB31: =Input!BI295 -> 0 | DC31: =Input!BJ295 -> 0 | DD31: =Input!BK295 -> 0 | DE31: =Input!BL295 -> 0 | DF31: =Input!BM295 -> 0 | DG31: =Input!BI329 -> 0 | DH31: =Input!BJ329 -> 0 | DI31: =Input!BK329 -> 0 | DJ31: =Input!BL329 -> 0 | DK31: =Input!BM329 -> 0
E32: =Input!E296 -> 0 | F32: =Input!F296 -> 0 | G32: =Input!G296 -> 0 | H32: =Input!H296 -> 0 | I32: =Input!I296 -> 0 | J32: =Input!J296 -> 0 | K32: =Input!K296 -> 0 | L32: =Input!G330 -> 0 | M32: =Input!H330 -> 0 | N32: =Input!I330 -> 0 | O32: =Input!J330 -> 0 | P32: =Input!K330 -> 0 | Q32: =Input!L296 -> 0 | R32: =Input!M296 -> 0 | S32: =Input!N296 -> 0 | T32: =Input!O296 -> 0 | U32: =Input!P296 -> 0 | V32: =Input!Q296 -> 0 | W32: =Input!M330 -> 0 | X32: =Input!N330 -> 0 | Y32: =Input!O330 -> 0 | Z32: =Input!P330 -> 0 | AA32: =Input!Q330 -> 0 | AB32: =Input!R296 -> 0 | AC32: =Input!S296 -> 0 | AD32: =Input!T296 -> 0 | AE32: =Input!U296 -> 0 | AF32: =Input!V296 -> 0 | AG32: =Input!W296 -> 0 | AH32: =Input!S330 -> 0 | AI32: =Input!T330 -> 0 | AJ32: =Input!U330 -> 0 | AK32: =Input!V330 -> 0 | AL32: =Input!W330 -> 0 | AM32: =Input!X296 -> 0 | AN32: =Input!Y296 -> 0 | AO32: =Input!Z296 -> 0 | AP32: =Input!AA296 -> 0 | AQ32: =Input!AB296 -> 0 | AR32: =Input!AC296 -> 0 | AS32: =Input!Y330 -> 0 | AT32: =Input!Z330 -> 0 | AU32: =Input!AA330 -> 0 | AV32: =Input!AB330 -> 0 | AW32: =Input!AC330 -> 0 | AX32: =Input!AD296 -> 0 | AY32: =Input!AE296 -> 0 | AZ32: =Input!AF296 -> 0 | BA32: =Input!AG296 -> 0 | BB32: =Input!AH296 -> 0 | BC32: =Input!AI296 -> 0 | BD32: =Input!AE330 -> 0 | BE32: =Input!AF330 -> 0 | BF32: =Input!AG330 -> 0 | BG32: =Input!AH330 -> 0 | BH32: =Input!AI330 -> 0 | BI32: =Input!AJ296 -> 0 | BJ32: =Input!AK296 -> 0 | BK32: =Input!AL296 -> 0 | BL32: =Input!AM296 -> 0 | BM32: =Input!AN296 -> 0 | BN32: =Input!AO296 -> 0 | BO32: =Input!AK330 -> 0 | BP32: =Input!AL330 -> 0 | BQ32: =Input!AM330 -> 0 | BR32: =Input!AN330 -> 0 | BS32: =Input!AO330 -> 0 | BT32: =Input!AP296 -> 0 | BU32: =Input!AQ296 -> 0 | BV32: =Input!AR296 -> 0 | BW32: =Input!AS296 -> 0 | BX32: =Input!AT296 -> 0 | BY32: =Input!AU296 -> 0 | BZ32: =Input!AQ330 -> 0 | CA32: =Input!AR330 -> 0 | CB32: =Input!AS330 -> 0 | CC32: =Input!AT330 -> 0 | CD32: =Input!AU330 -> 0 | CE32: =Input!AV296 -> 0 | CF32: =Input!AW296 -> 0 | CG32: =Input!AX296 -> 0 | CH32: =Input!AY296 -> 0 | CI32: =Input!AZ296 -> 0 | CJ32: =Input!BA296 -> 0 | CK32: =Input!AW330 -> 0 | CL32: =Input!AX330 -> 0 | CM32: =Input!AY330 -> 0 | CN32: =Input!AZ330 -> 0 | CO32: =Input!BA330 -> 0 | CP32: =Input!BB296 -> 0 | CQ32: =Input!BC296 -> 0 | CR32: =Input!BD296 -> 0 | CS32: =Input!BE296 -> 0 | CT32: =Input!BF296 -> 0 | CU32: =Input!BG296 -> 0 | CV32: =Input!BC330 -> 0 | CW32: =Input!BD330 -> 0 | CX32: =Input!BE330 -> 0 | CY32: =Input!BF330 -> 0 | CZ32: =Input!BG330 -> 0 | DA32: =Input!BH296 -> 0 | DB32: =Input!BI296 -> 0 | DC32: =Input!BJ296 -> 0 | DD32: =Input!BK296 -> 0 | DE32: =Input!BL296 -> 0 | DF32: =Input!BM296 -> 0 | DG32: =Input!BI330 -> 0 | DH32: =Input!BJ330 -> 0 | DI32: =Input!BK330 -> 0 | DJ32: =Input!BL330 -> 0 | DK32: =Input!BM330 -> 0
E33: =Input!E297 -> 0 | F33: =Input!F297 -> 0 | G33: =Input!G297 -> 0 | H33: =Input!H297 -> 0 | I33: =Input!I297 -> 0 | J33: =Input!J297 -> 0 | K33: =Input!K297 -> 0 | L33: =Input!G331 -> 0 | M33: =Input!H331 -> 0 | N33: =Input!I331 -> 0 | O33: =Input!J331 -> 0 | P33: =Input!K331 -> 0 | Q33: =Input!L297 -> 0 | R33: =Input!M297 -> 0 | S33: =Input!N297 -> 0 | T33: =Input!O297 -> 0 | U33: =Input!P297 -> 0 | V33: =Input!Q297 -> 0 | W33: =Input!M331 -> 0 | X33: =Input!N331 -> 0 | Y33: =Input!O331 -> 0 | Z33: =Input!P331 -> 0 | AA33: =Input!Q331 -> 0 | AB33: =Input!R297 -> 0 | AC33: =Input!S297 -> 0 | AD33: =Input!T297 -> 0 | AE33: =Input!U297 -> 0 | AF33: =Input!V297 -> 0 | AG33: =Input!W297 -> 0 | AH33: =Input!S331 -> 0 | AI33: =Input!T331 -> 0 | AJ33: =Input!U331 -> 0 | AK33: =Input!V331 -> 0 | AL33: =Input!W331 -> 0 | AM33: =Input!X297 -> 0 | AN33: =Input!Y297 -> 0 | AO33: =Input!Z297 -> 0 | AP33: =Input!AA297 -> 0 | AQ33: =Input!AB297 -> 0 | AR33: =Input!AC297 -> 0 | AS33: =Input!Y331 -> 0 | AT33: =Input!Z331 -> 0 | AU33: =Input!AA331 -> 0 | AV33: =Input!AB331 -> 0 | AW33: =Input!AC331 -> 0 | AX33: =Input!AD297 -> 0 | AY33: =Input!AE297 -> 0 | AZ33: =Input!AF297 -> 0 | BA33: =Input!AG297 -> 0 | BB33: =Input!AH297 -> 0 | BC33: =Input!AI297 -> 0 | BD33: =Input!AE331 -> 0 | BE33: =Input!AF331 -> 0 | BF33: =Input!AG331 -> 0 | BG33: =Input!AH331 -> 0 | BH33: =Input!AI331 -> 0 | BI33: =Input!AJ297 -> 0 | BJ33: =Input!AK297 -> 0 | BK33: =Input!AL297 -> 0 | BL33: =Input!AM297 -> 0 | BM33: =Input!AN297 -> 0 | BN33: =Input!AO297 -> 0 | BO33: =Input!AK331 -> 0 | BP33: =Input!AL331 -> 0 | BQ33: =Input!AM331 -> 0 | BR33: =Input!AN331 -> 0 | BS33: =Input!AO331 -> 0 | BT33: =Input!AP297 -> 0 | BU33: =Input!AQ297 -> 0 | BV33: =Input!AR297 -> 0 | BW33: =Input!AS297 -> 0 | BX33: =Input!AT297 -> 0 | BY33: =Input!AU297 -> 0 | BZ33: =Input!AQ331 -> 0 | CA33: =Input!AR331 -> 0 | CB33: =Input!AS331 -> 0 | CC33: =Input!AT331 -> 0 | CD33: =Input!AU331 -> 0 | CE33: =Input!AV297 -> 0 | CF33: =Input!AW297 -> 0 | CG33: =Input!AX297 -> 0 | CH33: =Input!AY297 -> 0 | CI33: =Input!AZ297 -> 0 | CJ33: =Input!BA297 -> 0 | CK33: =Input!AW331 -> 0 | CL33: =Input!AX331 -> 0 | CM33: =Input!AY331 -> 0 | CN33: =Input!AZ331 -> 0 | CO33: =Input!BA331 -> 0 | CP33: =Input!BB297 -> 0 | CQ33: =Input!BC297 -> 0 | CR33: =Input!BD297 -> 0 | CS33: =Input!BE297 -> 0 | CT33: =Input!BF297 -> 0 | CU33: =Input!BG297 -> 0 | CV33: =Input!BC331 -> 0 | CW33: =Input!BD331 -> 0 | CX33: =Input!BE331 -> 0 | CY33: =Input!BF331 -> 0 | CZ33: =Input!BG331 -> 0 | DA33: =Input!BH297 -> 0 | DB33: =Input!BI297 -> 0 | DC33: =Input!BJ297 -> 0 | DD33: =Input!BK297 -> 0 | DE33: =Input!BL297 -> 0 | DF33: =Input!BM297 -> 0 | DG33: =Input!BI331 -> 0 | DH33: =Input!BJ331 -> 0 | DI33: =Input!BK331 -> 0 | DJ33: =Input!BL331 -> 0 | DK33: =Input!BM331 -> 0
E34: =Input!E298 -> 0 | F34: =Input!F298 -> 0 | G34: =Input!G298 -> 0 | H34: =Input!H298 -> 0 | I34: =Input!I298 -> 0 | J34: =Input!J298 -> 0 | K34: =Input!K298 -> 0 | L34: =Input!G332 -> 0 | M34: =Input!H332 -> 0 | N34: =Input!I332 -> 0 | O34: =Input!J332 -> 0 | P34: =Input!K332 -> 0 | Q34: =Input!L298 -> 0 | R34: =Input!M298 -> 0 | S34: =Input!N298 -> 0 | T34: =Input!O298 -> 0 | U34: =Input!P298 -> 0 | V34: =Input!Q298 -> 0 | W34: =Input!M332 -> 0 | X34: =Input!N332 -> 0 | Y34: =Input!O332 -> 0 | Z34: =Input!P332 -> 0 | AA34: =Input!Q332 -> 0 | AB34: =Input!R298 -> 0 | AC34: =Input!S298 -> 0 | AD34: =Input!T298 -> 0 | AE34: =Input!U298 -> 0 | AF34: =Input!V298 -> 0 | AG34: =Input!W298 -> 0 | AH34: =Input!S332 -> 0 | AI34: =Input!T332 -> 0 | AJ34: =Input!U332 -> 0 | AK34: =Input!V332 -> 0 | AL34: =Input!W332 -> 0 | AM34: =Input!X298 -> 0 | AN34: =Input!Y298 -> 0 | AO34: =Input!Z298 -> 0 | AP34: =Input!AA298 -> 0 | AQ34: =Input!AB298 -> 0 | AR34: =Input!AC298 -> 0 | AS34: =Input!Y332 -> 0 | AT34: =Input!Z332 -> 0 | AU34: =Input!AA332 -> 0 | AV34: =Input!AB332 -> 0 | AW34: =Input!AC332 -> 0 | AX34: =Input!AD298 -> 0 | AY34: =Input!AE298 -> 0 | AZ34: =Input!AF298 -> 0 | BA34: =Input!AG298 -> 0 | BB34: =Input!AH298 -> 0 | BC34: =Input!AI298 -> 0 | BD34: =Input!AE332 -> 0 | BE34: =Input!AF332 -> 0 | BF34: =Input!AG332 -> 0 | BG34: =Input!AH332 -> 0 | BH34: =Input!AI332 -> 0 | BI34: =Input!AJ298 -> 0 | BJ34: =Input!AK298 -> 0 | BK34: =Input!AL298 -> 0 | BL34: =Input!AM298 -> 0 | BM34: =Input!AN298 -> 0 | BN34: =Input!AO298 -> 0 | BO34: =Input!AK332 -> 0 | BP34: =Input!AL332 -> 0 | BQ34: =Input!AM332 -> 0 | BR34: =Input!AN332 -> 0 | BS34: =Input!AO332 -> 0 | BT34: =Input!AP298 -> 0 | BU34: =Input!AQ298 -> 0 | BV34: =Input!AR298 -> 0 | BW34: =Input!AS298 -> 0 | BX34: =Input!AT298 -> 0 | BY34: =Input!AU298 -> 0 | BZ34: =Input!AQ332 -> 0 | CA34: =Input!AR332 -> 0 | CB34: =Input!AS332 -> 0 | CC34: =Input!AT332 -> 0 | CD34: =Input!AU332 -> 0 | CE34: =Input!AV298 -> 0 | CF34: =Input!AW298 -> 0 | CG34: =Input!AX298 -> 0 | CH34: =Input!AY298 -> 0 | CI34: =Input!AZ298 -> 0 | CJ34: =Input!BA298 -> 0 | CK34: =Input!AW332 -> 0 | CL34: =Input!AX332 -> 0 | CM34: =Input!AY332 -> 0 | CN34: =Input!AZ332 -> 0 | CO34: =Input!BA332 -> 0 | CP34: =Input!BB298 -> 0 | CQ34: =Input!BC298 -> 0 | CR34: =Input!BD298 -> 0 | CS34: =Input!BE298 -> 0 | CT34: =Input!BF298 -> 0 | CU34: =Input!BG298 -> 0 | CV34: =Input!BC332 -> 0 | CW34: =Input!BD332 -> 0 | CX34: =Input!BE332 -> 0 | CY34: =Input!BF332 -> 0 | CZ34: =Input!BG332 -> 0 | DA34: =Input!BH298 -> 0 | DB34: =Input!BI298 -> 0 | DC34: =Input!BJ298 -> 0 | DD34: =Input!BK298 -> 0 | DE34: =Input!BL298 -> 0 | DF34: =Input!BM298 -> 0 | DG34: =Input!BI332 -> 0 | DH34: =Input!BJ332 -> 0 | DI34: =Input!BK332 -> 0 | DJ34: =Input!BL332 -> 0 | DK34: =Input!BM332 -> 0
E35: =Input!E299 -> 0 | F35: =Input!F299 -> 0 | G35: =Input!G299 -> 0 | H35: =Input!H299 -> 0 | I35: =Input!I299 -> 0 | J35: =Input!J299 -> 0 | K35: =Input!K299 -> 0 | L35: =Input!G333 -> 0 | M35: =Input!H333 -> 0 | N35: =Input!I333 -> 0 | O35: =Input!J333 -> 0 | P35: =Input!K333 -> 0 | Q35: =Input!L299 -> 0 | R35: =Input!M299 -> 0 | S35: =Input!N299 -> 0 | T35: =Input!O299 -> 0 | U35: =Input!P299 -> 0 | V35: =Input!Q299 -> 0 | W35: =Input!M333 -> 0 | X35: =Input!N333 -> 0 | Y35: =Input!O333 -> 0 | Z35: =Input!P333 -> 0 | AA35: =Input!Q333 -> 0 | AB35: =Input!R299 -> 0 | AC35: =Input!S299 -> 0 | AD35: =Input!T299 -> 0 | AE35: =Input!U299 -> 0 | AF35: =Input!V299 -> 0 | AG35: =Input!W299 -> 0 | AH35: =Input!S333 -> 0 | AI35: =Input!T333 -> 0 | AJ35: =Input!U333 -> 0 | AK35: =Input!V333 -> 0 | AL35: =Input!W333 -> 0 | AM35: =Input!X299 -> 0 | AN35: =Input!Y299 -> 0 | AO35: =Input!Z299 -> 0 | AP35: =Input!AA299 -> 0 | AQ35: =Input!AB299 -> 0 | AR35: =Input!AC299 -> 0 | AS35: =Input!Y333 -> 0 | AT35: =Input!Z333 -> 0 | AU35: =Input!AA333 -> 0 | AV35: =Input!AB333 -> 0 | AW35: =Input!AC333 -> 0 | AX35: =Input!AD299 -> 0 | AY35: =Input!AE299 -> 0 | AZ35: =Input!AF299 -> 0 | BA35: =Input!AG299 -> 0 | BB35: =Input!AH299 -> 0 | BC35: =Input!AI299 -> 0 | BD35: =Input!AE333 -> 0 | BE35: =Input!AF333 -> 0 | BF35: =Input!AG333 -> 0 | BG35: =Input!AH333 -> 0 | BH35: =Input!AI333 -> 0 | BI35: =Input!AJ299 -> 0 | BJ35: =Input!AK299 -> 0 | BK35: =Input!AL299 -> 0 | BL35: =Input!AM299 -> 0 | BM35: =Input!AN299 -> 0 | BN35: =Input!AO299 -> 0 | BO35: =Input!AK333 -> 0 | BP35: =Input!AL333 -> 0 | BQ35: =Input!AM333 -> 0 | BR35: =Input!AN333 -> 0 | BS35: =Input!AO333 -> 0 | BT35: =Input!AP299 -> 0 | BU35: =Input!AQ299 -> 0 | BV35: =Input!AR299 -> 0 | BW35: =Input!AS299 -> 0 | BX35: =Input!AT299 -> 0 | BY35: =Input!AU299 -> 0 | BZ35: =Input!AQ333 -> 0 | CA35: =Input!AR333 -> 0 | CB35: =Input!AS333 -> 0 | CC35: =Input!AT333 -> 0 | CD35: =Input!AU333 -> 0 | CE35: =Input!AV299 -> 0 | CF35: =Input!AW299 -> 0 | CG35: =Input!AX299 -> 0 | CH35: =Input!AY299 -> 0 | CI35: =Input!AZ299 -> 0 | CJ35: =Input!BA299 -> 0 | CK35: =Input!AW333 -> 0 | CL35: =Input!AX333 -> 0 | CM35: =Input!AY333 -> 0 | CN35: =Input!AZ333 -> 0 | CO35: =Input!BA333 -> 0 | CP35: =Input!BB299 -> 0 | CQ35: =Input!BC299 -> 0 | CR35: =Input!BD299 -> 0 | CS35: =Input!BE299 -> 0 | CT35: =Input!BF299 -> 0 | CU35: =Input!BG299 -> 0 | CV35: =Input!BC333 -> 0 | CW35: =Input!BD333 -> 0 | CX35: =Input!BE333 -> 0 | CY35: =Input!BF333 -> 0 | CZ35: =Input!BG333 -> 0 | DA35: =Input!BH299 -> 0 | DB35: =Input!BI299 -> 0 | DC35: =Input!BJ299 -> 0 | DD35: =Input!BK299 -> 0 | DE35: =Input!BL299 -> 0 | DF35: =Input!BM299 -> 0 | DG35: =Input!BI333 -> 0 | DH35: =Input!BJ333 -> 0 | DI35: =Input!BK333 -> 0 | DJ35: =Input!BL333 -> 0 | DK35: =Input!BM333 -> 0
E36: =Input!E300 -> 0 | F36: =Input!F300 -> 0 | G36: =Input!G300 -> 0 | H36: =Input!H300 -> 0 | I36: =Input!I300 -> 0 | J36: =Input!J300 -> 0 | K36: =Input!K300 -> 0 | L36: =Input!G334 -> 0 | M36: =Input!H334 -> 0 | N36: =Input!I334 -> 0 | O36: =Input!J334 -> 0 | P36: =Input!K334 -> 0 | Q36: =Input!L300 -> 0 | R36: =Input!M300 -> 0 | S36: =Input!N300 -> 0 | T36: =Input!O300 -> 0 | U36: =Input!P300 -> 0 | V36: =Input!Q300 -> 0 | W36: =Input!M334 -> 0 | X36: =Input!N334 -> 0 | Y36: =Input!O334 -> 0 | Z36: =Input!P334 -> 0 | AA36: =Input!Q334 -> 0 | AB36: =Input!R300 -> 0 | AC36: =Input!S300 -> 0 | AD36: =Input!T300 -> 0 | AE36: =Input!U300 -> 0 | AF36: =Input!V300 -> 0 | AG36: =Input!W300 -> 0 | AH36: =Input!S334 -> 0 | AI36: =Input!T334 -> 0 | AJ36: =Input!U334 -> 0 | AK36: =Input!V334 -> 0 | AL36: =Input!W334 -> 0 | AM36: =Input!X300 -> 0 | AN36: =Input!Y300 -> 0 | AO36: =Input!Z300 -> 0 | AP36: =Input!AA300 -> 0 | AQ36: =Input!AB300 -> 0 | AR36: =Input!AC300 -> 0 | AS36: =Input!Y334 -> 0 | AT36: =Input!Z334 -> 0 | AU36: =Input!AA334 -> 0 | AV36: =Input!AB334 -> 0 | AW36: =Input!AC334 -> 0 | AX36: =Input!AD300 -> 0 | AY36: =Input!AE300 -> 0 | AZ36: =Input!AF300 -> 0 | BA36: =Input!AG300 -> 0 | BB36: =Input!AH300 -> 0 | BC36: =Input!AI300 -> 0 | BD36: =Input!AE334 -> 0 | BE36: =Input!AF334 -> 0 | BF36: =Input!AG334 -> 0 | BG36: =Input!AH334 -> 0 | BH36: =Input!AI334 -> 0 | BI36: =Input!AJ300 -> 0 | BJ36: =Input!AK300 -> 0 | BK36: =Input!AL300 -> 0 | BL36: =Input!AM300 -> 0 | BM36: =Input!AN300 -> 0 | BN36: =Input!AO300 -> 0 | BO36: =Input!AK334 -> 0 | BP36: =Input!AL334 -> 0 | BQ36: =Input!AM334 -> 0 | BR36: =Input!AN334 -> 0 | BS36: =Input!AO334 -> 0 | BT36: =Input!AP300 -> 0 | BU36: =Input!AQ300 -> 0 | BV36: =Input!AR300 -> 0 | BW36: =Input!AS300 -> 0 | BX36: =Input!AT300 -> 0 | BY36: =Input!AU300 -> 0 | BZ36: =Input!AQ334 -> 0 | CA36: =Input!AR334 -> 0 | CB36: =Input!AS334 -> 0 | CC36: =Input!AT334 -> 0 | CD36: =Input!AU334 -> 0 | CE36: =Input!AV300 -> 0 | CF36: =Input!AW300 -> 0 | CG36: =Input!AX300 -> 0 | CH36: =Input!AY300 -> 0 | CI36: =Input!AZ300 -> 0 | CJ36: =Input!BA300 -> 0 | CK36: =Input!AW334 -> 0 | CL36: =Input!AX334 -> 0 | CM36: =Input!AY334 -> 0 | CN36: =Input!AZ334 -> 0 | CO36: =Input!BA334 -> 0 | CP36: =Input!BB300 -> 0 | CQ36: =Input!BC300 -> 0 | CR36: =Input!BD300 -> 0 | CS36: =Input!BE300 -> 0 | CT36: =Input!BF300 -> 0 | CU36: =Input!BG300 -> 0 | CV36: =Input!BC334 -> 0 | CW36: =Input!BD334 -> 0 | CX36: =Input!BE334 -> 0 | CY36: =Input!BF334 -> 0 | CZ36: =Input!BG334 -> 0 | DA36: =Input!BH300 -> 0 | DB36: =Input!BI300 -> 0 | DC36: =Input!BJ300 -> 0 | DD36: =Input!BK300 -> 0 | DE36: =Input!BL300 -> 0 | DF36: =Input!BM300 -> 0 | DG36: =Input!BI334 -> 0 | DH36: =Input!BJ334 -> 0 | DI36: =Input!BK334 -> 0 | DJ36: =Input!BL334 -> 0 | DK36: =Input!BM334 -> 0
E37: =Input!E301 -> 0 | F37: =Input!F301 -> 0 | G37: =Input!G301 -> 0 | H37: =Input!H301 -> 0 | I37: =Input!I301 -> 0 | J37: =Input!J301 -> 0 | K37: =Input!K301 -> 0 | L37: =Input!G335 -> 0 | M37: =Input!H335 -> 0 | N37: =Input!I335 -> 0 | O37: =Input!J335 -> 0 | P37: =Input!K335 -> 0 | Q37: =Input!L301 -> 0 | R37: =Input!M301 -> 0 | S37: =Input!N301 -> 0 | T37: =Input!O301 -> 0 | U37: =Input!P301 -> 0 | V37: =Input!Q301 -> 0 | W37: =Input!M335 -> 0 | X37: =Input!N335 -> 0 | Y37: =Input!O335 -> 0 | Z37: =Input!P335 -> 0 | AA37: =Input!Q335 -> 0 | AB37: =Input!R301 -> 0 | AC37: =Input!S301 -> 0 | AD37: =Input!T301 -> 0 | AE37: =Input!U301 -> 0 | AF37: =Input!V301 -> 0 | AG37: =Input!W301 -> 0 | AH37: =Input!S335 -> 0 | AI37: =Input!T335 -> 0 | AJ37: =Input!U335 -> 0 | AK37: =Input!V335 -> 0 | AL37: =Input!W335 -> 0 | AM37: =Input!X301 -> 0 | AN37: =Input!Y301 -> 0 | AO37: =Input!Z301 -> 0 | AP37: =Input!AA301 -> 0 | AQ37: =Input!AB301 -> 0 | AR37: =Input!AC301 -> 0 | AS37: =Input!Y335 -> 0 | AT37: =Input!Z335 -> 0 | AU37: =Input!AA335 -> 0 | AV37: =Input!AB335 -> 0 | AW37: =Input!AC335 -> 0 | AX37: =Input!AD301 -> 0 | AY37: =Input!AE301 -> 0 | AZ37: =Input!AF301 -> 0 | BA37: =Input!AG301 -> 0 | BB37: =Input!AH301 -> 0 | BC37: =Input!AI301 -> 0 | BD37: =Input!AE335 -> 0 | BE37: =Input!AF335 -> 0 | BF37: =Input!AG335 -> 0 | BG37: =Input!AH335 -> 0 | BH37: =Input!AI335 -> 0 | BI37: =Input!AJ301 -> 0 | BJ37: =Input!AK301 -> 0 | BK37: =Input!AL301 -> 0 | BL37: =Input!AM301 -> 0 | BM37: =Input!AN301 -> 0 | BN37: =Input!AO301 -> 0 | BO37: =Input!AK335 -> 0 | BP37: =Input!AL335 -> 0 | BQ37: =Input!AM335 -> 0 | BR37: =Input!AN335 -> 0 | BS37: =Input!AO335 -> 0 | BT37: =Input!AP301 -> 0 | BU37: =Input!AQ301 -> 0 | BV37: =Input!AR301 -> 0 | BW37: =Input!AS301 -> 0 | BX37: =Input!AT301 -> 0 | BY37: =Input!AU301 -> 0 | BZ37: =Input!AQ335 -> 0 | CA37: =Input!AR335 -> 0 | CB37: =Input!AS335 -> 0 | CC37: =Input!AT335 -> 0 | CD37: =Input!AU335 -> 0 | CE37: =Input!AV301 -> 0 | CF37: =Input!AW301 -> 0 | CG37: =Input!AX301 -> 0 | CH37: =Input!AY301 -> 0 | CI37: =Input!AZ301 -> 0 | CJ37: =Input!BA301 -> 0 | CK37: =Input!AW335 -> 0 | CL37: =Input!AX335 -> 0 | CM37: =Input!AY335 -> 0 | CN37: =Input!AZ335 -> 0 | CO37: =Input!BA335 -> 0 | CP37: =Input!BB301 -> 0 | CQ37: =Input!BC301 -> 0 | CR37: =Input!BD301 -> 0 | CS37: =Input!BE301 -> 0 | CT37: =Input!BF301 -> 0 | CU37: =Input!BG301 -> 0 | CV37: =Input!BC335 -> 0 | CW37: =Input!BD335 -> 0 | CX37: =Input!BE335 -> 0 | CY37: =Input!BF335 -> 0 | CZ37: =Input!BG335 -> 0 | DA37: =Input!BH301 -> 0 | DB37: =Input!BI301 -> 0 | DC37: =Input!BJ301 -> 0 | DD37: =Input!BK301 -> 0 | DE37: =Input!BL301 -> 0 | DF37: =Input!BM301 -> 0 | DG37: =Input!BI335 -> 0 | DH37: =Input!BJ335 -> 0 | DI37: =Input!BK335 -> 0 | DJ37: =Input!BL335 -> 0 | DK37: =Input!BM335 -> 0
E38: =Input!E302 -> 0 | F38: =Input!F302 -> 0 | G38: =Input!G302 -> 0 | H38: =Input!H302 -> 0 | I38: =Input!I302 -> 0 | J38: =Input!J302 -> 0 | K38: =Input!K302 -> 0 | L38: =Input!G336 -> 0 | M38: =Input!H336 -> 0 | N38: =Input!I336 -> 0 | O38: =Input!J336 -> 0 | P38: =Input!K336 -> 0 | Q38: =Input!L302 -> 0 | R38: =Input!M302 -> 0 | S38: =Input!N302 -> 0 | T38: =Input!O302 -> 0 | U38: =Input!P302 -> 0 | V38: =Input!Q302 -> 0 | W38: =Input!M336 -> 0 | X38: =Input!N336 -> 0 | Y38: =Input!O336 -> 0 | Z38: =Input!P336 -> 0 | AA38: =Input!Q336 -> 0 | AB38: =Input!R302 -> 0 | AC38: =Input!S302 -> 0 | AD38: =Input!T302 -> 0 | AE38: =Input!U302 -> 0 | AF38: =Input!V302 -> 0 | AG38: =Input!W302 -> 0 | AH38: =Input!S336 -> 0 | AI38: =Input!T336 -> 0 | AJ38: =Input!U336 -> 0 | AK38: =Input!V336 -> 0 | AL38: =Input!W336 -> 0 | AM38: =Input!X302 -> 0 | AN38: =Input!Y302 -> 0 | AO38: =Input!Z302 -> 0 | AP38: =Input!AA302 -> 0 | AQ38: =Input!AB302 -> 0 | AR38: =Input!AC302 -> 0 | AS38: =Input!Y336 -> 0 | AT38: =Input!Z336 -> 0 | AU38: =Input!AA336 -> 0 | AV38: =Input!AB336 -> 0 | AW38: =Input!AC336 -> 0 | AX38: =Input!AD302 -> 0 | AY38: =Input!AE302 -> 0 | AZ38: =Input!AF302 -> 0 | BA38: =Input!AG302 -> 0 | BB38: =Input!AH302 -> 0 | BC38: =Input!AI302 -> 0 | BD38: =Input!AE336 -> 0 | BE38: =Input!AF336 -> 0 | BF38: =Input!AG336 -> 0 | BG38: =Input!AH336 -> 0 | BH38: =Input!AI336 -> 0 | BI38: =Input!AJ302 -> 0 | BJ38: =Input!AK302 -> 0 | BK38: =Input!AL302 -> 0 | BL38: =Input!AM302 -> 0 | BM38: =Input!AN302 -> 0 | BN38: =Input!AO302 -> 0 | BO38: =Input!AK336 -> 0 | BP38: =Input!AL336 -> 0 | BQ38: =Input!AM336 -> 0 | BR38: =Input!AN336 -> 0 | BS38: =Input!AO336 -> 0 | BT38: =Input!AP302 -> 0 | BU38: =Input!AQ302 -> 0 | BV38: =Input!AR302 -> 0 | BW38: =Input!AS302 -> 0 | BX38: =Input!AT302 -> 0 | BY38: =Input!AU302 -> 0 | BZ38: =Input!AQ336 -> 0 | CA38: =Input!AR336 -> 0 | CB38: =Input!AS336 -> 0 | CC38: =Input!AT336 -> 0 | CD38: =Input!AU336 -> 0 | CE38: =Input!AV302 -> 0 | CF38: =Input!AW302 -> 0 | CG38: =Input!AX302 -> 0 | CH38: =Input!AY302 -> 0 | CI38: =Input!AZ302 -> 0 | CJ38: =Input!BA302 -> 0 | CK38: =Input!AW336 -> 0 | CL38: =Input!AX336 -> 0 | CM38: =Input!AY336 -> 0 | CN38: =Input!AZ336 -> 0 | CO38: =Input!BA336 -> 0 | CP38: =Input!BB302 -> 0 | CQ38: =Input!BC302 -> 0 | CR38: =Input!BD302 -> 0 | CS38: =Input!BE302 -> 0 | CT38: =Input!BF302 -> 0 | CU38: =Input!BG302 -> 0 | CV38: =Input!BC336 -> 0 | CW38: =Input!BD336 -> 0 | CX38: =Input!BE336 -> 0 | CY38: =Input!BF336 -> 0 | CZ38: =Input!BG336 -> 0 | DA38: =Input!BH302 -> 0 | DB38: =Input!BI302 -> 0 | DC38: =Input!BJ302 -> 0 | DD38: =Input!BK302 -> 0 | DE38: =Input!BL302 -> 0 | DF38: =Input!BM302 -> 0 | DG38: =Input!BI336 -> 0 | DH38: =Input!BJ336 -> 0 | DI38: =Input!BK336 -> 0 | DJ38: =Input!BL336 -> 0 | DK38: =Input!BM336 -> 0
E39: =Input!E303 -> 0 | F39: =Input!F303 -> 0 | G39: =Input!G303 -> 0 | H39: =Input!H303 -> 0 | I39: =Input!I303 -> 0 | J39: =Input!J303 -> 0 | K39: =Input!K303 -> 0 | L39: =Input!G337 -> 0 | M39: =Input!H337 -> 0 | N39: =Input!I337 -> 0 | O39: =Input!J337 -> 0 | P39: =Input!K337 -> 0 | Q39: =Input!L303 -> 0 | R39: =Input!M303 -> 0 | S39: =Input!N303 -> 0 | T39: =Input!O303 -> 0 | U39: =Input!P303 -> 0 | V39: =Input!Q303 -> 0 | W39: =Input!M337 -> 0 | X39: =Input!N337 -> 0 | Y39: =Input!O337 -> 0 | Z39: =Input!P337 -> 0 | AA39: =Input!Q337 -> 0 | AB39: =Input!R303 -> 0 | AC39: =Input!S303 -> 0 | AD39: =Input!T303 -> 0 | AE39: =Input!U303 -> 0 | AF39: =Input!V303 -> 0 | AG39: =Input!W303 -> 0 | AH39: =Input!S337 -> 0 | AI39: =Input!T337 -> 0 | AJ39: =Input!U337 -> 0 | AK39: =Input!V337 -> 0 | AL39: =Input!W337 -> 0 | AM39: =Input!X303 -> 0 | AN39: =Input!Y303 -> 0 | AO39: =Input!Z303 -> 0 | AP39: =Input!AA303 -> 0 | AQ39: =Input!AB303 -> 0 | AR39: =Input!AC303 -> 0 | AS39: =Input!Y337 -> 0 | AT39: =Input!Z337 -> 0 | AU39: =Input!AA337 -> 0 | AV39: =Input!AB337 -> 0 | AW39: =Input!AC337 -> 0 | AX39: =Input!AD303 -> 0 | AY39: =Input!AE303 -> 0 | AZ39: =Input!AF303 -> 0 | BA39: =Input!AG303 -> 0 | BB39: =Input!AH303 -> 0 | BC39: =Input!AI303 -> 0 | BD39: =Input!AE337 -> 0 | BE39: =Input!AF337 -> 0 | BF39: =Input!AG337 -> 0 | BG39: =Input!AH337 -> 0 | BH39: =Input!AI337 -> 0 | BI39: =Input!AJ303 -> 0 | BJ39: =Input!AK303 -> 0 | BK39: =Input!AL303 -> 0 | BL39: =Input!AM303 -> 0 | BM39: =Input!AN303 -> 0 | BN39: =Input!AO303 -> 0 | BO39: =Input!AK337 -> 0 | BP39: =Input!AL337 -> 0 | BQ39: =Input!AM337 -> 0 | BR39: =Input!AN337 -> 0 | BS39: =Input!AO337 -> 0 | BT39: =Input!AP303 -> 0 | BU39: =Input!AQ303 -> 0 | BV39: =Input!AR303 -> 0 | BW39: =Input!AS303 -> 0 | BX39: =Input!AT303 -> 0 | BY39: =Input!AU303 -> 0 | BZ39: =Input!AQ337 -> 0 | CA39: =Input!AR337 -> 0 | CB39: =Input!AS337 -> 0 | CC39: =Input!AT337 -> 0 | CD39: =Input!AU337 -> 0 | CE39: =Input!AV303 -> 0 | CF39: =Input!AW303 -> 0 | CG39: =Input!AX303 -> 0 | CH39: =Input!AY303 -> 0 | CI39: =Input!AZ303 -> 0 | CJ39: =Input!BA303 -> 0 | CK39: =Input!AW337 -> 0 | CL39: =Input!AX337 -> 0 | CM39: =Input!AY337 -> 0 | CN39: =Input!AZ337 -> 0 | CO39: =Input!BA337 -> 0 | CP39: =Input!BB303 -> 0 | CQ39: =Input!BC303 -> 0 | CR39: =Input!BD303 -> 0 | CS39: =Input!BE303 -> 0 | CT39: =Input!BF303 -> 0 | CU39: =Input!BG303 -> 0 | CV39: =Input!BC337 -> 0 | CW39: =Input!BD337 -> 0 | CX39: =Input!BE337 -> 0 | CY39: =Input!BF337 -> 0 | CZ39: =Input!BG337 -> 0 | DA39: =Input!BH303 -> 0 | DB39: =Input!BI303 -> 0 | DC39: =Input!BJ303 -> 0 | DD39: =Input!BK303 -> 0 | DE39: =Input!BL303 -> 0 | DF39: =Input!BM303 -> 0 | DG39: =Input!BI337 -> 0 | DH39: =Input!BJ337 -> 0 | DI39: =Input!BK337 -> 0 | DJ39: =Input!BL337 -> 0 | DK39: =Input!BM337 -> 0
E40: Total | F40: =SUM(F14:F39) -> 690000 | G40: 703800 | H40: 717876 | I40: =SUM(I14:I39) -> 732233.52 | J40: 746878.1904 | K40: 761815.7542 | L40: 777052.0693 | M40: 792593.1107 | N40: =SUM(N14:N39) -> 808444.9729 | O40: 824613.8723 | P40: 841106.1498 | Q40: =SUM(Q14:Q39) -> 1000000000 | R40: 996000000 | S40: 992016000 | T40: 988047936 | U40: 984095744.3 | V40: 980159361.3 | W40: 976238723.8 | X40: 972333768.9 | Y40: 968444433.9 | Z40: 964570656.1 | AA40: 960712373.5 | AB40: =SUM(AB14:AB39) -> 40000000 | AC40: 40590000 | AD40: 41192020 | AE40: 41806299.96 | AF40: 42433084.64 | AG40: 43072623.7 | AH40: 43725171.78 | AI40: 44390988.63 | AJ40: 45070339.2 | AK40: 45763493.71 | AL40: 46470727.82 | AM40: 20000000 | AN40: =SUM(AN14:AN39) -> 20295000 | AO40: 20596010 | AP40: 20903149.98 | AQ40: 21216542.32 | AR40: 21536311.85 | AS40: 21862585.89 | AT40: 22195494.32 | AU40: 22535169.6 | AV40: 22881746.85 | AW40: 23235363.91 | AX40: =SUM(AX14:AX39) -> 8000000 | AY40: 8118000 | AZ40: 8238404 | BA40: 8361259.992 | BB40: 8486616.928 | BC40: 8614524.739 | BD40: 8745034.356 | BE40: 8878197.726 | BF40: 9014067.839 | BG40: 9152698.742 | BH40: 9294145.563 | BI40: =SUM(BI14:BI39) -> 4000000 | BJ40: 4059000 | BK40: 4119202 | BL40: 4180629.996 | BM40: 4243308.464 | BN40: 4307262.37 | BO40: 4372517.178 | BP40: 4439098.863 | BQ40: 4507033.92 | BR40: 4576349.371 | BS40: 4647072.782 | BT40: =SUM(BT14:BT39) -> 80000 | BU40: 81600 | BV40: 83232 | BW40: 84896.64 | BX40: 86594.5728 | BY40: 88326.46426 | BZ40: 90092.99354 | CA40: 91894.85341 | CB40: 93732.75048 | CC40: 95607.40549 | CD40: 97519.5536 | CE40: =SUM(CE14:CE39) -> 16000 | CF40: 16320 | CG40: 16646.4 | CH40: 16979.328 | CI40: 17318.91456 | CJ40: 17665.29285 | CK40: 18018.59871 | CL40: 18378.97068 | CM40: 18746.5501 | CN40: 19121.4811 | CO40: 19503.91072 | CP40: =SUM(CP14:CP39) -> 40000 | CQ40: 40800 | CR40: 41616 | CS40: 42448.32 | CT40: 43297.2864 | CU40: 44163.23213 | CV40: 45046.49677 | CW40: 45947.42671 | CX40: 46866.37524 | CY40: 47803.70274 | CZ40: 48759.7768 | DA40: =SUM(DA14:DA39) -> 1600 | DB40: 1632 | DC40: 1664.64 | DD40: 1697.9328 | DE40: 1731.891456 | DF40: 1766.529285 | DG40: 1801.859871 | DH40: 1837.897068 | DI40: 1874.65501 | DJ40: 1912.14811 | DK40: 1950.391072
E44: Forecast Prices
E46: Prices | F46: =Input!F245 -> Standing Charge ($ per customer per year) | L46: =F46&" [years 6-10]" -> Standing Charge ($ per customer per year) [years 6-10] | Q46: =Input!G245 -> Non TOU Energy (c/kWh) | W46: =Q46&" [years 6-10]" -> Non TOU Energy (c/kWh) [years 6-10] | AB46: =Input!H245 -> Peak Energy (c/KWh) BLK 1 | AH46: =AB46&" [years 6-10]" -> Peak Energy (c/KWh) BLK 1 [years 6-10] | AM46: =Input!I245 -> Peak Energy (c/KWh) BLK 2 | AS46: =AM46&" [years 6-10]" -> Peak Energy (c/KWh) BLK 2 [years 6-10] | AX46: =Input!J245 -> Off Peak Energy (c/kWh) BLK 1 | BD46: =AX46&" [years 6-10]" -> Off Peak Energy (c/kWh) BLK 1 [years 6-10] | BI46: =Input!K245 -> Off Peak Energy (c/kWh) BLK 2 | BO46: =BI46&" [years 6-10]" -> Off Peak Energy (c/kWh) BLK 2 [years 6-10] | BT46: =Input!L245 -> Peak Demand ($/kVa) BLK 1 | BZ46: =BT46&" [years 6-10]" -> Peak Demand ($/kVa) BLK 1 [years 6-10] | CE46: =Input!M245 -> Peak Demand ($/kVa) BLK 2 | CK46: =CE46&" [years 6-10]" -> Peak Demand ($/kVa) BLK 2 [years 6-10] | CP46: =Input!N245 -> Off Peak Demand ($/kVa) BLK 1 | CV46: =CP46&" [years 6-10]" -> Off Peak Demand ($/kVa) BLK 1 [years 6-10] | DA46: =Input!O245 -> Off Peak Demand ($/kVa) BLK 2 | DG46: =DA46&" [years 6-10]" -> Off Peak Demand ($/kVa) BLK 2 [years 6-10]
E47: Year | F47: =$F$4 -> 2007 | G47: =$G$4 -> 2008 | H47: =$H$4 -> 2009 | I47: =$I$4 -> 2010 | J47: =$J$4 -> 2011 | K47: =$K$4 -> 2012 | L47: =$L$4 -> 2013 | M47: =$M$4 -> 2014 | N47: =$N$4 -> 2015 | O47: =$O$4 -> 2016 | P47: =$P$4 -> 2017 | Q47: =$F$4 -> 2007 | R47: =$G$4 -> 2008 | S47: =$H$4 -> 2009 | T47: =$I$4 -> 2010 | U47: =$J$4 -> 2011 | V47: =$K$4 -> 2012 | W47: =$L$4 -> 2013 | X47: =$M$4 -> 2014 | Y47: =$N$4 -> 2015 | Z47: =$O$4 -> 2016 | AA47: =$P$4 -> 2017 | AB47: =$F$4 -> 2007 | AC47: =$G$4 -> 2008 | AD47: =$H$4 -> 2009 | AE47: =$I$4 -> 2010 | AF47: =$J$4 -> 2011 | AG47: =$K$4 -> 2012 | AH47: =$L$4 -> 2013 | AI47: =$M$4 -> 2014 | AJ47: =$N$4 -> 2015 | AK47: =$O$4 -> 2016 | AL47: =$P$4 -> 2017 | AM47: =$F$4 -> 2007 | AN47: =$G$4 -> 2008 | AO47: =$H$4 -> 2009 | AP47: =$I$4 -> 2010 | AQ47: =$J$4 -> 2011 | AR47: =$K$4 -> 2012 | AS47: =$L$4 -> 2013 | AT47: =$M$4 -> 2014 | AU47: =$N$4 -> 2015 | AV47: =$O$4 -> 2016 | AW47: =$P$4 -> 2017 | AX47: =$F$4 -> 2007 | AY47: =$G$4 -> 2008 | AZ47: =$H$4 -> 2009 | BA47: =$I$4 -> 2010 | BB47: =$J$4 -> 2011 | BC47: =$K$4 -> 2012 | BD47: =$L$4 -> 2013 | BE47: =$M$4 -> 2014 | BF47: =$N$4 -> 2015 | BG47: =$O$4 -> 2016 | BH47: =$P$4 -> 2017 | BI47: =$F$4 -> 2007 | BJ47: =$G$4 -> 2008 | BK47: =$H$4 -> 2009 | BL47: =$I$4 -> 2010 | BM47: =$J$4 -> 2011 | BN47: =$K$4 -> 2012 | BO47: =$L$4 -> 2013 | BP47: =$M$4 -> 2014 | BQ47: =$N$4 -> 2015 | BR47: =$O$4 -> 2016 | BS47: =$P$4 -> 2017 | BT47: =$F$4 -> 2007 | BU47: =$G$4 -> 2008 | BV47: =$H$4 -> 2009 | BW47: =$I$4 -> 2010 | BX47: =$J$4 -> 2011 | BY47: =$K$4 -> 2012 | BZ47: =$L$4 -> 2013 | CA47: =$M$4 -> 2014 | CB47: =$N$4 -> 2015 | CC47: =$O$4 -> 2016 | CD47: =$P$4 -> 2017 | CE47: =$F$4 -> 2007 | CF47: =$G$4 -> 2008 | CG47: =$H$4 -> 2009 | CH47: =$I$4 -> 2010 | CI47: =$J$4 -> 2011 | CJ47: =$K$4 -> 2012 | CK47: =$L$4 -> 2013 | CL47: =$M$4 -> 2014 | CM47: =$N$4 -> 2015 | CN47: =$O$4 -> 2016 | CO47: =$P$4 -> 2017 | CP47: =$F$4 -> 2007 | CQ47: =$G$4 -> 2008 | CR47: =$H$4 -> 2009 | CS47: =$I$4 -> 2010 | CT47: =$J$4 -> 2011 | CU47: =$K$4 -> 2012 | CV47: =$L$4 -> 2013 | CW47: =$M$4 -> 2014 | CX47: =$N$4 -> 2015 | CY47: =$O$4 -> 2016 | CZ47: =$P$4 -> 2017 | DA47: =$F$4 -> 2007 | DB47: =$G$4 -> 2008 | DC47: =$H$4 -> 2009 | DD47: =$I$4 -> 2010 | DE47: =$J$4 -> 2011 | DF47: =$K$4 -> 2012 | DG47: =$L$4 -> 2013 | DH47: =$M$4 -> 2014 | DI47: =$N$4 -> 2015 | DJ47: =$O$4 -> 2016 | DK47: =$P$4 -> 2017
E48: =E14 -> Residential A | F48: =Input!F247 -> 250 | G48: =F48*(1-P_0_WAPC)*(1+f) -> 256.0368971 | H48: =G48*(1-X_02_WAPC)*(1+f) -> 262.0814358 | I48: =H48*(1-X_03_WAPC)*(1+f) -> 268.2686743 | J48: =I48*(1-X_04_WAPC)*(1+f) -> 274.6019817 | K48: =J48*(1-X_05_WAPC)*(1+f) -> 281.0848063 | L48: =K48*(1-X_06_WAPC)*(1+f) -> 287.7206779 | M48: =L48*(1-X_07_WAPC)*(1+f) -> 294.5132096 | N48: =M48*(1-X_08_WAPC)*(1+f) -> 301.4661 | O48: =N48*(1-X_09_WAPC)*(1+f) -> 308.5831347 | P48: =O48*(1-X_10_WAPC)*(1+f) -> 315.8681889 | Q48: =Input!G247 -> 10 | R48: =Q48*(1-P_0_WAPC)*(1+f) -> 10.24147589 | S48: =R48*(1-X_02_WAPC)*(1+f) -> 10.48325743 | T48: =S48*(1-X_03_WAPC)*(1+f) -> 10.73074697 | U48: =T48*(1-X_04_WAPC)*(1+f) -> 10.98407927 | V48: =U48*(1-X_05_WAPC)*(1+f) -> 11.24339225 | W48: =V48*(1-X_06_WAPC)*(1+f) -> 11.50882711 | X48: =W48*(1-X_07_WAPC)*(1+f) -> 11.78052838 | Y48: =X48*(1-X_08_WAPC)*(1+f) -> 12.058644 | Z48: =Y48*(1-X_09_WAPC)*(1+f) -> 12.34332539 | AA48: =Z48*(1-X_10_WAPC)*(1+f) -> 12.63472756 | AB48: =Input!H247 -> 0 | AC48: =AB48*(1-P_0_WAPC)*(1+f) -> 0 | AD48: =AC48*(1-X_02_WAPC)*(1+f) -> 0 | AE48: =AD48*(1-X_03_WAPC)*(1+f) -> 0 | AF48: =AE48*(1-X_04_WAPC)*(1+f) -> 0 | AG48: =AF48*(1-X_05_WAPC)*(1+f) -> 0 | AH48: =AG48*(1-X_06_WAPC)*(1+f) -> 0 | AI48: =AH48*(1-X_07_WAPC)*(1+f) -> 0 | AJ48: =AI48*(1-X_08_WAPC)*(1+f) -> 0 | AK48: =AJ48*(1-X_09_WAPC)*(1+f) -> 0 | AL48: =AK48*(1-X_10_WAPC)*(1+f) -> 0 | AM48: =Input!I247 -> 0 | AN48: =AM48*(1-P_0_WAPC)*(1+f) -> 0 | AO48: =AN48*(1-X_02_WAPC)*(1+f) -> 0 | AP48: =AO48*(1-X_03_WAPC)*(1+f) -> 0 | AQ48: =AP48*(1-X_04_WAPC)*(1+f) -> 0 | AR48: =AQ48*(1-X_05_WAPC)*(1+f) -> 0 | AS48: =AR48*(1-X_06_WAPC)*(1+f) -> 0 | AT48: =AS48*(1-X_07_WAPC)*(1+f) -> 0 | AU48: =AT48*(1-X_08_WAPC)*(1+f) -> 0 | AV48: =AU48*(1-X_09_WAPC)*(1+f) -> 0 | AW48: =AV48*(1-X_10_WAPC)*(1+f) -> 0 | AX48: =Input!J247 -> 0 | AY48: =AX48*(1-P_0_WAPC)*(1+f) -> 0 | AZ48: =AY48*(1-X_02_WAPC)*(1+f) -> 0 | BA48: =AZ48*(1-X_03_WAPC)*(1+f) -> 0 | BB48: =BA48*(1-X_04_WAPC)*(1+f) -> 0 | BC48: =BB48*(1-X_05_WAPC)*(1+f) -> 0 | BD48: =BC48*(1-X_06_WAPC)*(1+f) -> 0 | BE48: =BD48*(1-X_07_WAPC)*(1+f) -> 0 | BF48: =BE48*(1-X_08_WAPC)*(1+f) -> 0 | BG48: =BF48*(1-X_09_WAPC)*(1+f) -> 0 | BH48: =BG48*(1-X_10_WAPC)*(1+f) -> 0 | BI48: =Input!K247 -> 0 | BJ48: =BI48*(1-P_0_WAPC)*(1+f) -> 0 | BK48: =BJ48*(1-X_02_WAPC)*(1+f) -> 0 | BL48: =BK48*(1-X_03_WAPC)*(1+f) -> 0 | BM48: =BL48*(1-X_04_WAPC)*(1+f) -> 0 | BN48: =BM48*(1-X_05_WAPC)*(1+f) -> 0 | BO48: =BN48*(1-X_06_WAPC)*(1+f) -> 0 | BP48: =BO48*(1-X_07_WAPC)*(1+f) -> 0 | BQ48: =BP48*(1-X_08_WAPC)*(1+f) -> 0 | BR48: =BQ48*(1-X_09_WAPC)*(1+f) -> 0 | BS48: =BR48*(1-X_10_WAPC)*(1+f) -> 0 | BT48: =Input!L247 -> 0 | BU48: =BT48*(1-P_0_WAPC)*(1+f) -> 0 | BV48: =BU48*(1-X_02_WAPC)*(1+f) -> 0 | BW48: =BV48*(1-X_03_WAPC)*(1+f) -> 0 | BX48: =BW48*(1-X_04_WAPC)*(1+f) -> 0 | BY48: =BX48*(1-X_05_WAPC)*(1+f) -> 0 | BZ48: =BY48*(1-X_06_WAPC)*(1+f) -> 0 | CA48: =BZ48*(1-X_07_WAPC)*(1+f) -> 0 | CB48: =CA48*(1-X_08_WAPC)*(1+f) -> 0 | CC48: =CB48*(1-X_09_WAPC)*(1+f) -> 0 | CD48: =CC48*(1-X_10_WAPC)*(1+f) -> 0 | CE48: =Input!M247 -> 0 | CF48: =CE48*(1-P_0_WAPC)*(1+f) -> 0 | CG48: =CF48*(1-X_02_WAPC)*(1+f) -> 0 | CH48: =CG48*(1-X_03_WAPC)*(1+f) -> 0 | CI48: =CH48*(1-X_04_WAPC)*(1+f) -> 0 | CJ48: =CI48*(1-X_05_WAPC)*(1+f) -> 0 | CK48: =CJ48*(1-X_06_WAPC)*(1+f) -> 0 | CL48: =CK48*(1-X_07_WAPC)*(1+f) -> 0 | CM48: =CL48*(1-X_08_WAPC)*(1+f) -> 0 | CN48: =CM48*(1-X_09_WAPC)*(1+f) -> 0 | CO48: =CN48*(1-X_10_WAPC)*(1+f) -> 0 | CP48: =Input!N247 -> 0 | CQ48: =CP48*(1-P_0_WAPC)*(1+f) -> 0 | CR48: =CQ48*(1-X_02_WAPC)*(1+f) -> 0 | CS48: =CR48*(1-X_03_WAPC)*(1+f) -> 0 | CT48: =CS48*(1-X_04_WAPC)*(1+f) -> 0 | CU48: =CT48*(1-X_05_WAPC)*(1+f) -> 0 | CV48: =CU48*(1-X_06_WAPC)*(1+f) -> 0 | CW48: =CV48*(1-X_07_WAPC)*(1+f) -> 0 | CX48: =CW48*(1-X_08_WAPC)*(1+f) -> 0 | CY48: =CX48*(1-X_09_WAPC)*(1+f) -> 0 | CZ48: =CY48*(1-X_10_WAPC)*(1+f) -> 0 | DA48: =Input!O247 -> 0 | DB48: =DA48*(1-P_0_WAPC)*(1+f) -> 0 | DC48: =DB48*(1-X_02_WAPC)*(1+f) -> 0 | DD48: =DC48*(1-X_03_WAPC)*(1+f) -> 0 | DE48: =DD48*(1-X_04_WAPC)*(1+f) -> 0 | DF48: =DE48*(1-X_05_WAPC)*(1+f) -> 0 | DG48: =DF48*(1-X_06_WAPC)*(1+f) -> 0 | DH48: =DG48*(1-X_07_WAPC)*(1+f) -> 0 | DI48: =DH48*(1-X_08_WAPC)*(1+f) -> 0 | DJ48: =DI48*(1-X_09_WAPC)*(1+f) -> 0 | DK48: =DJ48*(1-X_10_WAPC)*(1+f) -> 0
E49: Residential B | F49: =Input!F248 -> 250 | G49: =F49*(1-P_0_WAPC)*(1+f) -> 256.0368971 | H49: 262.0814358 | I49: 268.2686743 | J49: 274.6019817 | K49: 281.0848063 | L49: 287.7206779 | M49: 294.5132096 | N49: 301.4661 | O49: 308.5831347 | P49: 315.8681889 | Q49: =Input!G248 -> 0 | R49: 0 | S49: 0 | T49: 0 | U49: 0 | V49: 0 | W49: 0 | X49: 0 | Y49: 0 | Z49: 0 | AA49: 0 | AB49: =Input!H248 -> 20 | AC49: 20.48295177 | AD49: 20.96651486 | AE49: 21.46149395 | AF49: 21.96815854 | AG49: 22.4867845 | AH49: 23.01765423 | AI49: 23.56105677 | AJ49: 24.117288 | AK49: 24.68665078 | AL49: 25.26945511 | AM49: =Input!I248 -> 10 | AN49: 10.24147589 | AO49: 10.48325743 | AP49: 10.73074697 | AQ49: 10.98407927 | AR49: 11.24339225 | AS49: 11.50882711 | AT49: 11.78052838 | AU49: 12.058644 | AV49: 12.34332539 | AW49: 12.63472756 | AX49: =Input!J248 -> 15 | AY49: 15.36221383 | AZ49: 15.72488615 | BA49: 16.09612046 | BB49: 16.4761189 | BC49: 16.86508838 | BD49: 17.26324067 | BE49: 17.67079258 | BF49: 18.087966 | BG49: 18.51498808 | BH49: 18.95209134 | BI49: =Input!K248 -> 10 | BJ49: 10.24147589 | BK49: 10.48325743 | BL49: 10.73074697 | BM49: 10.98407927 | BN49: 11.24339225 | BO49: 11.50882711 | BP49: 11.78052838 | BQ49: 12.058644 | BR49: 12.34332539 | BS49: 12.63472756 | BT49: =Input!L248 -> 15 | BU49: 15.36221383 | BV49: 15.72488615 | BW49: 16.09612046 | BX49: 16.4761189 | BY49: 16.86508838 | BZ49: 17.26324067 | CA49: 17.67079258 | CB49: 18.087966 | CC49: 18.51498808 | CD49: 18.95209134 | CE49: =Input!M248 -> 10 | CF49: 10.24147589 | CG49: 10.48325743 | CH49: 10.73074697 | CI49: 10.98407927 | CJ49: 11.24339225 | CK49: 11.50882711 | CL49: 11.78052838 | CM49: 12.058644 | CN49: 12.34332539 | CO49: 12.63472756 | CP49: =Input!N248 -> 10 | CQ49: 10.24147589 | CR49: 10.48325743 | CS49: 10.73074697 | CT49: 10.98407927 | CU49: 11.24339225 | CV49: 11.50882711 | CW49: 11.78052838 | CX49: 12.058644 | CY49: 12.34332539 | CZ49: 12.63472756 | DA49: =Input!O248 -> 5 | DB49: 5.120737943 | DC49: 5.241628716 | DD49: 5.365373487 | DE49: 5.492039634 | DF49: 5.621696126 | DG49: 5.754413557 | DH49: 5.890264192 | DI49: 6.029321999 | DJ49: 6.171662694 | DK49: 6.317363778
E50: Residential C | F50: =Input!F249 -> 250 | G50: 256.0368971 | H50: 262.0814358 | I50: 268.2686743 | J50: 274.6019817 | K50: 281.0848063 | L50: 287.7206779 | M50: 294.5132096 | N50: 301.4661 | O50: 308.5831347 | P50: 315.8681889 | Q50: =Input!G249 -> 0 | R50: 0 | S50: 0 | T50: 0 | U50: 0 | V50: 0 | W50: 0 | X50: 0 | Y50: 0 | Z50: 0 | AA50: 0 | AB50: =Input!H249 -> 20 | AC50: 20.48295177 | AD50: 20.96651486 | AE50: 21.46149395 | AF50: 21.96815854 | AG50: 22.4867845 | AH50: 23.01765423 | AI50: 23.56105677 | AJ50: 24.117288 | AK50: 24.68665078 | AL50: 25.26945511 | AM50: =Input!I249 -> 10 | AN50: 10.24147589 | AO50: 10.48325743 | AP50: 10.73074697 | AQ50: 10.98407927 | AR50: 11.24339225 | AS50: 11.50882711 | AT50: 11.78052838 | AU50: 12.058644 | AV50: 12.34332539 | AW50: 12.63472756 | AX50: =Input!J249 -> 15 | AY50: 15.36221383 | AZ50: 15.72488615 | BA50: 16.09612046 | BB50: 16.4761189 | BC50: 16.86508838 | BD50: 17.26324067 | BE50: 17.67079258 | BF50: 18.087966 | BG50: 18.51498808 | BH50: 18.95209134 | BI50: =Input!K249 -> 10 | BJ50: 10.24147589 | BK50: 10.48325743 | BL50: 10.73074697 | BM50: 10.98407927 | BN50: 11.24339225 | BO50: 11.50882711 | BP50: 11.78052838 | BQ50: 12.058644 | BR50: 12.34332539 | BS50: 12.63472756 | BT50: =Input!L249 -> 15 | BU50: 15.36221383 | BV50: 15.72488615 | BW50: 16.09612046 | BX50: 16.4761189 | BY50: 16.86508838 | BZ50: 17.26324067 | CA50: 17.67079258 | CB50: 18.087966 | CC50: 18.51498808 | CD50: 18.95209134 | CE50: =Input!M249 -> 10 | CF50: 10.24147589 | CG50: 10.48325743 | CH50: 10.73074697 | CI50: 10.98407927 | CJ50: 11.24339225 | CK50: 11.50882711 | CL50: 11.78052838 | CM50: 12.058644 | CN50: 12.34332539 | CO50: 12.63472756 | CP50: =Input!N249 -> 10 | CQ50: 10.24147589 | CR50: 10.48325743 | CS50: 10.73074697 | CT50: 10.98407927 | CU50: 11.24339225 | CV50: 11.50882711 | CW50: 11.78052838 | CX50: 12.058644 | CY50: 12.34332539 | CZ50: 12.63472756 | DA50: =Input!O249 -> 5 | DB50: 5.120737943 | DC50: 5.241628716 | DD50: 5.365373487 | DE50: 5.492039634 | DF50: 5.621696126 | DG50: 5.754413557 | DH50: 5.890264192 | DI50: 6.029321999 | DJ50: 6.171662694 | DK50: 6.317363778
E51: Small Business A | F51: =Input!F250 -> 500 | G51: 512.0737943 | H51: 524.1628716 | I51: 536.5373487 | J51: 549.2039634 | K51: 562.1696126 | L51: 575.4413557 | M51: 589.0264192 | N51: 602.9321999 | O51: 617.1662694 | P51: 631.7363778 | Q51: =Input!G250 -> 0 | R51: 0 | S51: 0 | T51: 0 | U51: 0 | V51: 0 | W51: 0 | X51: 0 | Y51: 0 | Z51: 0 | AA51: 0 | AB51: =Input!H250 -> 30 | AC51: 30.72442766 | AD51: 31.44977229 | AE51: 32.19224092 | AF51: 32.95223781 | AG51: 33.73017675 | AH51: 34.52648134 | AI51: 35.34158515 | AJ51: 36.175932 | AK51: 37.02997616 | AL51: 37.90418267 | AM51: =Input!I250 -> 10 | AN51: 10.24147589 | AO51: 10.48325743 | AP51: 10.73074697 | AQ51: 10.98407927 | AR51: 11.24339225 | AS51: 11.50882711 | AT51: 11.78052838 | AU51: 12.058644 | AV51: 12.34332539 | AW51: 12.63472756 | AX51: =Input!J250 -> 15 | AY51: 15.36221383 | AZ51: 15.72488615 | BA51: 16.09612046 | BB51: 16.4761189 | BC51: 16.86508838 | BD51: 17.26324067 | BE51: 17.67079258 | BF51: 18.087966 | BG51: 18.51498808 | BH51: 18.95209134 | BI51: =Input!K250 -> 10 | BJ51: 10.24147589 | BK51: 10.48325743 | BL51: 10.73074697 | BM51: 10.98407927 | BN51: 11.24339225 | BO51: 11.50882711 | BP51: 11.78052838 | BQ51: 12.058644 | BR51: 12.34332539 | BS51: 12.63472756 | BT51: =Input!L250 -> 15 | BU51: 15.36221383 | BV51: 15.72488615 | BW51: 16.09612046 | BX51: 16.4761189 | BY51: 16.86508838 | BZ51: 17.26324067 | CA51: 17.67079258 | CB51: 18.087966 | CC51: 18.51498808 | CD51: 18.95209134 | CE51: =Input!M250 -> 20 | CF51: 20.48295177 | CG51: 20.96651486 | CH51: 21.46149395 | CI51: 21.96815854 | CJ51: 22.4867845 | CK51: 23.01765423 | CL51: 23.56105677 | CM51: 24.117288 | CN51: 24.68665078 | CO51: 25.26945511 | CP51: =Input!N250 -> 10 | CQ51: 10.24147589 | CR51: 10.48325743 | CS51: 10.73074697 | CT51: 10.98407927 | CU51: 11.24339225 | CV51: 11.50882711 | CW51: 11.78052838 | CX51: 12.058644 | CY51: 12.34332539 | CZ51: 12.63472756 | DA51: =Input!O250 -> 5 | DB51: 5.120737943 | DC51: 5.241628716 | DD51: 5.365373487 | DE51: 5.492039634 | DF51: 5.621696126 | DG51: 5.754413557 | DH51: 5.890264192 | DI51: 6.029321999 | DJ51: 6.171662694 | DK51: 6.317363778
E52: Small Business B | F52: =Input!F251 -> 500 | G52: 512.0737943 | H52: 524.1628716 | I52: 536.5373487 | J52: 549.2039634 | K52: 562.1696126 | L52: 575.4413557 | M52: 589.0264192 | N52: 602.9321999 | O52: 617.1662694 | P52: 631.7363778 | Q52: =Input!G251 -> 0 | R52: 0 | S52: 0 | T52: 0 | U52: 0 | V52: 0 | W52: 0 | X52: 0 | Y52: 0 | Z52: 0 | AA52: 0 | AB52: =Input!H251 -> 30 | AC52: 30.72442766 | AD52: 31.44977229 | AE52: 32.19224092 | AF52: 32.95223781 | AG52: 33.73017675 | AH52: 34.52648134 | AI52: 35.34158515 | AJ52: 36.175932 | AK52: 37.02997616 | AL52: 37.90418267 | AM52: =Input!I251 -> 10 | AN52: 10.24147589 | AO52: 10.48325743 | AP52: 10.73074697 | AQ52: 10.98407927 | AR52: 11.24339225 | AS52: 11.50882711 | AT52: 11.78052838 | AU52: 12.058644 | AV52: 12.34332539 | AW52: 12.63472756 | AX52: =Input!J251 -> 15 | AY52: 15.36221383 | AZ52: 15.72488615 | BA52: 16.09612046 | BB52: 16.4761189 | BC52: 16.86508838 | BD52: 17.26324067 | BE52: 17.67079258 | BF52: 18.087966 | BG52: 18.51498808 | BH52: 18.95209134 | BI52: =Input!K251 -> 10 | BJ52: 10.24147589 | BK52: 10.48325743 | BL52: 10.73074697 | BM52: 10.98407927 | BN52: 11.24339225 | BO52: 11.50882711 | BP52: 11.78052838 | BQ52: 12.058644 | BR52: 12.34332539 | BS52: 12.63472756 | BT52: =Input!L251 -> 15 | BU52: 15.36221383 | BV52: 15.72488615 | BW52: 16.09612046 | BX52: 16.4761189 | BY52: 16.86508838 | BZ52: 17.26324067 | CA52: 17.67079258 | CB52: 18.087966 | CC52: 18.51498808 | CD52: 18.95209134 | CE52: =Input!M251 -> 20 | CF52: 20.48295177 | CG52: 20.96651486 | CH52: 21.46149395 | CI52: 21.96815854 | CJ52: 22.4867845 | CK52: 23.01765423 | CL52: 23.56105677 | CM52: 24.117288 | CN52: 24.68665078 | CO52: 25.26945511 | CP52: =Input!N251 -> 10 | CQ52: 10.24147589 | CR52: 10.48325743 | CS52: 10.73074697 | CT52: 10.98407927 | CU52: 11.24339225 | CV52: 11.50882711 | CW52: 11.78052838 | CX52: 12.058644 | CY52: 12.34332539 | CZ52: 12.63472756 | DA52: =Input!O251 -> 5 | DB52: 5.120737943 | DC52: 5.241628716 | DD52: 5.365373487 | DE52: 5.492039634 | DF52: 5.621696126 | DG52: 5.754413557 | DH52: 5.890264192 | DI52: 6.029321999 | DJ52: 6.171662694 | DK52: 6.317363778
E53: Small Business C | F53: =Input!F252 -> 500 | G53: 512.0737943 | H53: 524.1628716 | I53: 536.5373487 | J53: 549.2039634 | K53: 562.1696126 | L53: 575.4413557 | M53: 589.0264192 | N53: 602.9321999 | O53: 617.1662694 | P53: 631.7363778 | Q53: =Input!G252 -> 0 | R53: 0 | S53: 0 | T53: 0 | U53: 0 | V53: 0 | W53: 0 | X53: 0 | Y53: 0 | Z53: 0 | AA53: 0 | AB53: =Input!H252 -> 30 | AC53: 30.72442766 | AD53: 31.44977229 | AE53: 32.19224092 | AF53: 32.95223781 | AG53: 33.73017675 | AH53: 34.52648134 | AI53: 35.34158515 | AJ53: 36.175932 | AK53: 37.02997616 | AL53: 37.90418267 | AM53: =Input!I252 -> 10 | AN53: 10.24147589 | AO53: 10.48325743 | AP53: 10.73074697 | AQ53: 10.98407927 | AR53: 11.24339225 | AS53: 11.50882711 | AT53: 11.78052838 | AU53: 12.058644 | AV53: 12.34332539 | AW53: 12.63472756 | AX53: =Input!J252 -> 15 | AY53: 15.36221383 | AZ53: 15.72488615 | BA53: 16.09612046 | BB53: 16.4761189 | BC53: 16.86508838 | BD53: 17.26324067 | BE53: 17.67079258 | BF53: 18.087966 | BG53: 18.51498808 | BH53: 18.95209134 | BI53: =Input!K252 -> 10 | BJ53: 10.24147589 | BK53: 10.48325743 | BL53: 10.73074697 | BM53: 10.98407927 | BN53: 11.24339225 | BO53: 11.50882711 | BP53: 11.78052838 | BQ53: 12.058644 | BR53: 12.34332539 | BS53: 12.63472756 | BT53: =Input!L252 -> 15 | BU53: 15.36221383 | BV53: 15.72488615 | BW53: 16.09612046 | BX53: 16.4761189 | BY53: 16.86508838 | BZ53: 17.26324067 | CA53: 17.67079258 | CB53: 18.087966 | CC53: 18.51498808 | CD53: 18.95209134 | CE53: =Input!M252 -> 20 | CF53: 20.48295177 | CG53: 20.96651486 | CH53: 21.46149395 | CI53: 21.96815854 | CJ53: 22.4867845 | CK53: 23.01765423 | CL53: 23.56105677 | CM53: 24.117288 | CN53: 24.68665078 | CO53: 25.26945511 | CP53: =Input!N252 -> 10 | CQ53: 10.24147589 | CR53: 10.48325743 | CS53: 10.73074697 | CT53: 10.98407927 | CU53: 11.24339225 | CV53: 11.50882711 | CW53: 11.78052838 | CX53: 12.058644 | CY53: 12.34332539 | CZ53: 12.63472756 | DA53: =Input!O252 -> 5 | DB53: 5.120737943 | DC53: 5.241628716 | DD53: 5.365373487 | DE53: 5.492039634 | DF53: 5.621696126 | DG53: 5.754413557 | DH53: 5.890264192 | DI53: 6.029321999 | DJ53: 6.171662694 | DK53: 6.317363778
E54: Large Business A | F54: =Input!F253 -> 1000 | G54: 1024.147589 | H54: 1048.325743 | I54: 1073.074697 | J54: 1098.407927 | K54: 1124.339225 | L54: 1150.882711 | M54: 1178.052838 | N54: 1205.8644 | O54: 1234.332539 | P54: 1263.472756 | Q54: =Input!G253 -> 0 | R54: 0 | S54: 0 | T54: 0 | U54: 0 | V54: 0 | W54: 0 | X54: 0 | Y54: 0 | Z54: 0 | AA54: 0 | AB54: =Input!H253 -> 50 | AC54: 51.20737943 | AD54: 52.41628716 | AE54: 53.65373487 | AF54: 54.92039634 | AG54: 56.21696126 | AH54: 57.54413557 | AI54: 58.90264192 | AJ54: 60.29321999 | AK54: 61.71662694 | AL54: 63.17363778 | AM54: =Input!I253 -> 10 | AN54: 10.24147589 | AO54: 10.48325743 | AP54: 10.73074697 | AQ54: 10.98407927 | AR54: 11.24339225 | AS54: 11.50882711 | AT54: 11.78052838 | AU54: 12.058644 | AV54: 12.34332539 | AW54: 12.63472756 | AX54: =Input!J253 -> 15 | AY54: 15.36221383 | AZ54: 15.72488615 | BA54: 16.09612046 | BB54: 16.4761189 | BC54: 16.86508838 | BD54: 17.26324067 | BE54: 17.67079258 | BF54: 18.087966 | BG54: 18.51498808 | BH54: 18.95209134 | BI54: =Input!K253 -> 10 | BJ54: 10.24147589 | BK54: 10.48325743 | BL54: 10.73074697 | BM54: 10.98407927 | BN54: 11.24339225 | BO54: 11.50882711 | BP54: 11.78052838 | BQ54: 12.058644 | BR54: 12.34332539 | BS54: 12.63472756 | BT54: =Input!L253 -> 15 | BU54: 15.36221383 | BV54: 15.72488615 | BW54: 16.09612046 | BX54: 16.4761189 | BY54: 16.86508838 | BZ54: 17.26324067 | CA54: 17.67079258 | CB54: 18.087966 | CC54: 18.51498808 | CD54: 18.95209134 | CE54: =Input!M253 -> 30 | CF54: 30.72442766 | CG54: 31.44977229 | CH54: 32.19224092 | CI54: 32.95223781 | CJ54: 33.73017675 | CK54: 34.52648134 | CL54: 35.34158515 | CM54: 36.175932 | CN54: 37.02997616 | CO54: 37.90418267 | CP54: =Input!N253 -> 10 | CQ54: 10.24147589 | CR54: 10.48325743 | CS54: 10.73074697 | CT54: 10.98407927 | CU54: 11.24339225 | CV54: 11.50882711 | CW54: 11.78052838 | CX54: 12.058644 | CY54: 12.34332539 | CZ54: 12.63472756 | DA54: =Input!O253 -> 5 | DB54: 5.120737943 | DC54: 5.241628716 | DD54: 5.365373487 | DE54: 5.492039634 | DF54: 5.621696126 | DG54: 5.754413557 | DH54: 5.890264192 | DI54: 6.029321999 | DJ54: 6.171662694 | DK54: 6.317363778
E55: Large Business B | F55: =Input!F254 -> 1000 | G55: 1024.147589 | H55: 1048.325743 | I55: 1073.074697 | J55: 1098.407927 | K55: 1124.339225 | L55: 1150.882711 | M55: 1178.052838 | N55: 1205.8644 | O55: 1234.332539 | P55: 1263.472756 | Q55: =Input!G254 -> 0 | R55: 0 | S55: 0 | T55: 0 | U55: 0 | V55: 0 | W55: 0 | X55: 0 | Y55: 0 | Z55: 0 | AA55: 0 | AB55: =Input!H254 -> 50 | AC55: 51.20737943 | AD55: 52.41628716 | AE55: 53.65373487 | AF55: 54.92039634 | AG55: 56.21696126 | AH55: 57.54413557 | AI55: 58.90264192 | AJ55: 60.29321999 | AK55: 61.71662694 | AL55: 63.17363778 | AM55: =Input!I254 -> 10 | AN55: 10.24147589 | AO55: 10.48325743 | AP55: 10.73074697 | AQ55: 10.98407927 | AR55: 11.24339225 | AS55: 11.50882711 | AT55: 11.78052838 | AU55: 12.058644 | AV55: 12.34332539 | AW55: 12.63472756 | AX55: =Input!J254 -> 15 | AY55: 15.36221383 | AZ55: 15.72488615 | BA55: 16.09612046 | BB55: 16.4761189 | BC55: 16.86508838 | BD55: 17.26324067 | BE55: 17.67079258 | BF55: 18.087966 | BG55: 18.51498808 | BH55: 18.95209134 | BI55: =Input!K254 -> 10 | BJ55: 10.24147589 | BK55: 10.48325743 | BL55: 10.73074697 | BM55: 10.98407927 | BN55: 11.24339225 | BO55: 11.50882711 | BP55: 11.78052838 | BQ55: 12.058644 | BR55: 12.34332539 | BS55: 12.63472756 | BT55: =Input!L254 -> 15 | BU55: 15.36221383 | BV55: 15.72488615 | BW55: 16.09612046 | BX55: 16.4761189 | BY55: 16.86508838 | BZ55: 17.26324067 | CA55: 17.67079258 | CB55: 18.087966 | CC55: 18.51498808 | CD55: 18.95209134 | CE55: =Input!M254 -> 30 | CF55: 30.72442766 | CG55: 31.44977229 | CH55: 32.19224092 | CI55: 32.95223781 | CJ55: 33.73017675 | CK55: 34.52648134 | CL55: 35.34158515 | CM55: 36.175932 | CN55: 37.02997616 | CO55: 37.90418267 | CP55: =Input!N254 -> 10 | CQ55: 10.24147589 | CR55: 10.48325743 | CS55: 10.73074697 | CT55: 10.98407927 | CU55: 11.24339225 | CV55: 11.50882711 | CW55: 11.78052838 | CX55: 12.058644 | CY55: 12.34332539 | CZ55: 12.63472756 | DA55: =Input!O254 -> 5 | DB55: 5.120737943 | DC55: 5.241628716 | DD55: 5.365373487 | DE55: 5.492039634 | DF55: 5.621696126 | DG55: 5.754413557 | DH55: 5.890264192 | DI55: 6.029321999 | DJ55: 6.171662694 | DK55: 6.317363778
